Workbook

Sheet Map
A1: =RIGHT(CELL("filename", $A$1), LEN(CELL("filename", $A$1)) - SEARCH("]", CELL("filename", $A$1))) -> Map
A4: GENERIC MODEL DESIGN
B6: ABOVE BONNET - USER INTERFACE
D9: Inputs | M9: Output Summary
B14: BELOW BONNET - CALCULATION ENGINE
D20: Input Transition | H20: Calculations | M20: Detailed Outputs
B26: Note: FAST strictly applicable below the bonnet
A29: MODEL FLOW
B31: MODEL FLOW DIAGRAM | U31: DOCUMENTION AND QUALITY CONTROL
D33: INPUTS | G33: CALCULATIONS | P33: OUTPUTS | W33: DOCUMENTATION | AA33: QUALITY CONTROL
M37: ='DL - C3'!$A$1 -> DL - C3 | AA37: =Track!$A$1 -> 0
M38: Maximum regulated distribution revenue - DL | AA38: Model output changes
M40: ='DL - C4'!$A$1 -> DL - C4 | W40: =Key!$A$1 -> Key | AA40: =Check!$A$1 -> 0
M41: Regulatory asset bases - DL | W41: Sheet tabs colors, color coding, abbreviations, names | AA41: Error checks and alerts
M43: ='DL - C4 A'!$A$1 -> DL - C4 A | W43: =$A$1 -> Map
M44: Regulatory asset bases - Depreciation till last period - DL | W44: Sheet references and model flow
M46: ='DL - C4 B'!$A$1 -> DL - C4 B | W46: =HowTo!$A$1 -> HowTo
M47: Regulatory asset bases - Depreciation difference - DL | W47: Detailed guide on how to Use the model
M49: ='DL - C4 C'!$A$1 -> DL - C4 C
M50: Regulatory asset bases - Depreciation for current period capex - DL
M52: ='DL - C5'!$A$1 -> DL - C5
M53: Return amount - DL
M55: ='DL - C6'!$A$1 -> DL - C6 | Q55: =DL_RAB_Summary!$A$1 -> DL_RAB_Summary
M56: Opex amount - DL | Q56: DL individual RAB's summary
M58: ='DL - C7'!$A$1 -> DL - C7
M59: Pension deficit amount - DL
M61: ='DL - C8'!$A$1 -> DL - C8
M62: Cost of investigation amount - DL
D64: =Import!$A$1 -> Import | M64: ='DL - C9'!$A$1 -> DL - C9
D65: Imported assumptions from RP5 | M65: Tax - DL
D67: ='Set Up'!$A$1 -> Set Up | H67: =Time!$A$1 -> Time | M67: ='DL - C10'!$A$1 -> DL - C10 | Q67: =L1_Data!$A$1 -> L1_Data
D68: Technical assumptions | H68: Timing & flags | M68: Revenue protection service incentive amount - DL | Q68: Output line items
D70: ='Licence Inp'!$A$1 -> Licence Inp | H70: =Index!$A$1 -> Index | M70: ='DL - C11'!$A$1 -> DL - C11 | Q70: =Export!$A$1 -> Export
D71: Licence assumptions | H71: Indexation factors | M71: Correction factor amount - DL | Q71: Values to be exported.
D75: ='Actuals Inp'!$A$1 -> Actuals Inp | H75: ='Import Base 2016'!$A$1 -> Import Base 2016 | M75: ='TL - C3'!$A$1 -> TL - C3 | Q75: ='Customer impact'!$A$1 -> Customer impact
D76: Actual assumptions | H76: Imported assumptions conversion | M76: Maximum regulated distribution revenue - TL | Q76: Customer impact calculations
D78: =Inp_Depreciation!$A$1 -> Inp_Depreciation | M78: ='TL - C4'!$A$1 -> TL - C4 | Q78: ='Customer Impact Table'!$A$1 -> Customer Impact Table
D79: Depreciation inputs | M79: Regulatory asset bases - TL | Q79: Customer impact tables
M81: ='TL - C4 A'!$A$1 -> TL - C4 A | Q81: =Financeability!$A$1 -> Financeability
M82: Regulatory asset bases - Depreciation till last period - TL | Q82: Financeability calculations
M84: ='TL - C4 B'!$A$1 -> TL - C4 B
M85: Regulatory asset bases - Depreciation difference - TL
M87: ='TL - C4 C'!$A$1 -> TL - C4 C | Q87: =TL_RAB_Summary!$A$1 -> TL_RAB_Summary
M88: Regulatory asset bases - Depreciation for current period capex - TL | Q88: TL individual RAB's summary
M90: ='TL - C5'!$A$1 -> TL - C5
M91: Return amount - TL
M93: ='TL - C6'!$A$1 -> TL - C6
M94: Opex amount - TL
M96: ='TL - C7'!$A$1 -> TL - C7
M97: Pension deficit amount - TL
M99: ='TL - C8'!$A$1 -> TL - C8
M100: Cost of investigation amount - TL
M102: ='TL - C9'!$A$1 -> TL - C9
M103: Tax - TL
M105: ='TL - C11'!$A$1 -> TL - C11
M106: Correction factor amount - TL
A110: END

Sheet HowTo
A1: =RIGHT(CELL("filename", $A$1), LEN(CELL("filename", $A$1)) - SEARCH("]", CELL("filename", $A$1))) -> HowTo
D5: Introduction
F6: This model has been prepared for RP6 pricing project.
D8: Initial set up
F9: On first use of the model please ensure the following:
F10: 1 - Ensure Analysis Toolpak is enabled (go to Tools, Addins and tick "Analysis Toolpak")
F11: 2 - Disable in cell editing (go to Tools, Options, Edit and untick "Edit directly in cell")
D13: Navigation
F14: In order to navigate through the model the following key strokes will prove useful:
F15: - To go to a sheet or row select a blue font cell and then either press CTRL+ [ or double click
F16: - To return to the last position (e.g., this Table of Contents) press F5+Enter
F17: - In accordance with best practice, the model is saved with a "Manual Calculation" setting. To ensure a full recalculation press: Ctrl + Alt + F9
D19: To Run group / ungroup macros
F20: To expand the grouped block
F21: Go to first line of ungroup block and press CTRL + E for expand the block.
F23: To collapse the grouped block
F24: Go to the first line of grouped block and press SHIFT + CTRL + E for collapse the block.
D26: To Store Results in "Track" sheet
F27: Macro
F28: Go to the following button and press it to store the results in one go
F29: =Track!$E$3 -> 0
F31: OR
F32: Manual Steps:
E33: STEP 1 - Go to column 'Q' of 'Track' sheet
F34: Select the column by pressing Ctrl + Spacebar and Copy (Ctrl + C). Then insert a new column after column P by pressing Alt, I, E
E36: STEP 2 - Select the newly inserted column (Ctrl + Spacebar) and delete the previously stored values from this column by pressing Delete button
E38: STEP 3 - Go to active track column (K column)
F39: =Track!$K$5 -> 0
F40: Select the range from K6 till 'do not delete row - range end' row and Copy (Ctrl + C)
E42: STEP 4 - Paste the selected values (Alt E, S, V) in newly inserted column
E44: STEP 5 - Update 'New track name' in row 5 of newly inserted column. Then select 'New track name' from the dropdown list present in K5.
D46: To Store "RP5" export sheet values in "RP6" import sheet.
E48: STEP 1 - Go to "Export" sheet in the RP5 model
E50: STEP 2 - Copy the data from "Export" sheet in the RP5 model by pressing "Copy the export range" button on that sheet.
E52: STEP 3 - Go to "Import" sheet in the RP6 model
F53: =Import!$A$1 -> Import
E55: STEP 4 - Paste the copied data by pressing the following button.
F56: =Import!$F$1 -> Paste the export values
A59: END

Sheet Key
A1: =RIGHT(CELL("filename", $A$1), LEN(CELL("filename", $A$1)) - SEARCH("]", CELL("filename", $A$1))) -> Key
A4: SHEET TABS
E6: Light Yellow | G6: Input sheets
E8: Light Grey | G8: Calculation and documentation sheets
E10: Pale Blue | G10: Key output sheets
E12: Turquoise | G12: Quality control sheets
E14: Yellow | G14: To be completed, temporary, restructured, or deleted
A17: COLOUR
B19: Font colour only
E20: Blue font | G20: Imported from another sheet (except into Dashboard sheet)
E22: Red font | G22: Exported to another sheet (except from Input sheets)
E24: Black font | G24: Within sheet link or calculation
B26: Font + shade combinations
E27: Black font + Light Yellow shade | G27: Inputs
E29: Black font + Light Gray shade on entire row | G29: Within-worksheet counter-flow
E31: Blue font + Light Gray shade on entire row | G31: Between-worksheet counter-flow
E33: Empty Cell with Light Gray shade | G33: Empty cells being deliberately referenced
B35: Other
E36: Black font + Pale Blue shade on entire row | G36: Section separator
E38: Light Turquoise shade | G38: Stored/dead/hard coded outputs
E40: Tan shade | G40: Pre-model time line actuals
E42: Yellow shade | G42: Work in progress / temporary
E44: Lime shade | G44: Values or logic to be reviewed
B46: Error checks & alerts
E47: Green shade | G47: OK
E49: Red shade | G49: Error
E51: Gold shade | G51: Alert
A54: NAMES
E56: ACTIVE_CASE | F56: ='Set Up'!$H$9
E57: BASE_YEAR | F57: ='Actuals Inp'!$H$10
E58: CAPEX_ADDITION_DATE | F58: ='Set Up'!$H$34:$H$52
E59: CHK_TOL | F59: ='Set Up'!$H$63
E60: EXPORT | F60: =Export!$A$6:$V$87
E61: IMPORT | F61: =Import!$A$6:$V$155
E62: LIVE_RESULTS | F62: =Track!$K$6:$K$286
E63: PCT_TOL | F63: ='Set Up'!$H$67
E64: TRACK_ACTIVE | F64: =Track!$K$5
E65: TRK_COMMENT | F65: =Track!$E$288
E66: TRK_TOL | F66: ='Set Up'!$H$65
A69: ABBREVIATIONS
E71: A/c | G71: Account
E72: AVWACC | G72: Average vanilla WACC
E73: BEG | G73: Beginning
E74: BS | G74: Balance sheet
E75: C | G75: Contract
E76: Calc. | G76: Calculation
E77: Cum. | G77: Cumulative
E78: CF | G78: Cashflow
E79: Dep. | G79: Depreciation
E80: Inst. | G80: Installation
E81: Distr. | G81: Distribution
E82: Excl. | G82: Excluding
E83: Freq. | G83: Frequency
E84: Gen. | G84: Generation
E85: Incl. | G85: Including
E86: Int. | G86: Interest
E87: No. | G87: Number
E88: Opex | G88: Operating expenditure
E89: Ops | G89: Operations
E90: p.m. | G90: Per month
E91: Pd | G91: Period
E92: PL | G92: Profit and Loss
E93: POS | G93: Positive
E94: PPF | G94: Partial period factor
E95: RAB | G95: Regulatory Asset Base
E96: S | G96: Schedule
E97: Sr | G97: Senior
E98: SQRT | G98: Square root
E99: TN | G99: Transmission
E100: Unesc | G100: Un-escalated
E101: VWACC | G101: Vanilla WACC
E102: WIP | G102: Work in progress
E103: WACC | G103: Weighted Average cost of capital
E104: Yr | G104: Year
A106: END

Sheet Import
A1: =RIGHT(CELL("filename", $A$1), LEN(CELL("filename", $A$1)) - SEARCH("]", CELL("filename", $A$1))) -> Import | F1: Paste the export values
E2: =Time!E$23 -> Model period ending | H2: =Check!$H$9 -> 0 | I2: Error chks | M2: =Time!M$23 -> 2017-03-31 | N2: =Time!N$23 -> 2018-03-31 | O2: =Time!O$23 -> 2019-03-31 | P2: =Time!P$23 -> 2020-03-31 | Q2: =Time!Q$23 -> 2021-03-31 | R2: =Time!R$23 -> 2022-03-31 | S2: =Time!S$23 -> 2023-03-31 | T2: =Time!T$23 -> 2024-03-31 | U2: =Time!U$23 -> 2025-03-31
E3: =Time!E$154 -> Timeline label | H3: =Track!$M$2 -> 0 | I3: Track chgs | M3: =Time!M$154 -> RP5 | N3: =Time!N$154 -> RP5 / RP6 | O3: =Time!O$154 -> RP6 | P3: =Time!P$154 -> RP6 | Q3: =Time!Q$154 -> RP6 | R3: =Time!R$154 -> RP6 | S3: =Time!S$154 -> RP6 | T3: =Time!T$154 -> RP6 | U3: =Time!U$154 -> Post RP6
E4: =Time!E$36 -> Financial year ending | H4: =Check!$H$37 -> 0 | I4: Alerts | M4: =Time!M$36 -> 2017 | N4: =Time!N$36 -> 2018 | O4: =Time!O$36 -> 2019 | P4: =Time!P$36 -> 2020 | Q4: =Time!Q$36 -> 2021 | R4: =Time!R$36 -> 2022 | S4: =Time!S$36 -> 2023 | T4: =Time!T$36 -> 2024 | U4: =Time!U$36 -> 2025
E5: =Time!E$10 -> Model column counter | F5: Para references | G5: Defined Term | H5: Constant | I5: Unit | J5: Source | K5: Total | M5: =Time!M$10 -> 1 | N5: =Time!N$10 -> 2 | O5: =Time!O$10 -> 3 | P5: =Time!P$10 -> 4 | Q5: =Time!Q$10 -> 5 | R5: =Time!R$10 -> 6 | S5: =Time!S$10 -> 7 | T5: =Time!T$10 -> 8 | U5: =Time!U$10 -> 9
A6: [Data Range - Start]
E7: Date | K7: 2017-06-29
E8: Time | K8: 42915.39593
E9: File | K9: RP5 FD Working Model.xlsm
A11: DISTRIBUTION LICENCE
C13: Table 2: Opening value of existing assets
E15: OE_X
E16: RAB_DN - base year 2018 | F16: Table 2 | G16: OE_DN2018 | H16: 730.4383364 | I16: GBP m
E17: RAB_ES - base year 2018 | F17: Table 2 | G17: OE_ES2018 | H17: 12.08566735 | I17: GBP m
E18: RAB_MTRN - base year 2018 | F18: Table 2 | G18: OE_MTRN2018 | H18: 6.992527971 | I18: GBP m
E19: RAB_RT - base year 2018 | F19: Table 2 | G19: OE_RT2018 | H19: 4.053907473 | I19: GBP m
E20: RAB_FE - base year 2018 | F20: Table 2 | G20: OE_FE2018 | H20: -0.0006610511333 | I20: GBP m
E21: RAB_NI - base year 2018 | F21: Table 2 | G21: OE_NI2018 | H21: -0.00100044137 | I21: GBP m
E22: RAB_D5Y - base year 2018 | F22: Table 2 | G22: OE_D5Y2018 | H22: 0 | I22: GBP m
E23: RAB_MO5Y - base year 2018 | F23: Table 2 | G23: OE_MO5Y2018 | H23: 0 | I23: GBP m
E25: OADD_X
E26: Opening additional assets - RAB_DN - base year 2018 | F26: 4.13a: | G26: OADD_DN2018 | H26: 319.2082591 | I26: GBP m
E27: Opening additional assets - RAB_ES - base year 2018 | F27: 4.13a: | G27: OADD_ES2018 | H27: 3.744143194 | I27: GBP m
E28: Opening additional assets - RAB_MTRN - base year 2018 | F28: 4.13a: | G28: OADD_MTRN2018 | H28: 37.66799032 | I28: GBP m
E29: Opening additional assets - RAB_RT - base year 2018 | F29: 4.13a: | G29: OADD_RT2018 | H29: 0 | I29: GBP m
E30: Opening additional assets - RAB_FE - base year 2018 | F30: 4.13a: | G30: OADD_FE2018 | H30: 0 | I30: GBP m
E31: Opening additional assets - RAB_NI - base year 2018 | F31: 4.13a: | G31: OADD_NI2018 | H31: 0 | I31: GBP m
E32: Opening additional assets - RAB_D5Y - base year 2018 | F32: 4.13a: | G32: OADD_D5Y2018 | H32: 25.44227618 | I32: GBP m
E33: Opening additional assets - RAB_MO5Y - base year 2018 | F33: 4.13a: | G33: OADD_MO5Y2018 | H33: 0 | I33: GBP m
C36: Table 14: Opening tax capital allowance values
E38: General pool - balance - base year 2018 - RP5 end pd. BEG balance - DL | F38: Table 14 | H38: 52.43018951 | I38: GBP m
E39: Long life asset pool - balance - base year 2018 - RP5 end pd. BEG balance - DL | F39: Table 14 | H39: 346.2022386 | I39: GBP m
E40: Deferred revenue - balance - base year 2018 - RP5 end pd. BEG balance - DL | F40: Table 14 | H40: 198.4464748 | I40: GBP m
C43: 11.1 K factor
E45: Closing K factor - receivable / (payable) - year 2018 | F45: 11.1a: | G45: KRP5 | H45: 23.67208887 | I45: GBP m
C47: Main rate pool last RP5 part period export data - DL
E49: Main rate pool capex addition last RP5 part period - DL base year 2018 | H49: 12.20857907 | I49: GBP m
E50: Main rate pool capital allowance last RP5 part period - DL base year 2018 | H50: 6.916261289 | I50: GBP m
C52: Special rate pool last RP5 part period export data - DL
E54: Special rate asset pool addition last RP5 part period - DL base year 2018 | H54: 31.77926093 | I54: GBP m
E55: Domestic contributions last RP5 part period - DL base year 2018 | H55: 0 | I55: GBP m
E56: Special rate asset pool capital allowance last RP5 part period - DL base year 2018 | H56: 16.39043042 | I56: GBP m
C58: Deferred revenue pool last RP5 part period export data - DL
E60: Deferred revenue pool capital allowance - DL - end of March 17 base year 2018 | F60: 11.1a: | G60: KRP5 | H60: 5.861038 | I60: GBP m
E61: Deferred revenue pool capital allowance last RP5 part period - DL base year 2018 | H61: 3.205519 | I61: GBP m
C64: Capex addition - DL - last RP5 period import data
E66: Capex addition - DN - last RP5 part period base year 2018 | H66: 40.36331605 | I66: GBP m
E67: Capex addition - ES - last RP5 part period base year 2018 | H67: 0 | I67: GBP m
E68: Capex addition - MTRN - last RP5 part period base year 2018 | H68: 7.806375363 | I68: GBP m
E69: Capex addition - RT - last RP5 part period base year 2018 | H69: 0 | I69: GBP m
E70: Capex addition - FE - last RP5 part period base year 2018 | H70: 0 | I70: GBP m
E71: Capex addition - NI - last RP5 part period base year 2018 | H71: 0 | I71: GBP m
E72: Capex addition - D5Y - last RP5 part period base year 2018 | H72: 7.718148587 | I72: GBP m
E73: Capex addition - MO5Y - last RP5 part period base year 2018 | H73: 0 | I73: GBP m
C75: RAB_DL starting RP5 last period
E77: RAB_DL - base year 2016 - starting RP5 last period | F77: 0 | G77: OE_2016_TL_2018 | H77: 1117.769924 | I77: GBP m
C79: Financiability inputs RP5 last part period import data - TL
E81: Maximum regulated distribution revenue - DL - end RP5 period - base 2016 | H81: 102.1549138 | I81: GBP m
E82: Opex amount - DL - end RP5 period | H82: 32.13276923 | I82: GBP m
E83: Tax - DL - end RP5 period | H83: 3.239844872 | I83: GBP m
E84: Pension deficit amount - historic repair - DL - end RP5 period | H84: 7.980736096 | I84: GBP m
E85: Depreciation amount - DL - end RP5 period | H85: 34.02631732 | I85: GBP m
E86: Pension deficit amount ERDC disallowance base 2016 - DL - RP5 last period | H86: -2.271888378 | I86: GBP m
A89: TRANSMISSION LICENCE
C91: Table 2: Opening value of existing assets
E93: RAB_X
E94: RAB_TN - base year 2018 | F94: Table 2 | G94: OE_TN2018 | H94: 181.6370959 | I94: GBP m
E95: RAB_RN - base year 2018 | F95: Table 2 | G95: OE_RN2018 | H95: 12.48778779 | I95: GBP m
E96: RAB_NSI - base year 2018 | F96: Table 2 | G96: OE_NSI2018 | H96: 0.9589927045 | I96: GBP m
E97: RAB_T5Y - base year 2018 | F97: Table 2 | G97: OE_T5Y2018 | H97: 0 | I97: GBP m
E100: OADD_X
E101: Opening additional assets - RAB_TN - base year 2018 | F101: 4.13a: | G101: OADD_TN2018 | H101: 101.2564104 | I101: GBP m
E102: Opening additional assets - RAB_RN - base year 2018 | F102: 4.13a: | G102: OADD_RN2018 | H102: 51.88409501 | I102: GBP m
E103: Opening additional assets - RAB_NSI - base year 2018 | F103: 4.13a: | G103: OADD_NSI2018 | H103: 0 | I103: GBP m
E104: Opening additional assets - RAB_T5Y - base year 2018 | F104: 4.13a: | G104: OADD_T5Y2018 | H104: 1.409235447 | I104: GBP m
C107: Table 11: Opening tax capital allowance values
E109: General pool - balance - base year 2018 - RP5 end pd. BEG balance - TL | F109: Table 11 | H109: 0.6711069396 | I109: GBP m
E110: Long life asset pool - balance - base year 2018 - RP5 end pd. BEG balance - TL | F110: Table 11 | H110: 137.8743286 | I110: GBP m
E111: Deferred revenue - balance - base year 2018 - RP5 end pd. BEG balance - TL | F111: Table 11 | H111: 35.056545 | I111: GBP m
C114: 11.1 K factor
E116: Closing K factor - receivable / (payable) - year 2018 | F116: 11.1a: | G116: KRP5 | H116: -1.127357898 | I116: GBP m
C119: Main rate pool last RP5 part period export data - TL
E121: Main rate pool capex addition last RP5 part period - TL base year 2018 | H121: 0.09013695696 | I121: GBP m
E122: Main rate pool capital allowance last RP5 part period - TL base year 2018 | H122: 0.07662427681 | I122: GBP m
C124: Special rate pool last RP5 part period export data - TL
E126: Special rate asset pool addition last RP5 part period - TL base year 2018 | H126: 23.64138652 | I126: GBP m
E127: Special rate asset pool capital allowance last RP5 part period - TL base year 2018 | H127: 7.406284065 | I127: GBP m
C129: Deferred revenue pool capital allowance - TL
E131: Deferred revenue pool capital allowance - TL - end of March 17 base year 2018 | F131: 11.1a: | G131: KRP5 | H131: 1.056187 | I131: GBP m
E132: Deferred revenue pool capital allowance last RP5 part period - TL base year 2018 | H132: 0.5655935 | I132: GBP m
C134: Capex addition end RP5 period - TL
E136: Capex addition - TN - end RP5 period | H136: 16.31683037 | I136: GBP m
E137: Capex addition - RN - end RP5 period | H137: 8.75264319 | I137: GBP m
E138: Capex addition - NSI - end RP5 period | H138: 0 | I138: GBP m
E139: Capex addition - T5Y - end RP5 period | H139: 0.2620499247 | I139: GBP m
C141: RAB_TL starting RP5 last period
E143: RAB_TL - base year 2016 - starting RP5 last period | F143: 0 | G143: OE_2016_TL_2018 | H143: 331.92764 | I143: GBP m
C145: Financiability inputs RP5 last part period export data - TL
E147: Maximum regulated transmission revenue - TL - end RP5 period - base 2016 | H147: 13.9266421 | I147: GBP m
E148: Opex amount - TL - end RP5 period | H148: 3.717536427 | I148: GBP m
E149: Tax - TL - end RP5 period | H149: 0.3468119118 | I149: GBP m
E150: Pension deficit amount - historic repair - TL - end RP5 period | H150: 0.6939770519 | I150: GBP m
E151: Depreciation amount - TL - end RP5 period | H151: 7.625546283 | I151: GBP m
E152: Pension deficit amount - ERDC disallowance base 2016 - TL - DL - RP5 last period | H152: -0.1975555111 | I152: GBP m
A155: [Data Range - End] | U155: =SUM(H15:H153) -> 4125.980558
E157: ='Actuals Inp'!E$9 -> RPI switch | F157: ='Actuals Inp'!F$9 -> 0 | G157: ='Actuals Inp'!G$9 -> 0 | H157: ='Actuals Inp'!H$9 -> 0 | I157: ='Actuals Inp'!I$9 -> 0 = off, 1 = on
A159: DISTRIBUTION LICENCE
C161: Table 2: Opening value of existing assets
N162: Nominal | O162: 15/16 Prices
E163: OE_X
E164: RAB_DN - base year 2018 | F164: Table 2 | G164: OE_DN2018 | H164: =IF($H$157 = 0, O164, N164) -> 692.9521613 | I164: GBP m | N164: =H16 -> 730.4383364 | O164: =N164/'Actuals Inp'!$H$13 * 'Actuals Inp'!$H$12 -> 692.9521613
E165: RAB_ES - base year 2018 | F165: Table 2 | G165: OE_ES2018 | H165: =IF($H$157 = 0, O165, N165) -> 11.46542958 | I165: GBP m | N165: 12.08566735 | O165: =N165/'Actuals Inp'!$H$13 * 'Actuals Inp'!$H$12 -> 11.46542958
E166: RAB_MTRN - base year 2018 | F166: Table 2 | G166: OE_MTRN2018 | H166: 6.633670673 | I166: GBP m | N166: 6.992527971 | O166: =N166/'Actuals Inp'!$H$13 * 'Actuals Inp'!$H$12 -> 6.633670673
E167: RAB_RT - base year 2018 | F167: Table 2 | G167: OE_RT2018 | H167: 3.845860499 | I167: GBP m | N167: 4.053907473 | O167: =N167/'Actuals Inp'!$H$13 * 'Actuals Inp'!$H$12 -> 3.845860499
E168: RAB_FE - base year 2018 | F168: Table 2 | G168: OE_FE2018 | H168: -0.0006271259171 | I168: GBP m | N168: -0.0006610511333 | O168: =N168/'Actuals Inp'!$H$13 * 'Actuals Inp'!$H$12 -> -0.0006271259171
E169: RAB_NI - base year 2018 | F169: Table 2 | G169: OE_NI2018 | H169: -0.0009490986101 | I169: GBP m | N169: -0.00100044137 | O169: =N169/'Actuals Inp'!$H$13 * 'Actuals Inp'!$H$12 -> -0.0009490986101
E170: RAB_D5Y - base year 2018 | F170: Table 2 | G170: OE_D5Y2018 | H170: 0 | I170: GBP m | N170: 0 | O170: =N170/'Actuals Inp'!$H$13 * 'Actuals Inp'!$H$12 -> 0
E171: RAB_MO5Y - base year 2018 | F171: Table 2 | G171: OE_MO5Y2018 | H171: 0 | I171: GBP m | N171: 0 | O171: =N171/'Actuals Inp'!$H$13 * 'Actuals Inp'!$H$12 -> 0
E173: OADD_X
E174: Opening additional assets - RAB_DN - base year 2018 | F174: 4.13a: | G174: OADD_DN2018 | H174: =IF($H$157 = 0, O174, N174) -> 302.8264564 | I174: GBP m | N174: =H26 -> 319.2082591 | O174: =N174/'Actuals Inp'!$H$13 * 'Actuals Inp'!$H$12 -> 302.8264564
E175: Opening additional assets - RAB_ES - base year 2018 | F175: 4.13a: | G175: OADD_ES2018 | H175: 3.551993357 | I175: GBP m | N175: 3.744143194 | O175: =N175/'Actuals Inp'!$H$13 * 'Actuals Inp'!$H$12 -> 3.551993357
E176: Opening additional assets - RAB_MTRN - base year 2018 | F176: 4.13a: | G176: OADD_MTRN2018 | H176: 35.73486495 | I176: GBP m | N176: 37.66799032 | O176: =N176/'Actuals Inp'!$H$13 * 'Actuals Inp'!$H$12 -> 35.73486495
E177: Opening additional assets - RAB_RT - base year 2018 | F177: 4.13a: | G177: OADD_RT2018 | H177: 0 | I177: GBP m | N177: 0 | O177: =N177/'Actuals Inp'!$H$13 * 'Actuals Inp'!$H$12 -> 0
E178: Opening additional assets - RAB_FE - base year 2018 | F178: 4.13a: | G178: OADD_FE2018 | H178: 0 | I178: GBP m | N178: 0 | O178: =N178/'Actuals Inp'!$H$13 * 'Actuals Inp'!$H$12 -> 0
E179: Opening additional assets - RAB_NI - base year 2018 | F179: 4.13a: | G179: OADD_NI2018 | H179: 0 | I179: GBP m | N179: 0 | O179: =N179/'Actuals Inp'!$H$13 * 'Actuals Inp'!$H$12 -> 0
E180: Opening additional assets - RAB_D5Y - base year 2018 | F180: 4.13a: | G180: OADD_D5Y2018 | H180: 24.13657579 | I180: GBP m | N180: 25.44227618 | O180: =N180/'Actuals Inp'!$H$13 * 'Actuals Inp'!$H$12 -> 24.13657579
E181: Opening additional assets - RAB_MO5Y - base year 2018 | F181: 4.13a: | G181: OADD_MO5Y2018 | H181: 0 | I181: GBP m | N181: 0 | O181: =N181/'Actuals Inp'!$H$13 * 'Actuals Inp'!$H$12 -> 0
C184: Table 14: Opening tax capital allowance values
E186: General pool - balance - base year 2018 - RP5 end pd. BEG balance - DL | F186: Table 14 | H186: =IF($H$157 = 0, O186, N186) -> 52.43018951 | I186: GBP m | N186: =H38 -> 52.43018951 | O186: =N186 -> 52.43018951
E187: Long life asset pool - balance - base year 2018 - RP5 end pd. BEG balance - DL | F187: Table 14 | H187: 346.2022386 | I187: GBP m | N187: =H39 -> 346.2022386 | O187: =N187 -> 346.2022386
E188: Deferred revenue - balance - base year 2018 - RP5 end pd. BEG balance - DL | F188: Table 14 | H188: 198.4464748 | I188: GBP m | N188: =H40 -> 198.4464748 | O188: 198.4464748
C191: 11.1 K factor
E193: Closing K factor - receivable / (payable) - year 2018 | F193: 11.1a: | G193: KRP5 | H193: =IF($H$157 = 0, O193, N193) -> 22.45723469 | I193: GBP m | N193: =H45 -> 23.67208887 | O193: =N193/'Actuals Inp'!$H$13 * 'Actuals Inp'!$H$12 -> 22.45723469
C195: Main rate pool last RP5 part period export data - DL
E197: Main rate pool capex addition last RP5 part period - DL base year 2018 | H197: =IF($H$157 = 0, O197, N197) -> 11.58203346 | I197: GBP m | N197: =H49 -> 12.20857907 | O197: =N197/'Actuals Inp'!$H$13 * 'Actuals Inp'!$H$12 -> 11.58203346
E198: Main rate pool capital allowance last RP5 part period - DL base year 2018 | H198: 6.561318005 | I198: GBP m | N198: =H50 -> 6.916261289 | O198: =N198/'Actuals Inp'!$H$13 * 'Actuals Inp'!$H$12 -> 6.561318005
C200: Special rate pool last RP5 part period export data - DL
E202: Special rate asset pool addition last RP5 part period - DL base year 2018 | H202: =IF($H$157 = 0, O202, N202) -> 30.14834579 | I202: GBP m | N202: =H54 -> 31.77926093 | O202: =N202/'Actuals Inp'!$H$13 * 'Actuals Inp'!$H$12 -> 30.14834579
E203: Domestic contributions last RP5 part period - DL base year 2018 | H203: 0 | I203: GBP m | N203: =H55 -> 0 | O203: =N203/'Actuals Inp'!$H$13 * 'Actuals Inp'!$H$12 -> 0
E204: Special rate asset pool capital allowance last RP5 part period - DL base year 2018 | H204: 15.54927174 | I204: GBP m | N204: =H56 -> 16.39043042 | O204: =N204/'Actuals Inp'!$H$13 * 'Actuals Inp'!$H$12 -> 15.54927174
C206: Deferred revenue pool last RP5 part period export data - DL
E208: Deferred revenue pool capital allowance - DL - end of March 17 base year 2018 | F208: 11.1a: | G208: KRP5 | H208: =IF($H$157 = 0, O208, N208) -> 5.56024889 | I208: GBP m | N208: =H60 -> 5.861038 | O208: =N208/'Actuals Inp'!$H$13 * 'Actuals Inp'!$H$12 -> 5.56024889
E209: Deferred revenue pool capital allowance last RP5 part period - DL base year 2018 | H209: 3.041011415 | I209: GBP m | N209: =H61 -> 3.205519 | O209: =N209/'Actuals Inp'!$H$13 * 'Actuals Inp'!$H$12 -> 3.041011415
C212: Capex addition - DL - last RP5 period import data
E214: Capex addition - DN - last RP5 part period base year 2018 | H214: =IF($H$157 = 0, O214, N214) -> 38.29186627 | I214: GBP m | N214: =H66 -> 40.36331605 | O214: =N214/'Actuals Inp'!$H$13 * 'Actuals Inp'!$H$12 -> 38.29186627
E215: Capex addition - ES - last RP5 part period base year 2018 | H215: 0 | I215: GBP m | N215: 0 | O215: =N215/'Actuals Inp'!$H$13 * 'Actuals Inp'!$H$12 -> 0
E216: Capex addition - MTRN - last RP5 part period base year 2018 | H216: 7.405751328 | I216: GBP m | N216: 7.806375363 | O216: =N216/'Actuals Inp'!$H$13 * 'Actuals Inp'!$H$12 -> 7.405751328
E217: Capex addition - RT - last RP5 part period base year 2018 | H217: 0 | I217: GBP m | N217: 0 | O217: =N217/'Actuals Inp'!$H$13 * 'Actuals Inp'!$H$12 -> 0
E218: Capex addition - FE - last RP5 part period base year 2018 | H218: 0 | I218: GBP m | N218: 0 | O218: =N218/'Actuals Inp'!$H$13 * 'Actuals Inp'!$H$12 -> 0
E219: Capex addition - NI - last RP5 part period base year 2018 | H219: 0 | I219: GBP m | N219: 0 | O219: =N219/'Actuals Inp'!$H$13 * 'Actuals Inp'!$H$12 -> 0
E220: Capex addition - D5Y - last RP5 part period base year 2018 | H220: 7.322052359 | I220: GBP m | N220: 7.718148587 | O220: =N220/'Actuals Inp'!$H$13 * 'Actuals Inp'!$H$12 -> 7.322052359
E221: Capex addition - MO5Y - last RP5 part period base year 2018 | H221: 0 | I221: GBP m | N221: 0 | O221: =N221/'Actuals Inp'!$H$13 * 'Actuals Inp'!$H$12 -> 0
C223: RAB_DL starting RP5 last period
E225: RAB_DL - base year 2016 - starting RP5 last period | F225: 0 | G225: OE_2016_TL_2018 | H225: =IF($H$157 = 0, O225, N225) -> 1117.769924 | I225: GBP m | N225: =H77 -> 1117.769924 | O225: =N225 -> 1117.769924
C227: Financiability inputs RP5 last part period import data - TL
E229: Maximum regulated distribution revenue - DL - end RP5 period - base 2016 | H229: =IF($H$157 = 0, O229, N229) -> 96.91231252 | I229: GBP m | N229: =H81 -> 102.1549138 | O229: =N229/'Actuals Inp'!$H$13 * 'Actuals Inp'!$H$12 -> 96.91231252
E230: Opex amount - DL - end RP5 period | H230: 30.483712 | I230: GBP m | N230: 32.13276923 | O230: =N230/'Actuals Inp'!$H$13 * 'Actuals Inp'!$H$12 -> 30.483712
E231: Tax - DL - end RP5 period | H231: 3.073575679 | I231: GBP m | N231: 3.239844872 | O231: =N231/'Actuals Inp'!$H$13 * 'Actuals Inp'!$H$12 -> 3.073575679
E232: Pension deficit amount - historic repair - DL - end RP5 period | H232: 7.571163849 | I232: GBP m | N232: 7.980736096 | O232: =N232/'Actuals Inp'!$H$13 * 'Actuals Inp'!$H$12 -> 7.571163849
E233: Depreciation amount - DL - end RP5 period | H233: 32.280083 | I233: GBP m | N233: 34.02631732 | O233: =N233/'Actuals Inp'!$H$13 * 'Actuals Inp'!$H$12 -> 32.280083
E234: Pension deficit amount ERDC disallowance base 2016 - DL - RP5 last period | H234: -2.155294818 | I234: GBP m | N234: -2.271888378 | O234: =N234/'Actuals Inp'!$H$13 * 'Actuals Inp'!$H$12 -> -2.155294818
A237: TRANSMISSION LICENCE
C239: Table 2: Opening value of existing assets
E241: RAB_X
E242: RAB_TN - base year 2018 | F242: Table 2 | G242: OE_TN2018 | H242: =IF($H$157 = 0, O242, N242) -> 172.3154603 | I242: GBP m | N242: =H94 -> 181.6370959 | O242: =N242/'Actuals Inp'!$H$13 * 'Actuals Inp'!$H$12 -> 172.3154603
E243: RAB_RN - base year 2018 | F243: Table 2 | G243: OE_RN2018 | H243: 11.84691316 | I243: GBP m | N243: =H95 -> 12.48778779 | O243: =N243/'Actuals Inp'!$H$13 * 'Actuals Inp'!$H$12 -> 11.84691316
E244: RAB_NSI - base year 2018 | F244: Table 2 | G244: OE_NSI2018 | H244: 0.9097770943 | I244: GBP m | N244: =H96 -> 0.9589927045 | O244: =N244/'Actuals Inp'!$H$13 * 'Actuals Inp'!$H$12 -> 0.9097770943
E245: RAB_T5Y - base year 2018 | F245: Table 2 | G245: OE_T5Y2018 | H245: 0 | I245: GBP m | O245: =N245/'Actuals Inp'!$H$13 * 'Actuals Inp'!$H$12 -> 0
E248: OADD_X
E249: Opening additional assets - RAB_TN - base year 2018 | F249: 4.13a: | G249: OADD_TN2018 | H249: =IF($H$157 = 0, O249, N249) -> 96.05992038 | I249: GBP m | N249: =H101 -> 101.2564104 | O249: =N249/'Actuals Inp'!$H$13 * 'Actuals Inp'!$H$12 -> 96.05992038
E250: Opening additional assets - RAB_RN - base year 2018 | F250: 4.13a: | G250: OADD_RN2018 | H250: 49.22139759 | I250: GBP m | N250: =H102 -> 51.88409501 | O250: =N250/'Actuals Inp'!$H$13 * 'Actuals Inp'!$H$12 -> 49.22139759
E251: Opening additional assets - RAB_NSI - base year 2018 | F251: 4.13a: | G251: OADD_NSI2018 | H251: 0 | I251: GBP m | N251: =H103 -> 0 | O251: =N251/'Actuals Inp'!$H$13 * 'Actuals Inp'!$H$12 -> 0
E252: Opening additional assets - RAB_T5Y - base year 2018 | F252: 4.13a: | G252: OADD_T5Y2018 | H252: 1.336913331 | I252: GBP m | N252: =H104 -> 1.409235447 | O252: =N252/'Actuals Inp'!$H$13 * 'Actuals Inp'!$H$12 -> 1.336913331
C255: Table 11: Opening tax capital allowance values
E257: General pool - balance - base year 2018 - RP5 end pd. BEG balance - TL - nominal | F257: Table 11 | H257: =IF($H$157 = 0, O257, N257) -> 0.6711069396 | I257: GBP m | N257: =H109 -> 0.6711069396 | O257: =N257 -> 0.6711069396
E258: Long life asset pool - balance - base year 2018 - RP5 end pd. BEG balance - TL - nominal | F258: Table 11 | H258: 137.8743286 | I258: GBP m | N258: =H110 -> 137.8743286 | O258: =N258 -> 137.8743286
E259: Deferred revenue - balance - base year 2018 - RP5 end pd. BEG balance - TL - nominal | F259: Table 11 | H259: 35.056545 | I259: GBP m | N259: =H111 -> 35.056545 | O259: 35.056545
C262: 11.1 K factor
E264: Closing K factor - receivable / (payable) - year 2018 | F264: 11.1a: | G264: KRP5 | H264: =IF($H$157 = 0, O264, N264) -> -1.069501768 | I264: GBP m | N264: =H116 -> -1.127357898 | O264: =N264/'Actuals Inp'!$H$13 * 'Actuals Inp'!$H$12 -> -1.069501768
C267: Main rate pool last RP5 part period export data - TL
E269: Main rate pool capex addition last RP5 part period - TL base year 2018 | H269: =IF($H$157 = 0, O269, N269) -> 0.08551111849 | I269: GBP m | N269: =H121 -> 0.09013695696 | O269: =N269/'Actuals Inp'!$H$13 * 'Actuals Inp'!$H$12 -> 0.08551111849
E270: Main rate pool capital allowance last RP5 part period - TL base year 2018 | H270: 0.07269191057 | I270: GBP m | N270: =H122 -> 0.07662427681 | O270: =N270/'Actuals Inp'!$H$13 * 'Actuals Inp'!$H$12 -> 0.07269191057
C272: Special rate pool last RP5 part period export data - TL
E274: Special rate asset pool addition last RP5 part period - TL base year 2018 | H274: =IF($H$157 = 0, O274, N274) -> 22.42810799 | I274: GBP m | N274: =H126 -> 23.64138652 | O274: =N274/'Actuals Inp'!$H$13 * 'Actuals Inp'!$H$12 -> 22.42810799
E275: Special rate asset pool capital allowance last RP5 part period - TL base year 2018 | H275: 7.026192759 | I275: GBP m | N275: =H127 -> 7.406284065 | O275: =N275/'Actuals Inp'!$H$13 * 'Actuals Inp'!$H$12 -> 7.026192759
C277: Deferred revenue pool capital allowance - TL
E279: Deferred revenue pool capital allowance - TL - end of March 17 base year 2018 | F279: 11.1a: | G279: KRP5 | H279: =IF($H$157 = 0, O279, N279) -> 1.001983368 | I279: GBP m | N279: =H131 -> 1.056187 | O279: =N279/'Actuals Inp'!$H$13 * 'Actuals Inp'!$H$12 -> 1.001983368
E280: Deferred revenue pool capital allowance last RP5 part period - TL base year 2018 | H280: 0.5365671799 | I280: GBP m | N280: =H132 -> 0.5655935 | O280: =N280/'Actuals Inp'!$H$13 * 'Actuals Inp'!$H$12 -> 0.5365671799
C282: Capex addition end RP5 period - TL
E284: Capex addition - TN - end RP5 period | H284: =IF($H$157 = 0, O284, N284) -> 15.47944885 | I284: GBP m | N284: =H136 -> 16.31683037 | O284: =N284/'Actuals Inp'!$H$13 * 'Actuals Inp'!$H$12 -> 15.47944885
E285: Capex addition - RN - end RP5 period | H285: 8.303456587 | I285: GBP m | N285: =H137 -> 8.75264319 | O285: =N285/'Actuals Inp'!$H$13 * 'Actuals Inp'!$H$12 -> 8.303456587
E286: Capex addition - NSI - end RP5 period | H286: 0 | I286: GBP m | N286: =H138 -> 0 | O286: =N286/'Actuals Inp'!$H$13 * 'Actuals Inp'!$H$12 -> 0
E287: Capex addition - T5Y - end RP5 period | H287: 0.2486014939 | I287: GBP m | N287: =H139 -> 0.2620499247 | O287: =N287/'Actuals Inp'!$H$13 * 'Actuals Inp'!$H$12 -> 0.2486014939
C289: RAB_TL starting RP5 last period
E291: RAB_TL - base year 2016 - starting RP5 last period | F291: 0 | G291: OE_2016_TL_2018 | H291: =IF($H$157 = 0, O291, N291) -> 331.92764 | I291: GBP m | N291: =H143 -> 331.92764 | O291: =N291 -> 331.92764
C293: Financiability inputs RP5 last part period export data - TL
E295: Maximum regulated transmission revenue - TL - end RP5 period - base 2016 | H295: =IF($H$157 = 0, O295, N295) -> 13.21192531 | I295: GBP m | N295: =H147 -> 13.9266421 | O295: =N295/'Actuals Inp'!$H$13 * 'Actuals Inp'!$H$12 -> 13.21192531
E296: Opex amount - TL - end RP5 period | H296: 3.526752052 | I296: GBP m | N296: 3.717536427 | O296: =N296/'Actuals Inp'!$H$13 * 'Actuals Inp'!$H$12 -> 3.526752052
E297: Tax - TL - end RP5 period | H297: 0.3290134867 | I297: GBP m | N297: 0.3468119118 | O297: =N297/'Actuals Inp'!$H$13 * 'Actuals Inp'!$H$12 -> 0.3290134867
E298: Pension deficit amount - historic repair - TL - end RP5 period | H298: 0.6583620738 | I298: GBP m | N298: 0.6939770519 | O298: =N298/'Actuals Inp'!$H$13 * 'Actuals Inp'!$H$12 -> 0.6583620738
... 2 more rows

Sheet Import Base 2016
A1: =RIGHT(CELL("filename", $A$1), LEN(CELL("filename", $A$1)) - SEARCH("]", CELL("filename", $A$1))) -> Import Base 2016
E2: =Time!E$23 -> Model period ending | H2: =Check!$H$9 -> 0 | I2: Error chks | M2: =Time!M$23 -> 2017-03-31 | N2: =Time!N$23 -> 2018-03-31 | O2: =Time!O$23 -> 2019-03-31 | P2: =Time!P$23 -> 2020-03-31 | Q2: =Time!Q$23 -> 2021-03-31 | R2: =Time!R$23 -> 2022-03-31 | S2: =Time!S$23 -> 2023-03-31 | T2: =Time!T$23 -> 2024-03-31 | U2: =Time!U$23 -> 2025-03-31
E3: =Time!E$154 -> Timeline label | H3: =Track!$M$2 -> 0 | I3: Track chgs | M3: =Time!M$154 -> RP5 | N3: =Time!N$154 -> RP5 / RP6 | O3: =Time!O$154 -> RP6 | P3: =Time!P$154 -> RP6 | Q3: =Time!Q$154 -> RP6 | R3: =Time!R$154 -> RP6 | S3: =Time!S$154 -> RP6 | T3: =Time!T$154 -> RP6 | U3: =Time!U$154 -> Post RP6
E4: =Time!E$36 -> Financial year ending | H4: =Check!$H$37 -> 0 | I4: Alerts | M4: =Time!M$36 -> 2017 | N4: =Time!N$36 -> 2018 | O4: =Time!O$36 -> 2019 | P4: =Time!P$36 -> 2020 | Q4: =Time!Q$36 -> 2021 | R4: =Time!R$36 -> 2022 | S4: =Time!S$36 -> 2023 | T4: =Time!T$36 -> 2024 | U4: =Time!U$36 -> 2025
E5: =Time!E$10 -> Model column counter | F5: Para references | G5: Defined Term | H5: Constant | I5: Unit | J5: Source | K5: Total | M5: =Time!M$10 -> 1 | N5: =Time!N$10 -> 2 | O5: =Time!O$10 -> 3 | P5: =Time!P$10 -> 4 | Q5: =Time!Q$10 -> 5 | R5: =Time!R$10 -> 6 | S5: =Time!S$10 -> 7 | T5: =Time!T$10 -> 8 | U5: =Time!U$10 -> 9
A7: DISTRIBUTION LICENCE
E9: ='Actuals Inp'!E$9 -> RPI switch | F9: ='Actuals Inp'!F$9 -> 0 | G9: ='Actuals Inp'!G$9 -> 0 | H9: ='Actuals Inp'!H$9 -> 0 | I9: ='Actuals Inp'!I$9 -> 0 = off, 1 = on
E10: ='Actuals Inp'!E$12 -> RPI as on 2015/16 - (Base year 1993/94) | F10: ='Actuals Inp'!F$12 -> 0 | G10: ='Actuals Inp'!G$12 -> RPI2016 | H10: ='Actuals Inp'!H$12 -> 259.5 | I10: ='Actuals Inp'!I$12 -> index
E11: ='Actuals Inp'!E$13 -> RPI as on 2017/18 - (Base year 1993/94) | F11: ='Actuals Inp'!F$13 -> 0 | G11: ='Actuals Inp'!G$13 -> RPI2018 | H11: ='Actuals Inp'!H$13 -> 273.538 | I11: ='Actuals Inp'!I$13 -> index
E12: RPI as on 2017/18 - (Base year 1993/94) - active index | H12: =IF(H9 = 1, H11, H10) -> 259.5 | I12: index
C14: Table 2: Opening value of existing assets
E16: RAB_X
E17: ='Actuals Inp'!E$12 -> RPI as on 2015/16 - (Base year 1993/94) | F17: ='Actuals Inp'!F$12 -> 0 | G17: ='Actuals Inp'!G$12 -> RPI2016 | H17: ='Actuals Inp'!H$12 -> 259.5 | I17: ='Actuals Inp'!I$12 -> index
E18: =E$12 -> RPI as on 2017/18 - (Base year 1993/94) - active index | F18: =F$12 -> 0 | G18: =G$12 -> 0 | H18: =H$12 -> 259.5 | I18: =I$12 -> index
E20: =Import!E$164 -> RAB_DN - base year 2018 | F20: =Import!F$164 -> Table 2 | G20: =Import!G$164 -> OE_DN2018 | H20: =Import!H$164 -> 692.9521613 | I20: =Import!I$164 -> GBP m
E21: =Import!E$165 -> RAB_ES - base year 2018 | F21: =Import!F$165 -> Table 2 | G21: =Import!G$165 -> OE_ES2018 | H21: =Import!H$165 -> 11.46542958 | I21: =Import!I$165 -> GBP m
E22: =Import!E$166 -> RAB_MTRN - base year 2018 | F22: =Import!F$166 -> Table 2 | G22: =Import!G$166 -> OE_MTRN2018 | H22: =Import!H$166 -> 6.633670673 | I22: =Import!I$166 -> GBP m
E23: =Import!E$167 -> RAB_RT - base year 2018 | F23: =Import!F$167 -> Table 2 | G23: =Import!G$167 -> OE_RT2018 | H23: =Import!H$167 -> 3.845860499 | I23: =Import!I$167 -> GBP m
E24: =Import!E$168 -> RAB_FE - base year 2018 | F24: =Import!F$168 -> Table 2 | G24: =Import!G$168 -> OE_FE2018 | H24: =Import!H$168 -> -0.0006271259171 | I24: =Import!I$168 -> GBP m
E25: =Import!E$169 -> RAB_NI - base year 2018 | F25: =Import!F$169 -> Table 2 | G25: =Import!G$169 -> OE_NI2018 | H25: =Import!H$169 -> -0.0009490986101 | I25: =Import!I$169 -> GBP m
E26: =Import!E$170 -> RAB_D5Y - base year 2018 | F26: =Import!F$170 -> Table 2 | G26: =Import!G$170 -> OE_D5Y2018 | H26: =Import!H$170 -> 0 | I26: =Import!I$170 -> GBP m
E27: =Import!E$171 -> RAB_MO5Y - base year 2018 | F27: =Import!F$171 -> Table 2 | G27: =Import!G$171 -> OE_MO5Y2018 | H27: =Import!H$171 -> 0 | I27: =Import!I$171 -> GBP m
E29: =Import!E$174 -> Opening additional assets - RAB_DN - base year 2018 | F29: =Import!F$174 -> 4.13a: | G29: =Import!G$174 -> OADD_DN2018 | H29: =Import!H$174 -> 302.8264564 | I29: =Import!I$174 -> GBP m
E30: =Import!E$175 -> Opening additional assets - RAB_ES - base year 2018 | F30: =Import!F$175 -> 4.13a: | G30: =Import!G$175 -> OADD_ES2018 | H30: =Import!H$175 -> 3.551993357 | I30: =Import!I$175 -> GBP m
E31: =Import!E$176 -> Opening additional assets - RAB_MTRN - base year 2018 | F31: =Import!F$176 -> 4.13a: | G31: =Import!G$176 -> OADD_MTRN2018 | H31: =Import!H$176 -> 35.73486495 | I31: =Import!I$176 -> GBP m
E32: =Import!E$177 -> Opening additional assets - RAB_RT - base year 2018 | F32: =Import!F$177 -> 4.13a: | G32: =Import!G$177 -> OADD_RT2018 | H32: =Import!H$177 -> 0 | I32: =Import!I$177 -> GBP m
E33: =Import!E$178 -> Opening additional assets - RAB_FE - base year 2018 | F33: =Import!F$178 -> 4.13a: | G33: =Import!G$178 -> OADD_FE2018 | H33: =Import!H$178 -> 0 | I33: =Import!I$178 -> GBP m
E34: =Import!E$179 -> Opening additional assets - RAB_NI - base year 2018 | F34: =Import!F$179 -> 4.13a: | G34: =Import!G$179 -> OADD_NI2018 | H34: =Import!H$179 -> 0 | I34: =Import!I$179 -> GBP m
E35: =Import!E$180 -> Opening additional assets - RAB_D5Y - base year 2018 | F35: =Import!F$180 -> 4.13a: | G35: =Import!G$180 -> OADD_D5Y2018 | H35: =Import!H$180 -> 24.13657579 | I35: =Import!I$180 -> GBP m
E36: =Import!E$181 -> Opening additional assets - RAB_MO5Y - base year 2018 | F36: =Import!F$181 -> 4.13a: | G36: =Import!G$181 -> OADD_MO5Y2018 | H36: =Import!H$181 -> 0 | I36: =Import!I$181 -> GBP m
E38: ="RAB_DN - base year " & BASE_YEAR -> RAB_DN - base year 2016 | F38: Table 2 | G38: OE_2016_DN2018 | H38: =(H20 + H29) * $H$17 / $H$18 -> 995.7786177 | I38: GBP m
E39: ="RAB_ES - base year " & BASE_YEAR -> RAB_ES - base year 2016 | F39: Table 2 | G39: OE_2016_ES2018 | H39: 15.01742294 | I39: GBP m
E40: ="RAB_MTRN - base year " & BASE_YEAR -> RAB_MTRN - base year 2016 | F40: Table 2 | G40: OE_2016_MTRN2018 | H40: 42.36853562 | I40: GBP m
E41: ="RAB_RT - base year " & BASE_YEAR -> RAB_RT - base year 2016 | F41: Table 2 | G41: OE_2016_RT2018 | H41: =(H23 + H32) * $H$17 / $H$18 -> 3.845860499 | I41: GBP m
E42: ="RAB_FE - base year " & BASE_YEAR -> RAB_FE - base year 2016 | F42: Table 2 | G42: OE_2016_FE2018 | H42: -0.0006271259171 | I42: GBP m
E43: ="RAB_NI - base year " & BASE_YEAR -> RAB_NI - base year 2016 | F43: Table 2 | G43: OE_2016_NI2018 | H43: -0.0009490986101 | I43: GBP m
E44: ="RAB_D5Y - base year " & BASE_YEAR -> RAB_D5Y - base year 2016 | F44: Table 2 | G44: OE_2016_D5Y2018 | H44: 24.13657579 | I44: GBP m
E45: ="RAB_MO5Y - base year " & BASE_YEAR -> RAB_MO5Y - base year 2016 | F45: Table 2 | G45: OE_2016_MO5Y2018 | H45: 0 | I45: GBP m
C48: Main rate pool last RP5 part period Import data - DL
E50: ='Actuals Inp'!E$12 -> RPI as on 2015/16 - (Base year 1993/94) | F50: ='Actuals Inp'!F$12 -> 0 | G50: ='Actuals Inp'!G$12 -> RPI2016 | H50: ='Actuals Inp'!H$12 -> 259.5 | I50: ='Actuals Inp'!I$12 -> index
E51: =E$12 -> RPI as on 2017/18 - (Base year 1993/94) - active index | F51: =F$12 -> 0 | G51: =G$12 -> 0 | H51: =H$12 -> 259.5 | I51: =I$12 -> index
E53: =Import!E$197 -> Main rate pool capex addition last RP5 part period - DL base year 2018 | F53: =Import!F$197 -> 0 | G53: =Import!G$197 -> 0 | H53: =Import!H$197 -> 11.58203346 | I53: =Import!I$197 -> GBP m
E54: =Import!E$198 -> Main rate pool capital allowance last RP5 part period - DL base year 2018 | F54: =Import!F$198 -> 0 | G54: =Import!G$198 -> 0 | H54: =Import!H$198 -> 6.561318005 | I54: =Import!I$198 -> GBP m
E56: ="Main rate pool capex addition last RP5 part period " & BASE_YEAR & " - DL" -> Main rate pool capex addition last RP5 part period 2016 - DL | H56: =H53 * H$50 / H$51 -> 11.58203346 | I56: GBP m
E57: ="Main rate pool capital allowance last RP5 part period " & BASE_YEAR & " - DL" -> Main rate pool capital allowance last RP5 part period 2016 - DL | H57: =H54 * H$50 / H$51 -> 6.561318005 | I57: GBP m
C60: Special rate pool last RP5 part period Import data - DL
E62: ='Actuals Inp'!E$12 -> RPI as on 2015/16 - (Base year 1993/94) | F62: ='Actuals Inp'!F$12 -> 0 | G62: ='Actuals Inp'!G$12 -> RPI2016 | H62: ='Actuals Inp'!H$12 -> 259.5 | I62: ='Actuals Inp'!I$12 -> index
E63: =E$12 -> RPI as on 2017/18 - (Base year 1993/94) - active index | F63: =F$12 -> 0 | G63: =G$12 -> 0 | H63: =H$12 -> 259.5 | I63: =I$12 -> index
E65: =Import!E$202 -> Special rate asset pool addition last RP5 part period - DL base year 2018 | F65: =Import!F$202 -> 0 | G65: =Import!G$202 -> 0 | H65: =Import!H$202 -> 30.14834579 | I65: =Import!I$202 -> GBP m
E66: =Import!E$203 -> Domestic contributions last RP5 part period - DL base year 2018 | F66: =Import!F$203 -> 0 | G66: =Import!G$203 -> 0 | H66: =Import!H$203 -> 0 | I66: =Import!I$203 -> GBP m
E67: =Import!E$204 -> Special rate asset pool capital allowance last RP5 part period - DL base year 2018 | F67: =Import!F$204 -> 0 | G67: =Import!G$204 -> 0 | H67: =Import!H$204 -> 15.54927174 | I67: =Import!I$204 -> GBP m
E69: ="Special rate asset pool addition last RP5 part period " & BASE_YEAR & " - DL" -> Special rate asset pool addition last RP5 part period 2016 - DL | H69: =H65 * H$62 / H$63 -> 30.14834579 | I69: GBP m
E70: ="Domestic contributions last RP5 part period "& BASE_YEAR & " - DL" -> Domestic contributions last RP5 part period 2016 - DL | H70: =H66 * H$62 / H$63 -> 0 | I70: GBP m
E71: ="Special rate asset pool capital allowance last RP5 part period " & BASE_YEAR & " - DL" -> Special rate asset pool capital allowance last RP5 part period 2016 - DL | H71: 15.54927174 | I71: GBP m
C74: Deferred revenue pool last RP5 part period Import data - DL
E76: ='Actuals Inp'!E$12 -> RPI as on 2015/16 - (Base year 1993/94) | F76: ='Actuals Inp'!F$12 -> 0 | G76: ='Actuals Inp'!G$12 -> RPI2016 | H76: ='Actuals Inp'!H$12 -> 259.5 | I76: ='Actuals Inp'!I$12 -> index
E77: =E$12 -> RPI as on 2017/18 - (Base year 1993/94) - active index | F77: =F$12 -> 0 | G77: =G$12 -> 0 | H77: =H$12 -> 259.5 | I77: =I$12 -> index
E79: =Import!E$208 -> Deferred revenue pool capital allowance - DL - end of March 17 base year 2018 | F79: =Import!F$208 -> 11.1a: | G79: =Import!G$208 -> KRP5 | H79: =Import!H$208 -> 5.56024889 | I79: =Import!I$208 -> GBP m
E80: =Import!E$209 -> Deferred revenue pool capital allowance last RP5 part period - DL base year 2018 | F80: =Import!F$209 -> 0 | G80: =Import!G$209 -> 0 | H80: =Import!H$209 -> 3.041011415 | I80: =Import!I$209 -> GBP m
E82: ="Deferred revenue pool capital allowance - DL - end of March 17 " & " Base year " & BASE_YEAR & " - DL" -> Deferred revenue pool capital allowance - DL - end of March 17 Base year 2016 - DL | H82: =H79 * H$76 / H$77 -> 5.56024889 | I82: GBP m
E83: ="Deferred revenue pool capital allowance last RP5 part period " & BASE_YEAR & " - DL" -> Deferred revenue pool capital allowance last RP5 part period 2016 - DL | H83: =H80 * H$76 / H$77 -> 3.041011415 | I83: GBP m
C86: Capex addition - DL - last RP5 period import data
E88: ='Actuals Inp'!E$12 -> RPI as on 2015/16 - (Base year 1993/94) | F88: ='Actuals Inp'!F$12 -> 0 | G88: ='Actuals Inp'!G$12 -> RPI2016 | H88: ='Actuals Inp'!H$12 -> 259.5 | I88: ='Actuals Inp'!I$12 -> index
E89: =E$12 -> RPI as on 2017/18 - (Base year 1993/94) - active index | F89: =F$12 -> 0 | G89: =G$12 -> 0 | H89: =H$12 -> 259.5 | I89: =I$12 -> index
E91: =Import!E$214 -> Capex addition - DN - last RP5 part period base year 2018 | F91: =Import!F$214 -> 0 | G91: =Import!G$214 -> 0 | H91: =Import!H$214 -> 38.29186627 | I91: =Import!I$214 -> GBP m
E92: =Import!E$215 -> Capex addition - ES - last RP5 part period base year 2018 | F92: =Import!F$215 -> 0 | G92: =Import!G$215 -> 0 | H92: =Import!H$215 -> 0 | I92: =Import!I$215 -> GBP m
E93: =Import!E$216 -> Capex addition - MTRN - last RP5 part period base year 2018 | F93: =Import!F$216 -> 0 | G93: =Import!G$216 -> 0 | H93: =Import!H$216 -> 7.405751328 | I93: =Import!I$216 -> GBP m
E94: =Import!E$217 -> Capex addition - RT - last RP5 part period base year 2018 | F94: =Import!F$217 -> 0 | G94: =Import!G$217 -> 0 | H94: =Import!H$217 -> 0 | I94: =Import!I$217 -> GBP m
E95: =Import!E$218 -> Capex addition - FE - last RP5 part period base year 2018 | F95: =Import!F$218 -> 0 | G95: =Import!G$218 -> 0 | H95: =Import!H$218 -> 0 | I95: =Import!I$218 -> GBP m
E96: =Import!E$219 -> Capex addition - NI - last RP5 part period base year 2018 | F96: =Import!F$219 -> 0 | G96: =Import!G$219 -> 0 | H96: =Import!H$219 -> 0 | I96: =Import!I$219 -> GBP m
E97: =Import!E$220 -> Capex addition - D5Y - last RP5 part period base year 2018 | F97: =Import!F$220 -> 0 | G97: =Import!G$220 -> 0 | H97: =Import!H$220 -> 7.322052359 | I97: =Import!I$220 -> GBP m
E98: =Import!E$221 -> Capex addition - MO5Y - last RP5 part period base year 2018 | F98: =Import!F$221 -> 0 | G98: =Import!G$221 -> 0 | H98: =Import!H$221 -> 0 | I98: =Import!I$221 -> GBP m
E100: ="Capex addition - DN - last RP5 part period base year " & BASE_YEAR -> Capex addition - DN - last RP5 part period base year 2016 | H100: =H91 * H$88 / H$89 -> 38.29186627 | I100: GBP m
E101: ="Capex addition - ES - last RP5 part period base year " & BASE_YEAR -> Capex addition - ES - last RP5 part period base year 2016 | H101: =H92 * H$88 / H$89 -> 0 | I101: GBP m
E102: ="Capex addition - MTRN - last RP5 part period base year " & BASE_YEAR -> Capex addition - MTRN - last RP5 part period base year 2016 | H102: 7.405751328 | I102: GBP m
E103: ="Capex addition - RT - last RP5 part period base year " & BASE_YEAR -> Capex addition - RT - last RP5 part period base year 2016 | H103: 0 | I103: GBP m
E104: ="Capex addition - FE - last RP5 part period base year " & BASE_YEAR -> Capex addition - FE - last RP5 part period base year 2016 | H104: 0 | I104: GBP m
E105: ="Capex addition - NI - last RP5 part period base year " & BASE_YEAR -> Capex addition - NI - last RP5 part period base year 2016 | H105: 0 | I105: GBP m
E106: ="Capex addition - D5Y - last RP5 part period base year " & BASE_YEAR -> Capex addition - D5Y - last RP5 part period base year 2016 | H106: 7.322052359 | I106: GBP m
E107: ="Capex addition - MO5Y - last RP5 part period base year " & BASE_YEAR -> Capex addition - MO5Y - last RP5 part period base year 2016 | H107: 0 | I107: GBP m
C110: RAB_DL starting RP5 last period import data
E112: ='Actuals Inp'!E$12 -> RPI as on 2015/16 - (Base year 1993/94) | F112: ='Actuals Inp'!F$12 -> 0 | G112: ='Actuals Inp'!G$12 -> RPI2016 | H112: ='Actuals Inp'!H$12 -> 259.5 | I112: ='Actuals Inp'!I$12 -> index
E113: ='Actuals Inp'!E$13 -> RPI as on 2017/18 - (Base year 1993/94) | F113: ='Actuals Inp'!F$13 -> 0 | G113: ='Actuals Inp'!G$13 -> RPI2018 | H113: ='Actuals Inp'!H$13 -> 273.538 | I113: ='Actuals Inp'!I$13 -> index
E114: =Import!E$225 -> RAB_DL - base year 2016 - starting RP5 last period | F114: =Import!F$225 -> 0 | G114: =Import!G$225 -> OE_2016_TL_2018 | H114: =Import!H$225 -> 1117.769924 | I114: =Import!I$225 -> GBP m
E115: ="RAB_DL - base year 2016 - starting RP5 last period " & BASE_YEAR -> RAB_DL - base year 2016 - starting RP5 last period 2016 | H115: =H114 * H112 / H113 -> 1060.405849 | I115: GBP m
C118: Financiability inputs RP5 last part period import data - DL
E120: ='Actuals Inp'!E$12 -> RPI as on 2015/16 - (Base year 1993/94) | F120: ='Actuals Inp'!F$12 -> 0 | G120: ='Actuals Inp'!G$12 -> RPI2016 | H120: ='Actuals Inp'!H$12 -> 259.5 | I120: ='Actuals Inp'!I$12 -> index
E121: =E$12 -> RPI as on 2017/18 - (Base year 1993/94) - active index | F121: =F$12 -> 0 | G121: =G$12 -> 0 | H121: =H$12 -> 259.5 | I121: =I$12 -> index
E123: =Import!E$229 -> Maximum regulated distribution revenue - DL - end RP5 period - base 2016 | F123: =Import!F$229 -> 0 | G123: =Import!G$229 -> 0 | H123: =Import!H$229 -> 96.91231252 | I123: =Import!I$229 -> GBP m
E124: =Import!E$230 -> Opex amount - DL - end RP5 period | F124: =Import!F$230 -> 0 | G124: =Import!G$230 -> 0 | H124: =Import!H$230 -> 30.483712 | I124: =Import!I$230 -> GBP m
E125: =Import!E$231 -> Tax - DL - end RP5 period | F125: =Import!F$231 -> 0 | G125: =Import!G$231 -> 0 | H125: =Import!H$231 -> 3.073575679 | I125: =Import!I$231 -> GBP m
E126: =Import!E$232 -> Pension deficit amount - historic repair - DL - end RP5 period | F126: =Import!F$232 -> 0 | G126: =Import!G$232 -> 0 | H126: =Import!H$232 -> 7.571163849 | I126: =Import!I$232 -> GBP m
E127: =Import!E$233 -> Depreciation amount - DL - end RP5 period | F127: =Import!F$233 -> 0 | G127: =Import!G$233 -> 0 | H127: =Import!H$233 -> 32.280083 | I127: =Import!I$233 -> GBP m
E128: =Import!E$234 -> Pension deficit amount ERDC disallowance base 2016 - DL - RP5 last period | F128: =Import!F$234 -> 0 | G128: =Import!G$234 -> 0 | H128: =Import!H$234 -> -2.155294818 | I128: =Import!I$234 -> GBP m
E130: ="Maximum regulated distribution revenue - DL - end RP5 period - base " & BASE_YEAR -> Maximum regulated distribution revenue - DL - end RP5 period - base 2016 | H130: =H123 * H$120 / H$121 -> 96.91231252 | I130: GBP m
E131: ="Opex amount - DL - end RP5 period " & BASE_YEAR -> Opex amount - DL - end RP5 period 2016 | H131: =H124 * H$120 / H$121 -> 30.483712 | I131: GBP m
E132: ="Tax - DL - end RP5 period " & BASE_YEAR -> Tax - DL - end RP5 period 2016 | H132: 3.073575679 | I132: GBP m
E133: ="Pension deficit amount - historic repair - DL - end RP5 period " & BASE_YEAR -> Pension deficit amount - historic repair - DL - end RP5 period 2016 | H133: 7.571163849 | I133: GBP m
E134: ="Depreciation amount - DL - end RP5 period " & BASE_YEAR -> Depreciation amount - DL - end RP5 period 2016 | H134: 32.280083 | I134: GBP m
E135: ="Pension deficit amount ERDC disallowance- DL - RP5 last period " & BASE_YEAR -> Pension deficit amount ERDC disallowance- DL - RP5 last period 2016 | H135: -2.155294818 | I135: GBP m
A138: TRANSMISSION LICENCE
C140: Table 2: Opening value of existing assets
E142: RAB_X
E143: ='Actuals Inp'!E$12 -> RPI as on 2015/16 - (Base year 1993/94) | F143: ='Actuals Inp'!F$12 -> 0 | G143: ='Actuals Inp'!G$12 -> RPI2016 | H143: ='Actuals Inp'!H$12 -> 259.5 | I143: ='Actuals Inp'!I$12 -> index
E144: =E$12 -> RPI as on 2017/18 - (Base year 1993/94) - active index | F144: =F$12 -> 0 | G144: =G$12 -> 0 | H144: =H$12 -> 259.5 | I144: =I$12 -> index
E146: =Import!E$242 -> RAB_TN - base year 2018 | F146: =Import!F$242 -> Table 2 | G146: =Import!G$242 -> OE_TN2018 | H146: =Import!H$242 -> 172.3154603 | I146: =Import!I$242 -> GBP m
E147: =Import!E$243 -> RAB_RN - base year 2018 | F147: =Import!F$243 -> Table 2 | G147: =Import!G$243 -> OE_RN2018 | H147: =Import!H$243 -> 11.84691316 | I147: =Import!I$243 -> GBP m
E148: =Import!E$244 -> RAB_NSI - base year 2018 | F148: =Import!F$244 -> Table 2 | G148: =Import!G$244 -> OE_NSI2018 | H148: =Import!H$244 -> 0.9097770943 | I148: =Import!I$244 -> GBP m
E149: =Import!E$245 -> RAB_T5Y - base year 2018 | F149: =Import!F$245 -> Table 2 | G149: =Import!G$245 -> OE_T5Y2018 | H149: =Import!H$245 -> 0 | I149: =Import!I$245 -> GBP m
E151: =Import!E$249 -> Opening additional assets - RAB_TN - base year 2018 | F151: =Import!F$249 -> 4.13a: | G151: =Import!G$249 -> OADD_TN2018 | H151: =Import!H$249 -> 96.05992038 | I151: =Import!I$249 -> GBP m
E152: =Import!E$250 -> Opening additional assets - RAB_RN - base year 2018 | F152: =Import!F$250 -> 4.13a: | G152: =Import!G$250 -> OADD_RN2018 | H152: =Import!H$250 -> 49.22139759 | I152: =Import!I$250 -> GBP m
E153: =Import!E$251 -> Opening additional assets - RAB_NSI - base year 2018 | F153: =Import!F$251 -> 4.13a: | G153: =Import!G$251 -> OADD_NSI2018 | H153: =Import!H$251 -> 0 | I153: =Import!I$251 -> GBP m
E154: =Import!E$252 -> Opening additional assets - RAB_T5Y - base year 2018 | F154: =Import!F$252 -> 4.13a: | G154: =Import!G$252 -> OADD_T5Y2018 | H154: =Import!H$252 -> 1.336913331 | I154: =Import!I$252 -> GBP m
E156: ="RAB_TN - base year " & BASE_YEAR -> RAB_TN - base year 2016 | F156: Table 2 | G156: OE_2016_TN2018 | H156: =(H146 + H151) * $H$143 / $H$144 -> 268.3753807 | I156: =Import!I$242 -> GBP m
E157: ="RAB_RN - base year " & BASE_YEAR -> RAB_RN - base year 2016 | F157: Table 2 | G157: OE_2016_RN2018 | H157: =(H147 + H152) * $H$143 / $H$144 -> 61.06831075 | I157: =Import!I$242 -> GBP m
E158: ="RAB_NSI - base year " & BASE_YEAR -> RAB_NSI - base year 2016 | F158: Table 2 | G158: OE_2016_NSI2018 | H158: =(H148 + H153) * $H$143 / $H$144 -> 0.9097770943 | I158: =Import!I$242 -> GBP m
E159: ="RAB_T5Y - base year " & BASE_YEAR -> RAB_T5Y - base year 2016 | F159: Table 2 | G159: OE_2016_T5Y2018 | H159: =(H149 + H154) * $H$143 / $H$144 -> 1.336913331 | I159: =Import!I$242 -> GBP m
C162: Main rate pool last RP5 part period Import data - TL
E164: ='Actuals Inp'!E$12 -> RPI as on 2015/16 - (Base year 1993/94) | F164: ='Actuals Inp'!F$12 -> 0 | G164: ='Actuals Inp'!G$12 -> RPI2016 | H164: ='Actuals Inp'!H$12 -> 259.5 | I164: ='Actuals Inp'!I$12 -> index
E165: =E$12 -> RPI as on 2017/18 - (Base year 1993/94) - active index | F165: =F$12 -> 0 | G165: =G$12 -> 0 | H165: =H$12 -> 259.5 | I165: =I$12 -> index
E167: =Import!E$269 -> Main rate pool capex addition last RP5 part period - TL base year 2018 | F167: =Import!F$269 -> 0 | G167: =Import!G$269 -> 0 | H167: =Import!H$269 -> 0.08551111849 | I167: =Import!I$269 -> GBP m
E168: =Import!E$270 -> Main rate pool capital allowance last RP5 part period - TL base year 2018 | F168: =Import!F$270 -> 0 | G168: =Import!G$270 -> 0 | H168: =Import!H$270 -> 0.07269191057 | I168: =Import!I$270 -> GBP m
E170: ="Main rate pool capex addition last RP5 part period " & BASE_YEAR & " - TL" -> Main rate pool capex addition last RP5 part period 2016 - TL | H170: =H167 * H$164 / H$165 -> 0.08551111849 | I170: GBP m
E171: ="Main rate pool capital allowance last RP5 part period " & BASE_YEAR & " - TL" -> Main rate pool capital allowance last RP5 part period 2016 - TL | H171: =H168 * H$164 / H$165 -> 0.07269191057 | I171: GBP m
C174: Special rate pool last RP5 part period Import data - TL
E176: ='Actuals Inp'!E$12 -> RPI as on 2015/16 - (Base year 1993/94) | F176: ='Actuals Inp'!F$12 -> 0 | G176: ='Actuals Inp'!G$12 -> RPI2016 | H176: ='Actuals Inp'!H$12 -> 259.5 | I176: ='Actuals Inp'!I$12 -> index
E177: =E$12 -> RPI as on 2017/18 - (Base year 1993/94) - active index | F177: =F$12 -> 0 | G177: =G$12 -> 0 | H177: =H$12 -> 259.5 | I177: =I$12 -> index
E179: =Import!E$274 -> Special rate asset pool addition last RP5 part period - TL base year 2018 | F179: =Import!F$274 -> 0 | G179: =Import!G$274 -> 0 | H179: =Import!H$274 -> 22.42810799 | I179: =Import!I$274 -> GBP m
E180: =Import!E$275 -> Special rate asset pool capital allowance last RP5 part period - TL base year 2018 | F180: =Import!F$275 -> 0 | G180: =Import!G$275 -> 0 | H180: =Import!H$275 -> 7.026192759 | I180: =Import!I$275 -> GBP m
E182: ="Special rate asset pool addition last RP5 part period " & BASE_YEAR & " - TL" -> Special rate asset pool addition last RP5 part period 2016 - TL | H182: =H179 * H$176 / H$177 -> 22.42810799 | I182: GBP m
E183: ="Special rate asset pool capital allowance last RP5 part period " & BASE_YEAR & " - TL" -> Special rate asset pool capital allowance last RP5 part period 2016 - TL | H183: =H180 * H$176 / H$177 -> 7.026192759 | I183: GBP m
C186: Deferred revenue pool last RP5 part period Import data - TL
E188: ='Actuals Inp'!E$12 -> RPI as on 2015/16 - (Base year 1993/94) | F188: ='Actuals Inp'!F$12 -> 0 | G188: ='Actuals Inp'!G$12 -> RPI2016 | H188: ='Actuals Inp'!H$12 -> 259.5 | I188: ='Actuals Inp'!I$12 -> index
E189: =E$12 -> RPI as on 2017/18 - (Base year 1993/94) - active index | F189: =F$12 -> 0 | G189: =G$12 -> 0 | H189: =H$12 -> 259.5 | I189: =I$12 -> index
E191: =Import!E$279 -> Deferred revenue pool capital allowance - TL - end of March 17 base year 2018 | F191: =Import!F$279 -> 11.1a: | G191: =Import!G$279 -> KRP5 | H191: =Import!H$279 -> 1.001983368 | I191: =Import!I$279 -> GBP m
E192: =Import!E$280 -> Deferred revenue pool capital allowance last RP5 part period - TL base year 2018 | F192: =Import!F$280 -> 0 | G192: =Import!G$280 -> 0 | H192: =Import!H$280 -> 0.5365671799 | I192: =Import!I$280 -> GBP m
E194: ="Deferred revenue pool capital allowance - TL - end of March 17 " & " Base year " & BASE_YEAR & " - TL" -> Deferred revenue pool capital allowance - TL - end of March 17 Base year 2016 - TL | H194: =H191 * H$188 / H$189 -> 1.001983368 | I194: GBP m
E195: ="Deferred revenue pool capital allowance last RP5 part period " & BASE_YEAR & " - TL" -> Deferred revenue pool capital allowance last RP5 part period 2016 - TL | H195: =H192 * H$188 / H$189 -> 0.5365671799 | I195: GBP m
C198: Capex addition - TL - last RP5 period import data
E200: ='Actuals Inp'!E$12 -> RPI as on 2015/16 - (Base year 1993/94) | F200: ='Actuals Inp'!F$12 -> 0 | G200: ='Actuals Inp'!G$12 -> RPI2016 | H200: ='Actuals Inp'!H$12 -> 259.5 | I200: ='Actuals Inp'!I$12 -> index
E201: =E$12 -> RPI as on 2017/18 - (Base year 1993/94) - active index | F201: =F$12 -> 0 | G201: =G$12 -> 0 | H201: =H$12 -> 259.5 | I201: =I$12 -> index
E203: =Import!E$284 -> Capex addition - TN - end RP5 period | F203: =Import!F$284 -> 0 | G203: =Import!G$284 -> 0 | H203: =Import!H$284 -> 15.47944885 | I203: =Import!I$284 -> GBP m
E204: =Import!E$285 -> Capex addition - RN - end RP5 period | F204: =Import!F$285 -> 0 | G204: =Import!G$285 -> 0 | H204: =Import!H$285 -> 8.303456587 | I204: =Import!I$285 -> GBP m
E205: =Import!E$286 -> Capex addition - NSI - end RP5 period | F205: =Import!F$286 -> 0 | G205: =Import!G$286 -> 0 | H205: =Import!H$286 -> 0 | I205: =Import!I$286 -> GBP m
E206: =Import!E$287 -> Capex addition - T5Y - end RP5 period | F206: =Import!F$287 -> 0 | G206: =Import!G$287 -> 0 | H206: =Import!H$287 -> 0.2486014939 | I206: =Import!I$287 -> GBP m
E208: ="Capex addition - TN - last RP5 part period base year " & BASE_YEAR -> Capex addition - TN - last RP5 part period base year 2016 | H208: =H203 * H$200 / H$201 -> 15.47944885 | I208: GBP m
E209: ="Capex addition - RN - last RP5 part period base year " & BASE_YEAR -> Capex addition - RN - last RP5 part period base year 2016 | H209: =H204 * H$200 / H$201 -> 8.303456587 | I209: GBP m
E210: ="Capex addition - NSI - last RP5 part period base year " & BASE_YEAR -> Capex addition - NSI - last RP5 part period base year 2016 | H210: 0 | I210: GBP m
E211: ="Capex addition - T5Y - last RP5 part period base year " & BASE_YEAR -> Capex addition - T5Y - last RP5 part period base year 2016 | H211: 0.2486014939 | I211: GBP m
C214: RAB_TL starting RP5 last period import data
E216: ='Actuals Inp'!E$12 -> RPI as on 2015/16 - (Base year 1993/94) | F216: ='Actuals Inp'!F$12 -> 0 | G216: ='Actuals Inp'!G$12 -> RPI2016 | H216: ='Actuals Inp'!H$12 -> 259.5 | I216: ='Actuals Inp'!I$12 -> index
E217: ='Actuals Inp'!E$13 -> RPI as on 2017/18 - (Base year 1993/94) | F217: ='Actuals Inp'!F$13 -> 0 | G217: ='Actuals Inp'!G$13 -> RPI2018 | H217: ='Actuals Inp'!H$13 -> 273.538 | I217: ='Actuals Inp'!I$13 -> index
E218: =Import!E$291 -> RAB_TL - base year 2016 - starting RP5 last period | F218: =Import!F$291 -> 0 | G218: =Import!G$291 -> OE_2016_TL_2018 | H218: =Import!H$291 -> 331.92764 | I218: =Import!I$291 -> GBP m
E219: ="RAB_TL - base year 2016 - starting RP5 last period " & BASE_YEAR -> RAB_TL - base year 2016 - starting RP5 last period 2016 | H219: =H218 * H216 / H217 -> 314.8930774 | I219: GBP m
C222: Financiability inputs RP5 last part period import data - TL
E224: ='Actuals Inp'!E$12 -> RPI as on 2015/16 - (Base year 1993/94) | F224: ='Actuals Inp'!F$12 -> 0 | G224: ='Actuals Inp'!G$12 -> RPI2016 | H224: ='Actuals Inp'!H$12 -> 259.5 | I224: ='Actuals Inp'!I$12 -> index
E225: =E$12 -> RPI as on 2017/18 - (Base year 1993/94) - active index | F225: =F$12 -> 0 | G225: =G$12 -> 0 | H225: =H$12 -> 259.5 | I225: =I$12 -> index
E227: =Import!E$295 -> Maximum regulated transmission revenue - TL - end RP5 period - base 2016 | F227: =Import!F$295 -> 0 | G227: =Import!G$295 -> 0 | H227: =Import!H$295 -> 13.21192531 | I227: =Import!I$295 -> GBP m
E228: =Import!E$296 -> Opex amount - TL - end RP5 period | F228: =Import!F$296 -> 0 | G228: =Import!G$296 -> 0 | H228: =Import!H$296 -> 3.526752052 | I228: =Import!I$296 -> GBP m
E229: =Import!E$297 -> Tax - TL - end RP5 period | F229: =Import!F$297 -> 0 | G229: =Import!G$297 -> 0 | H229: =Import!H$297 -> 0.3290134867 | I229: =Import!I$297 -> GBP m
E230: =Import!E$298 -> Pension deficit amount - historic repair - TL - end RP5 period | F230: =Import!F$298 -> 0 | G230: =Import!G$298 -> 0 | H230: =Import!H$298 -> 0.6583620738 | I230: =Import!I$298 -> GBP m
E231: =Import!E$299 -> Depreciation amount - TL - end RP5 period | F231: =Import!F$299 -> 0 | G231: =Import!G$299 -> 0 | H231: =Import!H$299 -> 7.234202416 | I231: =Import!I$299 -> GBP m
E232: =Import!E$300 -> Pension deficit amount - ERDC disallowance base 2016 - TL - DL - RP5 last period | F232: =Import!F$300 -> 0 | G232: =Import!G$300 -> 0 | H232: =Import!H$300 -> -0.1874169407 | I232: =Import!I$300 -> GBP m
E234: ="Maximum regulated distribution revenue - TL - end RP5 period - base " & BASE_YEAR -> Maximum regulated distribution revenue - TL - end RP5 period - base 2016 | H234: =H227 * H$224 / H$225 -> 13.21192531 | I234: GBP m
E235: ="Opex amount - TL - end RP5 period - base " & BASE_YEAR -> Opex amount - TL - end RP5 period - base 2016 | H235: =H228 * H$224 / H$225 -> 3.526752052 | I235: GBP m
E236: ="Tax - TL - end RP5 period - base " & BASE_YEAR -> Tax - TL - end RP5 period - base 2016 | H236: 0.3290134867 | I236: GBP m
E237: ="Pension deficit amount - historic repair - TL - end RP5 period - base " & BASE_YEAR -> Pension deficit amount - historic repair - TL - end RP5 period - base 2016 | H237: 0.6583620738 | I237: GBP m
E238: ="Depreciation amount - TL - end RP5 period - base " & BASE_YEAR -> Depreciation amount - TL - end RP5 period - base 2016 | H238: 7.234202416 | I238: GBP m
E239: ="Pension deficit amount ERDC disallowance- TL - RP5 last period - base " & BASE_YEAR -> Pension deficit amount ERDC disallowance- TL - RP5 last period - base 2016 | H239: -0.1874169407 | I239: GBP m
A242: END

Sheet Set Up
A1: =RIGHT(CELL("filename", $A$1), LEN(CELL("filename", $A$1)) - SEARCH("]", CELL("filename", $A$1))) -> Set Up
H2: =Check!$H$9 -> 0 | I2: Error chks
H3: =Track!$M$2 -> 0 | I3: Track chgs
H4: =Check!$H$37 -> 0 | I4: Alerts
F5: Para references | G5: Defined Term | H5: Constant | I5: Unit | J5: Source
A7: FORECAST INPUTS
E9: Regulatory period | H9: RP6 | I9: text
A11: TIME INPUTS
E13: 1st model column start date | H13: 2016-04-01 | I13: date
E14: Months per model period | H14: 12 | I14: months
E16: First modelling column financial year number | H16: 2017 | I16: year #
E17: Financial year end month number | H17: 3 | I17: month #
E19: ="Pre " & ACTIVE_CASE & " period" -> Pre RP6 period | H19: RP5 | I19: label
E20: =H20 & " period label" -> RP5 / RP6 period label | H20: =H19 & " / " & H21 -> RP5 / RP6 | I20: label
E21: =ACTIVE_CASE & " period label" -> RP6 period label | H21: =ACTIVE_CASE -> RP6 | I21: label
E22: =H22 & " period label" -> RP6 / Post RP6 period label | H22: =H21 & " / " & H23 -> RP6 / Post RP6 | I22: label
E23: ="Post " & ACTIVE_CASE & " period" -> Post RP6 period | H23: Post RP6 | I23: label
E25: =ACTIVE_CASE & " period start date" -> RP6 period start date | H25: 2017-10-01 | I25: date
E26: ="Length of " & ACTIVE_CASE & " period" -> Length of RP6 period | H26: 78 | I26: months
A29: CAPEX
C31: Capex addition dates
E34: Capex addition date during year 1993 - 1994 | H34: 1993-04-01 | I34: date
E35: Capex addition date during year 1994 - 1995 | H35: 1994-04-01 | I35: date
E36: Capex addition date during year 1995 - 1996 | H36: 1995-04-01 | I36: date
E37: Capex addition date during year 1996 - 1997 | H37: 1996-04-01 | I37: date
E38: Capex addition date during year 1997 - 1998 | H38: 1997-04-01 | I38: date
E39: Capex addition date during year 1998 - 1999 | H39: 1998-04-01 | I39: date
E40: Capex addition date during year 1999 - 2000 | H40: 1999-04-01 | I40: date
E41: Capex addition date during year 2000 - 2001 | H41: 2000-04-01 | I41: date
E42: Capex addition date during year 2001 - 2002 | H42: 2001-04-01 | I42: date
E43: Capex addition date during year 2002 - 2003 | H43: 2002-04-01 | I43: date
E44: Capex addition date during year 2003 - 2004 | H44: 2003-04-01 | I44: date
E45: Capex addition date during year 2004 - 2005 | H45: 2004-04-01 | I45: date
E46: Capex addition date during year 2005 - 2006 | H46: 2005-04-01 | I46: date
E47: Capex addition date during year 2006 - 2007 | H47: 2006-04-01 | I47: date
E48: Capex addition date during year 2007 - 2008 | H48: 2007-04-01 | I48: date
E49: Capex addition date during year 2008 - 2009 | H49: 2008-04-01 | I49: date
E50: Capex addition date during year 2009 - 2010 | H50: 2009-04-01 | I50: date
E51: Capex addition date during year 2010 - 2011 | H51: 2010-04-01 | I51: date
E52: Capex addition date during year 2011 - 2012 | H52: 2011-04-01 | I52: date
E53: Capex addition date during year 2012 - 2013 | H53: 2012-10-01 | I53: date
E54: Capex addition date during year 2013 - 2014 | H54: 2013-10-01 | I54: date
E55: Capex addition date during year 2014 - 2015 | H55: 2014-10-01 | I55: date
E56: Capex addition date during year 2015 - 2016 | H56: 2015-10-01 | I56: date
E57: Capex addition date during year 2016 - 2017 | H57: 2016-10-01 | I57: date
E58: Capex addition date during year 2017 - 2018 | H58: 2017-10-01 | I58: date
A61: NON - CHANGEABLE MODEL TECHNICAL INPUTS
E63: Check tolerance | H63: 0.001 | I63: tolerance
E65: Track tolerance | H65: 0.001 | I65: tolerance
E67: Percentage tolerance | H67: 1e-05 | I67: tolerance
E69: Months in a year | H69: 12 | I69: months
E71: Square root factor | F71: 5.1: | H71: 0.5 | I71: factor
E73: Units in a million | H73: 1000000 | I73: unit
A75: END

Sheet Licence Inp
A1: =RIGHT(CELL("filename", $A$1), LEN(CELL("filename", $A$1)) - SEARCH("]", CELL("filename", $A$1))) -> Licence Inp
E2: =Time!E$23 -> Model period ending | H2: =Check!$H$9 -> 0 | I2: Error chks | M2: =Time!M$23 -> 2017-03-31 | N2: =Time!N$23 -> 2018-03-31 | O2: =Time!O$23 -> 2019-03-31 | P2: =Time!P$23 -> 2020-03-31 | Q2: =Time!Q$23 -> 2021-03-31 | R2: =Time!R$23 -> 2022-03-31 | S2: =Time!S$23 -> 2023-03-31 | T2: =Time!T$23 -> 2024-03-31 | U2: =Time!U$23 -> 2025-03-31
E3: =Time!E$154 -> Timeline label | H3: =Track!$M$2 -> 0 | I3: Track chgs | M3: =Time!M$154 -> RP5 | N3: =Time!N$154 -> RP5 / RP6 | O3: =Time!O$154 -> RP6 | P3: =Time!P$154 -> RP6 | Q3: =Time!Q$154 -> RP6 | R3: =Time!R$154 -> RP6 | S3: =Time!S$154 -> RP6 | T3: =Time!T$154 -> RP6 | U3: =Time!U$154 -> Post RP6
E4: =Time!E$36 -> Financial year ending | H4: =Check!$H$37 -> 0 | I4: Alerts | M4: =Time!M$36 -> 2017 | N4: =Time!N$36 -> 2018 | O4: =Time!O$36 -> 2019 | P4: =Time!P$36 -> 2020 | Q4: =Time!Q$36 -> 2021 | R4: =Time!R$36 -> 2022 | S4: =Time!S$36 -> 2023 | T4: =Time!T$36 -> 2024 | U4: =Time!U$36 -> 2025
E5: =Time!E$10 -> Model column counter | F5: Para references | G5: Defined Term | H5: Constant | I5: Unit | J5: Source | K5: Total | M5: =Time!M$10 -> 1 | N5: =Time!N$10 -> 2 | O5: =Time!O$10 -> 3 | P5: =Time!P$10 -> 4 | Q5: =Time!Q$10 -> 5 | R5: =Time!R$10 -> 6 | S5: =Time!S$10 -> 7 | T5: =Time!T$10 -> 8 | U5: =Time!U$10 -> 9
A7: DISTRIBUTION LICENCE
C9: 3.3 RP6Tt
E11: Max regulated Distribution revenue factor - DL | F11: 3.3: | H11: 0.5 | I11: factor
C14: 4.1 Regulatory Asset Bases
C17: Table 1: Regulatory Asset Bases
E19: RAB Name | H19: RAB_X
E20: Distribution RAB | F20: Table 1 | H20: RAB_DN | I20: text
E21: Enduring solution RAB | F21: Table 1 | H21: RAB_ES | I21: text
E22: Metering RAB | F22: Table 1 | H22: RAB_MTRN | I22: text
E23: Rathlin RAB | F23: Table 1 | H23: RAB_RT | I23: text
E24: FEMO RAB | F24: Table 1 | H24: RAB_FE | I24: text
E25: NI2007 RAB | F25: Table 1 | H25: RAB_NI | I25: text
E26: 5 year D. RAB | F26: Table 1 | H26: RAB_D5Y | I26: text
E27: 5 year Market Operations RAB | F27: Table 1 | H27: RAB_MO5Y | I27: text
C30: Table 2: Opening value of existing assets
E32: RAB_X
E33: ='Import Base 2016'!E$38 -> RAB_DN - base year 2016 | F33: ='Import Base 2016'!F$38 -> Table 2 | G33: ='Import Base 2016'!G$38 -> OE_2016_DN2018 | H33: ='Import Base 2016'!H$38 -> 995.7786177 | I33: ='Import Base 2016'!I$38 -> GBP m | J33: [Entitlement Model 28.11.16.xlsx]RP6 Distribution Inputs'!A$35
E34: ='Import Base 2016'!E$39 -> RAB_ES - base year 2016 | F34: ='Import Base 2016'!F$39 -> Table 2 | G34: ='Import Base 2016'!G$39 -> OE_2016_ES2018 | H34: ='Import Base 2016'!H$39 -> 15.01742294 | I34: ='Import Base 2016'!I$39 -> GBP m | J34: [Entitlement Model 28.11.16.xlsx]RP6 Distribution Inputs'!A$65
E35: ='Import Base 2016'!E$40 -> RAB_MTRN - base year 2016 | F35: ='Import Base 2016'!F$40 -> Table 2 | G35: ='Import Base 2016'!G$40 -> OE_2016_MTRN2018 | H35: ='Import Base 2016'!H$40 -> 42.36853562 | I35: ='Import Base 2016'!I$40 -> GBP m | J35: [Entitlement Model 28.11.16.xlsx]RP6 Distribution Inputs'!A$95
E36: ='Import Base 2016'!E$41 -> RAB_RT - base year 2016 | F36: ='Import Base 2016'!F$41 -> Table 2 | G36: ='Import Base 2016'!G$41 -> OE_2016_RT2018 | H36: ='Import Base 2016'!H$41 -> 3.845860499 | I36: ='Import Base 2016'!I$41 -> GBP m | J36: [Entitlement Model 28.11.16.xlsx]RP6 Distribution Inputs'!A$147
E37: ='Import Base 2016'!E$42 -> RAB_FE - base year 2016 | F37: ='Import Base 2016'!F$42 -> Table 2 | G37: ='Import Base 2016'!G$42 -> OE_2016_FE2018 | H37: ='Import Base 2016'!H$42 -> -0.0006271259171 | I37: ='Import Base 2016'!I$42 -> GBP m | J37: [Entitlement Model 28.11.16.xlsx]RP6 Distribution Inputs'!A$177
E38: ='Import Base 2016'!E$43 -> RAB_NI - base year 2016 | F38: ='Import Base 2016'!F$43 -> Table 2 | G38: ='Import Base 2016'!G$43 -> OE_2016_NI2018 | H38: ='Import Base 2016'!H$43 -> -0.0009490986101 | I38: ='Import Base 2016'!I$43 -> GBP m | J38: [Entitlement Model 28.11.16.xlsx]RP6 Distribution Inputs'!A$207
E39: ='Import Base 2016'!E$44 -> RAB_D5Y - base year 2016 | F39: ='Import Base 2016'!F$44 -> Table 2 | G39: ='Import Base 2016'!G$44 -> OE_2016_D5Y2018 | H39: ='Import Base 2016'!H$44 -> 24.13657579 | I39: ='Import Base 2016'!I$44 -> GBP m | J39: [Entitlement Model 28.11.16.xlsx]RP6 Distribution Inputs'!A$237
E40: ='Import Base 2016'!E$45 -> RAB_MO5Y - base year 2016 | F40: ='Import Base 2016'!F$45 -> Table 2 | G40: ='Import Base 2016'!G$45 -> OE_2016_MO5Y2018 | H40: ='Import Base 2016'!H$45 -> 0 | I40: ='Import Base 2016'!I$45 -> GBP m
C42: ="Table 3: Fixed depreciation amount - FDEP_" & BASE_YEAR &"_X2018" -> Table 3: Fixed depreciation amount - FDEP_2016_X2018
E44: ="Fixed dep. - base yr " & BASE_YEAR & " calc. - RAB_DN" -> Fixed dep. - base yr 2016 calc. - RAB_DN | F44: Table 3 | G44: FDEP_DNt | I44: GBP m | K44: =SUM(M44:U44) -> 303.1905318 | M44: ='DL - C4 A'!M$1353 -> 0 | N44: ='DL - C4 A'!N$1353 -> 25.36744048 | O44: ='DL - C4 A'!O$1353 -> 49.3670344 | P44: ='DL - C4 A'!P$1353 -> 48.02285028 | Q44: ='DL - C4 A'!Q$1353 -> 46.5364771 | R44: ='DL - C4 A'!R$1353 -> 45.52618475 | S44: ='DL - C4 A'!S$1353 -> 44.68227481 | T44: ='DL - C4 A'!T$1353 -> 43.68826999 | U44: ='DL - C4 A'!U$1353 -> 0
E45: ="Fixed dep. - base yr " & BASE_YEAR & " calc. - RAB_ES" -> Fixed dep. - base yr 2016 calc. - RAB_ES | F45: Table 3 | G45: FDEP_ESt | I45: GBP m | K45: 15.02014703 | M45: ='DL - C4 A'!M$1537 -> 0 | N45: ='DL - C4 A'!N$1537 -> 1.62943869 | O45: ='DL - C4 A'!O$1537 -> 3.25887738 | P45: ='DL - C4 A'!P$1537 -> 3.25887738 | Q45: ='DL - C4 A'!Q$1537 -> 3.25887738 | R45: ='DL - C4 A'!R$1537 -> 3.25887738 | S45: ='DL - C4 A'!S$1537 -> 0.3551988163 | T45: ='DL - C4 A'!T$1537 -> 0 | U45: ='DL - C4 A'!U$1537 -> 0
E46: ="Fixed dep. - base yr " & BASE_YEAR & " calc. - RAB_MTRN" -> Fixed dep. - base yr 2016 calc. - RAB_MTRN | F46: Table 3 | G46: FDEP_MTRNt | I46: GBP m | K46: 24.14904621 | M46: ='DL - C4 A'!M$1747 -> 0 | N46: ='DL - C4 A'!N$1747 -> 2.372082174 | O46: ='DL - C4 A'!O$1747 -> 4.310132275 | P46: ='DL - C4 A'!P$1747 -> 3.528195463 | Q46: ='DL - C4 A'!Q$1747 -> 3.528195463 | R46: ='DL - C4 A'!R$1747 -> 3.585249814 | S46: ='DL - C4 A'!S$1747 -> 3.520382956 | T46: ='DL - C4 A'!T$1747 -> 3.304808061 | U46: ='DL - C4 A'!U$1747 -> 0
E47: ="Fixed dep. - base yr " & BASE_YEAR & " calc. - RAB_RT" -> Fixed dep. - base yr 2016 calc. - RAB_RT | F47: Table 3 | G47: FDEP_RTt | I47: GBP m | K47: 1.073138086 | M47: ='DL - C4 A'!M$1931 -> 0 | N47: ='DL - C4 A'!N$1931 -> 0.08254908356 | O47: ='DL - C4 A'!O$1931 -> 0.1650981671 | P47: ='DL - C4 A'!P$1931 -> 0.1650981671 | Q47: ='DL - C4 A'!Q$1931 -> 0.1650981671 | R47: ='DL - C4 A'!R$1931 -> 0.1650981671 | S47: ='DL - C4 A'!S$1931 -> 0.1650981671 | T47: ='DL - C4 A'!T$1931 -> 0.1650981671 | U47: ='DL - C4 A'!U$1931 -> 0
E48: ="Fixed dep. - base yr " & BASE_YEAR & " calc. - RAB_FE" -> Fixed dep. - base yr 2016 calc. - RAB_FE | F48: Table 3 | G48: FDEP_FEt | I48: GBP m | K48: 1.110223025e-15 | M48: ='DL - C4 A'!M$2115 -> 0 | N48: ='DL - C4 A'!N$2115 -> 1.110223025e-15 | O48: ='DL - C4 A'!O$2115 -> 0 | P48: ='DL - C4 A'!P$2115 -> 0 | Q48: ='DL - C4 A'!Q$2115 -> 0 | R48: ='DL - C4 A'!R$2115 -> 0 | S48: ='DL - C4 A'!S$2115 -> 0 | T48: ='DL - C4 A'!T$2115 -> 0 | U48: ='DL - C4 A'!U$2115 -> 0
E49: ="Fixed dep. - base yr " & BASE_YEAR & " calc. - RAB_NI" -> Fixed dep. - base yr 2016 calc. - RAB_NI | F49: Table 3 | G49: FDEP_NIt | I49: GBP m | K49: 0 | M49: ='DL - C4 A'!M$2299 -> 0 | N49: ='DL - C4 A'!N$2299 -> 0 | O49: ='DL - C4 A'!O$2299 -> 0 | P49: ='DL - C4 A'!P$2299 -> 0 | Q49: ='DL - C4 A'!Q$2299 -> 0 | R49: ='DL - C4 A'!R$2299 -> 0 | S49: ='DL - C4 A'!S$2299 -> 0 | T49: ='DL - C4 A'!T$2299 -> 0 | U49: ='DL - C4 A'!U$2299 -> 0
E50: ="Fixed dep. - base yr " & BASE_YEAR & " calc. - RAB_D5Y" -> Fixed dep. - base yr 2016 calc. - RAB_D5Y | F50: Table 3 | G50: FDEP_D5Yt | I50: GBP m | K50: 24.13509188 | M50: ='DL - C4 A'!M$2483 -> 0 | N50: ='DL - C4 A'!N$2483 -> 4.382077664 | O50: ='DL - C4 A'!O$2483 -> 7.119762387 | P50: ='DL - C4 A'!P$2483 -> 5.530285983 | Q50: ='DL - C4 A'!Q$2483 -> 4.027660494 | R50: ='DL - C4 A'!R$2483 -> 2.343246046 | S50: ='DL - C4 A'!S$2483 -> 0.7320593033 | T50: ='DL - C4 A'!T$2483 -> 0 | U50: ='DL - C4 A'!U$2483 -> 0
E51: ="Fixed dep. - base yr " & BASE_YEAR & " calc. - RAB_MO5Y" -> Fixed dep. - base yr 2016 calc. - RAB_MO5Y | F51: Table 3 | G51: FDEP_MO5Yt | I51: GBP m | K51: 0 | M51: ='DL - C4 A'!M$2667 -> 0 | N51: ='DL - C4 A'!N$2667 -> 0 | O51: ='DL - C4 A'!O$2667 -> 0 | P51: ='DL - C4 A'!P$2667 -> 0 | Q51: ='DL - C4 A'!Q$2667 -> 0 | R51: ='DL - C4 A'!R$2667 -> 0 | S51: ='DL - C4 A'!S$2667 -> 0 | T51: ='DL - C4 A'!T$2667 -> 0 | U51: ='DL - C4 A'!U$2667 -> 0
E53: ="Fixed dep. - base yr " & BASE_YEAR & " adj. - RAB_DN" -> Fixed dep. - base yr 2016 adj. - RAB_DN | F53: Table 3 | G53: FDEP_2016_DNt | I53: GBP m | J53: [Entitlement Model 28.11.16.xlsx]RP6 Distribution Inputs'!A$36 | K53: =SUM(M53:U53) -> 0
E54: ="Fixed dep. - base yr " & BASE_YEAR & " adj. - RAB_ES" -> Fixed dep. - base yr 2016 adj. - RAB_ES | F54: Table 3 | G54: FDEP_2016_ESt | I54: GBP m | J54: [Entitlement Model 28.11.16.xlsx]RP6 Distribution Inputs'!A$66 | K54: 0
E55: ="Fixed dep. - base yr " & BASE_YEAR & " adj. - RAB_MTRN" -> Fixed dep. - base yr 2016 adj. - RAB_MTRN | F55: Table 3 | G55: FDEP_2016_MTRNt | I55: GBP m | J55: [Entitlement Model 28.11.16.xlsx]RP6 Distribution Inputs'!A$96 | K55: 0
E56: ="Fixed dep. - base yr " & BASE_YEAR & " adj. - RAB_RT" -> Fixed dep. - base yr 2016 adj. - RAB_RT | F56: Table 3 | G56: FDEP_2016_RTt | I56: GBP m | J56: [Entitlement Model 28.11.16.xlsx]RP6 Distribution Inputs'!A$148 | K56: 0
E57: ="Fixed dep. - base yr " & BASE_YEAR & " adj. - RAB_FE" -> Fixed dep. - base yr 2016 adj. - RAB_FE | F57: Table 3 | G57: FDEP_2016_FEt | I57: GBP m | J57: [Entitlement Model 28.11.16.xlsx]RP6 Distribution Inputs'!A$178 | K57: 0
E58: ="Fixed dep. - base yr " & BASE_YEAR & " adj. - RAB_NI" -> Fixed dep. - base yr 2016 adj. - RAB_NI | F58: Table 3 | G58: FDEP_2016_NIt | I58: GBP m | J58: [Entitlement Model 28.11.16.xlsx]RP6 Distribution Inputs'!A$208 | K58: 0
E59: ="Fixed dep. - base yr " & BASE_YEAR & " adj. - RAB_D5Y" -> Fixed dep. - base yr 2016 adj. - RAB_D5Y | F59: Table 3 | G59: FDEP_2016_D5Yt | I59: GBP m | J59: [Entitlement Model 28.11.16.xlsx]RP6 Distribution Inputs'!A$238 | K59: 0
E60: ="Fixed dep. - base yr " & BASE_YEAR & " adj. - RAB_MO5Y" -> Fixed dep. - base yr 2016 adj. - RAB_MO5Y | F60: Table 3 | G60: FDEP_2016_MO5Yt | I60: GBP m | K60: 0
E62: ="Fixed depreciation - base year " & BASE_YEAR & " - RAB_DN" -> Fixed depreciation - base year 2016 - RAB_DN | F62: Table 3 | G62: FDEP_2016_DNt | I62: GBP m | K62: =SUM(M62:U62) -> 303.1905318 | M62: =IF( ISBLANK(M53), M44,M53) -> 0 | N62: 25.36744048 | O62: 49.3670344 | P62: 48.02285028 | Q62: 46.5364771 | R62: 45.52618475 | S62: 44.68227481 | T62: 43.68826999 | U62: 0
E63: ="Fixed depreciation - base year " & BASE_YEAR & " - RAB_ES" -> Fixed depreciation - base year 2016 - RAB_ES | F63: Table 3 | G63: FDEP_2016_ESt | I63: GBP m | K63: =SUM(M63:U63) -> 15.02014703 | M63: 0 | N63: 1.62943869 | O63: 3.25887738 | P63: 3.25887738 | Q63: 3.25887738 | R63: 3.25887738 | S63: 0.3551988163 | T63: 0 | U63: 0
E64: ="Fixed depreciation - base year " & BASE_YEAR & " - RAB_MTRN" -> Fixed depreciation - base year 2016 - RAB_MTRN | F64: Table 3 | G64: FDEP_2016_MTRNt | I64: GBP m | K64: 24.14904621 | M64: 0 | N64: 2.372082174 | O64: 4.310132275 | P64: 3.528195463 | Q64: 3.528195463 | R64: 3.585249814 | S64: 3.520382956 | T64: 3.304808061 | U64: 0
E65: ="Fixed depreciation - base year " & BASE_YEAR & " - RAB_RT" -> Fixed depreciation - base year 2016 - RAB_RT | F65: Table 3 | G65: FDEP_2016_RTt | I65: GBP m | K65: 1.073138086 | M65: 0 | N65: 0.08254908356 | O65: 0.1650981671 | P65: 0.1650981671 | Q65: 0.1650981671 | R65: 0.1650981671 | S65: 0.1650981671 | T65: 0.1650981671 | U65: 0
E66: ="Fixed depreciation - base year " & BASE_YEAR & " - RAB_FE" -> Fixed depreciation - base year 2016 - RAB_FE | F66: Table 3 | G66: FDEP_2016_FEt | I66: GBP m | K66: 1.110223025e-15 | M66: 0 | N66: 1.110223025e-15 | O66: 0 | P66: 0 | Q66: 0 | R66: 0 | S66: 0 | T66: 0 | U66: 0
E67: ="Fixed depreciation - base year " & BASE_YEAR & " - RAB_NI" -> Fixed depreciation - base year 2016 - RAB_NI | F67: Table 3 | G67: FDEP_2016_NIt | I67: GBP m | K67: 0 | M67: 0 | N67: 0 | O67: 0 | P67: 0 | Q67: 0 | R67: 0 | S67: 0 | T67: 0 | U67: 0
E68: ="Fixed depreciation - base year " & BASE_YEAR & " - RAB_D5Y" -> Fixed depreciation - base year 2016 - RAB_D5Y | F68: Table 3 | G68: FDEP_2016_D5Yt | I68: GBP m | K68: 24.13509188 | M68: 0 | N68: 4.382077664 | O68: 7.119762387 | P68: 5.530285983 | Q68: 4.027660494 | R68: 2.343246046 | S68: 0.7320593033 | T68: 0 | U68: 0
E69: ="Fixed depreciation - base year " & BASE_YEAR & " - RAB_MO5Y" -> Fixed depreciation - base year 2016 - RAB_MO5Y | F69: Table 3 | G69: FDEP_2016_MO5Yt | I69: GBP m | K69: 0 | M69: 0 | N69: 0 | O69: 0 | P69: 0 | Q69: 0 | R69: 0 | S69: 0 | T69: 0 | U69: 0
C72: 4.13: Opening values of additional assets - OADD_X2018
E74: RAB_X
E75: Opening additional assets - RAB_DN | F75: 4.13a: | G75: OADD_DN2018 | H75: 0 | I75: GBP m
E76: Opening additional assets - RAB_ES | F76: 4.13a: | G76: OADD_ES2018 | H76: 0 | I76: GBP m
E77: Opening additional assets - RAB_MTRN | F77: 4.13a: | G77: OADD_MTRN2018 | H77: 0 | I77: GBP m
E78: Opening additional assets - RAB_RT | F78: 4.13a: | G78: OADD_RT2018 | H78: 0 | I78: GBP m
E79: Opening additional assets - RAB_FE | F79: 4.13a: | G79: OADD_FE2018 | H79: 0 | I79: GBP m
E80: Opening additional assets - RAB_NI | F80: 4.13a: | G80: OADD_NI2018 | H80: 0 | I80: GBP m
E81: Opening additional assets - RAB_D5Y | F81: 4.13a: | G81: OADD_D5Y2018 | H81: 0 | I81: GBP m
E82: Opening additional assets - RAB_MO5Y | F82: 4.13a: | G82: OADD_MO5Y2018 | H82: 0 | I82: GBP m
C85: Table 4: Capex lagacy Dt items - CLD_Xt
E87: RAB_X
E88: 33kV reinforcement - DL | F88: Table 4 | H88: 0 | I88: GBP m
E89: Enduring solution project - DL | F89: Table 4 | H89: 0 | I89: GBP m
E90: Legacy Dt maximum RP6 spend amount - DL | F90: Table 4 | H90: =SUM(H88:H89) -> 0 | I90: GBP m
C93: 4.27 DEPADD_DNt
E95: Additional depreciation factor - DL | F95: 4.27a: | H95: 0.5 | I95: factor
C98: Table 5: Depreciation rate
E100: RAB_X
E101: Depreciation rate - RAB_DN | F101: Table 5 | G101: DEPR_DN | H101: 0.03 | I101: % | J101: [Entitlement Model 28.11.16.xlsx]RP6 Distribution Inputs'!A23
E102: Depreciation rate - RAB_ES | F102: Table 5 | G102: DEPR_ES | H102: 0.1 | I102: % | J102: [Entitlement Model 28.11.16.xlsx]RP6 Distribution Inputs'!A24
E103: Depreciation rate - RAB_MTRN | F103: Table 5 | G103: DEPR_MTRN | H103: 0.0666667 | I103: % | J103: [Entitlement Model 28.11.16.xlsx]RP6 Distribution Inputs'!A25
E104: Depreciation rate - RAB_RT | F104: Table 5 | G104: DEPR_RT | H104: 0.03 | I104: % | J104: [Entitlement Model 28.11.16.xlsx]RP6 Distribution Inputs'!A26
E105: Depreciation rate - RAB_FE | F105: Table 5 | G105: DEPR_FE | H105: 0.2 | I105: % | J105: [Entitlement Model 28.11.16.xlsx]RP6 Distribution Inputs'!A27
E106: Depreciation rate - RAB_NI | F106: Table 5 | G106: DEPR_NI | H106: 0.2 | I106: % | J106: [Entitlement Model 28.11.16.xlsx]RP6 Distribution Inputs'!A28
E107: Depreciation rate - RAB_D5Y | F107: Table 5 | G107: DEPR_D5Y | H107: 0.2 | I107: % | J107: [Entitlement Model 28.11.16.xlsx]RP6 Distribution Inputs'!A29
E108: Depreciation rate - RAB_MO5Y | F108: Table 5 | G108: DEPR_MO5Y | H108: 0.2 | I108: %
C111: 4.32 CI_DNt
E113: Capex incentive licensee share % - DL | F113: 4.32: | H113: 0.5 | I113: % | J113: [Entitlement Model 28.11.16.xlsx]RP6 Distribution Inputs'!$A$18
C116: Table 6: Allowed capex - AC_Xt
E118: ="Allowed capex - Base year " & BASE_YEAR &" - RAB_DN" -> Allowed capex - Base year 2016 - RAB_DN | F118: Table 6 | G118: AC_2016_DNt | I118: GBP m | J118: As per client file received on 16 Jan 2017 | K118: =SUM(M118:U118) -> 429.8214345 | M118: 0 | N118: 33.20014989 | O118: 65.83656124 | P118: 65.27760884 | Q118: 64.72340194 | R118: 67.4993519 | S118: 66.9262824 | T118: 66.35807826 | U118: 0
E119: ="Allowed capex - Base year " & BASE_YEAR &" - RAB_ES" -> Allowed capex - Base year 2016 - RAB_ES | F119: Table 6 | G119: AC_2016_ESt | I119: GBP m | J119: As per client file received on 16 Jan 2017 | K119: 0 | M119: 0 | N119: 0 | O119: 0 | P119: 0 | Q119: 0 | R119: 0 | S119: 0 | T119: 0 | U119: 0
E120: Allowed capex - Base year 2016 - RAB_RT | F120: Table 6 | G120: AC_2016_RTt | I120: GBP m | J120: As per client file received on 16 Jan 2017 | K120: 0 | M120: 0 | N120: 0 | O120: 0 | P120: 0 | Q120: 0 | R120: 0 | S120: 0 | T120: 0 | U120: 0
E121: Allowed capex - Base year 2016 - RAB_FE | F121: Table 6 | G121: AC_2016_FEt | I121: GBP m | J121: As per client file received on 16 Jan 2017 | K121: 0 | M121: 0 | N121: 0 | O121: 0 | P121: 0 | Q121: 0 | R121: 0 | S121: 0 | T121: 0 | U121: 0
E122: Allowed capex - Base year 2016 - RAB_NI | F122: Table 6 | G122: AC_2016_Nit | I122: GBP m | J122: As per client file received on 16 Jan 2017 | K122: 0 | M122: 0 | N122: 0 | O122: 0 | P122: 0 | Q122: 0 | R122: 0 | S122: 0 | T122: 0 | U122: 0
E123: Allowed capex - Base year 2016 - RAB_D5Y | F123: Table 6 | G123: AC_2016_D5Yt | I123: GBP m | J123: As per client file received on 16 Jan 2017 | K123: 56.00423189 | M123: 0 | N123: 8.451385787 | O123: 11.06927168 | P123: 9.01563259 | Q123: 7.070619852 | R123: 6.482792831 | S123: 5.940888036 | T123: 7.973641112 | U123: 0
E124: ="Allowed capex - Base year " & BASE_YEAR &" - RAB_MO5Y" -> Allowed capex - Base year 2016 - RAB_MO5Y | F124: Table 6 | G124: AC_2016_MO5Yt | I124: GBP m | J124: As per client file received on 16 Jan 2017 | K124: 0 | M124: 0 | N124: 0 | O124: 0 | P124: 0 | Q124: 0 | R124: 0 | S124: 0 | T124: 0 | U124: 0
C127: 4.32 Allowed capex for injurious affection claims
E129: Allowed capex for injurious affection claims - DN | F129: 4.32: | G129: ACIA_2016_DNt | I129: GBP m | J129: [Entitlement Model 28.11.16.xlsx]RP6 Distribution Inputs'!$A$45 | K129: =SUM(M129:U129) -> 0 | M129: 0 | N129: 0 | O129: 0 | P129: 0 | Q129: 0 | R129: 0 | S129: 0 | T129: 0 | U129: 0
E130: Allowed capex for injurious affection claims - ES | F130: 4.32: | G130: ACIA_2016_ESt | I130: GBP m | J130: [Entitlement Model 28.11.16.xlsx]RP6 Distribution Inputs'!$A$75 | K130: 0 | M130: 0 | N130: 0 | O130: 0 | P130: 0 | Q130: 0 | R130: 0 | S130: 0 | T130: 0 | U130: 0
E131: Allowed capex for injurious affection claims - MTRN | F131: 4.32: | G131: ACIA_2016_MTRNt | I131: GBP m | K131: 0 | M131: 0 | N131: 0 | O131: 0 | P131: 0 | Q131: 0 | R131: 0 | S131: 0 | T131: 0 | U131: 0
E132: Allowed capex for injurious affection claims - RT | F132: 4.32: | G132: ACIA_2016_RTt | I132: GBP m | J132: [Entitlement Model 28.11.16.xlsx]RP6 Distribution Inputs'!$A$157 | K132: 0 | M132: 0 | N132: 0 | O132: 0 | P132: 0 | Q132: 0 | R132: 0 | S132: 0 | T132: 0 | U132: 0
E133: Allowed capex for injurious affection claims - FE | F133: 4.32: | G133: ACIA_2016_FEt | I133: GBP m | J133: [Entitlement Model 28.11.16.xlsx]RP6 Distribution Inputs'!$A$187 | K133: 0 | M133: 0 | N133: 0 | O133: 0 | P133: 0 | Q133: 0 | R133: 0 | S133: 0 | T133: 0 | U133: 0
E134: Allowed capex for injurious affection claims - NI | F134: 4.32: | G134: ACIA_2016_NIt | I134: GBP m | J134: [Entitlement Model 28.11.16.xlsx]RP6 Distribution Inputs'!A$217 | K134: 0 | M134: 0 | N134: 0 | O134: 0 | P134: 0 | Q134: 0 | R134: 0 | S134: 0 | T134: 0 | U134: 0
E135: Allowed capex for injurious affection claims - D5Y | F135: 4.32: | G135: ACIA_2016_D5Yt | I135: GBP m | J135: [Entitlement Model 28.11.16.xlsx]RP6 Distribution Inputs'!A$247 | K135: 0 | M135: 0 | N135: 0 | O135: 0 | P135: 0 | Q135: 0 | R135: 0 | S135: 0 | T135: 0 | U135: 0
E136: Allowed capex for injurious affection claims - MO5Y | F136: 4.32: | G136: ACIA_2016_MO5Yt | I136: GBP m | K136: 0 | M136: 0 | N136: 0 | O136: 0 | P136: 0 | Q136: 0 | R136: 0 | S136: 0 | T136: 0 | U136: 0
C139: 4.35 Allowed capex
E141: Allowed capex for enduring solution system - DN | G141: ACES_2016_DNt | I141: GBP m | J141: [Entitlement Model 28.11.16.xlsx]RP6 Distribution Inputs'!$A$47 | K141: =SUM(M141:U141) -> 0 | M141: 0 | N141: 0 | O141: 0 | P141: 0 | Q141: 0 | R141: 0 | S141: 0 | T141: 0 | U141: 0
E142: Allowed capex for enduring solutions system - ES | G142: ACES_2016_ESt | I142: GBP m | J142: [Entitlement Model 28.11.16.xlsx]RP6 Distribution Inputs'!$A$77 | K142: 0 | M142: 0 | N142: 0 | O142: 0 | P142: 0 | Q142: 0 | R142: 0 | S142: 0 | T142: 0 | U142: 0
E143: Allowed capex for enduring solution system - MTRN | G143: ACES_2016_MTRNt | I143: GBP m | K143: 0 | M143: 0 | N143: 0 | O143: 0 | P143: 0 | Q143: 0 | R143: 0 | S143: 0 | T143: 0 | U143: 0
E144: Allowed capex for enduring solutions system - RT | G144: ACES_2016_RTt | I144: GBP m | J144: [Entitlement Model 28.11.16.xlsx]RP6 Distribution Inputs'!$A$159 | K144: 0 | M144: 0 | N144: 0 | O144: 0 | P144: 0 | Q144: 0 | R144: 0 | S144: 0 | T144: 0 | U144: 0
E145: Allowed capex for enduring solutions system - FE | G145: ACES_2016_FEt | I145: GBP m | J145: [Entitlement Model 28.11.16.xlsx]RP6 Distribution Inputs'!$A$189 | K145: 0 | M145: 0 | N145: 0 | O145: 0 | P145: 0 | Q145: 0 | R145: 0 | S145: 0 | T145: 0 | U145: 0
E146: Allowed capex for enduring solutions system - NI | G146: ACES_2016_NIt | I146: GBP m | J146: [Entitlement Model 28.11.16.xlsx]RP6 Distribution Inputs'!A$219 | K146: 0 | M146: 0 | N146: 0 | O146: 0 | P146: 0 | Q146: 0 | R146: 0 | S146: 0 | T146: 0 | U146: 0
E147: Allowed capex for enduring solutions system - D5Y | G147: ACES_2016_D5Yt | I147: GBP m | J147: [Entitlement Model 28.11.16.xlsx]RP6 Distribution Inputs'!A$249 | K147: 0 | M147: 0 | N147: 0 | O147: 0 | P147: 0 | Q147: 0 | R147: 0 | S147: 0 | T147: 0 | U147: 0
E148: Allowed capex for enduring solutions system - MO5Y | G148: ACES_2016_MO5Yt | I148: GBP m | K148: 0 | M148: 0 | N148: 0 | O148: 0 | P148: 0 | Q148: 0 | R148: 0 | S148: 0 | T148: 0 | U148: 0
C151: 4.45 Allowed capex for changes of law
E153: Allowed capex for changes of law - DN | F153: 4.45: | G153: ACCOL_2016_DNt | I153: GBP m | J153: [Entitlement Model 28.11.16.xlsx]RP6 Distribution Inputs'!$A$46 | K153: =SUM(M153:U153) -> 0 | M153: 0 | N153: 0 | O153: 0 | P153: 0 | Q153: 0 | R153: 0 | S153: 0 | T153: 0 | U153: 0
E154: Allowed capex for changes of law - ES | F154: 4.45: | G154: ACCOL_2016_ESt | I154: GBP m | J154: [Entitlement Model 28.11.16.xlsx]RP6 Distribution Inputs'!$A$76 | K154: 0 | M154: 0 | N154: 0 | O154: 0 | P154: 0 | Q154: 0 | R154: 0 | S154: 0 | T154: 0 | U154: 0
E155: Allowed capex for changes of law - MTRN | F155: 4.45: | G155: ACCOL_2016_MTRNt | I155: GBP m | K155: 0 | M155: 0 | N155: 0 | O155: 0 | P155: 0 | Q155: 0 | R155: 0 | S155: 0 | T155: 0 | U155: 0
E156: Allowed capex for changes of law - RT | F156: 4.45: | G156: ACCOL_2016_RTt | I156: GBP m | J156: [Entitlement Model 28.11.16.xlsx]RP6 Distribution Inputs'!$A$158 | K156: 0 | M156: 0 | N156: 0 | O156: 0 | P156: 0 | Q156: 0 | R156: 0 | S156: 0 | T156: 0 | U156: 0
E157: Allowed capex for changes of law - FE | F157: 4.45: | G157: ACCOL_2016_FEt | I157: GBP m | J157: [Entitlement Model 28.11.16.xlsx]RP6 Distribution Inputs'!$A$188 | K157: 0 | M157: 0 | N157: 0 | O157: 0 | P157: 0 | Q157: 0 | R157: 0 | S157: 0 | T157: 0 | U157: 0
E158: Allowed capex for changes of law - NI | F158: 4.45: | G158: ACCOL_2016_NIt | I158: GBP m | J158: [Entitlement Model 28.11.16.xlsx]RP6 Distribution Inputs'!A$218 | K158: 0 | M158: 0 | N158: 0 | O158: 0 | P158: 0 | Q158: 0 | R158: 0 | S158: 0 | T158: 0 | U158: 0
E159: Allowed capex for changes of law - D5Y | F159: 4.45: | G159: ACCOL_2016_D5Yt | I159: GBP m | J159: [Entitlement Model 28.11.16.xlsx]RP6 Distribution Inputs'!A$248 | K159: 0 | M159: 0 | N159: 0 | O159: 0 | P159: 0 | Q159: 0 | R159: 0 | S159: 0 | T159: 0 | U159: 0
E160: Allowed capex for changes of law - MO5Y | F160: 4.45: | G160: ACCOL_2016_MO5Yt | I160: GBP m | K160: 0 | M160: 0 | N160: 0 | O160: 0 | P160: 0 | Q160: 0 | R160: 0 | S160: 0 | T160: 0 | U160: 0
C163: Table 7: First metering fixed allowance - FMFAt
E165: First metering fixed allowance - FMFA_2016t - DL | F165: Table 7 | G165: FMFA_2016t | I165: GBP m | J165: [Entitlement Model 28.11.16.xlsx]RP6 Distribution Inputs'!$A$106 | K165: =SUM(M165:U165) -> 5.74471223 | M165: 0 | N165: 0.4541840699 | O165: 0.9006560942 | P165: 0.893009524 | Q165: 0.8854278731 | R165: 0.8779105905 | S165: 0.8704571296 | T165: 0.8630669485 | U165: 0
C168: Table 8: First metering fixed allowance - FMFAt
E170: Second metering fixed allowance - SMFA_2016t - DL | F170: Table 8 | G170: SMFA_2016t | I170: GBP m | J170: [Entitlement Model 28.11.16.xlsx]RP6 Distribution Inputs'!$A$107 | K170: =SUM(M170:U170) -> 8.401252214 | M170: 0 | N170: 0.664213414 | O170: 1.317148484 | P170: 1.305965894 | Q170: 1.294878243 | R170: 1.283884727 | S170: 1.272984546 | T170: 1.262176907 | U170: 0
C173: Table 9: Metering allowance unit cost- MVAt
D175: Meter installs/changes
E176: SOSA unit | F176: Table 9 | G176: MAU_2016_Ct | I176: GBP / meter | J176: [RP5 RP6 Inputs Template Version 1 Source doc 12.01.17.xlsx]RP6 Distribution Inputs '!A128 | M176: 0 | N176: 20.75307381 | O176: 20.57688021 | P176: 20.4021825 | Q176: 20.22896797 | R176: 20.05722403 | S176: 19.8869382 | T176: 19.7180981 | U176: 0
E177: Keypad other unit | F177: Table 9 | G177: MAU_2016_Ct | I177: GBP / meter | J177: [RP5 RP6 Inputs Template Version 1 Source doc 12.01.17.xlsx]RP6 Distribution Inputs '!A129 | M177: 0 | N177: 72.41456262 | O177: 71.79976298 | P177: 71.190183 | Q177: 70.58577834 | R177: 69.98650508 | S177: 69.39231966 | T177: 68.80317886 | U177: 0
E178: Commercial unit | F178: Table 9 | G178: MAU_2016_Ct | I178: GBP / meter | J178: [RP5 RP6 Inputs Template Version 1 Source doc 12.01.17.xlsx]RP6 Distribution Inputs '!A130 | M178: 0 | N178: 135.2144847 | O178: 134.0665137 | P178: 132.928289 | Q178: 131.7997278 | R178: 130.6807482 | S178: 129.5712686 | T178: 128.4712085 | U178: 0
D180: Meter recertification
E181: Recertification unit | F181: Table 9 | G181: MAU_2016_Ct | I181: GBP / meter | J181: [RP5 RP6 Inputs Template Version 1 Source doc 12.01.17.xlsx]RP6 Distribution Inputs '!A133 | M181: 0 | N181: 31.43928472 | O181: 31.17236519 | P181: 30.90771181 | Q181: 30.64530534 | R181: 30.3851267 | S181: 30.12715697 | T181: 29.87137741 | U181: 0
E182: Keypad recertification unit | F182: Table 9 | G182: MAU_2016_Ct | I182: GBP / meter | J182: [RP5 RP6 Inputs Template Version 1 Source doc 12.01.17.xlsx]RP6 Distribution Inputs '!A134 | M182: 0 | N182: 83.72995246 | O182: 83.01908517 | P182: 82.31425313 | Q182: 81.61540512 | R182: 80.92249033 | S182: 80.23545839 | T182: 79.55425935 | U182: 0
E183: Commercial recertification unit | F183: Table 9 | G183: MAU_2016_Ct | I183: GBP / meter | J183: [RP5 RP6 Inputs Template Version 1 Source doc 12.01.17.xlsx]RP6 Distribution Inputs '!A135 | M183: 0 | N183: 265.4348616 | O183: 263.1813197 | P183: 260.9469102 | Q183: 258.731471 | R183: 256.5348408 | S183: 254.35686 | T183: 252.1973703 | U183: 0
E184: Commercial other - 110/33kv bulk supply point and sub-station metering | F184: Table 9 | G184: MAU_2016_Ct | I184: GBP / meter | J184: [RP5 RP6 Inputs Template Version 1 Source doc 12.01.17.xlsx]RP6 Distribution Inputs '!A136 | M184: 0 | N184: 2677.942826 | O184: 2655.207092 | P184: 2632.664383 | Q184: 2610.313063 | R184: 2588.151505 | S184: 2566.178099 | T184: 2544.391247 | U184: 0
E185: Commercial other - power stations >100mw metering | F185: Table 9 | G185: MAU_2016_Ct | I185: GBP / meter | J185: [RP5 RP6 Inputs Template Version 1 Source doc 12.01.17.xlsx]RP6 Distribution Inputs '!A137 | M185: 0 | N185: 13107.5667 | O185: 12996.28346 | P185: 12885.94502 | Q185: 12776.54334 | R185: 12668.07049 | S185: 12560.51857 | T185: 12453.87977 | U185: 0
E186: Commercial other - generator metering <100mw and >1mw | F186: Table 9 | G186: MAU_2016_Ct | I186: GBP / meter | J186: [RP5 RP6 Inputs Template Version 1 Source doc 12.01.17.xlsx]RP6 Distribution Inputs '!A138 | M186: 0 | N186: 2977.785911 | O186: 2952.504508 | P186: 2927.437745 | Q186: 2902.583799 | R186: 2877.940862 | S186: 2853.507144 | T186: 2829.280868 | U186: 0
E187: Commercial other - hv demand customer metering >1mw | F187: Table 9 | G187: MAU_2016_Ct | I187: GBP / meter | J187: [RP5 RP6 Inputs Template Version 1 Source doc 12.01.17.xlsx]RP6 Distribution Inputs '!A139 | M187: 0 | N187: 988.0075405 | O187: 979.6193565 | P187: 971.3023881 | Q187: 963.0560309 | R187: 954.8796852 | S187: 946.7727566 | T187: 938.7346559 | U187: 0
E188: Commercial other - hv demand customer metering >1mw | F188: Table 9 | G188: MAU_2016_Ct | I188: GBP / meter | J188: [RP5 RP6 Inputs Template Version 1 Source doc 12.01.17.xlsx]RP6 Distribution Inputs '!A140 | M188: 0 | N188: 472.8672905 | O188: 468.8526472 | P188: 464.8720883 | Q188: 460.9253242 | R188: 457.0120682 | S188: 453.1320358 | T188: 449.2849448 | U188: 0
E189: Commercial other - teleswitch/telemeter replacement programme | F189: Table 9 | G189: MAU_2016_Ct | I189: GBP / meter | J189: [RP5 RP6 Inputs Template Version 1 Source doc 12.01.17.xlsx]RP6 Distribution Inputs '!A141 | M189: 0 | N189: 54.07006441 | O189: 53.61100956 | P189: 53.15585209 | Q189: 52.7045589 | R189: 52.2570972 | S189: 51.81343444 | T189: 51.37353838 | U189: 0
E190: Commercial other - northern ireland customer load profiles | F190: Table 9 | G190: MAU_2016_Ct | I190: GBP / meter | J190: [RP5 RP6 Inputs Template Version 1 Source doc 12.01.17.xlsx]RP6 Distribution Inputs '!A142 | M190: 0 | N190: 120.9203259 | O190: 119.8937123 | P190: 118.8758147 | Q190: 117.866559 | R190: 116.8658719 | S190: 115.8736807 | T190: 114.8899131 | U190: 0
D192: RPU keypads
E193: RPU KEYPADS (METER REPLACEMENT FOR THEFT) | F193: Table 9 | G193: MAU_2016_Ct | I193: GBP / meter | J193: [Entitlement Model 28.11.16.xlsx]RP6 Distribution Inputs'!$A$127 | M193: 0 | N193: 115.0217734 | O193: 114.0452385 | P193: 113.0769944 | Q193: 112.1169708 | R193: 111.1650977 | S193: 110.221306 | T193: 109.2855271 | U193: 0
C197: Table 10: Real price effect & productivity factor - RPEPFt
E199: Real price effect & productivity factor - DL | F199: Table 10 | G199: RPEPFt | I199: factor | J199: [Entitlement Model 28.11.16.xlsx]RP6 Distribution Inputs'!$A$129 | M199: 0 | N199: 1 | O199: 1 | P199: 1 | Q199: 1 | R199: 1 | S199: 1 | T199: 1 | U199: 0
C202: 5.1 Return amount - VWACCt
E204: Return amount factor - DL | F204: 5.1: | H204: 2 | I204: factor | J204: [Entitlement Model 28.11.16.xlsx]RP6 Distribution Inputs'!$A$263
E206: WACC before applying r/SQRT(1+r) - DL | F206: 5.1: | G206: VWACCt | H206: 0.0318 | I206: % | J206: [Entitlement Model 28.11.16.xlsx]RP6 Distribution Inputs'!$A$264
C209: Table 11: Opex legacy Dt amount - Distribution owner business - 2016 price - OLDt
E211: Network management system - DL | F211: Table 11 | H211: 0 | I211: GBP m
E212: Smart grid trial - DL | F212: Table 11 | H212: 0 | I212: GBP m
E213: Market opening legacy systems cost - DL | F213: Table 11 | H213: 0 | I213: GBP m
E214: Enduring solution – transitional costs - DL | F214: Table 11 | H214: 0 | I214: GBP m
E215: Enduring solution project - DL | F215: Table 11 | H215: 0 | I215: GBP m
E216: ="Legacy Dt maximum " & ACTIVE_CASE & " spend amount - DL" -> Legacy Dt maximum RP6 spend amount - DL | F216: Table 11 | H216: =SUM(H211:H215) -> 0 | I216: GBP m
C219: 6.13 OIt
E221: Opex incentive licensee share % - DL | F221: 6.13: | H221: 0.5 | I221: %
C224: ="Table 12: Allowed opex amount - AO_" & BASE_YEAR & "t" -> Table 12: Allowed opex amount - AO_2016t
E226: ="Allowed opex - base year " & BASE_YEAR & " - DL" -> Allowed opex - base year 2016 - DL | F226: Table 12 | G226: AO_2016t | I226: GBP m | J226: As per client file "RP6 07y copy Naoimh" received on 16 Jan 2017 | K226: =SUM(M226:U226) -> 369.176201 | M226: 0 | N226: 29.29628168 | O226: 57.90299958 | P226: 57.36837611 | Q226: 56.87238902 | R226: 56.3768678 | S226: 55.91202382 | T226: 55.44726295 | U226: 0
C229: ="Table 13: Pension deficit amount - P_" & 2016 & "t" -> Table 13: Pension deficit amount - P_2016t
E231: Historic deficit repair - DL | F231: Table 13 | I231: GBP m | J231: [Entitlement Model 28.11.16.xlsx]RP6 Distribution Inputs'!$A$291 | K231: =SUM(M231:U231) -> 87.69718777 | M231: 0 | N231: 6.722818091 | O231: 13.46755348 | P231: 13.47635811 | Q231: 13.46403163 | R231: 13.47811903 | S231: 13.49748921 | T231: 13.59081822 | U231: 0
E232: ERDC disallowance - DL | F232: Table 13 | I232: GBP m | J232: [Entitlement Model 28.11.16.xlsx]RP6 Distribution Inputs'!$A$292 | K232: =SUM(M232:U232) -> -23.36876 | M232: 0 | N232: -1.75628 | O232: -3.59456 | P232: -3.59691 | Q232: -3.59362 | R232: -3.59738 | S232: -3.60255 | T232: -3.62746 | U232: 0
E233: ="Pension deficit amount - P_" & BASE_YEAR & "t - DL" -> Pension deficit amount - P_2016t - DL | F233: Table 13 | G233: P_2016t | I233: GBP m | K233: =SUM(M233:U233) -> 64.32842777 | M233: =SUM(M231:M232) -> 0 | N233: 4.966538091 | O233: 9.872993482 | P233: 9.879448107 | Q233: 9.870411632 | R233: 9.880739032 | S233: 9.894939205 | T233: 9.963358224 | U233: 0
E235: ="Pension deficit amount - P_" & BASE_YEAR & "t - DL" -> Pension deficit amount - P_2016t - DL | F235: Table 13 | G235: P_2016t | I235: GBP m | J235: [Entitlement Model 28.11.16.xlsx]RP6 Distribution Inputs'!$A$294 | K235: =SUM(M235:U235) -> 64.32842777 | M235: 0 | N235: ='DL - C7'!N21 -> 4.966538091 | O235: ='DL - C7'!O21 -> 9.872993482 | P235: ='DL - C7'!P21 -> 9.879448107 | Q235: ='DL - C7'!Q21 -> 9.870411632 | R235: ='DL - C7'!R21 -> 9.880739032 | S235: ='DL - C7'!S21 -> 9.894939205 | T235: ='DL - C7'!T21 -> 9.963358224 | U235: 0
C238: 8.1: Cost of the investigation amount - COIt
E240: ="Cost of investigation - base year " & BASE_YEAR & " - DL" -> Cost of investigation - base year 2016 - DL | F240: 8.1: | G240: COI_2016t | I240: GBP m | J240: [Entitlement Model 28.11.16.xlsx]RP6 Distribution Inputs'!$A$299 | K240: =SUM(M240:U240) -> 0 | M240: 0 | N240: 0 | O240: 0 | P240: 0 | Q240: 0 | R240: 0 | S240: 0 | T240: 0 | U240: 0
C243: 9.1: The tax rate - TRt
E245: Tax rate - DL | F245: 9.1: | G245: TRt | I245: % | J245: [Entitlement Model 28.11.16.xlsx]RP6 Transmission Inputs'!$A$193 | M245: 0 | N245: 0.19 | O245: 0.19 | P245: 0.19 | Q245: 0.17 | R245: 0.17 | S245: 0.17 | T245: 0.17 | U245: 0
E247: Notional gearing - DL | F247: 9.1: | G247: G | H247: 0.45 | I247: % | J247: [Entitlement Model 28.11.16.xlsx]RP6 Distribution Inputs'!$A$309
E248: Notional nominal cost of debt - DL | F248: 9.1: | G248: NCOD | H248: 0.0499 | I248: % | J248: [Entitlement Model 28.11.16.xlsx]RP6 Distribution Inputs'!$A$310
C251: Table 14: Opening tax capital allowance values
E253: =Import!E$186 -> General pool - balance - base year 2018 - RP5 end pd. BEG balance - DL | F253: =Import!F$186 -> Table 14 | G253: =Import!G$186 -> 0 | H253: =Import!H$186 -> 52.43018951 | I253: =Import!I$186 -> GBP m | J253: [Entitlement Model 28.11.16.xlsx]RP6 Distribution Inputs'!A313
E254: =Import!E$187 -> Long life asset pool - balance - base year 2018 - RP5 end pd. BEG balance - DL | F254: =Import!F$187 -> Table 14 | G254: =Import!G$187 -> 0 | H254: =Import!H$187 -> 346.2022386 | I254: =Import!I$187 -> GBP m | J254: [Entitlement Model 28.11.16.xlsx]RP6 Distribution Inputs'!A314
E255: =Import!E$188 -> Deferred revenue - balance - base year 2018 - RP5 end pd. BEG balance - DL | F255: =Import!F$188 -> Table 14 | G255: =Import!G$188 -> 0 | H255: =Import!H$188 -> 198.4464748 | I255: =Import!I$188 -> GBP m | J255: [Entitlement Model 28.11.16.xlsx]RP6 Distribution Inputs'!A315
C258: 11.1 K factor
E260: =Import!E$193 -> Closing K factor - receivable / (payable) - year 2018 | F260: =Import!F$193 -> 11.1a: | G260: =Import!G$193 -> KRP5 | H260: =Import!H$193 -> 22.45723469 | I260: =Import!I$193 -> GBP m | J260: [Entitlement Model 28.11.16.xlsx]RP6 Distribution Inputs'!$A$328
E262: Licensee under capex efficiency incentive - DL | F262: 11.1b: | G262: RP5CIt | I262: GBP m | J262: [Entitlement Model 28.11.16.xlsx]RP6 Distribution Inputs'!$A$329 | K262: =SUM(M262:U262) -> 0 | M262: 0 | N262: 0 | O262: 0 | P262: 0 | Q262: 0 | R262: 0 | S262: 0 | T262: 0 | U262: 0
E263: Actual regulated Distribution revenue recovered adjustment - DL | F263: 11.1b: | I263: GBP m | K263: =SUM(M263:U263) -> 0 | M263: 0 | N263: 0 | O263: 0 | P263: 0 | Q263: 0 | R263: 0 | S263: 0 | T263: 0 | U263: 0
A266: TRANSMISSION LICENCE
C268: 3.3 RP6Tt
E270: Max regulated transmission revenue factor - TL | F270: 3.3: | H270: 0.5 | I270: factor
C273: 4.1 Regulatory Asset Bases
C276: Table 1: Regulatory Asset Bases
E278: RAB Name | H278: RAB_X
E279: Transmission RAB | F279: Table 1 | H279: RAB_TN | I279: text
E280: Renewables RAB | F280: Table 1 | H280: RAB_RN | I280: text
E281: Old NS interconnector RAB | F281: Table 1 | H281: RAB_NSI | I281: text
E282: 5 year T.RAB | F282: Table 1 | H282: RAB_T5Y | I282: text
C285: Table 2: Opening value of existing assets
E287: RAB_X
E288: ='Import Base 2016'!E$156 -> RAB_TN - base year 2016 | F288: ='Import Base 2016'!F$156 -> Table 2 | G288: ='Import Base 2016'!G$156 -> OE_2016_TN2018 | H288: ='Import Base 2016'!H$156 -> 268.3753807 | I288: ='Import Base 2016'!I$156 -> GBP m
E289: ='Import Base 2016'!E$157 -> RAB_RN - base year 2016 | F289: ='Import Base 2016'!F$157 -> Table 2 | G289: ='Import Base 2016'!G$157 -> OE_2016_RN2018 | H289: ='Import Base 2016'!H$157 -> 61.06831075 | I289: ='Import Base 2016'!I$157 -> GBP m
E290: ='Import Base 2016'!E$158 -> RAB_NSI - base year 2016 | F290: ='Import Base 2016'!F$158 -> Table 2 | G290: ='Import Base 2016'!G$158 -> OE_2016_NSI2018 | H290: ='Import Base 2016'!H$158 -> 0.9097770943 | I290: ='Import Base 2016'!I$158 -> GBP m
E291: ='Import Base 2016'!E$159 -> RAB_T5Y - base year 2016 | F291: ='Import Base 2016'!F$159 -> Table 2 | G291: ='Import Base 2016'!G$159 -> OE_2016_T5Y2018 | H291: ='Import Base 2016'!H$159 -> 1.336913331 | I291: ='Import Base 2016'!I$159 -> GBP m
C294: ="Table 3: Fixed depreciation amount - FDEP_" & BASE_YEAR & "_X2018" -> Table 3: Fixed depreciation amount - FDEP_2016_X2018
E296: ="Fixed dep. - base yr " & BASE_YEAR & " Calc. - RAB_TN" -> Fixed dep. - base yr 2016 Calc. - RAB_TN | F296: Table 3 | G296: FDEP_2016_TNt | I296: GBP m | K296: =SUM(M296:U296) -> 76.26565509 | M296: ='TL - C4 A'!M$671 -> 0 | N296: ='TL - C4 A'!N$671 -> 6.315354096 | O296: ='TL - C4 A'!O$671 -> 12.33044919 | P296: ='TL - C4 A'!P$671 -> 12.03538438 | Q296: ='TL - C4 A'!Q$671 -> 11.70910734 | R296: ='TL - C4 A'!R$671 -> 11.48733585 | S296: ='TL - C4 A'!S$671 -> 11.30582586 | T296: ='TL - C4 A'!T$671 -> 11.08219836 | U296: ='TL - C4 A'!U$671 -> 0
E297: ="Fixed dep. - base yr " & BASE_YEAR & " Calc. - RAB_RN" -> Fixed dep. - base yr 2016 Calc. - RAB_RN | F297: Table 3 | G297: FDEP_2016_RNt | I297: GBP m | K297: =SUM(M297:U297) -> 13.23519267 | M297: ='TL - C4 A'!M$855 -> 0 | N297: ='TL - C4 A'!N$855 -> 1.018091744 | O297: ='TL - C4 A'!O$855 -> 2.036183488 | P297: ='TL - C4 A'!P$855 -> 2.036183488 | Q297: ='TL - C4 A'!Q$855 -> 2.036183488 | R297: ='TL - C4 A'!R$855 -> 2.036183488 | S297: ='TL - C4 A'!S$855 -> 2.036183488 | T297: ='TL - C4 A'!T$855 -> 2.036183488 | U297: ='TL - C4 A'!U$855 -> 0
E298: ="Fixed dep. - base yr " & BASE_YEAR & " Calc. - RAB_NSI" -> Fixed dep. - base yr 2016 Calc. - RAB_NSI | F298: Table 3 | G298: FDEP_2016_NSIt | I298: GBP m | K298: 0.3377370912 | M298: ='TL - C4 A'!M$1039 -> 0 | N298: ='TL - C4 A'!N$1039 -> 0.02597977625 | O298: ='TL - C4 A'!O$1039 -> 0.0519595525 | P298: ='TL - C4 A'!P$1039 -> 0.0519595525 | Q298: ='TL - C4 A'!Q$1039 -> 0.0519595525 | R298: ='TL - C4 A'!R$1039 -> 0.0519595525 | S298: ='TL - C4 A'!S$1039 -> 0.0519595525 | T298: ='TL - C4 A'!T$1039 -> 0.0519595525 | U298: ='TL - C4 A'!U$1039 -> 0
E299: ="Fixed dep. - base yr " & BASE_YEAR & " Calc. - RAB_T5Y" -> Fixed dep. - base yr 2016 Calc. - RAB_T5Y | F299: Table 3 | G299: FDEP_2016_T5Yt | I299: GBP m | K299: 1.336911376 | M299: ='TL - C4 A'!M$1223 -> 0 | N299: ='TL - C4 A'!N$1223 -> 0.2570826006 | O299: ='TL - C4 A'!O$1223 -> 0.4245279002 | P299: ='TL - C4 A'!P$1223 -> 0.3132382721 | Q299: ='TL - C4 A'!Q$1223 -> 0.2123240733 | R299: ='TL - C4 A'!R$1223 -> 0.1048784162 | S299: ='TL - C4 A'!S$1223 -> 0.02486011304 | T299: ='TL - C4 A'!T$1223 -> 0 | U299: ='TL - C4 A'!U$1223 -> 0
E301: ="Fixed dep. - base yr " & BASE_YEAR & " adj. - RAB_TN" -> Fixed dep. - base yr 2016 adj. - RAB_TN | F301: Table 3 | G301: FDEP_2016_TNt | I301: GBP m | K301: =SUM(M301:U301) -> 0
E302: ="Fixed dep. - base yr " & BASE_YEAR & " adj. - RAB_RN" -> Fixed dep. - base yr 2016 adj. - RAB_RN | F302: Table 3 | G302: FDEP_2016_RNt | I302: GBP m | K302: =SUM(M302:U302) -> 0
E303: ="Fixed dep. - base yr " & BASE_YEAR & " adj. - RAB_NSI" -> Fixed dep. - base yr 2016 adj. - RAB_NSI | F303: Table 3 | G303: FDEP_2016_NSIt | I303: GBP m | K303: 0
E304: ="Fixed dep. - base yr " & BASE_YEAR & " adj. - RAB_T5Y" -> Fixed dep. - base yr 2016 adj. - RAB_T5Y | F304: Table 3 | G304: FDEP_2016_T5Yt | I304: GBP m | K304: 0
... 87 more rows

Sheet Actuals Inp
A1: =RIGHT(CELL("filename", $A$1), LEN(CELL("filename", $A$1)) - SEARCH("]", CELL("filename", $A$1))) -> Actuals Inp | H1: =IF(H9=0,"15/16","Nominal") -> 15/16
E2: =Time!E$23 -> Model period ending | H2: =Check!$H$9 -> 0 | I2: Error chks | M2: =Time!M$23 -> 2017-03-31 | N2: =Time!N$23 -> 2018-03-31 | O2: =Time!O$23 -> 2019-03-31 | P2: =Time!P$23 -> 2020-03-31 | Q2: =Time!Q$23 -> 2021-03-31 | R2: =Time!R$23 -> 2022-03-31 | S2: =Time!S$23 -> 2023-03-31 | T2: =Time!T$23 -> 2024-03-31 | U2: =Time!U$23 -> 2025-03-31
E3: =Time!E$154 -> Timeline label | H3: =Track!$M$2 -> 0 | I3: Track chgs | M3: =Time!M$154 -> RP5 | N3: =Time!N$154 -> RP5 / RP6 | O3: =Time!O$154 -> RP6 | P3: =Time!P$154 -> RP6 | Q3: =Time!Q$154 -> RP6 | R3: =Time!R$154 -> RP6 | S3: =Time!S$154 -> RP6 | T3: =Time!T$154 -> RP6 | U3: =Time!U$154 -> Post RP6
E4: =Time!E$36 -> Financial year ending | H4: =Check!$H$37 -> 0 | I4: Alerts | M4: =Time!M$36 -> 2017 | N4: =Time!N$36 -> 2018 | O4: =Time!O$36 -> 2019 | P4: =Time!P$36 -> 2020 | Q4: =Time!Q$36 -> 2021 | R4: =Time!R$36 -> 2022 | S4: =Time!S$36 -> 2023 | T4: =Time!T$36 -> 2024 | U4: =Time!U$36 -> 2025
E5: =Time!E$10 -> Model column counter | F5: Para references | G5: Defined Term | H5: Constant | I5: Unit | J5: Source | K5: Total | M5: =Time!M$10 -> 1 | N5: =Time!N$10 -> 2 | O5: =Time!O$10 -> 3 | P5: =Time!P$10 -> 4 | Q5: =Time!Q$10 -> 5 | R5: =Time!R$10 -> 6 | S5: =Time!S$10 -> 7 | T5: =Time!T$10 -> 8 | U5: =Time!U$10 -> 9
A7: ESCALATION
E9: RPI switch | H9: 0 | I9: 0 = off, 1 = on
E10: Indexation base year | H10: 2016 | I10: year
E11: RPI as on 2009/10 - (Base year 1993/94) | H11: 216 | I11: index | J11: [Entitlement Model 28.11.16.xlsx]Inflation'!$S$12
E12: RPI as on 2015/16 - (Base year 1993/94) | G12: RPI2016 | H12: 259.5 | I12: index | J12: As per client file received on 16 Jan 2017
E13: RPI as on 2017/18 - (Base year 1993/94) | G13: RPI2018 | H13: 273.538 | I13: index | J13: As per client file received on 16 Jan 2017
E16: Historic timeline | I16: date | M16: 2012 | N16: 2013 | O16: 2014 | P16: 2015 | Q16: 2016 | R16: 0 | S16: 0 | T16: 0 | U16: 0
E17: Historic RPI - as on March each year (Base year 1993/94) | I17: index | J17: [Entitlement Model 28.11.16.xlsx]Inflation'!$B$12 | M17: 238 | N17: 245.6 | O17: 251.9 | P17: 257.7 | Q17: 259.5 | R17: 0 | S17: 0 | T17: 0 | U17: 0
E20: =Time!E$23 -> Model period ending | F20: =Time!F$23 -> 00:00:00 | G20: =Time!G$23 -> 00:00:00 | H20: =Time!H$23 -> 00:00:00 | I20: =Time!I$23 -> date | J20: =Time!J$23 -> 00:00:00 | K20: =Time!K$23 -> 00:00:00 | L20: =Time!L$23 -> 00:00:00 | M20: =Time!M$23 -> 2017-03-31 | N20: =Time!N$23 -> 2018-03-31 | O20: =Time!O$23 -> 2019-03-31 | P20: =Time!P$23 -> 2020-03-31 | Q20: =Time!Q$23 -> 2021-03-31 | R20: =Time!R$23 -> 2022-03-31 | S20: =Time!S$23 -> 2023-03-31 | T20: =Time!T$23 -> 2024-03-31 | U20: =Time!U$23 -> 2025-03-31
E21: RPI - as on March each year (Base year 1993/94) | F21: * Not linked | I21: index | J21: As per client file received on 16 Jan 2017 | M21: 264.8 | N21: 273.538 | O21: 0 | P21: 0 | Q21: 0 | R21: 0 | S21: 0 | T21: 0 | U21: 0
E22: Indexation rate - Installation | I22: % | J22: As per client file received on 16 Jan 2017 | M22: 0 | N22: 0 | O22: 0.033 | P22: 0.033 | Q22: 0.033 | R22: 0.033 | S22: 0.033 | T22: 0.033 | U22: 0.033
A25: DISTRIBUTION LICENCE
C27: 3.4 Maximum regulated distribution revenue for the regulatory reporting year - RP6Rt
E29: Allowed opex amount - uncollected revenue - DL | F29: 3.4: | G29: BDt | I29: GBP m | K29: =SUM(M29:U29) -> 0 | M29: 0 | N29: 0 | O29: 0 | P29: 0 | Q29: 0 | R29: 0 | S29: 0 | T29: 0 | U29: 0
C32: 4.17 Qualifying capex amount
E34: Qualifying capex amount - DN | F34: 4.17: | G34: QCE_DNt | I34: GBP m | K34: =SUM(M34:U34) -> 429.8214345 | M34: ='Licence Inp'!M118/ Index!$H$12 * Index!M$16 -> 0 | N34: ='Licence Inp'!N118/ Index!$H$12 * Index!N$16 -> 33.20014989 | O34: ='Licence Inp'!O118/ Index!$H$12 * Index!O$16 -> 65.83656124 | P34: ='Licence Inp'!P118/ Index!$H$12 * Index!P$16 -> 65.27760884 | Q34: ='Licence Inp'!Q118/ Index!$H$12 * Index!Q$16 -> 64.72340194 | R34: ='Licence Inp'!R118/ Index!$H$12 * Index!R$16 -> 67.4993519 | S34: ='Licence Inp'!S118/ Index!$H$12 * Index!S$16 -> 66.9262824 | T34: ='Licence Inp'!T118/ Index!$H$12 * Index!T$16 -> 66.35807826 | U34: ='Licence Inp'!U118/ Index!$H$12 * Index!U$16 -> 0
E35: Qualifying capex amount - ES | F35: 4.17: | G35: QCE_ESt | I35: GBP m | K35: 0 | M35: ='Licence Inp'!M119/ Index!$H$12 * Index!M$16 -> 0 | N35: ='Licence Inp'!N119/ Index!$H$12 * Index!N$16 -> 0 | O35: ='Licence Inp'!O119/ Index!$H$12 * Index!O$16 -> 0 | P35: ='Licence Inp'!P119/ Index!$H$12 * Index!P$16 -> 0 | Q35: ='Licence Inp'!Q119/ Index!$H$12 * Index!Q$16 -> 0 | R35: ='Licence Inp'!R119/ Index!$H$12 * Index!R$16 -> 0 | S35: ='Licence Inp'!S119/ Index!$H$12 * Index!S$16 -> 0 | T35: ='Licence Inp'!T119/ Index!$H$12 * Index!T$16 -> 0 | U35: ='Licence Inp'!U119/ Index!$H$12 * Index!U$16 -> 0
E36: Qualifying capex amount - MTRN | F36: 4.17: | G36: QCE_MTRNt | I36: GBP m | K36: 52.5631195 | M36: ='DL - C4'!M$776 -> 0 | N36: ='DL - C4'!N$776 -> 5.719768813 | O36: ='DL - C4'!O$776 -> 9.455504338 | P36: ='DL - C4'!P$776 -> 7.952663427 | Q36: ='DL - C4'!Q$776 -> 7.769414728 | R36: ='DL - C4'!R$776 -> 7.375033643 | S36: ='DL - C4'!S$776 -> 7.217880815 | T36: ='DL - C4'!T$776 -> 7.072853733 | U36: ='DL - C4'!U$776 -> 0
E37: Qualifying capex amount - RT | F37: 4.17: | G37: QCE_RTt | I37: GBP m | K37: 0 | M37: ='Licence Inp'!M120/ Index!$H$12 * Index!M$16 -> 0 | N37: ='Licence Inp'!N120/ Index!$H$12 * Index!N$16 -> 0 | O37: ='Licence Inp'!O120/ Index!$H$12 * Index!O$16 -> 0 | P37: ='Licence Inp'!P120/ Index!$H$12 * Index!P$16 -> 0 | Q37: ='Licence Inp'!Q120/ Index!$H$12 * Index!Q$16 -> 0 | R37: ='Licence Inp'!R120/ Index!$H$12 * Index!R$16 -> 0 | S37: ='Licence Inp'!S120/ Index!$H$12 * Index!S$16 -> 0 | T37: ='Licence Inp'!T120/ Index!$H$12 * Index!T$16 -> 0 | U37: ='Licence Inp'!U120/ Index!$H$12 * Index!U$16 -> 0
E38: Qualifying capex amount - FE | F38: 4.17: | G38: QCE_FEt | I38: GBP m | K38: 0 | M38: ='Licence Inp'!M121/ Index!$H$12 * Index!M$16 -> 0 | N38: ='Licence Inp'!N121/ Index!$H$12 * Index!N$16 -> 0 | O38: ='Licence Inp'!O121/ Index!$H$12 * Index!O$16 -> 0 | P38: ='Licence Inp'!P121/ Index!$H$12 * Index!P$16 -> 0 | Q38: ='Licence Inp'!Q121/ Index!$H$12 * Index!Q$16 -> 0 | R38: ='Licence Inp'!R121/ Index!$H$12 * Index!R$16 -> 0 | S38: ='Licence Inp'!S121/ Index!$H$12 * Index!S$16 -> 0 | T38: ='Licence Inp'!T121/ Index!$H$12 * Index!T$16 -> 0 | U38: ='Licence Inp'!U121/ Index!$H$12 * Index!U$16 -> 0
E39: Qualifying capex amount - NI | F39: 4.17: | G39: QCE_NIt | I39: GBP m | K39: 0 | M39: ='Licence Inp'!M122/ Index!$H$12 * Index!M$16 -> 0 | N39: ='Licence Inp'!N122/ Index!$H$12 * Index!N$16 -> 0 | O39: ='Licence Inp'!O122/ Index!$H$12 * Index!O$16 -> 0 | P39: ='Licence Inp'!P122/ Index!$H$12 * Index!P$16 -> 0 | Q39: ='Licence Inp'!Q122/ Index!$H$12 * Index!Q$16 -> 0 | R39: ='Licence Inp'!R122/ Index!$H$12 * Index!R$16 -> 0 | S39: ='Licence Inp'!S122/ Index!$H$12 * Index!S$16 -> 0 | T39: ='Licence Inp'!T122/ Index!$H$12 * Index!T$16 -> 0 | U39: ='Licence Inp'!U122/ Index!$H$12 * Index!U$16 -> 0
E40: Qualifying capex amount - D5Y | F40: 4.17: | G40: QCE_D5Yt | I40: GBP m | K40: 56.00423189 | M40: ='Licence Inp'!M123/ Index!$H$12 * Index!M$16 -> 0 | N40: ='Licence Inp'!N123/ Index!$H$12 * Index!N$16 -> 8.451385787 | O40: ='Licence Inp'!O123/ Index!$H$12 * Index!O$16 -> 11.06927168 | P40: ='Licence Inp'!P123/ Index!$H$12 * Index!P$16 -> 9.01563259 | Q40: ='Licence Inp'!Q123/ Index!$H$12 * Index!Q$16 -> 7.070619852 | R40: ='Licence Inp'!R123/ Index!$H$12 * Index!R$16 -> 6.482792831 | S40: ='Licence Inp'!S123/ Index!$H$12 * Index!S$16 -> 5.940888036 | T40: ='Licence Inp'!T123/ Index!$H$12 * Index!T$16 -> 7.973641112 | U40: ='Licence Inp'!U123/ Index!$H$12 * Index!U$16 -> 0
E41: Qualifying capex amount - MO5Y | F41: 4.17: | G41: QCE_MO5Yt | I41: GBP m | K41: 0 | M41: ='Licence Inp'!M124/ Index!$H$12 * Index!M$16 -> 0 | N41: ='Licence Inp'!N124/ Index!$H$12 * Index!N$16 -> 0 | O41: ='Licence Inp'!O124/ Index!$H$12 * Index!O$16 -> 0 | P41: ='Licence Inp'!P124/ Index!$H$12 * Index!P$16 -> 0 | Q41: ='Licence Inp'!Q124/ Index!$H$12 * Index!Q$16 -> 0 | R41: ='Licence Inp'!R124/ Index!$H$12 * Index!R$16 -> 0 | S41: ='Licence Inp'!S124/ Index!$H$12 * Index!S$16 -> 0 | T41: ='Licence Inp'!T124/ Index!$H$12 * Index!T$16 -> 0 | U41: ='Licence Inp'!U124/ Index!$H$12 * Index!U$16 -> 0
C44: 4.19 Non-operational capex
E46: Demonstrably inefficient qualifying capex - DN | F46: 4.19: | G46: DIQCE_DNt | I46: GBP m | J46: [Entitlement Model 28.11.16.xlsx]RP6 Distribution Inputs'!$A$42 | K46: =SUM(M46:U46) -> 0 | M46: 0 | N46: 0 | O46: 0 | P46: 0 | Q46: 0 | R46: 0 | S46: 0 | T46: 0 | U46: 0
E47: Demonstrably inefficient qualifying capex - ES | F47: 4.19: | G47: DIQCE_ESt | I47: GBP m | J47: [Entitlement Model 28.11.16.xlsx]RP6 Distribution Inputs'!$A$72 | K47: 0 | M47: 0 | N47: 0 | O47: 0 | P47: 0 | Q47: 0 | R47: 0 | S47: 0 | T47: 0 | U47: 0
E48: Demonstrably inefficient qualifying capex - MTRN | F48: 4.19: | G48: DIQCE_MTRNt | I48: GBP m | J48: [Entitlement Model 28.11.16.xlsx]RP6 Distribution Inputs'!$A$102 | K48: 0 | M48: 0 | N48: 0 | O48: 0 | P48: 0 | Q48: 0 | R48: 0 | S48: 0 | T48: 0 | U48: 0
E49: Demonstrably inefficient qualifying capex - RT | F49: 4.19: | G49: DIQCE_RTt | I49: GBP m | J49: [Entitlement Model 28.11.16.xlsx]RP6 Distribution Inputs'!$A$154 | K49: 0 | M49: 0 | N49: 0 | O49: 0 | P49: 0 | Q49: 0 | R49: 0 | S49: 0 | T49: 0 | U49: 0
E50: Demonstrably inefficient qualifying capex - FE | F50: 4.19: | G50: DIQCE_FEt | I50: GBP m | J50: [Entitlement Model 28.11.16.xlsx]RP6 Distribution Inputs'!$A$184 | K50: 0 | M50: 0 | N50: 0 | O50: 0 | P50: 0 | Q50: 0 | R50: 0 | S50: 0 | T50: 0 | U50: 0
E51: Demonstrably inefficient qualifying capex - NI | F51: 4.19: | G51: DIQCE_NIt | I51: GBP m | J51: [Entitlement Model 28.11.16.xlsx]RP6 Distribution Inputs'!A$214 | K51: 0 | M51: 0 | N51: 0 | O51: 0 | P51: 0 | Q51: 0 | R51: 0 | S51: 0 | T51: 0 | U51: 0
E52: Demonstrably inefficient qualifying capex - D5Y | F52: 4.19: | G52: DIQCE_D5Yt | I52: GBP m | J52: [Entitlement Model 28.11.16.xlsx]RP6 Distribution Inputs'!A$244 | K52: 0 | M52: 0 | N52: 0 | O52: 0 | P52: 0 | Q52: 0 | R52: 0 | S52: 0 | T52: 0 | U52: 0
E53: Demonstrably inefficient qualifying capex - MO5Y | F53: 4.19: | G53: DIQCE_MO5Yt | I53: GBP m | K53: 0 | M53: 0 | N53: 0 | O53: 0 | P53: 0 | Q53: 0 | R53: 0 | S53: 0 | T53: 0 | U53: 0
C56: 4.21 Capex connection amount
E58: Capex connection amount - DN | F58: 4.21: | G58: CC_DNt | I58: GBP m | J58: [Entitlement Model 28.11.16.xlsx]RP6 Distribution Inputs'!$A$51 | K58: =SUM(M58:U58) -> 0 | M58: 0 | N58: 0 | O58: 0 | P58: 0 | Q58: 0 | R58: 0 | S58: 0 | T58: 0 | U58: 0
E59: Capex connection amount - ES | F59: 4.21: | G59: CC_ESt | I59: GBP m | J59: [Entitlement Model 28.11.16.xlsx]RP6 Distribution Inputs'!$A$81 | K59: 0 | M59: 0 | N59: 0 | O59: 0 | P59: 0 | Q59: 0 | R59: 0 | S59: 0 | T59: 0 | U59: 0
E60: Capex connection amount - MTRN | F60: 4.21: | G60: CC_NISt | I60: GBP m | J60: [Entitlement Model 28.11.16.xlsx]RP6 Distribution Inputs'!$A$133 | K60: 0 | M60: 0 | N60: 0 | O60: 0 | P60: 0 | Q60: 0 | R60: 0 | S60: 0 | T60: 0 | U60: 0
E61: Capex connection amount - RT | F61: 4.21: | G61: CC_RTt | I61: GBP m | J61: [Entitlement Model 28.11.16.xlsx]RP6 Distribution Inputs'!$A$163 | K61: 0 | M61: 0 | N61: 0 | O61: 0 | P61: 0 | Q61: 0 | R61: 0 | S61: 0 | T61: 0 | U61: 0
E62: Capex connection amount - FE | F62: 4.21: | G62: CC_FEt | I62: GBP m | J62: [Entitlement Model 28.11.16.xlsx]RP6 Distribution Inputs'!$A$193 | K62: 0 | M62: 0 | N62: 0 | O62: 0 | P62: 0 | Q62: 0 | R62: 0 | S62: 0 | T62: 0 | U62: 0
E63: Capex connection amount - NI | F63: 4.21: | G63: CC_NIt | I63: GBP m | J63: [Entitlement Model 28.11.16.xlsx]RP6 Distribution Inputs'!A$223 | K63: 0 | M63: 0 | N63: 0 | O63: 0 | P63: 0 | Q63: 0 | R63: 0 | S63: 0 | T63: 0 | U63: 0
E64: Capex connection amount - D5Y | F64: 4.21: | G64: CC_D5Yt | I64: GBP m | J64: [Entitlement Model 28.11.16.xlsx]RP6 Distribution Inputs'!A$253 | K64: 0 | M64: 0 | N64: 0 | O64: 0 | P64: 0 | Q64: 0 | R64: 0 | S64: 0 | T64: 0 | U64: 0
E65: Capex connection amount - MO5Y | F65: 4.21: | G65: CC_MO5Yt | I65: GBP m | K65: 0 | M65: 0 | N65: 0 | O65: 0 | P65: 0 | Q65: 0 | R65: 0 | S65: 0 | T65: 0 | U65: 0
C68: 4.23 Distribution split for legacy Dt capex
E70: Distribution split for legacy Dt capex - DN | F70: 4.23: | G70: CLD_DNt | I70: GBP m | J70: [Entitlement Model 28.11.16.xlsx]RP6 Distribution Inputs'!$A$50 | K70: =SUM(M70:U70) -> 0 | M70: 0 | N70: 0 | O70: 0 | P70: 0 | Q70: 0 | R70: 0 | S70: 0 | T70: 0 | U70: 0
E71: Distribution split for legacy Dt capex - ES | F71: 4.23: | G71: CLD_ESt | I71: GBP m | J71: [Entitlement Model 28.11.16.xlsx]RP6 Distribution Inputs'!$A$80 | K71: 0 | M71: 0 | N71: 0 | O71: 0 | P71: 0 | Q71: 0 | R71: 0 | S71: 0 | T71: 0 | U71: 0
E72: Distribution split for legacy Dt capex - MTRN | F72: 4.23: | G72: CLD_MTRNt | I72: GBP m | J72: [Entitlement Model 28.11.16.xlsx]RP6 Distribution Inputs'!$A$132 | K72: 0 | M72: 0 | N72: 0 | O72: 0 | P72: 0 | Q72: 0 | R72: 0 | S72: 0 | T72: 0 | U72: 0
E73: Distribution split for legacy Dt capex - RT | F73: 4.23: | G73: CLD_RTt | I73: GBP m | J73: [Entitlement Model 28.11.16.xlsx]RP6 Distribution Inputs'!$A$162 | K73: 0 | M73: 0 | N73: 0 | O73: 0 | P73: 0 | Q73: 0 | R73: 0 | S73: 0 | T73: 0 | U73: 0
E74: Distribution split for legacy Dt capex - FE | F74: 4.23: | G74: CLD_FEt | I74: GBP m | J74: [Entitlement Model 28.11.16.xlsx]RP6 Distribution Inputs'!$A$192 | K74: 0 | M74: 0 | N74: 0 | O74: 0 | P74: 0 | Q74: 0 | R74: 0 | S74: 0 | T74: 0 | U74: 0
E75: Distribution split for legacy Dt capex - NI | F75: 4.23: | G75: CLD_NIt | I75: GBP m | J75: [Entitlement Model 28.11.16.xlsx]RP6 Distribution Inputs'!A$222 | K75: 0 | M75: 0 | N75: 0 | O75: 0 | P75: 0 | Q75: 0 | R75: 0 | S75: 0 | T75: 0 | U75: 0
E76: Distribution split for legacy Dt capex - D5Y | F76: 4.23: | G76: CLD_D5Yt | I76: GBP m | J76: [Entitlement Model 28.11.16.xlsx]RP6 Distribution Inputs'!A$252 | K76: 0 | M76: 0 | N76: 0 | O76: 0 | P76: 0 | Q76: 0 | R76: 0 | S76: 0 | T76: 0 | U76: 0
E77: Distribution split for legacy Dt capex - MO5Y | F77: 4.23: | G77: CLD_MO5Yt | I77: GBP m | K77: 0 | M77: 0 | N77: 0 | O77: 0 | P77: 0 | Q77: 0 | R77: 0 | S77: 0 | T77: 0 | U77: 0
E78: Distribution split for legacy Dt capex | I78: GBP m | K78: 0 | M78: =SUM(M70:M77) -> 0 | N78: 0 | O78: 0 | P78: 0 | Q78: 0 | R78: 0 | S78: 0 | T78: 0 | U78: 0
E80: ='Licence Inp'!E$90 -> Legacy Dt maximum RP6 spend amount - DL | F80: ='Licence Inp'!F$90 -> Table 4 | G80: ='Licence Inp'!G$90 -> 0 | H80: ='Licence Inp'!H$90 -> 0 | I80: ='Licence Inp'!I$90 -> GBP m
E81: =E$78 -> Distribution split for legacy Dt capex | F81: 0 | G81: 0 | H81: 0 | I81: GBP m | J81: 0 | K81: 0 | L81: 0 | M81: 0 | N81: 0 | O81: 0 | P81: 0 | Q81: 0 | R81: 0 | S81: 0 | T81: 0 | U81: 0
E82: =Time!E$92 -> RP6 period flag | F82: =Time!F$92 -> 0 | G82: =Time!G$92 -> 0 | H82: =Time!H$92 -> 0 | I82: =Time!I$92 -> flag | J82: =Time!J$92 -> 0 | K82: =Time!K$92 -> 7 | L82: =Time!L$92 -> 0 | M82: =Time!M$92 -> 0 | N82: =Time!N$92 -> 1 | O82: =Time!O$92 -> 1 | P82: =Time!P$92 -> 1 | Q82: =Time!Q$92 -> 1 | R82: =Time!R$92 -> 1 | S82: =Time!S$92 -> 1 | T82: =Time!T$92 -> 1 | U82: =Time!U$92 -> 0
E83: Distribution split for legacy Dt capex - alert | H83: =IF( SUM(M83:U83) > 0, 1, 0) -> 0 | I83: alert | M83: =IF(($H80 - SUMIF($L82:M82, 1, $L81:M81)) >= 0, 0, 1) -> 0 | N83: =IF(($H80 - SUMIF($L82:N82, 1, $L81:N81)) >= 0, 0, 1) -> 0 | O83: =IF(($H80 - SUMIF($L82:O82, 1, $L81:O81)) >= 0, 0, 1) -> 0 | P83: =IF(($H80 - SUMIF($L82:P82, 1, $L81:P81)) >= 0, 0, 1) -> 0 | Q83: =IF(($H80 - SUMIF($L82:Q82, 1, $L81:Q81)) >= 0, 0, 1) -> 0 | R83: =IF(($H80 - SUMIF($L82:R82, 1, $L81:R81)) >= 0, 0, 1) -> 0 | S83: =IF(($H80 - SUMIF($L82:S82, 1, $L81:S81)) >= 0, 0, 1) -> 0 | T83: =IF(($H80 - SUMIF($L82:T82, 1, $L81:T81)) >= 0, 0, 1) -> 0 | U83: =IF(($H80 - SUMIF($L82:U82, 1, $L81:U81)) >= 0, 0, 1) -> 0
C86: 4.25 Demonstrably inefficient pass through capex exp.
E88: Demonstrably inefficient pass through capex exp. - DN | F88: 4.25: | G88: DIPTCE_DNt | I88: GBP m | J88: [Entitlement Model 28.11.16.xlsx]RP6 Distribution Inputs'!$A$52 | K88: =SUM(M88:U88) -> 0 | M88: 0 | N88: 0 | O88: 0 | P88: 0 | Q88: 0 | R88: 0 | S88: 0 | T88: 0 | U88: 0
E89: Demonstrably inefficient pass through capex exp. - ES | F89: 4.25: | G89: DIPTCE_ESt | I89: GBP m | J89: [Entitlement Model 28.11.16.xlsx]RP6 Distribution Inputs'!$A$82 | K89: 0 | M89: 0 | N89: 0 | O89: 0 | P89: 0 | Q89: 0 | R89: 0 | S89: 0 | T89: 0 | U89: 0
E90: Demonstrably inefficient pass through capex exp. - MTRN | F90: 4.25: | G90: DIPTCE_MTRNt | I90: GBP m | J90: [Entitlement Model 28.11.16.xlsx]RP6 Distribution Inputs'!$A$134 | K90: 0 | M90: 0 | N90: 0 | O90: 0 | P90: 0 | Q90: 0 | R90: 0 | S90: 0 | T90: 0 | U90: 0
E91: Demonstrably inefficient pass through capex exp. - RT | F91: 4.25: | G91: DIPTCE_RTt | I91: GBP m | J91: [Entitlement Model 28.11.16.xlsx]RP6 Distribution Inputs'!$A$164 | K91: 0 | M91: 0 | N91: 0 | O91: 0 | P91: 0 | Q91: 0 | R91: 0 | S91: 0 | T91: 0 | U91: 0
E92: Demonstrably inefficient pass through capex exp. - FE | F92: 4.25: | G92: DIPTCE_FEt | I92: GBP m | J92: [Entitlement Model 28.11.16.xlsx]RP6 Distribution Inputs'!$A$194 | K92: 0 | M92: 0 | N92: 0 | O92: 0 | P92: 0 | Q92: 0 | R92: 0 | S92: 0 | T92: 0 | U92: 0
E93: Demonstrably inefficient pass through capex exp. - NI | F93: 4.25: | G93: DIPTCE_NIt | I93: GBP m | J93: [Entitlement Model 28.11.16.xlsx]RP6 Distribution Inputs'!A$224 | K93: 0 | M93: 0 | N93: 0 | O93: 0 | P93: 0 | Q93: 0 | R93: 0 | S93: 0 | T93: 0 | U93: 0
E94: Demonstrably inefficient pass through capex exp. - D5Y | F94: 4.25: | G94: DIPTCE_D5Yt | I94: GBP m | J94: [Entitlement Model 28.11.16.xlsx]RP6 Distribution Inputs'!A$254 | K94: 0 | M94: 0 | N94: 0 | O94: 0 | P94: 0 | Q94: 0 | R94: 0 | S94: 0 | T94: 0 | U94: 0
E95: Demonstrably inefficient pass through capex exp. - MO5Y | F95: 4.25: | G95: DIPTCE_MO5Yt | I95: GBP m | K95: 0 | M95: 0 | N95: 0 | O95: 0 | P95: 0 | Q95: 0 | R95: 0 | S95: 0 | T95: 0 | U95: 0
C98: 4.30 Asset disposals
E100: Asset disposal lookback periods | H100: 5 | I100: years
E102: Historic timeline | I102: date | M102: 2008 | N102: 2009 | O102: 2010 | P102: 2011 | Q102: 2012 | R102: 2013 | S102: 2014 | T102: 2015 | U102: 2016
E103: Historic - asset disposals - DN | F103: 4.30: | G103: OCD_DNt | I103: GBP m | K103: =SUM(M103:U103) -> 0.0805 | M103: 0 | N103: 0 | O103: 0 | P103: 0 | Q103: 0 | R103: 0.0315 | S103: 0 | T103: 0.049 | U103: 0
E104: Historic - asset disposals - ES | F104: 4.30: | G104: OCD_ESt | I104: GBP m | K104: 0 | M104: 0 | N104: 0 | O104: 0 | P104: 0 | Q104: 0 | R104: 0 | S104: 0 | T104: 0 | U104: 0
E105: Historic - asset disposals - MTRN | F105: 4.30: | G105: OCD_MTRNt | I105: GBP m | K105: 0 | M105: 0 | N105: 0 | O105: 0 | P105: 0 | Q105: 0 | R105: 0 | S105: 0 | T105: 0 | U105: 0
E106: Historic - asset disposals - RT | F106: 4.30: | G106: OCD_RTt | I106: GBP m | K106: 0 | M106: 0 | N106: 0 | O106: 0 | P106: 0 | Q106: 0 | R106: 0 | S106: 0 | T106: 0 | U106: 0
E107: Historic - asset disposals - FE | F107: 4.30: | G107: OCD_FEt | I107: GBP m | K107: 0 | M107: 0 | N107: 0 | O107: 0 | P107: 0 | Q107: 0 | R107: 0 | S107: 0 | T107: 0 | U107: 0
E108: Historic - asset disposals - NI | F108: 4.30: | G108: OCD_NIt | I108: GBP m | K108: 0 | M108: 0 | N108: 0 | O108: 0 | P108: 0 | Q108: 0 | R108: 0 | S108: 0 | T108: 0 | U108: 0
E109: Historic - asset disposals - D5Y | F109: 4.30: | G109: OCD_D5Yt | I109: GBP m | K109: 0 | M109: 0 | N109: 0 | O109: 0 | P109: 0 | Q109: 0 | R109: 0 | S109: 0 | T109: 0 | U109: 0
E110: Historic - asset disposals - MO5Y | F110: 4.30: | G110: OCD_MO5Yt | I110: GBP m | K110: 0 | M110: 0 | N110: 0 | O110: 0 | P110: 0 | Q110: 0 | R110: 0 | S110: 0 | T110: 0 | U110: 0
E113: Asset disposals - DN | F113: 4.30: | G113: OCD_DNt | I113: GBP m | J113: [Entitlement Model 28.11.16.xlsx]RP6 Distribution Inputs'!$A$55 | K113: =SUM(M113:U113) -> 0 | M113: 0 | N113: 0 | O113: 0 | P113: 0 | Q113: 0 | R113: 0 | S113: 0 | T113: 0 | U113: 0
E114: Asset disposals - ES | F114: 4.30: | G114: OCD_ESt | I114: GBP m | J114: [Entitlement Model 28.11.16.xlsx]RP6 Distribution Inputs'!$A$85 | K114: 0 | M114: 0 | N114: 0 | O114: 0 | P114: 0 | Q114: 0 | R114: 0 | S114: 0 | T114: 0 | U114: 0
E115: Asset disposals - MTRN | F115: 4.30: | G115: OCD_MTRNt | I115: GBP m | J115: [Entitlement Model 28.11.16.xlsx]RP6 Distribution Inputs'!$A$137 | K115: 0 | M115: 0 | N115: 0 | O115: 0 | P115: 0 | Q115: 0 | R115: 0 | S115: 0 | T115: 0 | U115: 0
E116: Asset disposals - RT | F116: 4.30: | G116: OCD_RTt | I116: GBP m | J116: [Entitlement Model 28.11.16.xlsx]RP6 Distribution Inputs'!$A$167 | K116: 0 | M116: 0 | N116: 0 | O116: 0 | P116: 0 | Q116: 0 | R116: 0 | S116: 0 | T116: 0 | U116: 0
E117: Asset disposals - FE | F117: 4.30: | G117: OCD_FEt | I117: GBP m | J117: [Entitlement Model 28.11.16.xlsx]RP6 Distribution Inputs'!$A$197 | K117: 0 | M117: 0 | N117: 0 | O117: 0 | P117: 0 | Q117: 0 | R117: 0 | S117: 0 | T117: 0 | U117: 0
E118: Asset disposals - NI | F118: 4.30: | G118: OCD_NIt | I118: GBP m | J118: [Entitlement Model 28.11.16.xlsx]RP6 Distribution Inputs'!A$227 | K118: 0 | M118: 0 | N118: 0 | O118: 0 | P118: 0 | Q118: 0 | R118: 0 | S118: 0 | T118: 0 | U118: 0
E119: Asset disposals - D5Y | F119: 4.30: | G119: OCD_D5Yt | I119: GBP m | J119: [Entitlement Model 28.11.16.xlsx]RP6 Distribution Inputs'!A$257 | K119: 0 | M119: 0 | N119: 0 | O119: 0 | P119: 0 | Q119: 0 | R119: 0 | S119: 0 | T119: 0 | U119: 0
E120: Asset disposals - MO5Y | F120: 4.30: | G120: OCD_MO5Yt | I120: GBP m | K120: 0 | M120: 0 | N120: 0 | O120: 0 | P120: 0 | Q120: 0 | R120: 0 | S120: 0 | T120: 0 | U120: 0
C123: 4.42 Metering unit category - MV_Ct
D125: Meter installs/changes
E126: SOSA unit | F126: 4.42: | G126: MV_Ct | I126: meter | J126: [RP5 RP6 Inputs Template Version 1 Source doc 12.01.17.xlsx]RP6 Distribution Inputs '!A150 | K126: =SUM(M126:U126) -> 208000 | M126: 0 | N126: 16000 | O126: 32000 | P126: 32000 | Q126: 32000 | R126: 32000 | S126: 32000 | T126: 32000 | U126: 0
E127: Keypad other unit | F127: 4.42: | G127: MV_Ct | I127: meter | J127: [RP5 RP6 Inputs Template Version 1 Source doc 12.01.17.xlsx]RP6 Distribution Inputs '!A151 | K127: =SUM(M127:U127) -> 143000 | M127: 0 | N127: 11000 | O127: 22000 | P127: 22000 | Q127: 22000 | R127: 22000 | S127: 22000 | T127: 22000 | U127: 0
E128: Commercial unit | F128: 4.42: | G128: MV_Ct | I128: meter | J128: [RP5 RP6 Inputs Template Version 1 Source doc 12.01.17.xlsx]RP6 Distribution Inputs '!A152 | K128: =SUM(M128:U128) -> 26000 | M128: 0 | N128: 2000 | O128: 4000 | P128: 4000 | Q128: 4000 | R128: 4000 | S128: 4000 | T128: 4000 | U128: 0
D130: Meter recertification
E131: Recertification unit | F131: 4.42: | G131: MV_Ct | I131: meter | J131: [RP5 RP6 Inputs Template Version 1 Source doc 12.01.17.xlsx]RP6 Distribution Inputs '!A155 | K131: =SUM(M131:U131) -> 122000 | M131: 0 | N131: 30000 | O131: 40000 | P131: 15000 | Q131: 15000 | R131: 11000 | S131: 6000 | T131: 5000 | U131: 0
E132: Keypad recertification unit | F132: 4.42: | G132: MV_Ct | I132: meter | J132: [RP5 RP6 Inputs Template Version 1 Source doc 12.01.17.xlsx]RP6 Distribution Inputs '!A156 | K132: 106000 | M132: 0 | N132: 13000 | O132: 18000 | P132: 15000 | Q132: 15000 | R132: 15000 | S132: 15000 | T132: 15000 | U132: 0
E133: Commercial recertification unit | F133: 4.42: | G133: MV_Ct | I133: meter | J133: [RP5 RP6 Inputs Template Version 1 Source doc 12.01.17.xlsx]RP6 Distribution Inputs '!A157 | K133: 22750 | M133: 0 | N133: 1750 | O133: 3500 | P133: 3500 | Q133: 3500 | R133: 3500 | S133: 3500 | T133: 3500 | U133: 0
E134: Commercial other - 110/33kv bulk supply point and sub-station metering | F134: 4.42: | G134: MV_Ct | I134: meter | J134: [RP5 RP6 Inputs Template Version 1 Source doc 12.01.17.xlsx]RP6 Distribution Inputs '!A158 | K134: 68 | M134: 0 | N134: 5 | O134: 11 | P134: 11 | Q134: 11 | R134: 10 | S134: 10 | T134: 10 | U134: 0
E135: Commercial other - power stations >100mw metering | F135: 4.42: | G135: MV_Ct | I135: meter | J135: [RP5 RP6 Inputs Template Version 1 Source doc 12.01.17.xlsx]RP6 Distribution Inputs '!A159 | K135: 34 | M135: 0 | N135: 3 | O135: 3 | P135: 10 | Q135: 15 | R135: 0 | S135: 3 | T135: 0 | U135: 0
E136: Commercial other - generator metering <100mw and >1mw | F136: 4.42: | G136: MV_Ct | I136: meter | J136: [RP5 RP6 Inputs Template Version 1 Source doc 12.01.17.xlsx]RP6 Distribution Inputs '!A160 | K136: 23 | M136: 0 | N136: 7 | O136: 7 | P136: 0 | Q136: 3 | R136: 4 | S136: 2 | T136: 0 | U136: 0
E137: Commercial other - hv demand customer metering >1mw | F137: 4.42: | G137: MV_Ct | I137: meter | J137: [RP5 RP6 Inputs Template Version 1 Source doc 12.01.17.xlsx]RP6 Distribution Inputs '!A161 | K137: 206 | M137: 0 | N137: 50 | O137: 57 | P137: 21 | Q137: 23 | R137: 6 | S137: 31 | T137: 18 | U137: 0
E138: Commercial other - hv demand customer metering >1mw | F138: 4.42: | G138: MV_Ct | I138: meter | J138: [RP5 RP6 Inputs Template Version 1 Source doc 12.01.17.xlsx]RP6 Distribution Inputs '!A162 | K138: 127 | M138: 0 | N138: 17 | O138: 18 | P138: 13 | Q138: 20 | R138: 18 | S138: 19 | T138: 22 | U138: 0
E139: Commercial other - teleswitch/telemeter replacement programme | F139: 4.42: | G139: MV_Ct | I139: meter | J139: [RP5 RP6 Inputs Template Version 1 Source doc 12.01.17.xlsx]RP6 Distribution Inputs '!A163 | K139: 8000 | M139: 0 | N139: 2000 | O139: 3000 | P139: 3000 | Q139: 0 | R139: 0 | S139: 0 | T139: 0 | U139: 0
E140: Commercial other - northern ireland customer load profiles | F140: 4.42: | G140: MV_Ct | I140: meter | J140: [RP5 RP6 Inputs Template Version 1 Source doc 12.01.17.xlsx]RP6 Distribution Inputs '!A164 | K140: 1400 | M140: 0 | N140: 200 | O140: 400 | P140: 400 | Q140: 100 | R140: 100 | S140: 100 | T140: 100 | U140: 0
D142: RPU keypads
E143: RPU keypads (meter replacement for theft) | F143: 4.42: | G143: MV_Ct | I143: meter | J143: [RP5 RP6 Inputs Template Version 1 Source doc 12.01.17.xlsx]RP6 Distribution Inputs '!$A$167 | K143: =SUM(M143:U143) -> 7700 | M143: 0 | N143: 3850 | O143: 3850 | P143: 0 | Q143: 0 | R143: 0 | S143: 0 | T143: 0 | U143: 0
C146: 6.3 Opex incurred by the licensee - excl. PTOEt
E148: Opex incurred by the licensee - excl. PTOEt | F148: 6.3: | G148: QOEt | I148: GBP m | K148: =SUM(M148:U148) -> 369.176201 | M148: ='Licence Inp'!M226/ Index!$H$12 * Index!M$16 -> 0 | N148: ='Licence Inp'!N226/ Index!$H$12 * Index!N$16 -> 29.29628168 | O148: ='Licence Inp'!O226/ Index!$H$12 * Index!O$16 -> 57.90299958 | P148: ='Licence Inp'!P226/ Index!$H$12 * Index!P$16 -> 57.36837611 | Q148: ='Licence Inp'!Q226/ Index!$H$12 * Index!Q$16 -> 56.87238902 | R148: ='Licence Inp'!R226/ Index!$H$12 * Index!R$16 -> 56.3768678 | S148: ='Licence Inp'!S226/ Index!$H$12 * Index!S$16 -> 55.91202382 | T148: ='Licence Inp'!T226/ Index!$H$12 * Index!T$16 -> 55.44726295 | U148: ='Licence Inp'!U226/ Index!$H$12 * Index!U$16 -> 0
C151: 6.5 Demonstrably inefficient or wasteful expenditure - DIQOEt
E153: Demonstrably inefficient or wasteful expenditure | F153: 6.5: | G153: DIQOEt | I153: GBP m | K153: =SUM(M153:U153) -> 0 | M153: 0 | N153: 0 | O153: 0 | P153: 0 | Q153: 0 | R153: 0 | S153: 0 | T153: 0 | U153: 0
C156: 6.7 Pass through opex expenditure
E158: Opex licence fee | F158: 6.7a: | G158: OLFt | I158: GBP m | J158: [RP6 07y copy Naoimh (3).xlsm]Actuals Inp'!$E$181 | K158: =SUM(M158:U158) -> 8.567856216 | M158: 0 | N158: =0.65906586273781/Index!$H$12*Index!N$16 -> 0.6590658627 | O158: =1.31813172547562/Index!$H$12*Index!O$16 -> 1.318131725 | P158: =1.31813172547562/Index!$H$12*Index!P$16 -> 1.318131725 | Q158: =1.31813172547562/Index!$H$12*Index!Q$16 -> 1.318131725 | R158: =1.31813172547562/Index!$H$12*Index!R$16 -> 1.318131725 | S158: =1.31813172547562/Index!$H$12*Index!S$16 -> 1.318131725 | T158: =1.31813172547562/Index!$H$12*Index!T$16 -> 1.318131725 | U158: 0
E159: Opex connection amount | F159: 6.7: | G159: OCt | I159: GBP m | J159: [Entitlement Model 28.11.16.xlsx]RP6 Distribution Inputs'!$A$280 | K159: =SUM(M159:U159) -> 0 | M159: 0 | N159: 0 | O159: 0 | P159: 0 | Q159: 0 | R159: 0 | S159: 0 | T159: 0 | U159: 0
C162: 6.9 Opex legacy amount
E164: Opex legacy Dt amount | F164: 6.9: | G164: OLDt | I164: GBP m | J164: [Entitlement Model 28.11.16.xlsx]RP6 Distribution Inputs'!$A$279 | K164: =SUM(M164:U164) -> 0 | M164: 0 | N164: 0 | O164: 0 | P164: 0 | Q164: 0 | R164: 0 | S164: 0 | T164: 0 | U164: 0
C167: 6.10 Demonstrably inefficient or wasteful expenditure - DIPTOEt
E169: Demonstrably inefficient or wasteful expenditure | F169: 6.11: | G169: DIPTOEt | I169: GBP m | J169: [Entitlement Model 28.11.16.xlsx]RP6 Distribution Inputs'!$A$282 | K169: =SUM(M169:U169) -> 0 | M169: 0 | N169: 0 | O169: 0 | P169: 0 | Q169: 0 | R169: 0 | S169: 0 | T169: 0 | U169: 0
C172: 6.17 Allowed opex
E174: Allowed opex - enduring solution | F174: 6.17: | G174: ESt | I174: GBP m | J174: [Entitlement Model 28.11.16.xlsx]RP6 Distribution Inputs'!$A$275 | K174: =SUM(M174:U174) -> 0 | M174: 0 | N174: 0 | O174: 0 | P174: 0 | Q174: 0 | R174: 0 | S174: 0 | T174: 0 | U174: 0
E175: Allowed opex - injurious affectation | F175: 6.17: | G175: IAt | I175: GBP m | J175: [Entitlement Model 28.11.16.xlsx]RP6 Distribution Inputs'!$A$274 | K175: =SUM(M175:U175) -> 0 | M175: 0 | N175: 0 | O175: 0 | P175: 0 | Q175: 0 | R175: 0 | S175: 0 | T175: 0 | U175: 0
E176: Allowed opex - regulatory reporting | F176: 6.17: | G176: RRt | I176: GBP m | J176: [Entitlement Model 28.11.16.xlsx]RP6 Distribution Inputs'!$A$273 | K176: =SUM(M176:U176) -> 0 | M176: 0 | N176: 0 | O176: 0 | P176: 0 | Q176: 0 | R176: 0 | S176: 0 | T176: 0 | U176: 0
E177: Allowed opex - changes of law | F177: 6.18: | G177: COLt | I177: GBP m | J177: [Entitlement Model 28.11.16.xlsx]RP6 Distribution Inputs'!$A$276 | K177: =SUM(M177:U177) -> 0 | M177: 0 | N177: 0 | O177: 0 | P177: 0 | Q177: 0 | R177: 0 | S177: 0 | T177: 0 | U177: 0
C180: 9.1: The tax rate - TRt
E182: Capital allowances - CAt - DL - calculated | F182: 9.1: | G182: CAt | I182: GBP m | K182: =SUM(M182:U182) -> 331.3890693 | M182: ='DL - C9'!M$342 -> 0 | N182: ='DL - C9'!N$342 -> 24.60256213 | O182: ='DL - C9'!O$342 -> 50.78489371 | P182: ='DL - C9'!P$342 -> 51.05065147 | Q182: ='DL - C9'!Q$342 -> 50.96163984 | R182: ='DL - C9'!R$342 -> 51.10244564 | S182: ='DL - C9'!S$342 -> 51.16561765 | T182: ='DL - C9'!T$342 -> 51.7212588 | U182: ='DL - C9'!U$342 -> 0
E183: Capital allowances - CAt - DL - manual adjustment | F183: 9.1: | G183: CAt | I183: GBP m | K183: =SUM(M183:U183) -> 0
E184: Capital allowances - CAt - DL | F184: 9.1: | G184: CAt | I184: GBP m | K184: =SUM(M184:U184) -> 331.3890693 | M184: =IF(ISBLANK(M183), M182, M183) -> 0 | N184: 24.60256213 | O184: 50.78489371 | P184: 51.05065147 | Q184: 50.96163984 | R184: 51.10244564 | S184: 51.16561765 | T184: 51.7212588 | U184: 0
C187: 10.1: revenue protection service revenue - RPSRt
E189: Revenue proection service incentive share % - DL | F189: 10.1: | H189: 0.5 | I189: % | J189: [Entitlement Model 28.11.16.xlsx]RP6 Distribution Inputs'!$A$319
E191: Revenue protection service revenue (POS or Zero) - DL | F191: 10.1: | G191: RPSRt | I191: GBP m | J191: [Entitlement Model 28.11.16.xlsx]RP6 Distribution Inputs'!$A$321 | K191: =SUM(M191:U191) -> 0 | M191: 0 | N191: 0 | O191: 0 | P191: 0 | Q191: 0 | R191: 0 | S191: 0 | T191: 0 | U191: 0
C194: 11 Correction factor amount - Kt
E196: Average specified rate | F196: 11.1a: | G196: It | H196: 0.0025 | I196: % | M196: 0 | N196: 0.0025 | O196: 0.0025 | P196: 0.0025 | Q196: 0.0025 | R196: 0.0025 | S196: 0.0025 | T196: 0.0025 | U196: 0
E198: =E$9 -> RPI switch | F198: =F$9 -> 0 | G198: =G$9 -> 0 | H198: =H$9 -> 0 | I198: =I$9 -> 0 = off, 1 = on
E200: Actual regulated Distribution revenue recovered - nominal | N200: ='DL - C3'!N38 -> 113.4168963 | O200: ='DL - C3'!O38 -> 179.9975669 | P200: ='DL - C3'!P38 -> 180.9157837 | Q200: ='DL - C3'!Q38 -> 181.196841 | R200: ='DL - C3'!R38 -> 182.4081234 | S200: ='DL - C3'!S38 -> 179.2070114 | T200: ='DL - C3'!T38 -> 178.5886773
E201: Actual regulated Distribution revenue recovered - 15 / 16 price | N201: ='DL - C3'!N38 -> 113.4168963 | O201: ='DL - C3'!O38 -> 179.9975669 | P201: ='DL - C3'!P38 -> 180.9157837 | Q201: ='DL - C3'!Q38 -> 181.196841 | R201: ='DL - C3'!R38 -> 182.4081234 | S201: ='DL - C3'!S38 -> 179.2070114 | T201: ='DL - C3'!T38 -> 178.5886773
E203: Actual regulated Distribution revenue recovered | F203: 11.1b: | G203: ARP6t | I203: GBP m | K203: =SUM(M203:U203) -> 1195.7309 | M203: =IF($H198 = 0, M201, M200) -> 0 | N203: =IF($H198 = 0, N201, N200) -> 113.4168963 | O203: =IF($H198 = 0, O201, O200) -> 179.9975669 | P203: 180.9157837 | Q203: 181.196841 | R203: 182.4081234 | S203: 179.2070114 | T203: 178.5886773 | U203: 0
C206: Import data - DL
E208: ='Import Base 2016'!E$100 -> Capex addition - DN - last RP5 part period base year 2016 | F208: ='Import Base 2016'!F$100 -> 0 | G208: ='Import Base 2016'!G$100 -> 0 | H208: ='Import Base 2016'!H$100 -> 38.29186627 | I208: ='Import Base 2016'!I$100 -> GBP m
E209: ='Import Base 2016'!E$101 -> Capex addition - ES - last RP5 part period base year 2016 | F209: ='Import Base 2016'!F$101 -> 0 | G209: ='Import Base 2016'!G$101 -> 0 | H209: ='Import Base 2016'!H$101 -> 0 | I209: ='Import Base 2016'!I$101 -> GBP m
E210: ='Import Base 2016'!E$102 -> Capex addition - MTRN - last RP5 part period base year 2016 | F210: ='Import Base 2016'!F$102 -> 0 | G210: ='Import Base 2016'!G$102 -> 0 | H210: ='Import Base 2016'!H$102 -> 7.405751328 | I210: ='Import Base 2016'!I$102 -> GBP m
E211: ='Import Base 2016'!E$103 -> Capex addition - RT - last RP5 part period base year 2016 | F211: ='Import Base 2016'!F$103 -> 0 | G211: ='Import Base 2016'!G$103 -> 0 | H211: ='Import Base 2016'!H$103 -> 0 | I211: ='Import Base 2016'!I$103 -> GBP m
E212: ='Import Base 2016'!E$104 -> Capex addition - FE - last RP5 part period base year 2016 | F212: ='Import Base 2016'!F$104 -> 0 | G212: ='Import Base 2016'!G$104 -> 0 | H212: ='Import Base 2016'!H$104 -> 0 | I212: ='Import Base 2016'!I$104 -> GBP m
E213: ='Import Base 2016'!E$105 -> Capex addition - NI - last RP5 part period base year 2016 | F213: ='Import Base 2016'!F$105 -> 0 | G213: ='Import Base 2016'!G$105 -> 0 | H213: ='Import Base 2016'!H$105 -> 0 | I213: ='Import Base 2016'!I$105 -> GBP m
E214: ='Import Base 2016'!E$106 -> Capex addition - D5Y - last RP5 part period base year 2016 | F214: ='Import Base 2016'!F$106 -> 0 | G214: ='Import Base 2016'!G$106 -> 0 | H214: ='Import Base 2016'!H$106 -> 7.322052359 | I214: ='Import Base 2016'!I$106 -> GBP m
E215: ='Import Base 2016'!E$107 -> Capex addition - MO5Y - last RP5 part period base year 2016 | F215: ='Import Base 2016'!F$107 -> 0 | G215: ='Import Base 2016'!G$107 -> 0 | H215: ='Import Base 2016'!H$107 -> 0 | I215: ='Import Base 2016'!I$107 -> GBP m
E217: ='Import Base 2016'!E$115 -> RAB_DL - base year 2016 - starting RP5 last period 2016 | F217: ='Import Base 2016'!F$115 -> 0 | G217: ='Import Base 2016'!G$115 -> 0 | H217: ='Import Base 2016'!H$115 -> 1060.405849 | I217: ='Import Base 2016'!I$115 -> GBP m
E219: ='Import Base 2016'!E$130 -> Maximum regulated distribution revenue - DL - end RP5 period - base 2016 | F219: ='Import Base 2016'!F$130 -> 0 | G219: ='Import Base 2016'!G$130 -> 0 | H219: ='Import Base 2016'!H$130 -> 96.91231252 | I219: ='Import Base 2016'!I$130 -> GBP m
E220: ='Import Base 2016'!E$131 -> Opex amount - DL - end RP5 period 2016 | F220: ='Import Base 2016'!F$131 -> 0 | G220: ='Import Base 2016'!G$131 -> 0 | H220: ='Import Base 2016'!H$131 -> 30.483712 | I220: ='Import Base 2016'!I$131 -> GBP m
E221: ='Import Base 2016'!E$132 -> Tax - DL - end RP5 period 2016 | F221: ='Import Base 2016'!F$132 -> 0 | G221: ='Import Base 2016'!G$132 -> 0 | H221: ='Import Base 2016'!H$132 -> 3.073575679 | I221: ='Import Base 2016'!I$132 -> GBP m
E222: ='Import Base 2016'!E$133 -> Pension deficit amount - historic repair - DL - end RP5 period 2016 | F222: ='Import Base 2016'!F$133 -> 0 | G222: ='Import Base 2016'!G$133 -> 0 | H222: ='Import Base 2016'!H$133 -> 7.571163849 | I222: ='Import Base 2016'!I$133 -> GBP m
E223: ='Import Base 2016'!E$134 -> Depreciation amount - DL - end RP5 period 2016 | F223: ='Import Base 2016'!F$134 -> 0 | G223: ='Import Base 2016'!G$134 -> 0 | H223: ='Import Base 2016'!H$134 -> 32.280083 | I223: ='Import Base 2016'!I$134 -> GBP m
E224: ='Import Base 2016'!E$135 -> Pension deficit amount ERDC disallowance- DL - RP5 last period 2016 | F224: ='Import Base 2016'!F$135 -> 0 | G224: ='Import Base 2016'!G$135 -> 0 | H224: ='Import Base 2016'!H$135 -> -2.155294818 | I224: ='Import Base 2016'!I$135 -> GBP m
A227: TRANSMISSION LICENCE
C229: 3.4 Maximum regulated transmission revenue for the regulatory reporting year
E231: Allowed opex amount - uncollected revenue - TL | F231: 3.4: | G231: BDt | I231: GBP m | K231: =SUM(M231:U231) -> 0 | M231: 0 | N231: 0 | O231: 0 | P231: 0 | Q231: 0 | R231: 0 | S231: 0 | T231: 0 | U231: 0
C234: 4.17 Qualifying capex amount
E236: Qualifying capex amount - TN | F236: 4.17: | G236: QCE_TNt | I236: GBP m | J236: [Entitlement Model 28.11.16.xlsx]RP6 Transmission Inputs'!$A$36 | K236: =SUM(M236:U236) -> 59.69658968 | M236: ='Licence Inp'!M351 / Index!$H$12 * Index!M$16 -> 0 | N236: ='Licence Inp'!N351 / Index!$H$12 * Index!N$16 -> 4.719686378 | O236: ='Licence Inp'!O351 / Index!$H$12 * Index!O$16 -> 9.359232482 | P236: ='Licence Inp'!P351 / Index!$H$12 * Index!P$16 -> 9.279772598 | Q236: ='Licence Inp'!Q351 / Index!$H$12 * Index!Q$16 -> 9.200987328 | R236: ='Licence Inp'!R351 / Index!$H$12 * Index!R$16 -> 9.122870946 | S236: ='Licence Inp'!S351 / Index!$H$12 * Index!S$16 -> 9.045417772 | T236: ='Licence Inp'!T351 / Index!$H$12 * Index!T$16 -> 8.968622175 | U236: ='Licence Inp'!U351 / Index!$H$12 * Index!U$16 -> 0
E237: Qualifying capex amount - RN | F237: 4.17: | G237: QCE_RNt | I237: GBP m | J237: [Entitlement Model 28.11.16.xlsx]RP6 Transmission Inputs'!$A$68 | K237: =SUM(M237:U237) -> 54.6 | M237: ='Licence Inp'!M352 / Index!$H$12 * Index!M$16 -> 0 | N237: ='Licence Inp'!N352 / Index!$H$12 * Index!N$16 -> 1.3 | O237: ='Licence Inp'!O352 / Index!$H$12 * Index!O$16 -> 7.95 | P237: ='Licence Inp'!P352 / Index!$H$12 * Index!P$16 -> 15.9 | Q237: ='Licence Inp'!Q352 / Index!$H$12 * Index!Q$16 -> 14.45 | R237: ='Licence Inp'!R352 / Index!$H$12 * Index!R$16 -> 7.5 | S237: ='Licence Inp'!S352 / Index!$H$12 * Index!S$16 -> 7.5 | T237: ='Licence Inp'!T352 / Index!$H$12 * Index!T$16 -> 0 | U237: ='Licence Inp'!U352 / Index!$H$12 * Index!U$16 -> 0
E238: Qualifying capex amount - NSI | F238: 4.17: | G238: QCE_NSIt | I238: GBP m | J238: [Entitlement Model 28.11.16.xlsx]RP6 Transmission Inputs'!$A$100 | K238: =SUM(M238:U238) -> 0 | M238: ='Licence Inp'!M353 / Index!$H$12 * Index!M$16 -> 0 | N238: ='Licence Inp'!N353 / Index!$H$12 * Index!N$16 -> 0 | O238: ='Licence Inp'!O353 / Index!$H$12 * Index!O$16 -> 0 | P238: ='Licence Inp'!P353 / Index!$H$12 * Index!P$16 -> 0 | Q238: ='Licence Inp'!Q353 / Index!$H$12 * Index!Q$16 -> 0 | R238: ='Licence Inp'!R353 / Index!$H$12 * Index!R$16 -> 0 | S238: ='Licence Inp'!S353 / Index!$H$12 * Index!S$16 -> 0 | T238: ='Licence Inp'!T353 / Index!$H$12 * Index!T$16 -> 0 | U238: ='Licence Inp'!U353 / Index!$H$12 * Index!U$16 -> 0
E239: Qualifying capex amount - T5Y | F239: 4.17: | G239: QCE_T5Yt | I239: GBP m | J239: [Entitlement Model 28.11.16.xlsx]RP6 Transmission Inputs'!$A$132 | K239: =SUM(M239:U239) -> 4.783649734 | M239: ='Licence Inp'!M354 / Index!$H$12 * Index!M$16 -> 0 | N239: ='Licence Inp'!N354 / Index!$H$12 * Index!N$16 -> 0.4899066966 | O239: ='Licence Inp'!O354 / Index!$H$12 * Index!O$16 -> 0.7282511435 | P239: ='Licence Inp'!P354 / Index!$H$12 * Index!P$16 -> 0.9702143594 | Q239: ='Licence Inp'!Q354 / Index!$H$12 * Index!Q$16 -> 0.7944781731 | R239: ='Licence Inp'!R354 / Index!$H$12 * Index!R$16 -> 0.5968503699 | S239: ='Licence Inp'!S354 / Index!$H$12 * Index!S$16 -> 0.598560133 | T239: ='Licence Inp'!T354 / Index!$H$12 * Index!T$16 -> 0.605388859 | U239: ='Licence Inp'!U354 / Index!$H$12 * Index!U$16 -> 0
C242: 4.19 Demostrably inefficient qualifying capex
E244: Demonstrably inefficient qualifying capex - TN | F244: 4.19: | G244: DIQCE_TNt | I244: GBP m | J244: [Entitlement Model 28.11.16.xlsx]RP6 Transmission Inputs'!$A$37 | K244: =SUM(M244:U244) -> 0 | M244: 0 | N244: 0 | O244: 0 | P244: 0 | Q244: 0 | R244: 0 | S244: 0 | T244: 0 | U244: 0
E245: Demonstrably inefficient qualifying capex - RN | F245: 4.19: | G245: DIQCE_RNt | I245: GBP m | J245: [Entitlement Model 28.11.16.xlsx]RP6 Transmission Inputs'!$A$69 | K245: =SUM(M245:U245) -> 0 | M245: 0 | N245: 0 | O245: 0 | P245: 0 | Q245: 0 | R245: 0 | S245: 0 | T245: 0 | U245: 0
E246: Demonstrably inefficient qualifying capex - NSI | F246: 4.19: | G246: DIQCE_NSIt | I246: GBP m | J246: [Entitlement Model 28.11.16.xlsx]RP6 Transmission Inputs'!$A$101 | K246: =SUM(M246:U246) -> 0 | M246: 0 | N246: 0 | O246: 0 | P246: 0 | Q246: 0 | R246: 0 | S246: 0 | T246: 0 | U246: 0
E247: Demonstrably inefficient qualifying capex - T5Y | F247: 4.19: | G247: DIQCE_T5Yt | I247: GBP m | J247: [Entitlement Model 28.11.16.xlsx]RP6 Transmission Inputs'!$A$133 | K247: =SUM(M247:U247) -> 0 | M247: 0 | N247: 0 | O247: 0 | P247: 0 | Q247: 0 | R247: 0 | S247: 0 | T247: 0 | U247: 0
C250: 4.21 Capex connection amount
E252: Capex connection amount - TN | F252: 4.21: | G252: CC_TNt | I252: GBP m | J252: [Entitlement Model 28.11.16.xlsx]RP6 Transmission Inputs'!$A$46 | K252: =SUM(M252:U252) -> 0 | M252: 0 | N252: 0 | O252: 0 | P252: 0 | Q252: 0 | R252: 0 | S252: 0 | T252: 0 | U252: 0
E253: Capex connection amount - RN | F253: 4.21: | G253: CC_RNt | I253: GBP m | J253: [Entitlement Model 28.11.16.xlsx]RP6 Transmission Inputs'!$A$78 | K253: =SUM(M253:U253) -> 0 | M253: 0 | N253: 0 | O253: 0 | P253: 0 | Q253: 0 | R253: 0 | S253: 0 | T253: 0 | U253: 0
E254: Capex connection amount - NSI | F254: 4.21: | G254: CC_NISt | I254: GBP m | J254: [Entitlement Model 28.11.16.xlsx]RP6 Transmission Inputs'!$A$110 | K254: =SUM(M254:U254) -> 0 | M254: 0 | N254: 0 | O254: 0 | P254: 0 | Q254: 0 | R254: 0 | S254: 0 | T254: 0 | U254: 0
E255: Capex connection amount - T5Y | F255: 4.21: | G255: CC_T5Yt | I255: GBP m | J255: [Entitlement Model 28.11.16.xlsx]RP6 Transmission Inputs'!$A$142 | K255: =SUM(M255:U255) -> 0 | M255: 0 | N255: 0 | O255: 0 | P255: 0 | Q255: 0 | R255: 0 | S255: 0 | T255: 0 | U255: 0
C258: 4.23 Transmission split for legacy Dt capex
E260: Transmission split for legacy Dt capex - TN | F260: 4.23: | G260: CLD_TNt | I260: GBP m | J260: [Entitlement Model 28.11.16.xlsx]RP6 Transmission Inputs'!$A$45 | K260: =SUM(M260:U260) -> 0 | M260: 0 | N260: 0 | O260: 0 | P260: 0 | Q260: 0 | R260: 0 | S260: 0 | T260: 0 | U260: 0
E261: Transmission split for legacy Dt capex - RN | F261: 4.23: | G261: CLD_RNt | I261: GBP m | J261: [Entitlement Model 28.11.16.xlsx]RP6 Transmission Inputs'!$A$77 | K261: =SUM(M261:U261) -> 0 | M261: 0 | N261: 0 | O261: 0 | P261: 0 | Q261: 0 | R261: 0 | S261: 0 | T261: 0 | U261: 0
E262: Transmission split for legacy Dt capex - NSI | F262: 4.23: | G262: CLD_NSIt | I262: GBP m | J262: [Entitlement Model 28.11.16.xlsx]RP6 Transmission Inputs'!$A$109 | K262: =SUM(M262:U262) -> 0 | M262: 0 | N262: 0 | O262: 0 | P262: 0 | Q262: 0 | R262: 0 | S262: 0 | T262: 0 | U262: 0
E263: Transmission split for legacy Dt capex - T5Y | F263: 4.23: | G263: CLD_T5Yt | I263: GBP m | J263: [Entitlement Model 28.11.16.xlsx]RP6 Transmission Inputs'!$A$141 | K263: =SUM(M263:U263) -> 0 | M263: 0 | N263: 0 | O263: 0 | P263: 0 | Q263: 0 | R263: 0 | S263: 0 | T263: 0 | U263: 0
E264: Transmission split for legacy Dt capex | I264: GBP m | K264: =SUM(M264:U264) -> 0 | M264: =SUM(M260:M263) -> 0 | N264: 0 | O264: 0 | P264: 0 | Q264: 0 | R264: 0 | S264: 0 | T264: 0 | U264: 0
E266: ='Licence Inp'!E$327 -> Legacy Dt maximum RP6 spend amount - TL | F266: ='Licence Inp'!F$327 -> Table 4 | G266: ='Licence Inp'!G$327 -> 0 | H266: ='Licence Inp'!H$327 -> 0 | I266: ='Licence Inp'!I$327 -> GBP m
E267: =E$264 -> Transmission split for legacy Dt capex | F267: 0 | G267: 0 | H267: 0 | I267: GBP m | J267: 0 | K267: 0 | L267: 0 | M267: 0 | N267: 0 | O267: 0 | P267: 0 | Q267: 0 | R267: 0 | S267: 0 | T267: 0 | U267: 0
E268: =Time!E$92 -> RP6 period flag | F268: =Time!F$92 -> 0 | G268: =Time!G$92 -> 0 | H268: =Time!H$92 -> 0 | I268: =Time!I$92 -> flag | J268: =Time!J$92 -> 0 | K268: =Time!K$92 -> 7 | L268: =Time!L$92 -> 0 | M268: =Time!M$92 -> 0 | N268: =Time!N$92 -> 1 | O268: =Time!O$92 -> 1 | P268: =Time!P$92 -> 1 | Q268: =Time!Q$92 -> 1 | R268: =Time!R$92 -> 1 | S268: =Time!S$92 -> 1 | T268: =Time!T$92 -> 1 | U268: =Time!U$92 -> 0
E269: Transmission split for legacy Dt capex - alert | H269: =IF( SUM(M269:U269) > 0, 1, 0) -> 0 | I269: alert | M269: =IF(($H266 - SUMIF($L268:M268, 1, $L267:M267)) >= 0, 0, 1) -> 0 | N269: =IF(($H266 - SUMIF($L268:N268, 1, $L267:N267)) >= 0, 0, 1) -> 0 | O269: =IF(($H266 - SUMIF($L268:O268, 1, $L267:O267)) >= 0, 0, 1) -> 0 | P269: =IF(($H266 - SUMIF($L268:P268, 1, $L267:P267)) >= 0, 0, 1) -> 0 | Q269: =IF(($H266 - SUMIF($L268:Q268, 1, $L267:Q267)) >= 0, 0, 1) -> 0 | R269: =IF(($H266 - SUMIF($L268:R268, 1, $L267:R267)) >= 0, 0, 1) -> 0 | S269: =IF(($H266 - SUMIF($L268:S268, 1, $L267:S267)) >= 0, 0, 1) -> 0 | T269: =IF(($H266 - SUMIF($L268:T268, 1, $L267:T267)) >= 0, 0, 1) -> 0 | U269: =IF(($H266 - SUMIF($L268:U268, 1, $L267:U267)) >= 0, 0, 1) -> 0
C272: 4.25 Demonstrably inefficient pass through capex exp.
E274: Demonstrably inefficient pass through capex exp. - TN | F274: 4.25: | G274: DIPTCE_TNt | I274: GBP m | J274: [Entitlement Model 28.11.16.xlsx]RP6 Transmission Inputs'!$A$47 | K274: =SUM(M274:U274) -> 0 | M274: 0 | N274: 0 | O274: 0 | P274: 0 | Q274: 0 | R274: 0 | S274: 0 | T274: 0 | U274: 0
E275: Demonstrably inefficient pass through capex exp. - RN | F275: 4.25: | G275: DIPTCE_RNt | I275: GBP m | J275: [Entitlement Model 28.11.16.xlsx]RP6 Transmission Inputs'!$A$79 | K275: =SUM(M275:U275) -> 0 | M275: 0 | N275: 0 | O275: 0 | P275: 0 | Q275: 0 | R275: 0 | S275: 0 | T275: 0 | U275: 0
E276: Demonstrably inefficient pass through capex exp. - NSI | F276: 4.25: | G276: DIPTCE_NSIt | I276: GBP m | J276: [Entitlement Model 28.11.16.xlsx]RP6 Transmission Inputs'!$A$111 | K276: =SUM(M276:U276) -> 0 | M276: 0 | N276: 0 | O276: 0 | P276: 0 | Q276: 0 | R276: 0 | S276: 0 | T276: 0 | U276: 0
E277: Demonstrably inefficient pass through capex exp. - T5Y | F277: 4.25: | G277: DIPTCE_T5Yt | I277: GBP m | J277: [Entitlement Model 28.11.16.xlsx]RP6 Transmission Inputs'!$A$143 | K277: =SUM(M277:U277) -> 0 | M277: 0 | N277: 0 | O277: 0 | P277: 0 | Q277: 0 | R277: 0 | S277: 0 | T277: 0 | U277: 0
C280: 4.30 Asset disposals
E282: Historic timeline | I282: date | M282: 2008 | N282: 2009 | O282: 2010 | P282: 2011 | Q282: 0 | R282: 0 | S282: 0 | T282: 0 | U282: 0
E283: Historic - asset disposals - TN | F283: 4.30: | G283: OCD_TNt | I283: GBP m | K283: =SUM(M283:U283) -> 0 | M283: 0 | N283: 0 | O283: 0 | P283: 0 | Q283: 0 | R283: 0 | S283: 0 | T283: 0 | U283: 0
E284: Historic - asset disposals - RN | F284: 4.30: | G284: OCD_RNt | I284: GBP m | K284: =SUM(M284:U284) -> 0 | M284: 0 | N284: 0 | O284: 0 | P284: 0 | Q284: 0 | R284: 0 | S284: 0 | T284: 0 | U284: 0
E285: Historic - asset disposals - NSI | F285: 4.30: | G285: OCD_NSIt | I285: GBP m | K285: =SUM(M285:U285) -> 0 | M285: 0 | N285: 0 | O285: 0 | P285: 0 | Q285: 0 | R285: 0 | S285: 0 | T285: 0 | U285: 0
E286: Historic - asset disposals - T5Y | F286: 4.30: | G286: OCD_T5Yt | I286: GBP m | K286: =SUM(M286:U286) -> 0 | M286: 0 | N286: 0 | O286: 0 | P286: 0 | Q286: 0 | R286: 0 | S286: 0 | T286: 0 | U286: 0
E289: Asset disposals - TN | F289: 4.30: | G289: OCD_TNt | I289: GBP m | J289: [Entitlement Model 28.11.16.xlsx]RP6 Transmission Inputs'!$A$50 | K289: =SUM(M289:U289) -> 0 | M289: 0 | N289: 0 | O289: 0 | P289: 0 | Q289: 0 | R289: 0 | S289: 0 | T289: 0 | U289: 0
E290: Asset disposals - RN | F290: 4.30: | G290: OCD_RNt | I290: GBP m | J290: [Entitlement Model 28.11.16.xlsx]RP6 Transmission Inputs'!$A$82 | K290: =SUM(M290:U290) -> 0 | M290: 0 | N290: 0 | O290: 0 | P290: 0 | Q290: 0 | R290: 0 | S290: 0 | T290: 0 | U290: 0
E291: Asset disposals - NSI | F291: 4.30: | G291: OCD_NSIt | I291: GBP m | J291: [Entitlement Model 28.11.16.xlsx]RP6 Transmission Inputs'!$A$114 | K291: =SUM(M291:U291) -> 0 | M291: 0 | N291: 0 | O291: 0 | P291: 0 | Q291: 0 | R291: 0 | S291: 0 | T291: 0 | U291: 0
E292: Asset disposals - T5Y | F292: 4.30: | G292: OCD_T5Yt | I292: GBP m | J292: [Entitlement Model 28.11.16.xlsx]RP6 Transmission Inputs'!$A$146 | K292: =SUM(M292:U292) -> 0 | M292: 0 | N292: 0 | O292: 0 | P292: 0 | Q292: 0 | R292: 0 | S292: 0 | T292: 0 | U292: 0
C295: 6.3 Opex incurred by the licensee - excl. PTOEt
E297: Opex incurred by the licensee - excl. PTOEt | F297: 6.3: | G297: QOEt | I297: GBP m | J297: [Entitlement Model 28.11.16.xlsx]RP6 Transmission Inputs'!$A$160 | K297: =SUM(M297:U297) -> 50.76291347 | M297: ='Licence Inp'!M421 / Index!$H$12 * Index!M$16 -> 0 | N297: ='Licence Inp'!N421 / Index!$H$12 * Index!N$16 -> 4.021549424 | O297: ='Licence Inp'!O421 / Index!$H$12 * Index!O$16 -> 7.976266802 | P297: ='Licence Inp'!P421 / Index!$H$12 * Index!P$16 -> 7.897404946 | Q297: ='Licence Inp'!Q421 / Index!$H$12 * Index!Q$16 -> 7.819286476 | R297: ='Licence Inp'!R421 / Index!$H$12 * Index!R$16 -> 7.764707549 | S297: ='Licence Inp'!S421 / Index!$H$12 * Index!S$16 -> 7.685035313 | T297: ='Licence Inp'!T421 / Index!$H$12 * Index!T$16 -> 7.598662956 | U297: ='Licence Inp'!U421 / Index!$H$12 * Index!U$16 -> 0
C300: 6.5 Demonstrably inefficient or wasteful expenditure - DIQOEt
E302: Demonstrably inefficient or wasteful expenditure | F302: 6.5: | G302: DIQOEt | I302: GBP m | J302: [Entitlement Model 28.11.16.xlsx]RP6 Transmission Inputs'!$A$161 | K302: =SUM(M302:U302) -> 0 | M302: 0 | N302: 0 | O302: 0 | P302: 0 | Q302: 0 | R302: 0 | S302: 0 | T302: 0 | U302: 0
C305: 6.7 Pass through opex expenditure
E307: Opex licence fee | F307: 6.7: | G307: OLFt | I307: GBP m | J307: [Entitlement Model 28.11.16.xlsx]RP6 Transmission Inputs'!$A$168 | K307: =SUM(M307:U307) -> 1.182143784 | M307: 0 | N307: =0.0909341372621901* Index!N16 / Index!H$12 -> 0.09093413726 | O307: =0.18186827452438* Index!O16 / Index!H$12 -> 0.1818682745 | P307: =0.18186827452438* Index!P16 / Index!H$12 -> 0.1818682745 | Q307: =0.18186827452438* Index!Q16 / Index!H$12 -> 0.1818682745 | R307: =0.18186827452438* Index!R16 / Index!H$12 -> 0.1818682745 | S307: =0.18186827452438* Index!S16 / Index!H$12 -> 0.1818682745 | T307: =0.18186827452438* Index!T16 / Index!H$12 -> 0.1818682745 | U307: 0
... 117 more rows

Sheet Inp_Depreciation
A1: =RIGHT(CELL("filename", $A$1), LEN(CELL("filename", $A$1)) - SEARCH("]", CELL("filename", $A$1))) -> Inp_Depreciation | H1: =IF('Actuals Inp'!H9=0,"15/16","Nominal") -> 15/16
E2: ='DL - C4 A'!E$22 -> Model period ending - RP1 | H2: =Check!$H$9 -> 0 | I2: Error chks | M2: ='DL - C4 A'!M$22 -> 1994-03-31 | N2: ='DL - C4 A'!N$22 -> 1995-03-31 | O2: ='DL - C4 A'!O$22 -> 1996-03-31 | P2: ='DL - C4 A'!P$22 -> 1997-03-31 | Q2: ='DL - C4 A'!Q$22 -> 1998-03-31 | R2: ='DL - C4 A'!R$22 -> 1999-03-31 | S2: ='DL - C4 A'!S$22 -> 2000-03-31 | T2: ='DL - C4 A'!T$22 -> 2001-03-31 | U2: ='DL - C4 A'!U$22 -> 2002-03-31 | V2: ='DL - C4 A'!V$22 -> 2003-03-31 | W2: ='DL - C4 A'!W$22 -> 2004-03-31 | X2: ='DL - C4 A'!X$22 -> 2005-03-31 | Y2: ='DL - C4 A'!Y$22 -> 2006-03-31 | Z2: ='DL - C4 A'!Z$22 -> 2007-03-31 | AA2: ='DL - C4 A'!AA$22 -> 2008-03-31 | AB2: ='DL - C4 A'!AB$22 -> 2009-03-31 | AC2: ='DL - C4 A'!AC$22 -> 2010-03-31 | AD2: ='DL - C4 A'!AD$22 -> 2011-03-31 | AE2: ='DL - C4 A'!AE$22 -> 2012-03-31 | AF2: ='DL - C4 A'!AF$22 -> 2013-03-31 | AG2: ='DL - C4 A'!AG$22 -> 2014-03-31 | AH2: ='DL - C4 A'!AH$22 -> 2015-03-31 | AI2: ='DL - C4 A'!AI$22 -> 2016-03-31 | AJ2: ='DL - C4 A'!AJ$22 -> 2017-03-31 | AK2: ='DL - C4 A'!AK$22 -> 2018-03-31 | AL2: ='DL - C4 A'!AL$22 -> 2019-03-31 | AM2: ='DL - C4 A'!AM$22 -> 2020-03-31 | AN2: ='DL - C4 A'!AN$22 -> 2021-03-31 | AO2: ='DL - C4 A'!AO$22 -> 2022-03-31 | AP2: ='DL - C4 A'!AP$22 -> 2023-03-31 | AQ2: ='DL - C4 A'!AQ$22 -> 2024-03-31 | AR2: ='DL - C4 A'!AR$22 -> 2025-03-31 | AS2: ='DL - C4 A'!AS$22 -> 2026-03-31 | AT2: ='DL - C4 A'!AT$22 -> 2027-03-31 | AU2: ='DL - C4 A'!AU$22 -> 2028-03-31 | AV2: ='DL - C4 A'!AV$22 -> 2029-03-31 | AW2: ='DL - C4 A'!AW$22 -> 2030-03-31 | AX2: ='DL - C4 A'!AX$22 -> 2031-03-31 | AY2: ='DL - C4 A'!AY$22 -> 2032-03-31 | AZ2: ='DL - C4 A'!AZ$22 -> 2033-03-31 | BA2: ='DL - C4 A'!BA$22 -> 2034-03-31 | BB2: ='DL - C4 A'!BB$22 -> 2035-03-31 | BC2: ='DL - C4 A'!BC$22 -> 2036-03-31 | BD2: ='DL - C4 A'!BD$22 -> 2037-03-31 | BE2: ='DL - C4 A'!BE$22 -> 2038-03-31 | BF2: ='DL - C4 A'!BF$22 -> 2039-03-31 | BG2: ='DL - C4 A'!BG$22 -> 2040-03-31 | BH2: ='DL - C4 A'!BH$22 -> 2041-03-31 | BI2: ='DL - C4 A'!BI$22 -> 2042-03-31 | BJ2: ='DL - C4 A'!BJ$22 -> 2043-03-31 | BK2: ='DL - C4 A'!BK$22 -> 2044-03-31 | BL2: ='DL - C4 A'!BL$22 -> 2045-03-31 | BM2: ='DL - C4 A'!BM$22 -> 2046-03-31 | BN2: ='DL - C4 A'!BN$22 -> 2047-03-31 | BO2: ='DL - C4 A'!BO$22 -> 2048-03-31 | BP2: ='DL - C4 A'!BP$22 -> 2049-03-31 | BQ2: ='DL - C4 A'!BQ$22 -> 2050-03-31 | BR2: ='DL - C4 A'!BR$22 -> 2051-03-31 | BS2: ='DL - C4 A'!BS$22 -> 2052-03-31 | BT2: ='DL - C4 A'!BT$22 -> 2053-03-31 | BU2: ='DL - C4 A'!BU$22 -> 2054-03-31 | BV2: ='DL - C4 A'!BV$22 -> 2055-03-31 | BW2: ='DL - C4 A'!BW$22 -> 2056-03-31 | BX2: ='DL - C4 A'!BX$22 -> 2057-03-31 | BY2: ='DL - C4 A'!BY$22 -> 2058-03-31 | BZ2: ='DL - C4 A'!BZ$22 -> 2059-03-31 | CA2: ='DL - C4 A'!CA$22 -> 2060-03-31
E3: Timeline label | H3: =Track!$M$2 -> 0 | I3: Track chgs | M3: RP1 | N3: RP1 | O3: RP1 | P3: RP1 | Q3: RP2 | R3: RP2 | S3: RP2 | T3: RP2 | U3: RP2 | V3: RP3 | W3: RP3 | X3: RP3 | Y3: RP3 | Z3: RP3 | AA3: RP4 | AB3: RP4 | AC3: RP4 | AD3: RP4 | AE3: RP4 | AF3: RP5 | AG3: RP5 | AH3: RP5 | AI3: RP5 | AJ3: RP5 | AK3: RP5 / RP6 | AL3: RP6 | AM3: RP6 | AN3: RP6 | AO3: RP6 | AP3: RP6 | AQ3: RP6 | AR3: Post RP6 | AS3: Post RP6 | AT3: Post RP6 | AU3: Post RP6 | AV3: Post RP6 | AW3: Post RP6 | AX3: Post RP6 | AY3: Post RP6 | AZ3: Post RP6 | BA3: Post RP6 | BB3: Post RP6 | BC3: Post RP6 | BD3: Post RP6 | BE3: Post RP6 | BF3: Post RP6 | BG3: Post RP6 | BH3: Post RP6 | BI3: Post RP6 | BJ3: Post RP6 | BK3: Post RP6 | BL3: Post RP6 | BM3: Post RP6 | BN3: Post RP6 | BO3: Post RP6 | BP3: Post RP6 | BQ3: Post RP6 | BR3: Post RP6 | BS3: Post RP6 | BT3: Post RP6 | BU3: Post RP6 | BV3: Post RP6 | BW3: Post RP6 | BX3: Post RP6 | BY3: Post RP6 | BZ3: Post RP6 | CA3: Post RP6
E4: ='DL - C4 A'!E$29 -> Financial year ending - RP1 | H4: =Check!$H$37 -> 0 | I4: Alerts | M4: ='DL - C4 A'!M$29 -> 1994 | N4: ='DL - C4 A'!N$29 -> 1995 | O4: ='DL - C4 A'!O$29 -> 1996 | P4: ='DL - C4 A'!P$29 -> 1997 | Q4: ='DL - C4 A'!Q$29 -> 1998 | R4: ='DL - C4 A'!R$29 -> 1999 | S4: ='DL - C4 A'!S$29 -> 2000 | T4: ='DL - C4 A'!T$29 -> 2001 | U4: ='DL - C4 A'!U$29 -> 2002 | V4: ='DL - C4 A'!V$29 -> 2003 | W4: ='DL - C4 A'!W$29 -> 2004 | X4: ='DL - C4 A'!X$29 -> 2005 | Y4: ='DL - C4 A'!Y$29 -> 2006 | Z4: ='DL - C4 A'!Z$29 -> 2007 | AA4: ='DL - C4 A'!AA$29 -> 2008 | AB4: ='DL - C4 A'!AB$29 -> 2009 | AC4: ='DL - C4 A'!AC$29 -> 2010 | AD4: ='DL - C4 A'!AD$29 -> 2011 | AE4: ='DL - C4 A'!AE$29 -> 2012 | AF4: ='DL - C4 A'!AF$29 -> 2013 | AG4: ='DL - C4 A'!AG$29 -> 2014 | AH4: ='DL - C4 A'!AH$29 -> 2015 | AI4: ='DL - C4 A'!AI$29 -> 2016 | AJ4: ='DL - C4 A'!AJ$29 -> 2017 | AK4: ='DL - C4 A'!AK$29 -> 2018 | AL4: ='DL - C4 A'!AL$29 -> 2019 | AM4: ='DL - C4 A'!AM$29 -> 2020 | AN4: ='DL - C4 A'!AN$29 -> 2021 | AO4: ='DL - C4 A'!AO$29 -> 2022 | AP4: ='DL - C4 A'!AP$29 -> 2023 | AQ4: ='DL - C4 A'!AQ$29 -> 2024 | AR4: ='DL - C4 A'!AR$29 -> 2025 | AS4: ='DL - C4 A'!AS$29 -> 2026 | AT4: ='DL - C4 A'!AT$29 -> 2027 | AU4: ='DL - C4 A'!AU$29 -> 2028 | AV4: ='DL - C4 A'!AV$29 -> 2029 | AW4: ='DL - C4 A'!AW$29 -> 2030 | AX4: ='DL - C4 A'!AX$29 -> 2031 | AY4: ='DL - C4 A'!AY$29 -> 2032 | AZ4: ='DL - C4 A'!AZ$29 -> 2033 | BA4: ='DL - C4 A'!BA$29 -> 2034 | BB4: ='DL - C4 A'!BB$29 -> 2035 | BC4: ='DL - C4 A'!BC$29 -> 2036 | BD4: ='DL - C4 A'!BD$29 -> 2037 | BE4: ='DL - C4 A'!BE$29 -> 2038 | BF4: ='DL - C4 A'!BF$29 -> 2039 | BG4: ='DL - C4 A'!BG$29 -> 2040 | BH4: ='DL - C4 A'!BH$29 -> 2041 | BI4: ='DL - C4 A'!BI$29 -> 2042 | BJ4: ='DL - C4 A'!BJ$29 -> 2043 | BK4: ='DL - C4 A'!BK$29 -> 2044 | BL4: ='DL - C4 A'!BL$29 -> 2045 | BM4: ='DL - C4 A'!BM$29 -> 2046 | BN4: ='DL - C4 A'!BN$29 -> 2047 | BO4: ='DL - C4 A'!BO$29 -> 2048 | BP4: ='DL - C4 A'!BP$29 -> 2049 | BQ4: ='DL - C4 A'!BQ$29 -> 2050 | BR4: ='DL - C4 A'!BR$29 -> 2051 | BS4: ='DL - C4 A'!BS$29 -> 2052 | BT4: ='DL - C4 A'!BT$29 -> 2053 | BU4: ='DL - C4 A'!BU$29 -> 2054 | BV4: ='DL - C4 A'!BV$29 -> 2055 | BW4: ='DL - C4 A'!BW$29 -> 2056 | BX4: ='DL - C4 A'!BX$29 -> 2057 | BY4: ='DL - C4 A'!BY$29 -> 2058 | BZ4: ='DL - C4 A'!BZ$29 -> 2059 | CA4: ='DL - C4 A'!CA$29 -> 2060
E5: ='DL - C4 A'!E$10 -> Model column counter - RP1 | F5: Para references | G5: Defined Term | H5: Constant | I5: Unit | K5: Total | M5: ='DL - C4 A'!M$10 -> 1 | N5: ='DL - C4 A'!N$10 -> 2 | O5: ='DL - C4 A'!O$10 -> 3 | P5: ='DL - C4 A'!P$10 -> 4 | Q5: ='DL - C4 A'!Q$10 -> 5 | R5: ='DL - C4 A'!R$10 -> 6 | S5: ='DL - C4 A'!S$10 -> 7 | T5: ='DL - C4 A'!T$10 -> 8 | U5: ='DL - C4 A'!U$10 -> 9 | V5: ='DL - C4 A'!V$10 -> 10 | W5: ='DL - C4 A'!W$10 -> 11 | X5: ='DL - C4 A'!X$10 -> 12 | Y5: ='DL - C4 A'!Y$10 -> 13 | Z5: ='DL - C4 A'!Z$10 -> 14 | AA5: ='DL - C4 A'!AA$10 -> 15 | AB5: ='DL - C4 A'!AB$10 -> 16 | AC5: ='DL - C4 A'!AC$10 -> 17 | AD5: ='DL - C4 A'!AD$10 -> 18 | AE5: ='DL - C4 A'!AE$10 -> 19 | AF5: ='DL - C4 A'!AF$10 -> 20 | AG5: ='DL - C4 A'!AG$10 -> 21 | AH5: ='DL - C4 A'!AH$10 -> 22 | AI5: ='DL - C4 A'!AI$10 -> 23 | AJ5: ='DL - C4 A'!AJ$10 -> 24 | AK5: ='DL - C4 A'!AK$10 -> 25 | AL5: ='DL - C4 A'!AL$10 -> 26 | AM5: ='DL - C4 A'!AM$10 -> 27 | AN5: ='DL - C4 A'!AN$10 -> 28 | AO5: ='DL - C4 A'!AO$10 -> 29 | AP5: ='DL - C4 A'!AP$10 -> 30 | AQ5: ='DL - C4 A'!AQ$10 -> 31 | AR5: ='DL - C4 A'!AR$10 -> 32 | AS5: ='DL - C4 A'!AS$10 -> 33 | AT5: ='DL - C4 A'!AT$10 -> 34 | AU5: ='DL - C4 A'!AU$10 -> 35 | AV5: ='DL - C4 A'!AV$10 -> 36 | AW5: ='DL - C4 A'!AW$10 -> 37 | AX5: ='DL - C4 A'!AX$10 -> 38 | AY5: ='DL - C4 A'!AY$10 -> 39 | AZ5: ='DL - C4 A'!AZ$10 -> 40 | BA5: ='DL - C4 A'!BA$10 -> 41 | BB5: ='DL - C4 A'!BB$10 -> 42 | BC5: ='DL - C4 A'!BC$10 -> 43 | BD5: ='DL - C4 A'!BD$10 -> 44 | BE5: ='DL - C4 A'!BE$10 -> 45 | BF5: ='DL - C4 A'!BF$10 -> 46 | BG5: ='DL - C4 A'!BG$10 -> 47 | BH5: ='DL - C4 A'!BH$10 -> 48 | BI5: ='DL - C4 A'!BI$10 -> 49 | BJ5: ='DL - C4 A'!BJ$10 -> 50 | BK5: ='DL - C4 A'!BK$10 -> 51 | BL5: ='DL - C4 A'!BL$10 -> 52 | BM5: ='DL - C4 A'!BM$10 -> 53 | BN5: ='DL - C4 A'!BN$10 -> 54 | BO5: ='DL - C4 A'!BO$10 -> 55 | BP5: ='DL - C4 A'!BP$10 -> 56 | BQ5: ='DL - C4 A'!BQ$10 -> 57 | BR5: ='DL - C4 A'!BR$10 -> 58 | BS5: ='DL - C4 A'!BS$10 -> 59 | BT5: ='DL - C4 A'!BT$10 -> 60 | BU5: ='DL - C4 A'!BU$10 -> 61 | BV5: ='DL - C4 A'!BV$10 -> 62 | BW5: ='DL - C4 A'!BW$10 -> 63 | BX5: ='DL - C4 A'!BX$10 -> 64 | BY5: ='DL - C4 A'!BY$10 -> 65 | BZ5: ='DL - C4 A'!BZ$10 -> 66 | CA5: ='DL - C4 A'!CA$10 -> 67
A7: TIME
E9: 1st model column start date - RP1 | H9: 1993-04-01 | I9: date
E11: First modelling column financial year number - RP1 | H11: 1994 | I11: year #
E13: Actuals override switch | H13: 0 | I13: 0 = off, 1 = on
E14: =Time!E$57 -> Pre - RP6 full period year end date | F14: =Time!F$57 -> 0 | G14: =Time!G$57 -> 0 | H14: =Time!H$57 -> 2017-03-31 | I14: =Time!I$57 -> date
E15: =Time!E$80 -> RP6 year end period date | F15: =Time!F$80 -> 0 | G15: =Time!G$80 -> 0 | H15: =Time!H$80 -> 2024-03-31 | I15: =Time!I$80 -> date
E16: Actuals override period end date | H16: =IF(H13 = 1, H15, H14) -> 2017-03-31 | I16: date
A19: DISTRIBUTION RAB
C21: Network depreciation rate
E23: Depreciation rate - first 20 years - DN | H23: 0.03 | I23: % | J23: [Entitlement Model 28.11.16.xlsx]Distribution D.'!E3
E24: Depreciation rate - last 20 years - DN | H24: 0.02 | I24: % | J24: [Entitlement Model 28.11.16.xlsx]Distribution D.'!E4
E25: Depreciation term for first rate - DN | H25: 20 | I25: years | J25: [Entitlement Model 28.11.16.xlsx]Distribution D.'!D3
E26: Depreciation term for last rate - DN | H26: 20 | I26: years | J26: [Entitlement Model 28.11.16.xlsx]Distribution D.'!D4
E28: Depreciation rate - first 20 years - ES | H28: 0.1 | I28: % | J28: [Entitlement Model 28.11.16.xlsx]Enduring Solution D.'!$D$2
E29: Depreciation rate - last 20 years - ES | H29: 0 | I29: %
E30: Depreciation term for first rate - ES | H30: 10 | I30: years | J30: [Entitlement Model 28.11.16.xlsx]Enduring Solution D.'!$C$2
E31: Depreciation term for last rate - ES | H31: 0 | I31: years
E32: Depreciation start grace period - ES | H32: 2 | I32: years | J32: [Entitlement Model 28.11.16.xlsx]Enduring Solution D.'!$Y$13
E34: Depreciation rate - first 20 years - MTRN | H34: 0.06666666667 | I34: % | J34: [140321 model.xlsx]Keypad D.'!$E$3
E35: Depreciation rate - last 20 years - MTRN | H35: 0 | I35: %
E36: Depreciation term for first rate - MTRN | H36: 15 | I36: years
E37: Depreciation term for last rate - MTRN | H37: 0 | I37: years
E39: Depreciation rate - first 20 years - RT | H39: 0.03 | I39: % | J39: [140321 model.xlsx]Rathlin D.'!E3
E40: Depreciation rate - last 20 years - RT | H40: 0.02 | I40: % | J40: [140321 model.xlsx]Rathlin D.'!E4
E41: Depreciation term for first rate - RT | H41: 20 | I41: years
E42: Depreciation term for last rate - RT | H42: 20 | I42: years
E44: Depreciation rate - first 20 years - FE | H44: 0.1 | I44: % | J44: [140321 model.xlsx]FEMO D.'!E3
E45: Depreciation rate - last 20 years - FE | H45: 0.2 | I45: % | J45: [140321 model.xlsx]FEMO D.'!E4
E46: Depreciation term for first rate - FE | H46: 10 | I46: years
E47: First depreciation term applicable till - FE | H47: 2012-03-31 | I47: date
E48: Depreciation term for last rate - FE | H48: 5 | I48: years
E50: Depreciation rate - first 20 years - NI | H50: 0.1 | I50: % | J50: [140321 model.xlsx]NI2007 D.'!E3
E51: Depreciation rate - last 20 years - NI | H51: 0.2 | I51: % | J51: [140321 model.xlsx]NI2007 D.'!E4
E52: Depreciation term for first rate - NI | H52: 10 | I52: years
E53: First depreciation term applicable till - NI | H53: 2012-03-31 | I53: date
E54: Depreciation term for last rate - NI | H54: 5 | I54: years
E56: Depreciation rate - first 20 years - D5Y | H56: 0.2 | I56: % | J56: [140321 model.xlsx]5 Year D.RAB D.'!$E$3
E57: Depreciation rate - last 20 years - D5Y | H57: 0 | I57: %
E58: Depreciation term for first rate - D5Y | H58: 5 | I58: years
E59: Depreciation term for last rate - D5Y | H59: 0 | I59: years
E61: Depreciation rate - first 20 years - MO5Y | H61: 0.2 | I61: % | J61: [Entitlement Model 28.11.16.xlsx]5 Year MO Dep '!$E$3
E62: Depreciation rate - last 20 years - MO5Y | H62: 0 | I62: %
E63: Depreciation term for first rate - MO5Y | H63: 5 | I63: years | J63: [Entitlement Model 28.11.16.xlsx]5 Year MO Dep '!$D$3
E64: Depreciation term for last rate - MO5Y | H64: 0 | I64: years
C67: Network capex addition override date
E69: ="Network capex addition override date - " & TEXT('Set Up'!H$34, "dd mmm yy") & " - MTRN" -> Network capex addition override date - 01 Apr 93 - MTRN | H69: 00:00:00 | I69: date
E70: ="Network capex addition override date - " & TEXT('Set Up'!H$35, "dd mmm yy") & " - MTRN" -> Network capex addition override date - 01 Apr 94 - MTRN | H70: 00:00:00 | I70: date
E71: ="Network capex addition override date - " & TEXT('Set Up'!H$36, "dd mmm yy") & " - MTRN" -> Network capex addition override date - 01 Apr 95 - MTRN | H71: 00:00:00 | I71: date
E72: ="Network capex addition override date - " & TEXT('Set Up'!H$37, "dd mmm yy") & " - MTRN" -> Network capex addition override date - 01 Apr 96 - MTRN | H72: 00:00:00 | I72: date
E73: ="Network capex addition override date - " & TEXT('Set Up'!H$38, "dd mmm yy") & " - MTRN" -> Network capex addition override date - 01 Apr 97 - MTRN | H73: 00:00:00 | I73: date
E74: ="Network capex addition override date - " & TEXT('Set Up'!H$39, "dd mmm yy") & " - MTRN" -> Network capex addition override date - 01 Apr 98 - MTRN | H74: 00:00:00 | I74: date
E75: ="Network capex addition override date - " & TEXT('Set Up'!H$40, "dd mmm yy") & " - MTRN" -> Network capex addition override date - 01 Apr 99 - MTRN | H75: 00:00:00 | I75: date
E76: ="Network capex addition override date - " & TEXT('Set Up'!H$41, "dd mmm yy") & " - MTRN" -> Network capex addition override date - 01 Apr 00 - MTRN | H76: 00:00:00 | I76: date
E77: ="Network capex addition override date - " & TEXT('Set Up'!H$42, "dd mmm yy") & " - MTRN" -> Network capex addition override date - 01 Apr 01 - MTRN | H77: 00:00:00 | I77: date
E78: ="Network capex addition override date - " & TEXT('Set Up'!H$43, "dd mmm yy") & " - MTRN" -> Network capex addition override date - 01 Apr 02 - MTRN | H78: 00:00:00 | I78: date
E79: ="Network capex addition override date - " & TEXT('Set Up'!H$44, "dd mmm yy") & " - MTRN" -> Network capex addition override date - 01 Apr 03 - MTRN | H79: 2018-11-30 | I79: date
E80: ="Network capex addition override date - " & TEXT('Set Up'!H$45, "dd mmm yy") & " - MTRN" -> Network capex addition override date - 01 Apr 04 - MTRN | H80: 00:00:00 | I80: date
E81: ="Network capex addition override date - " & TEXT('Set Up'!H$46, "dd mmm yy") & " - MTRN" -> Network capex addition override date - 01 Apr 05 - MTRN | H81: 00:00:00 | I81: date
E82: ="Network capex addition override date - " & TEXT('Set Up'!H$47, "dd mmm yy") & " - MTRN" -> Network capex addition override date - 01 Apr 06 - MTRN | H82: 00:00:00 | I82: date
E83: ="Network capex addition override date - " & TEXT('Set Up'!H$48, "dd mmm yy") & " - MTRN" -> Network capex addition override date - 01 Apr 07 - MTRN | H83: 00:00:00 | I83: date
E84: ="Network capex addition override date - " & TEXT('Set Up'!H$49, "dd mmm yy") & " - MTRN" -> Network capex addition override date - 01 Apr 08 - MTRN | H84: 00:00:00 | I84: date
E85: ="Network capex addition override date - " & TEXT('Set Up'!H$50, "dd mmm yy") & " - MTRN" -> Network capex addition override date - 01 Apr 09 - MTRN | H85: 00:00:00 | I85: date
E86: ="Network capex addition override date - " & TEXT('Set Up'!H$51, "dd mmm yy") & " - MTRN" -> Network capex addition override date - 01 Apr 10 - MTRN | H86: 00:00:00 | I86: date
E87: ="Network capex addition override date - " & TEXT('Set Up'!H$52, "dd mmm yy") & " - MTRN" -> Network capex addition override date - 01 Apr 11 - MTRN | H87: 00:00:00 | I87: date
E88: ="Network capex addition override date - " & TEXT('Set Up'!H$53, "dd mmm yy") & " - MTRN" -> Network capex addition override date - 01 Oct 12 - MTRN | H88: 00:00:00 | I88: date
E89: ="Network capex addition override date - " & TEXT('Set Up'!H$54, "dd mmm yy") & " - MTRN" -> Network capex addition override date - 01 Oct 13 - MTRN | H89: 00:00:00 | I89: date
E90: ="Network capex addition override date - " & TEXT('Set Up'!H$55, "dd mmm yy") & " - MTRN" -> Network capex addition override date - 01 Oct 14 - MTRN | H90: 00:00:00 | I90: date
E91: ="Network capex addition override date - " & TEXT('Set Up'!H$56, "dd mmm yy") & " - MTRN" -> Network capex addition override date - 01 Oct 15 - MTRN | H91: 00:00:00 | I91: date
E92: ="Network capex addition override date - " & TEXT('Set Up'!H$57, "dd mmm yy") & " - MTRN" -> Network capex addition override date - 01 Oct 16 - MTRN | H92: 00:00:00 | I92: date
E93: ="Network capex addition override date - " & TEXT('Set Up'!H$58, "dd mmm yy") & " - MTRN" -> Network capex addition override date - 01 Oct 17 - MTRN | H93: 00:00:00 | I93: date
C96: Network capex depreciation
E98: ="Network capex add - " & TEXT('Set Up'!H$35, "dd mmm yy") & " - price base " & BASE_YEAR & " - DN" -> Network capex add - 01 Apr 94 - price base 2016 - DN | H98: =25.4509206486486*( 'Actuals Inp'!$H$12 / 'Actuals Inp'!$H$11) -> 30.57645328 | I98: GBP m | J98: [Entitlement Model 28.11.16.xlsx]Distribution D.'!$F$13
E99: ="Network capex add - " & TEXT('Set Up'!H$35, "dd mmm yy") & " - price base " & BASE_YEAR & " - DN" -> Network capex add - 01 Apr 94 - price base 2016 - DN | H99: =44.6830676756756*( 'Actuals Inp'!$H$12 / 'Actuals Inp'!$H$11) -> 53.68174103 | I99: GBP m
E100: ="Network capex add - " & TEXT('Set Up'!H$36, "dd mmm yy") & " - price base " & BASE_YEAR & " - DN" -> Network capex add - 01 Apr 95 - price base 2016 - DN | H100: =52.0534936216216*( 'Actuals Inp'!$H$12 / 'Actuals Inp'!$H$11) -> 62.53648886 | I100: GBP m
E101: ="Network capex add - " & TEXT('Set Up'!H$37, "dd mmm yy") & " - price base " & BASE_YEAR & " - DN" -> Network capex add - 01 Apr 96 - price base 2016 - DN | H101: =56.8903057297297*( 'Actuals Inp'!$H$12 / 'Actuals Inp'!$H$11) -> 68.34738119 | I101: GBP m
E102: ="Network capex add - " & TEXT('Set Up'!H$38, "dd mmm yy") & " - price base " & BASE_YEAR & " - DN" -> Network capex add - 01 Apr 97 - price base 2016 - DN | H102: =55.4231351351351*( 'Actuals Inp'!$H$12 / 'Actuals Inp'!$H$11) -> 66.58473874 | I102: GBP m
E103: ="Network capex add - " & TEXT('Set Up'!H$39, "dd mmm yy") & " - price base " & BASE_YEAR & " - DN" -> Network capex add - 01 Apr 98 - price base 2016 - DN | H103: =56.2741621621621*( 'Actuals Inp'!$H$12 / 'Actuals Inp'!$H$11) -> 67.60715315 | I103: GBP m
E104: ="Network capex add - " & TEXT('Set Up'!H$40, "dd mmm yy") & " - price base " & BASE_YEAR & " - DN" -> Network capex add - 01 Apr 99 - price base 2016 - DN | H104: =77.3370810810811*( 'Actuals Inp'!$H$12 / 'Actuals Inp'!$H$11) -> 92.91190991 | I104: GBP m
E105: ="Network capex add - " & TEXT('Set Up'!H$41, "dd mmm yy") & " - price base " & BASE_YEAR & " - DN" -> Network capex add - 01 Apr 00 - price base 2016 - DN | H105: =77.6562162162162*( 'Actuals Inp'!$H$12 / 'Actuals Inp'!$H$11) -> 93.29531532 | I105: GBP m
E106: ="Network capex add - " & TEXT('Set Up'!H$42, "dd mmm yy") & " - price base " & BASE_YEAR & " - DN" -> Network capex add - 01 Apr 01 - price base 2016 - DN | H106: =61.0611891891892*( 'Actuals Inp'!$H$12 / 'Actuals Inp'!$H$11) -> 73.35823423 | I106: GBP m
E107: ="Network capex add - " & TEXT('Set Up'!H$43, "dd mmm yy") & " - price base " & BASE_YEAR & " - DN" -> Network capex add - 01 Apr 02 - price base 2016 - DN | H107: =47.2120172844148*( 'Actuals Inp'!$H$12 / 'Actuals Inp'!$H$11) -> 56.71999299 | I107: GBP m
E108: ="Network capex add - " & TEXT('Set Up'!H$44, "dd mmm yy") & " - price base " & BASE_YEAR & " - DN" -> Network capex add - 01 Apr 03 - price base 2016 - DN | H108: =48.1892085751048*( 'Actuals Inp'!$H$12 / 'Actuals Inp'!$H$11) -> 57.89397975 | I108: GBP m
E109: ="Network capex add - " & TEXT('Set Up'!H$45, "dd mmm yy") & " - price base " & BASE_YEAR & " - DN" -> Network capex add - 01 Apr 04 - price base 2016 - DN | H109: =39.3834790583884*( 'Actuals Inp'!$H$12 / 'Actuals Inp'!$H$11) -> 47.31487415 | I109: GBP m
E110: ="Network capex add - " & TEXT('Set Up'!H$46, "dd mmm yy") & " - price base " & BASE_YEAR & " - DN" -> Network capex add - 01 Apr 05 - price base 2016 - DN | H110: =44.2213630777321*( 'Actuals Inp'!$H$12 / 'Actuals Inp'!$H$11) -> 53.12705425 | I110: GBP m
E111: ="Network capex add - " & TEXT('Set Up'!H$47, "dd mmm yy") & " - price base " & BASE_YEAR & " - DN" -> Network capex add - 01 Apr 06 - price base 2016 - DN | H111: =49.7383742528777*( 'Actuals Inp'!$H$12 / 'Actuals Inp'!$H$11) -> 59.75513018 | I111: GBP m
E112: ="Network capex add - " & TEXT('Set Up'!H$48, "dd mmm yy") & " - price base " & BASE_YEAR & " - DN" -> Network capex add - 01 Apr 07 - price base 2016 - DN | H112: =52.0687841149463*( 'Actuals Inp'!$H$12 / 'Actuals Inp'!$H$11) -> 62.55485869 | I112: GBP m
E113: ="Network capex add - " & TEXT('Set Up'!H$49, "dd mmm yy") & " - price base " & BASE_YEAR & " - DN" -> Network capex add - 01 Apr 08 - price base 2016 - DN | H113: =58.0442323426114*( 'Actuals Inp'!$H$12 / 'Actuals Inp'!$H$11) -> 69.7336958 | I113: GBP m
E114: ="Network capex add - " & TEXT('Set Up'!H$50, "dd mmm yy") & " - price base " & BASE_YEAR & " - DN" -> Network capex add - 01 Apr 09 - price base 2016 - DN | H114: =58.74097935*( 'Actuals Inp'!$H$12 / 'Actuals Inp'!$H$11) -> 70.57075991 | I114: GBP m
E115: ="Network capex add - " & TEXT('Set Up'!H$51, "dd mmm yy") & " - price base " & BASE_YEAR & " - DN" -> Network capex add - 01 Apr 10 - price base 2016 - DN | H115: =58.6217329431353*( 'Actuals Inp'!$H$12 / 'Actuals Inp'!$H$11) -> 70.42749861 | I115: GBP m
E116: ="Network capex add - " & TEXT('Set Up'!H$52, "dd mmm yy") & " - price base " & BASE_YEAR & " - DN" -> Network capex add - 01 Apr 11 - price base 2016 - DN | H116: =54.2910627434916*( 'Actuals Inp'!$H$12 / 'Actuals Inp'!$H$11) -> 65.22467955 | I116: GBP m
E117: ="Network capex add - " & TEXT('Set Up'!H$53, "dd mmm yy") & " - price base " & BASE_YEAR & " - DN" -> Network capex add - 01 Oct 12 - price base 2016 - DN | H117: =42.104851773648*( 'Actuals Inp'!$H$12 / 'Actuals Inp'!$H$11) -> 50.58430109 | I117: GBP m
E118: ="Network capex add - " & TEXT('Set Up'!H$54, "dd mmm yy") & " - price base " & BASE_YEAR & " - DN" -> Network capex add - 01 Oct 13 - price base 2016 - DN | H118: =42.4663844595514*( 'Actuals Inp'!$H$12 / 'Actuals Inp'!$H$11) -> 51.01864244 | I118: GBP m
E119: ="Network capex add - " & TEXT('Set Up'!H$55, "dd mmm yy") & " - price base " & BASE_YEAR & " - DN" -> Network capex add - 01 Oct 14 - price base 2016 - DN | H119: =48.3172853317006*( 'Actuals Inp'!$H$12 / 'Actuals Inp'!$H$11) -> 58.04784974 | I119: GBP m
E120: ="Network capex add - " & TEXT('Set Up'!H$56, "dd mmm yy") & " - price base " & BASE_YEAR & " - DN" -> Network capex add - 01 Oct 15 - price base 2016 - DN | H120: =54.9011996058277*( 'Actuals Inp'!$H$12 / 'Actuals Inp'!$H$11) -> 65.95769119 | I120: GBP m
E121: ="Network capex add - " & TEXT('Set Up'!H$57, "dd mmm yy") & " - price base " & BASE_YEAR & " - DN" -> Network capex add - 01 Oct 16 - price base 2016 - DN | H121: =53.0463091797228*('Actuals Inp'!$H$12/'Actuals Inp'!$H$11) -> 63.72924645 | I121: GBP m
E122: ="Network capex add - " & TEXT('Set Up'!H$58, "dd mmm yy") & " - price base " & BASE_YEAR & " - DN" -> Network capex add - 01 Oct 17 - price base 2016 - DN | H122: =31.886803697571*('Actuals Inp'!$H$12 /'Actuals Inp'!$H$11) -> 38.30845166 | I122: GBP m
E124: ="Network capex add - " & TEXT('Set Up'!H$34, "dd mmm yy") & " - price base " & BASE_YEAR & " - ES" -> Network capex add - 01 Apr 93 - price base 2016 - ES | H124: =0*( 'Actuals Inp'!$H$12 / 'Actuals Inp'!$H$11) -> 0 | I124: GBP m | J124: [Entitlement Model 28.11.16.xlsx]Enduring Solution D.'!$E$13
E125: ="Network capex add - " & TEXT('Set Up'!H$35, "dd mmm yy") & " - price base " & BASE_YEAR & " - ES" -> Network capex add - 01 Apr 94 - price base 2016 - ES | H125: =0*( 'Actuals Inp'!$H$12 / 'Actuals Inp'!$H$11) -> 0 | I125: GBP m
E126: ="Network capex add - " & TEXT('Set Up'!H$36, "dd mmm yy") & " - price base " & BASE_YEAR & " - ES" -> Network capex add - 01 Apr 95 - price base 2016 - ES | H126: =0*( 'Actuals Inp'!$H$12 / 'Actuals Inp'!$H$11) -> 0 | I126: GBP m
E127: ="Network capex add - " & TEXT('Set Up'!H$37, "dd mmm yy") & " - price base " & BASE_YEAR & " - ES" -> Network capex add - 01 Apr 96 - price base 2016 - ES | H127: =0*( 'Actuals Inp'!$H$12 / 'Actuals Inp'!$H$11) -> 0 | I127: GBP m
E128: ="Network capex add - " & TEXT('Set Up'!H$38, "dd mmm yy") & " - price base " & BASE_YEAR & " - ES" -> Network capex add - 01 Apr 97 - price base 2016 - ES | H128: =0*( 'Actuals Inp'!$H$12 / 'Actuals Inp'!$H$11) -> 0 | I128: GBP m
E129: ="Network capex add - " & TEXT('Set Up'!H$39, "dd mmm yy") & " - price base " & BASE_YEAR & " - ES" -> Network capex add - 01 Apr 98 - price base 2016 - ES | H129: =0*( 'Actuals Inp'!$H$12 / 'Actuals Inp'!$H$11) -> 0 | I129: GBP m
E130: ="Network capex add - " & TEXT('Set Up'!H$40, "dd mmm yy") & " - price base " & BASE_YEAR & " - ES" -> Network capex add - 01 Apr 99 - price base 2016 - ES | H130: =0*( 'Actuals Inp'!$H$12 / 'Actuals Inp'!$H$11) -> 0 | I130: GBP m
E131: ="Network capex add - " & TEXT('Set Up'!H$41, "dd mmm yy") & " - price base " & BASE_YEAR & " - ES" -> Network capex add - 01 Apr 00 - price base 2016 - ES | H131: =0*( 'Actuals Inp'!$H$12 / 'Actuals Inp'!$H$11) -> 0 | I131: GBP m
E132: ="Network capex add - " & TEXT('Set Up'!H$42, "dd mmm yy") & " - price base " & BASE_YEAR & " - ES" -> Network capex add - 01 Apr 01 - price base 2016 - ES | H132: =0*( 'Actuals Inp'!$H$12 / 'Actuals Inp'!$H$11) -> 0 | I132: GBP m
E133: ="Network capex add - " & TEXT('Set Up'!H$43, "dd mmm yy") & " - price base " & BASE_YEAR & " - ES" -> Network capex add - 01 Apr 02 - price base 2016 - ES | H133: =0*( 'Actuals Inp'!$H$12 / 'Actuals Inp'!$H$11) -> 0 | I133: GBP m
E134: ="Network capex add - " & TEXT('Set Up'!H$44, "dd mmm yy") & " - price base " & BASE_YEAR & " - ES" -> Network capex add - 01 Apr 03 - price base 2016 - ES | H134: =0*( 'Actuals Inp'!$H$12 / 'Actuals Inp'!$H$11) -> 0 | I134: GBP m
E135: ="Network capex add - " & TEXT('Set Up'!H$45, "dd mmm yy") & " - price base " & BASE_YEAR & " - ES" -> Network capex add - 01 Apr 04 - price base 2016 - ES | H135: =0*( 'Actuals Inp'!$H$12 / 'Actuals Inp'!$H$11) -> 0 | I135: GBP m
E136: ="Network capex add - " & TEXT('Set Up'!H$46, "dd mmm yy") & " - price base " & BASE_YEAR & " - ES" -> Network capex add - 01 Apr 05 - price base 2016 - ES | H136: =0*( 'Actuals Inp'!$H$12 / 'Actuals Inp'!$H$11) -> 0 | I136: GBP m
E137: ="Network capex add - " & TEXT('Set Up'!H$47, "dd mmm yy") & " - price base " & BASE_YEAR & " - ES" -> Network capex add - 01 Apr 06 - price base 2016 - ES | H137: =0*( 'Actuals Inp'!$H$12 / 'Actuals Inp'!$H$11) -> 0 | I137: GBP m
E138: ="Network capex add - " & TEXT('Set Up'!H$48, "dd mmm yy") & " - price base " & BASE_YEAR & " - ES" -> Network capex add - 01 Apr 07 - price base 2016 - ES | H138: =0*( 'Actuals Inp'!$H$12 / 'Actuals Inp'!$H$11) -> 0 | I138: GBP m
E139: ="Network capex add - " & TEXT('Set Up'!H$49, "dd mmm yy") & " - price base " & BASE_YEAR & " - ES" -> Network capex add - 01 Apr 08 - price base 2016 - ES | H139: =0*( 'Actuals Inp'!$H$12 / 'Actuals Inp'!$H$11) -> 0 | I139: GBP m
E140: ="Network capex add - " & TEXT('Set Up'!H$50, "dd mmm yy") & " - price base " & BASE_YEAR & " - ES" -> Network capex add - 01 Apr 09 - price base 2016 - ES | H140: =0*( 'Actuals Inp'!$H$12 / 'Actuals Inp'!$H$11) -> 0 | I140: GBP m
E141: ="Network capex add - " & TEXT('Set Up'!H$51, "dd mmm yy") & " - price base " & BASE_YEAR & " - ES" -> Network capex add - 01 Apr 10 - price base 2016 - ES | H141: =10.1870362388699*( 'Actuals Inp'!$H$12 / 'Actuals Inp'!$H$11) -> 12.23859215 | I141: GBP m
E142: ="Network capex add - " & TEXT('Set Up'!H$52, "dd mmm yy") & " - price base " & BASE_YEAR & " - ES" -> Network capex add - 01 Apr 11 - price base 2016 - ES | H142: =11.0257431638167*( 'Actuals Inp'!$H$12 / 'Actuals Inp'!$H$11) -> 13.24620533 | I142: GBP m
E143: ="Network capex add - " & TEXT('Set Up'!H$53, "dd mmm yy") & " - price base " & BASE_YEAR & " - ES" -> Network capex add - 01 Oct 12 - price base 2016 - ES | H143: =5.9131363639853*( 'Actuals Inp'!$H$12 / 'Actuals Inp'!$H$11) -> 7.103976326 | I143: GBP m
E144: ="Network capex add - " & TEXT('Set Up'!H$54, "dd mmm yy") & " - price base " & BASE_YEAR & " - ES" -> Network capex add - 01 Oct 13 - price base 2016 - ES | H144: =0*( 'Actuals Inp'!$H$12 / 'Actuals Inp'!$H$11) -> 0 | I144: GBP m
E145: ="Network capex add - " & TEXT('Set Up'!H$55, "dd mmm yy") & " - price base " & BASE_YEAR & " - ES" -> Network capex add - 01 Oct 14 - price base 2016 - ES | H145: =0*( 'Actuals Inp'!$H$12 / 'Actuals Inp'!$H$11) -> 0 | I145: GBP m
E146: ="Network capex add - " & TEXT('Set Up'!H$56, "dd mmm yy") & " - price base " & BASE_YEAR & " - ES" -> Network capex add - 01 Oct 15 - price base 2016 - ES | H146: =0*( 'Actuals Inp'!$H$12 / 'Actuals Inp'!$H$11) -> 0 | I146: GBP m
E147: ="Network capex add - " & TEXT('Set Up'!H$57, "dd mmm yy") & " - price base " & BASE_YEAR & " - ES" -> Network capex add - 01 Oct 16 - price base 2016 - ES | H147: =0*( 'Actuals Inp'!$H$12 / 'Actuals Inp'!$H$11) -> 0 | I147: GBP m
E148: ="Network capex add - " & TEXT('Set Up'!H$58, "dd mmm yy") & " - price base " & BASE_YEAR & " - ES" -> Network capex add - 01 Oct 17 - price base 2016 - ES | H148: =0*( 'Actuals Inp'!$H$12 / 'Actuals Inp'!$H$11) -> 0 | I148: GBP m
E150: ="Network capex add - " & TEXT('Set Up'!H$34, "dd mmm yy") & " - price base " & BASE_YEAR & " - MTRN" -> Network capex add - 01 Apr 93 - price base 2016 - MTRN | H150: =0*( 'Actuals Inp'!$H$12 / 'Actuals Inp'!$H$11) -> 0 | I150: GBP m | J150: [140321 model.xlsx]Keypad RAB'!$A$11 + '[140321 model.xlsx]Keypad RAB'!$A$18
E151: ="Network capex add - " & TEXT('Set Up'!H$35, "dd mmm yy") & " - price base " & BASE_YEAR & " - MTRN" -> Network capex add - 01 Apr 94 - price base 2016 - MTRN | H151: =0*( 'Actuals Inp'!$H$12 / 'Actuals Inp'!$H$11) -> 0 | I151: GBP m
E152: ="Network capex add - " & TEXT('Set Up'!H$36, "dd mmm yy") & " - price base " & BASE_YEAR & " - MTRN" -> Network capex add - 01 Apr 95 - price base 2016 - MTRN | H152: =0*( 'Actuals Inp'!$H$12 / 'Actuals Inp'!$H$11) -> 0 | I152: GBP m
E153: ="Network capex add - " & TEXT('Set Up'!H$37, "dd mmm yy") & " - price base " & BASE_YEAR & " - MTRN" -> Network capex add - 01 Apr 96 - price base 2016 - MTRN | H153: =0*( 'Actuals Inp'!$H$12 / 'Actuals Inp'!$H$11) -> 0 | I153: GBP m
E154: ="Network capex add - " & TEXT('Set Up'!H$38, "dd mmm yy") & " - price base " & BASE_YEAR & " - MTRN" -> Network capex add - 01 Apr 97 - price base 2016 - MTRN | H154: =0*( 'Actuals Inp'!$H$12 / 'Actuals Inp'!$H$11) -> 0 | I154: GBP m
E155: ="Network capex add - " & TEXT('Set Up'!H$39, "dd mmm yy") & " - price base " & BASE_YEAR & " - MTRN" -> Network capex add - 01 Apr 98 - price base 2016 - MTRN | H155: =0*( 'Actuals Inp'!$H$12 / 'Actuals Inp'!$H$11) -> 0 | I155: GBP m
E156: ="Network capex add - " & TEXT('Set Up'!H$40, "dd mmm yy") & " - price base " & BASE_YEAR & " - MTRN" -> Network capex add - 01 Apr 99 - price base 2016 - MTRN | H156: =0*( 'Actuals Inp'!$H$12 / 'Actuals Inp'!$H$11) -> 0 | I156: GBP m
E157: ="Network capex add - " & TEXT('Set Up'!H$41, "dd mmm yy") & " - price base " & BASE_YEAR & " - MTRN" -> Network capex add - 01 Apr 00 - price base 2016 - MTRN | H157: =0*( 'Actuals Inp'!$H$12 / 'Actuals Inp'!$H$11) -> 0 | I157: GBP m
E158: ="Network capex add - " & TEXT('Set Up'!H$42, "dd mmm yy") & " - price base " & BASE_YEAR & " - MTRN" -> Network capex add - 01 Apr 01 - price base 2016 - MTRN | H158: =0*( 'Actuals Inp'!$H$12 / 'Actuals Inp'!$H$11) -> 0 | I158: GBP m
E159: ="Network capex add - " & TEXT('Set Up'!H$43, "dd mmm yy") & " - price base " & BASE_YEAR & " - MTRN" -> Network capex add - 01 Apr 02 - price base 2016 - MTRN | H159: =0*( 'Actuals Inp'!$H$12 / 'Actuals Inp'!$H$11) -> 0 | I159: GBP m
E160: ="Network capex add - " & TEXT('Set Up'!H$44, "dd mmm yy") & " - price base " & BASE_YEAR & " - MTRN" -> Network capex add - 01 Apr 03 - price base 2016 - MTRN | H160: =15.1820392532312*( 'Actuals Inp'!$H$12 / 'Actuals Inp'!$H$11) -> 18.23953327 | I160: GBP m
E161: ="Network capex add - " & TEXT('Set Up'!H$45, "dd mmm yy") & " - price base " & BASE_YEAR & " - MTRN" -> Network capex add - 01 Apr 04 - price base 2016 - MTRN | H161: =0*( 'Actuals Inp'!$H$12 / 'Actuals Inp'!$H$11) -> 0 | I161: GBP m
E162: ="Network capex add - " & TEXT('Set Up'!H$46, "dd mmm yy") & " - price base " & BASE_YEAR & " - MTRN" -> Network capex add - 01 Apr 05 - price base 2016 - MTRN | H162: =0*( 'Actuals Inp'!$H$12 / 'Actuals Inp'!$H$11) -> 0 | I162: GBP m
E163: ="Network capex add - " & TEXT('Set Up'!H$47, "dd mmm yy") & " - price base " & BASE_YEAR & " - MTRN" -> Network capex add - 01 Apr 06 - price base 2016 - MTRN | H163: =0*( 'Actuals Inp'!$H$12 / 'Actuals Inp'!$H$11) -> 0 | I163: GBP m
E164: ="Network capex add - " & TEXT('Set Up'!H$48, "dd mmm yy") & " - price base " & BASE_YEAR & " - MTRN" -> Network capex add - 01 Apr 07 - price base 2016 - MTRN | H164: =1.30739819281953*( 'Actuals Inp'!$H$12 / 'Actuals Inp'!$H$11) -> 1.570693662 | I164: GBP m | J164: ('[140321 model.xlsx]Keypad RAB'!$P$12)
E165: ="Network capex add - " & TEXT('Set Up'!H$49, "dd mmm yy") & " - price base " & BASE_YEAR & " - MTRN" -> Network capex add - 01 Apr 08 - price base 2016 - MTRN | H165: =2.32891552227836*( 'Actuals Inp'!$H$12 / 'Actuals Inp'!$H$11) -> 2.797933232 | I165: GBP m
E166: ="Network capex add - " & TEXT('Set Up'!H$50, "dd mmm yy") & " - price base " & BASE_YEAR & " - MTRN" -> Network capex add - 01 Apr 09 - price base 2016 - MTRN | H166: =1.90728402*( 'Actuals Inp'!$H$12 / 'Actuals Inp'!$H$11) -> 2.29138983 | I166: GBP m
E167: ="Network capex add - " & TEXT('Set Up'!H$51, "dd mmm yy") & " - price base " & BASE_YEAR & " - MTRN" -> Network capex add - 01 Apr 10 - price base 2016 - MTRN | H167: =1.87076547741364*( 'Actuals Inp'!$H$12 / 'Actuals Inp'!$H$11) -> 2.247516858 | I167: GBP m
E168: ="Network capex add - " & TEXT('Set Up'!H$52, "dd mmm yy") & " - price base " & BASE_YEAR & " - MTRN" -> Network capex add - 01 Apr 11 - price base 2016 - MTRN | H168: =1.86815825243697*( 'Actuals Inp'!$H$12 / 'Actuals Inp'!$H$11) -> 2.244384567 | I168: GBP m
E169: ="Network capex add - " & TEXT('Set Up'!H$53, "dd mmm yy") & " - price base " & BASE_YEAR & " - MTRN" -> Network capex add - 01 Oct 12 - price base 2016 - MTRN | H169: =4.71078727074446*( 'Actuals Inp'!$H$12 / 'Actuals Inp'!$H$11) -> 5.659487485 | I169: GBP m
E170: ="Network capex add - " & TEXT('Set Up'!H$54, "dd mmm yy") & " - price base " & BASE_YEAR & " - MTRN" -> Network capex add - 01 Oct 13 - price base 2016 - MTRN | H170: =4.51556174570393*( 'Actuals Inp'!$H$12 / 'Actuals Inp'!$H$11) -> 5.424945708 | I170: GBP m
E171: ="Network capex add - " & TEXT('Set Up'!H$55, "dd mmm yy") & " - price base " & BASE_YEAR & " - MTRN" -> Network capex add - 01 Oct 14 - price base 2016 - MTRN | H171: =4.52151356259206*( 'Actuals Inp'!$H$12 / 'Actuals Inp'!$H$11) -> 5.432096155 | I171: GBP m
E172: ="Network capex add - " & TEXT('Set Up'!H$56, "dd mmm yy") & " - price base " & BASE_YEAR & " - MTRN" -> Network capex add - 01 Oct 15 - price base 2016 - MTRN | H172: =5.32518694837578*( 'Actuals Inp'!$H$12 / 'Actuals Inp'!$H$11) -> 6.397620431 | I172: GBP m
E173: ="Network capex add - " & TEXT('Set Up'!H$57, "dd mmm yy") & " - price base " & BASE_YEAR & " - MTRN" -> Network capex add - 01 Oct 16 - price base 2016 - MTRN | H173: =9.53138681690679*( 'Actuals Inp'!$H$12 / 'Actuals Inp'!$H$11) -> 11.45090222 | I173: GBP m
E174: ="Network capex add - " & TEXT('Set Up'!H$58, "dd mmm yy") & " - price base " & BASE_YEAR & " - MTRN" -> Network capex add - 01 Oct 17 - price base 2016 - MTRN | H174: =6.1645*( 'Actuals Inp'!$H$12 / 'Actuals Inp'!$H$11) -> 7.405961806 | I174: GBP m
E176: ="Network capex add - " & TEXT('Set Up'!H$34, "dd mmm yy") & " - price base " & BASE_YEAR & " - RT" -> Network capex add - 01 Apr 93 - price base 2016 - RT | H176: =0*( 'Actuals Inp'!$H$12 / 'Actuals Inp'!$H$11) -> 0 | I176: GBP m | J176: [140321 model.xlsx]Rathlin RAB'!$A$12
E177: ="Network capex add - " & TEXT('Set Up'!H$35, "dd mmm yy") & " - price base " & BASE_YEAR & " - RT" -> Network capex add - 01 Apr 94 - price base 2016 - RT | H177: =0*( 'Actuals Inp'!$H$12 / 'Actuals Inp'!$H$11) -> 0 | I177: GBP m
E178: ="Network capex add - " & TEXT('Set Up'!H$36, "dd mmm yy") & " - price base " & BASE_YEAR & " - RT" -> Network capex add - 01 Apr 95 - price base 2016 - RT | H178: =0*( 'Actuals Inp'!$H$12 / 'Actuals Inp'!$H$11) -> 0 | I178: GBP m
E179: ="Network capex add - " & TEXT('Set Up'!H$37, "dd mmm yy") & " - price base " & BASE_YEAR & " - RT" -> Network capex add - 01 Apr 96 - price base 2016 - RT | H179: =0*( 'Actuals Inp'!$H$12 / 'Actuals Inp'!$H$11) -> 0 | I179: GBP m
E180: ="Network capex add - " & TEXT('Set Up'!H$38, "dd mmm yy") & " - price base " & BASE_YEAR & " - RT" -> Network capex add - 01 Apr 97 - price base 2016 - RT | H180: =0*( 'Actuals Inp'!$H$12 / 'Actuals Inp'!$H$11) -> 0 | I180: GBP m
E181: ="Network capex add - " & TEXT('Set Up'!H$39, "dd mmm yy") & " - price base " & BASE_YEAR & " - RT" -> Network capex add - 01 Apr 98 - price base 2016 - RT | H181: =0*( 'Actuals Inp'!$H$12 / 'Actuals Inp'!$H$11) -> 0 | I181: GBP m
E182: ="Network capex add - " & TEXT('Set Up'!H$40, "dd mmm yy") & " - price base " & BASE_YEAR & " - RT" -> Network capex add - 01 Apr 99 - price base 2016 - RT | H182: =0*( 'Actuals Inp'!$H$12 / 'Actuals Inp'!$H$11) -> 0 | I182: GBP m
E183: ="Network capex add - " & TEXT('Set Up'!H$41, "dd mmm yy") & " - price base " & BASE_YEAR & " - RT" -> Network capex add - 01 Apr 00 - price base 2016 - RT | H183: =0*( 'Actuals Inp'!$H$12 / 'Actuals Inp'!$H$11) -> 0 | I183: GBP m
E184: ="Network capex add - " & TEXT('Set Up'!H$42, "dd mmm yy") & " - price base " & BASE_YEAR & " - RT" -> Network capex add - 01 Apr 01 - price base 2016 - RT | H184: =0*( 'Actuals Inp'!$H$12 / 'Actuals Inp'!$H$11) -> 0 | I184: GBP m
E185: ="Network capex add - " & TEXT('Set Up'!H$43, "dd mmm yy") & " - price base " & BASE_YEAR & " - RT" -> Network capex add - 01 Apr 02 - price base 2016 - RT | H185: =0*( 'Actuals Inp'!$H$12 / 'Actuals Inp'!$H$11) -> 0 | I185: GBP m
E186: ="Network capex add - " & TEXT('Set Up'!H$44, "dd mmm yy") & " - price base " & BASE_YEAR & " - RT" -> Network capex add - 01 Apr 03 - price base 2016 - RT | H186: =0*( 'Actuals Inp'!$H$12 / 'Actuals Inp'!$H$11) -> 0 | I186: GBP m
E187: ="Network capex add - " & TEXT('Set Up'!H$45, "dd mmm yy") & " - price base " & BASE_YEAR & " - RT" -> Network capex add - 01 Apr 04 - price base 2016 - RT | H187: =0*( 'Actuals Inp'!$H$12 / 'Actuals Inp'!$H$11) -> 0 | I187: GBP m
E188: ="Network capex add - " & TEXT('Set Up'!H$46, "dd mmm yy") & " - price base " & BASE_YEAR & " - RT" -> Network capex add - 01 Apr 05 - price base 2016 - RT | H188: =0*( 'Actuals Inp'!$H$12 / 'Actuals Inp'!$H$11) -> 0 | I188: GBP m
E189: ="Network capex add - " & TEXT('Set Up'!H$47, "dd mmm yy") & " - price base " & BASE_YEAR & " - RT" -> Network capex add - 01 Apr 06 - price base 2016 - RT | H189: =0*( 'Actuals Inp'!$H$12 / 'Actuals Inp'!$H$11) -> 0 | I189: GBP m
E190: ="Network capex add - " & TEXT('Set Up'!H$48, "dd mmm yy") & " - price base " & BASE_YEAR & " - RT" -> Network capex add - 01 Apr 07 - price base 2016 - RT | H190: =4.51085465562077*( 'Actuals Inp'!$H$12 / 'Actuals Inp'!$H$11) -> 5.419290663 | I190: GBP m
E191: ="Network capex add - " & TEXT('Set Up'!H$49, "dd mmm yy") & " - price base " & BASE_YEAR & " - RT" -> Network capex add - 01 Apr 08 - price base 2016 - RT | H191: =0.0593811483693156*( 'Actuals Inp'!$H$12 / 'Actuals Inp'!$H$11) -> 0.07133985186 | I191: GBP m
E192: ="Network capex add - " & TEXT('Set Up'!H$50, "dd mmm yy") & " - price base " & BASE_YEAR & " - RT" -> Network capex add - 01 Apr 09 - price base 2016 - RT | H192: =0*( 'Actuals Inp'!$H$12 / 'Actuals Inp'!$H$11) -> 0 | I192: GBP m
E193: ="Network capex add - " & TEXT('Set Up'!H$51, "dd mmm yy") & " - price base " & BASE_YEAR & " - RT" -> Network capex add - 01 Apr 10 - price base 2016 - RT | H193: =0.01052259*( 'Actuals Inp'!$H$12 / 'Actuals Inp'!$H$11) -> 0.01264172271 | I193: GBP m
E194: ="Network capex add - " & TEXT('Set Up'!H$52, "dd mmm yy") & " - price base " & BASE_YEAR & " - RT" -> Network capex add - 01 Apr 11 - price base 2016 - RT | H194: =0*( 'Actuals Inp'!$H$12 / 'Actuals Inp'!$H$11) -> 0 | I194: GBP m
E195: ="Network capex add - " & TEXT('Set Up'!H$53, "dd mmm yy") & " - price base " & BASE_YEAR & " - RT" -> Network capex add - 01 Oct 12 - price base 2016 - RT | H195: =0*( 'Actuals Inp'!$H$12 / 'Actuals Inp'!$H$11) -> 0 | I195: GBP m
E196: ="Network capex add - " & TEXT('Set Up'!H$54, "dd mmm yy") & " - price base " & BASE_YEAR & " - RT" -> Network capex add - 01 Oct 13 - price base 2016 - RT | H196: =0*( 'Actuals Inp'!$H$12 / 'Actuals Inp'!$H$11) -> 0 | I196: GBP m
E197: ="Network capex add - " & TEXT('Set Up'!H$55, "dd mmm yy") & " - price base " & BASE_YEAR & " - RT" -> Network capex add - 01 Oct 14 - price base 2016 - RT | H197: =0*( 'Actuals Inp'!$H$12 / 'Actuals Inp'!$H$11) -> 0 | I197: GBP m
E198: ="Network capex add - " & TEXT('Set Up'!H$56, "dd mmm yy") & " - price base " & BASE_YEAR & " - RT" -> Network capex add - 01 Oct 15 - price base 2016 - RT | H198: =0*( 'Actuals Inp'!$H$12 / 'Actuals Inp'!$H$11) -> 0 | I198: GBP m
E199: ="Network capex add - " & TEXT('Set Up'!H$57, "dd mmm yy") & " - price base " & BASE_YEAR & " - RT" -> Network capex add - 01 Oct 16 - price base 2016 - RT | H199: =0*( 'Actuals Inp'!$H$12 / 'Actuals Inp'!$H$11) -> 0 | I199: GBP m
E200: ="Network capex add - " & TEXT('Set Up'!H$58, "dd mmm yy") & " - price base " & BASE_YEAR & " - RT" -> Network capex add - 01 Oct 17 - price base 2016 - RT | H200: =0*( 'Actuals Inp'!$H$12 / 'Actuals Inp'!$H$11) -> 0 | I200: GBP m | N200: ='DL - C3'!N38 -> 113.4168963 | O200: ='DL - C3'!O38 -> 179.9975669 | P200: ='DL - C3'!P38 -> 180.9157837 | Q200: ='DL - C3'!Q38 -> 181.196841 | R200: ='DL - C3'!R38 -> 182.4081234 | S200: ='DL - C3'!S38 -> 179.2070114 | T200: ='DL - C3'!T38 -> 178.5886773
N201: ='DL - C3'!N38 -> 113.4168963 | O201: ='DL - C3'!O38 -> 179.9975669 | P201: ='DL - C3'!P38 -> 180.9157837 | Q201: ='DL - C3'!Q38 -> 181.196841 | R201: ='DL - C3'!R38 -> 182.4081234 | S201: ='DL - C3'!S38 -> 179.2070114 | T201: ='DL - C3'!T38 -> 178.5886773
E202: ="Network capex add - " & TEXT('Set Up'!H$34, "dd mmm yy") & " - price base " & BASE_YEAR & " - FE" -> Network capex add - 01 Apr 93 - price base 2016 - FE | H202: =0*( 'Actuals Inp'!$H$12 / 'Actuals Inp'!$H$11) -> 0 | I202: GBP m | J202: [140321 model.xlsx]FEMO RAB'!$A$12:A13
E203: ="Network capex add - " & TEXT('Set Up'!H$35, "dd mmm yy") & " - price base " & BASE_YEAR & " - FE" -> Network capex add - 01 Apr 94 - price base 2016 - FE | H203: =0*( 'Actuals Inp'!$H$12 / 'Actuals Inp'!$H$11) -> 0 | I203: GBP m
E204: ="Network capex add - " & TEXT('Set Up'!H$36, "dd mmm yy") & " - price base " & BASE_YEAR & " - FE" -> Network capex add - 01 Apr 95 - price base 2016 - FE | H204: =0*( 'Actuals Inp'!$H$12 / 'Actuals Inp'!$H$11) -> 0 | I204: GBP m
E205: ="Network capex add - " & TEXT('Set Up'!H$37, "dd mmm yy") & " - price base " & BASE_YEAR & " - FE" -> Network capex add - 01 Apr 96 - price base 2016 - FE | H205: =0*( 'Actuals Inp'!$H$12 / 'Actuals Inp'!$H$11) -> 0 | I205: GBP m
E206: ="Network capex add - " & TEXT('Set Up'!H$38, "dd mmm yy") & " - price base " & BASE_YEAR & " - FE" -> Network capex add - 01 Apr 97 - price base 2016 - FE | H206: =0*( 'Actuals Inp'!$H$12 / 'Actuals Inp'!$H$11) -> 0 | I206: GBP m
E207: ="Network capex add - " & TEXT('Set Up'!H$39, "dd mmm yy") & " - price base " & BASE_YEAR & " - FE" -> Network capex add - 01 Apr 98 - price base 2016 - FE | H207: =0*( 'Actuals Inp'!$H$12 / 'Actuals Inp'!$H$11) -> 0 | I207: GBP m
E208: ="Network capex add - " & TEXT('Set Up'!H$40, "dd mmm yy") & " - price base " & BASE_YEAR & " - FE" -> Network capex add - 01 Apr 99 - price base 2016 - FE | H208: =0*( 'Actuals Inp'!$H$12 / 'Actuals Inp'!$H$11) -> 0 | I208: GBP m
E209: ="Network capex add - " & TEXT('Set Up'!H$41, "dd mmm yy") & " - price base " & BASE_YEAR & " - FE" -> Network capex add - 01 Apr 00 - price base 2016 - FE | H209: =0*( 'Actuals Inp'!$H$12 / 'Actuals Inp'!$H$11) -> 0 | I209: GBP m
E210: ="Network capex add - " & TEXT('Set Up'!H$42, "dd mmm yy") & " - price base " & BASE_YEAR & " - FE" -> Network capex add - 01 Apr 01 - price base 2016 - FE | H210: =0*( 'Actuals Inp'!$H$12 / 'Actuals Inp'!$H$11) -> 0 | I210: GBP m
E211: ="Network capex add - " & TEXT('Set Up'!H$43, "dd mmm yy") & " - price base " & BASE_YEAR & " - FE" -> Network capex add - 01 Apr 02 - price base 2016 - FE | H211: =0*( 'Actuals Inp'!$H$12 / 'Actuals Inp'!$H$11) -> 0 | I211: GBP m
E212: ="Network capex add - " & TEXT('Set Up'!H$44, "dd mmm yy") & " - price base " & BASE_YEAR & " - FE" -> Network capex add - 01 Apr 03 - price base 2016 - FE | H212: =0*( 'Actuals Inp'!$H$12 / 'Actuals Inp'!$H$11) -> 0 | I212: GBP m
E213: ="Network capex add - " & TEXT('Set Up'!H$45, "dd mmm yy") & " - price base " & BASE_YEAR & " - FE" -> Network capex add - 01 Apr 04 - price base 2016 - FE | H213: =6.87029993341389*( 'Actuals Inp'!$H$12 / 'Actuals Inp'!$H$11) -> 8.253902003 | I213: GBP m
E214: ="Network capex add - " & TEXT('Set Up'!H$46, "dd mmm yy") & " - price base " & BASE_YEAR & " - FE" -> Network capex add - 01 Apr 05 - price base 2016 - FE | H214: =4.35497637798219*( 'Actuals Inp'!$H$12 / 'Actuals Inp'!$H$11) -> 5.232020232 | I214: GBP m
E215: ="Network capex add - " & TEXT('Set Up'!H$47, "dd mmm yy") & " - price base " & BASE_YEAR & " - FE" -> Network capex add - 01 Apr 06 - price base 2016 - FE | H215: =2.37588469625488*( 'Actuals Inp'!$H$12 / 'Actuals Inp'!$H$11) -> 2.854361475 | I215: GBP m
E216: ="Network capex add - " & TEXT('Set Up'!H$48, "dd mmm yy") & " - price base " & BASE_YEAR & " - FE" -> Network capex add - 01 Apr 07 - price base 2016 - FE | H216: =0*( 'Actuals Inp'!$H$12 / 'Actuals Inp'!$H$11) -> 0 | I216: GBP m
E217: ="Network capex add - " & TEXT('Set Up'!H$49, "dd mmm yy") & " - price base " & BASE_YEAR & " - FE" -> Network capex add - 01 Apr 08 - price base 2016 - FE | H217: =0*( 'Actuals Inp'!$H$12 / 'Actuals Inp'!$H$11) -> 0 | I217: GBP m
E218: ="Network capex add - " & TEXT('Set Up'!H$50, "dd mmm yy") & " - price base " & BASE_YEAR & " - FE" -> Network capex add - 01 Apr 09 - price base 2016 - FE | H218: =0*( 'Actuals Inp'!$H$12 / 'Actuals Inp'!$H$11) -> 0 | I218: GBP m
E219: ="Network capex add - " & TEXT('Set Up'!H$51, "dd mmm yy") & " - price base " & BASE_YEAR & " - FE" -> Network capex add - 01 Apr 10 - price base 2016 - FE | H219: =0*( 'Actuals Inp'!$H$12 / 'Actuals Inp'!$H$11) -> 0 | I219: GBP m
E220: ="Network capex add - " & TEXT('Set Up'!H$52, "dd mmm yy") & " - price base " & BASE_YEAR & " - FE" -> Network capex add - 01 Apr 11 - price base 2016 - FE | H220: =0*( 'Actuals Inp'!$H$12 / 'Actuals Inp'!$H$11) -> 0 | I220: GBP m
E221: ="Network capex add - " & TEXT('Set Up'!H$53, "dd mmm yy") & " - price base " & BASE_YEAR & " - FE" -> Network capex add - 01 Oct 12 - price base 2016 - FE | H221: =0*( 'Actuals Inp'!$H$12 / 'Actuals Inp'!$H$11) -> 0 | I221: GBP m
E222: ="Network capex add - " & TEXT('Set Up'!H$54, "dd mmm yy") & " - price base " & BASE_YEAR & " - FE" -> Network capex add - 01 Oct 13 - price base 2016 - FE | H222: =0*( 'Actuals Inp'!$H$12 / 'Actuals Inp'!$H$11) -> 0 | I222: GBP m
E223: ="Network capex add - " & TEXT('Set Up'!H$55, "dd mmm yy") & " - price base " & BASE_YEAR & " - FE" -> Network capex add - 01 Oct 14 - price base 2016 - FE | H223: =0*( 'Actuals Inp'!$H$12 / 'Actuals Inp'!$H$11) -> 0 | I223: GBP m
E224: ="Network capex add - " & TEXT('Set Up'!H$56, "dd mmm yy") & " - price base " & BASE_YEAR & " - FE" -> Network capex add - 01 Oct 15 - price base 2016 - FE | H224: =0*( 'Actuals Inp'!$H$12 / 'Actuals Inp'!$H$11) -> 0 | I224: GBP m
... 573 more rows

Sheet Time
A1: =RIGHT(CELL("filename", $A$1), LEN(CELL("filename", $A$1)) - SEARCH("]", CELL("filename", $A$1))) -> Time | H1: =IF('Actuals Inp'!H9=0,"15/16","Nominal") -> 15/16
E2: =Time!E$23 -> Model period ending | H2: =Check!$H$9 -> 0 | I2: Error chks | M2: =Time!M$23 -> 2017-03-31 | N2: =Time!N$23 -> 2018-03-31 | O2: =Time!O$23 -> 2019-03-31 | P2: =Time!P$23 -> 2020-03-31 | Q2: =Time!Q$23 -> 2021-03-31 | R2: =Time!R$23 -> 2022-03-31 | S2: =Time!S$23 -> 2023-03-31 | T2: =Time!T$23 -> 2024-03-31 | U2: =Time!U$23 -> 2025-03-31
E3: =Time!E$154 -> Timeline label | H3: =Track!$M$2 -> 0 | I3: Track chgs | M3: =Time!M$154 -> RP5 | N3: =Time!N$154 -> RP5 / RP6 | O3: =Time!O$154 -> RP6 | P3: =Time!P$154 -> RP6 | Q3: =Time!Q$154 -> RP6 | R3: =Time!R$154 -> RP6 | S3: =Time!S$154 -> RP6 | T3: =Time!T$154 -> RP6 | U3: =Time!U$154 -> Post RP6
E4: =Time!E$36 -> Financial year ending | H4: =Check!$H$37 -> 0 | I4: Alerts | M4: =Time!M$36 -> 2017 | N4: =Time!N$36 -> 2018 | O4: =Time!O$36 -> 2019 | P4: =Time!P$36 -> 2020 | Q4: =Time!Q$36 -> 2021 | R4: =Time!R$36 -> 2022 | S4: =Time!S$36 -> 2023 | T4: =Time!T$36 -> 2024 | U4: =Time!U$36 -> 2025
E5: =Time!E$10 -> Model column counter | F5: Para references | G5: Defined Term | H5: Constant | I5: Unit | K5: Total | M5: =Time!M$10 -> 1 | N5: =Time!N$10 -> 2 | O5: =Time!O$10 -> 3 | P5: =Time!P$10 -> 4 | Q5: =Time!Q$10 -> 5 | R5: =Time!R$10 -> 6 | S5: =Time!S$10 -> 7 | T5: =Time!T$10 -> 8 | U5: =Time!U$10 -> 9
A7: MODEL PERIOD
B9: Model column counter
E10: Model column counter | I10: counter | M10: =L10 + 1 -> 1 | N10: 2 | O10: 3 | P10: 4 | Q10: 5 | R10: =Q10 + 1 -> 6 | S10: 7 | T10: 8 | U10: 9
E11: Model column total | H11: =MAX(M10:U10) -> 9 | I11: columns
E13: =E$10 -> Model column counter | F13: 0 | G13: 0 | H13: 0 | I13: counter | J13: 0 | K13: 0 | L13: 0 | M13: 1 | N13: 2 | O13: 3 | P13: 4 | Q13: 5 | R13: =R$10 -> 6 | S13: 7 | T13: 8 | U13: 9
E14: 1st Model column flag | I14: flag | K14: =SUM(M14:U14) -> 1 | M14: =IF(M13 = 1, 1, 0) -> 1 | N14: 0 | O14: 0 | P14: 0 | Q14: 0 | R14: =IF(R13 = 1, 1, 0) -> 0 | S14: 0 | T14: 0 | U14: 0
E16: ='Set Up'!E$13 -> 1st model column start date | F16: ='Set Up'!F$13 -> 00:00:00 | G16: ='Set Up'!G$13 -> 00:00:00 | H16: ='Set Up'!H$13 -> 2016-04-01 | I16: ='Set Up'!I$13 -> date
E17: ='Set Up'!E$14 -> Months per model period | F17: ='Set Up'!F$14 -> 0 | G17: ='Set Up'!G$14 -> 0 | H17: ='Set Up'!H$14 -> 12 | I17: ='Set Up'!I$14 -> months
E18: =E$14 -> 1st Model column flag | F18: 0 | G18: 0 | H18: 0 | I18: flag | J18: 0 | K18: 1 | L18: 0 | M18: 1 | N18: 0 | O18: 0 | P18: 0 | Q18: 0 | R18: =R$14 -> 0 | S18: 0 | T18: 0 | U18: 0
E19: Model period beginning | I19: date | M19: =IF(M18 = 1, $H16, DATE(YEAR(L19), MONTH(L19) + $H17, DAY(1))) -> 2016-04-01 | N19: 2017-04-01 | O19: 2018-04-01 | P19: 2019-04-01 | Q19: 2020-04-01 | R19: =IF(R18 = 1, $H16, DATE(YEAR(Q19), MONTH(Q19) + $H17, DAY(1))) -> 2021-04-01 | S19: 2022-04-01 | T19: 2023-04-01 | U19: 2024-04-01
E21: ='Set Up'!E$14 -> Months per model period | F21: ='Set Up'!F$14 -> 0 | G21: ='Set Up'!G$14 -> 0 | H21: ='Set Up'!H$14 -> 12 | I21: ='Set Up'!I$14 -> months
E22: =E$19 -> Model period beginning | F22: 00:00:00 | G22: 00:00:00 | H22: 00:00:00 | I22: date | J22: 00:00:00 | K22: 00:00:00 | L22: 00:00:00 | M22: 2016-04-01 | N22: 2017-04-01 | O22: 2018-04-01 | P22: 2019-04-01 | Q22: 2020-04-01 | R22: =R$19 -> 2021-04-01 | S22: 2022-04-01 | T22: 2023-04-01 | U22: 2024-04-01
E23: Model period ending | I23: date | M23: =DATE(YEAR(M22), MONTH(M22) + $H21, DAY(M22) -1) -> 2017-03-31 | N23: 2018-03-31 | O23: 2019-03-31 | P23: 2020-03-31 | Q23: 2021-03-31 | R23: =DATE(YEAR(R22), MONTH(R22) + $H21, DAY(R22) -1) -> 2022-03-31 | S23: 2023-03-31 | T23: 2024-03-31 | U23: 2025-03-31
E25: =E$23 -> Model period ending | F25: 00:00:00 | G25: 00:00:00 | H25: 00:00:00 | I25: date | J25: 00:00:00 | K25: 00:00:00 | L25: 00:00:00 | M25: 2017-03-31 | N25: 2018-03-31 | O25: 2019-03-31 | P25: 2020-03-31 | Q25: 2021-03-31 | R25: =R$23 -> 2022-03-31 | S25: 2023-03-31 | T25: 2024-03-31 | U25: 2025-03-31
D26: less | E26: =E$19 -> Model period beginning | F26: 00:00:00 | G26: 00:00:00 | H26: 00:00:00 | I26: date | J26: 00:00:00 | K26: 00:00:00 | L26: 00:00:00 | M26: 2016-04-01 | N26: 2017-04-01 | O26: 2018-04-01 | P26: 2019-04-01 | Q26: 2020-04-01 | R26: =R$19 -> 2021-04-01 | S26: 2022-04-01 | T26: 2023-04-01 | U26: 2024-04-01
E27: Days in model period | I27: days | K27: =SUM(M27:U27) -> 3287 | M27: =M25 - M26 + 1 -> 365 | N27: 365 | O27: 365 | P27: 366 | Q27: 365 | R27: =R25 - R26 + 1 -> 365 | S27: 365 | T27: 366 | U27: 365
A30: FINANCIAL YEAR
E32: ='Set Up'!E$16 -> First modelling column financial year number | F32: ='Set Up'!F$16 -> 0 | G32: ='Set Up'!G$16 -> 0 | H32: ='Set Up'!H$16 -> 2017 | I32: ='Set Up'!I$16 -> year #
E33: ='Set Up'!E$17 -> Financial year end month number | F33: ='Set Up'!F$17 -> 0 | G33: ='Set Up'!G$17 -> 0 | H33: ='Set Up'!H$17 -> 3 | I33: ='Set Up'!I$17 -> month #
E34: =E$23 -> Model period ending | F34: 00:00:00 | G34: 00:00:00 | H34: 00:00:00 | I34: date | J34: 00:00:00 | K34: 00:00:00 | L34: 00:00:00 | M34: 2017-03-31 | N34: 2018-03-31 | O34: 2019-03-31 | P34: 2020-03-31 | Q34: 2021-03-31 | R34: =R$23 -> 2022-03-31 | S34: 2023-03-31 | T34: 2024-03-31 | U34: 2025-03-31
E35: =E$14 -> 1st Model column flag | F35: 0 | G35: 0 | H35: 0 | I35: flag | J35: 0 | K35: 1 | L35: 0 | M35: 1 | N35: 0 | O35: 0 | P35: 0 | Q35: 0 | R35: =R$14 -> 0 | S35: 0 | T35: 0 | U35: 0
E36: Financial year ending | I36: year # | M36: =IF(M35 = 1, $H32, IF(M34 > (DATE(L36, $H33 + 1, 1) - 1), L36 + 1, L36)) -> 2017 | N36: 2018 | O36: 2019 | P36: 2020 | Q36: 2021 | R36: =IF(R35 = 1, $H32, IF(R34 > (DATE(Q36, $H33 + 1, 1) - 1), Q36 + 1, Q36)) -> 2022 | S36: 2023 | T36: 2024 | U36: 2025
A39: =ACTIVE_CASE & " PERIOD FLAGS" -> RP6 PERIOD FLAGS
B41: =$E$47 -> Pre - RP6 period flag
E42: ='Set Up'!E$25 -> RP6 period start date | F42: ='Set Up'!F$25 -> 00:00:00 | G42: ='Set Up'!G$25 -> 00:00:00 | H42: ='Set Up'!H$25 -> 2017-10-01 | I42: ='Set Up'!I$25 -> date
E43: ="Pre " & ACTIVE_CASE & " period end date" -> Pre RP6 period end date | H43: =H42 - 1 -> 2017-09-30 | I43: date
E45: =E$43 -> Pre RP6 period end date | F45: =F$43 -> 00:00:00 | G45: =G$43 -> 00:00:00 | H45: =H$43 -> 2017-09-30 | I45: =I$43 -> date
E46: =E$23 -> Model period ending | F46: 00:00:00 | G46: 00:00:00 | H46: 00:00:00 | I46: date | J46: 00:00:00 | K46: 00:00:00 | L46: 00:00:00 | M46: 2017-03-31 | N46: 2018-03-31 | O46: 2019-03-31 | P46: 2020-03-31 | Q46: 2021-03-31 | R46: 2022-03-31 | S46: 2023-03-31 | T46: 2024-03-31 | U46: 2025-03-31
E47: ="Pre - " & ACTIVE_CASE & " period flag" -> Pre - RP6 period flag | I47: flag | K47: =SUM(M47:U47) -> 1 | M47: =IF($H45 > M46, 1, 0 ) -> 1 | N47: 0 | O47: 0 | P47: 0 | Q47: 0 | R47: 0 | S47: 0 | T47: 0 | U47: 0
E48: =E47 & " total" -> Pre - RP6 period flag total | H48: =SUM(M47:U47) -> 1 | I48: columns
E50: =E$43 -> Pre RP6 period end date | F50: =F$43 -> 00:00:00 | G50: =G$43 -> 00:00:00 | H50: =H$43 -> 2017-09-30 | I50: =I$43 -> date
E51: =E$23 -> Model period ending | F51: 00:00:00 | G51: 00:00:00 | H51: 00:00:00 | I51: date | J51: 00:00:00 | K51: 00:00:00 | L51: 00:00:00 | M51: 2017-03-31 | N51: 2018-03-31 | O51: 2019-03-31 | P51: 2020-03-31 | Q51: 2021-03-31 | R51: 2022-03-31 | S51: 2023-03-31 | T51: 2024-03-31 | U51: 2025-03-31
E52: ='Set Up'!$H$19 & " period flag" -> RP5 period flag | I52: flag | K52: =SUM(M52:U52) -> 2 | M52: =IF($H50 > L51, 1, 0 ) -> 1 | N52: 1 | O52: 0 | P52: 0 | Q52: 0 | R52: 0 | S52: 0 | T52: 0 | U52: 0
E53: =E52 & " total" -> RP5 period flag total | H53: =SUM(M52:U52) -> 2 | I53: columns
E55: =E$23 -> Model period ending | F55: 00:00:00 | G55: 00:00:00 | H55: 00:00:00 | I55: date | J55: 00:00:00 | K55: 00:00:00 | L55: 00:00:00 | M55: 2017-03-31 | N55: 2018-03-31 | O55: 2019-03-31 | P55: 2020-03-31 | Q55: 2021-03-31 | R55: 2022-03-31 | S55: 2023-03-31 | T55: 2024-03-31 | U55: 2025-03-31
E56: =E$47 -> Pre - RP6 period flag | F56: 0 | G56: 0 | H56: 0 | I56: flag | J56: 0 | K56: 1 | L56: 0 | M56: 1 | N56: 0 | O56: 0 | P56: 0 | Q56: 0 | R56: 0 | S56: 0 | T56: 0 | U56: 0
E57: ="Pre - " & ACTIVE_CASE & " full period year end date" -> Pre - RP6 full period year end date | H57: =SUMPRODUCT(M55:U55, M56:U56) -> 2017-03-31 | I57: date
B59: =$E$62 -> Pre - RP6 end period flag
E60: =E$43 -> Pre RP6 period end date | F60: =F$43 -> 00:00:00 | G60: =G$43 -> 00:00:00 | H60: =H$43 -> 2017-09-30 | I60: =I$43 -> date
E61: =E$23 -> Model period ending | F61: 00:00:00 | G61: 00:00:00 | H61: 00:00:00 | I61: date | J61: 00:00:00 | K61: 00:00:00 | L61: 00:00:00 | M61: 2017-03-31 | N61: 2018-03-31 | O61: 2019-03-31 | P61: 2020-03-31 | Q61: 2021-03-31 | R61: 2022-03-31 | S61: 2023-03-31 | T61: 2024-03-31 | U61: 2025-03-31
E62: ="Pre - " & ACTIVE_CASE & " end period flag" -> Pre - RP6 end period flag | I62: flag | K62: =SUM(M62:U62) -> 1 | M62: =IF(AND(L61 < $H60, M61 >= $H60), 1, 0) -> 0 | N62: 1 | O62: 0 | P62: 0 | Q62: 0 | R62: 0 | S62: 0 | T62: 0 | U62: 0
B64: =$E$67 -> RP6 end period date
E65: ='Set Up'!E$25 -> RP6 period start date | F65: ='Set Up'!F$25 -> 00:00:00 | G65: ='Set Up'!G$25 -> 00:00:00 | H65: ='Set Up'!H$25 -> 2017-10-01 | I65: ='Set Up'!I$25 -> date
E66: ='Set Up'!E$26 -> Length of RP6 period | F66: ='Set Up'!F$26 -> 0 | G66: ='Set Up'!G$26 -> 0 | H66: ='Set Up'!H$26 -> 78 | I66: ='Set Up'!I$26 -> months
E67: =ACTIVE_CASE & " end period date" -> RP6 end period date | H67: =DATE(YEAR(H65), MONTH(H65) + H66, DAY(H65) - 1) -> 2024-03-31 | I67: date
B69: =$E$71 -> RP6 start period flag
E70: =E$47 -> Pre - RP6 period flag | F70: 0 | G70: 0 | H70: 0 | I70: flag | J70: 0 | K70: 1 | L70: 0 | M70: 1 | N70: 0 | O70: 0 | P70: 0 | Q70: 0 | R70: 0 | S70: 0 | T70: 0 | U70: 0
E71: =ACTIVE_CASE & " start period flag" -> RP6 start period flag | I71: flag | K71: =SUM(M71:U71) -> 1 | M71: =L70 -> 0 | N71: =M70 -> 1 | O71: 0 | P71: 0 | Q71: 0 | R71: =Q70 -> 0 | S71: 0 | T71: 0 | U71: 0
B73: =$E$76 -> RP6 end period flag
E74: =E$67 -> RP6 end period date | F74: =F$67 -> 00:00:00 | G74: 00:00:00 | H74: 2024-03-31 | I74: =I$67 -> date
E75: =E$23 -> Model period ending | F75: =F$23 -> 00:00:00 | G75: 0 | H75: 00:00:00 | I75: date | J75: 0 | K75: 00:00:00 | L75: 00:00:00 | M75: 2017-03-31 | N75: 2018-03-31 | O75: 2019-03-31 | P75: 2020-03-31 | Q75: 2021-03-31 | R75: =R$23 -> 2022-03-31 | S75: 2023-03-31 | T75: 2024-03-31 | U75: 2025-03-31
E76: =ACTIVE_CASE & " end period flag" -> RP6 end period flag | I76: flag | K76: =SUM(M76:U76) -> 1 | M76: =IF(AND(L75 < $H74, M75 >= $H74), 1, 0) -> 0 | N76: =IF(AND(M75 < $H74, N75 >= $H74), 1, 0) -> 0 | O76: =IF(AND(N75 < $H74, O75 >= $H74), 1, 0) -> 0 | P76: =IF(AND(O75 < $H74, P75 >= $H74), 1, 0) -> 0 | Q76: =IF(AND(P75 < $H74, Q75 >= $H74), 1, 0) -> 0 | R76: =IF(AND(Q75 < $H74, R75 >= $H74), 1, 0) -> 0 | S76: 0 | T76: 1 | U76: 0
E78: =E$23 -> Model period ending | F78: 00:00:00 | G78: 00:00:00 | H78: 00:00:00 | I78: date | J78: 00:00:00 | K78: 00:00:00 | L78: 00:00:00 | M78: 2017-03-31 | N78: 2018-03-31 | O78: 2019-03-31 | P78: 2020-03-31 | Q78: 2021-03-31 | R78: 2022-03-31 | S78: 2023-03-31 | T78: 2024-03-31 | U78: 2025-03-31
E79: =E$76 -> RP6 end period flag | F79: 0 | G79: 0 | H79: 0 | I79: flag | J79: 0 | K79: 1 | L79: 0 | M79: 0 | N79: 0 | O79: 0 | P79: 0 | Q79: 0 | R79: 0 | S79: 0 | T79: 1 | U79: 0
E80: =ACTIVE_CASE & " year end period date" -> RP6 year end period date | H80: =SUMPRODUCT(M78:U78, M79:U79) -> 2024-03-31 | I80: date
B82: =$E$87 -> Days in RP6 periods
E83: ='Set Up'!E$25 -> RP6 period start date | F83: ='Set Up'!F$25 -> 00:00:00 | G83: ='Set Up'!G$25 -> 00:00:00 | H83: ='Set Up'!H$25 -> 2017-10-01 | I83: ='Set Up'!I$25 -> date
E84: =E$67 -> RP6 end period date | F84: =F$67 -> 00:00:00 | G84: 00:00:00 | H84: 2024-03-31 | I84: =I$67 -> date
E85: =E$19 -> Model period beginning | F85: 00:00:00 | G85: 00:00:00 | H85: 00:00:00 | I85: date | J85: 00:00:00 | K85: 00:00:00 | L85: 00:00:00 | M85: 2016-04-01 | N85: 2017-04-01 | O85: 2018-04-01 | P85: 2019-04-01 | Q85: 2020-04-01 | R85: =R$19 -> 2021-04-01 | S85: 2022-04-01 | T85: 2023-04-01 | U85: 2024-04-01
E86: =E$23 -> Model period ending | F86: =F$23 -> 00:00:00 | G86: 00:00:00 | H86: 00:00:00 | I86: date | J86: 00:00:00 | K86: 00:00:00 | L86: 00:00:00 | M86: 2017-03-31 | N86: 2018-03-31 | O86: 2019-03-31 | P86: 2020-03-31 | Q86: 2021-03-31 | R86: =R$23 -> 2022-03-31 | S86: 2023-03-31 | T86: 2024-03-31 | U86: 2025-03-31
E87: ="Days in " & ACTIVE_CASE & " periods" -> Days in RP6 periods | I87: days | K87: =SUM(M87:U87) -> 2374 | M87: =MAX(0, (MIN($H84, M86) - MAX($H83, M85) + 1)) -> 0 | N87: =MAX(0, (MIN($H84, N86) - MAX($H83, N85) + 1)) -> 182 | O87: =MAX(0, (MIN($H84, O86) - MAX($H83, O85) + 1)) -> 365 | P87: 366 | Q87: 365 | R87: =MAX(0, (MIN($H84, R86) - MAX($H83, R85) + 1)) -> 365 | S87: 365 | T87: 366 | U87: 0
B89: =$E$92 -> RP6 period flag
E90: =E$71 -> RP6 start period flag | F90: =F$71 -> 0 | G90: 0 | H90: 0 | I90: flag | J90: 0 | K90: 1 | L90: 0 | M90: 0 | N90: 1 | O90: 0 | P90: 0 | Q90: 0 | R90: =R$71 -> 0 | S90: 0 | T90: 0 | U90: 0
E91: =E$76 -> RP6 end period flag | F91: =F$76 -> 0 | G91: 0 | H91: 0 | I91: flag | J91: 0 | K91: 1 | L91: 0 | M91: 0 | N91: 0 | O91: 0 | P91: 0 | Q91: 0 | R91: =R$76 -> 0 | S91: 0 | T91: 1 | U91: 0
E92: =ACTIVE_CASE & " period flag" -> RP6 period flag | I92: =I$76 -> flag | K92: =SUM(M92:U92) -> 7 | M92: =M90 + L92 - L91 -> 0 | N92: =N90 + M92 - M91 -> 1 | O92: 1 | P92: 1 | Q92: 1 | R92: =R90 + Q92 - Q91 -> 1 | S92: 1 | T92: 1 | U92: 0
E93: =ACTIVE_CASE & " period total" -> RP6 period total | H93: =SUM(M92:U92) -> 7 | I93: columns
B95: =$E$98 -> RP6 PPF- actual / actual
E96: =E$87 -> Days in RP6 periods | F96: =F$87 -> 0 | G96: 0 | H96: 0 | I96: days | J96: 0 | K96: 2374 | L96: 0 | M96: 0 | N96: 182 | O96: 365 | P96: 366 | Q96: 365 | R96: =R$87 -> 365 | S96: 365 | T96: 366 | U96: 0
E97: =E$27 -> Days in model period | F97: 0 | G97: 0 | H97: 0 | I97: days | J97: 0 | K97: 3287 | L97: 0 | M97: 365 | N97: 365 | O97: 365 | P97: 366 | Q97: 365 | R97: =R$27 -> 365 | S97: 365 | T97: 366 | U97: 365
E98: =ACTIVE_CASE & " PPF- actual / actual" -> RP6 PPF- actual / actual | I98: factor | K98: =SUM(M98:U98) -> 6.5 | M98: =ROUND(M96 / M97, 2) -> 0 | N98: 0.5 | O98: 1 | P98: 1 | Q98: 1 | R98: =ROUND(R96 / R97, 2) -> 1 | S98: 1 | T98: 1 | U98: 0
A101: ="POST " & ACTIVE_CASE & " FLAGS" -> POST RP6 FLAGS
B103: Post RP6 start period date
E104: =E$67 -> RP6 end period date | F104: =F$67 -> 00:00:00 | G104: 00:00:00 | H104: 2024-03-31 | I104: date
E105: ="Post " & ACTIVE_CASE & " start period date" -> Post RP6 start period date | H105: =H104 + 1 -> 2024-04-01 | I105: date
B107: Post RP6 start period flag
E108: =E$105 -> Post RP6 start period date | F108: =F$105 -> 00:00:00 | G108: 00:00:00 | H108: 2024-04-01 | I108: =I$105 -> date
E109: =E$23 -> Model period ending | F109: =F$23 -> 00:00:00 | G109: 0 | H109: 00:00:00 | I109: date | J109: 0 | K109: 00:00:00 | L109: 00:00:00 | M109: 2017-03-31 | N109: 2018-03-31 | O109: 2019-03-31 | P109: 2020-03-31 | Q109: 2021-03-31 | R109: =R$23 -> 2022-03-31 | S109: 2023-03-31 | T109: 2024-03-31 | U109: 2025-03-31
E110: ="Post " & ACTIVE_CASE & " start period flag" -> Post RP6 start period flag | I110: flag | K110: =SUM(M110:U110) -> 1 | M110: =IF(AND(L109 < $H108, M109 >= $H108), 1, 0) -> 0 | N110: =IF(AND(M109 < $H108, N109 >= $H108), 1, 0) -> 0 | O110: =IF(AND(N109 < $H108, O109 >= $H108), 1, 0) -> 0 | P110: =IF(AND(O109 < $H108, P109 >= $H108), 1, 0) -> 0 | Q110: =IF(AND(P109 < $H108, Q109 >= $H108), 1, 0) -> 0 | R110: =IF(AND(Q109 < $H108, R109 >= $H108), 1, 0) -> 0 | S110: 0 | T110: 0 | U110: 1
B112: =$E$114 -> Post RP6 period flag
E113: =E$110 -> Post RP6 start period flag | F113: =F$110 -> 0 | G113: 0 | H113: 0 | I113: flag | J113: 0 | K113: 1 | L113: 0 | M113: 0 | N113: 0 | O113: 0 | P113: 0 | Q113: 0 | R113: =R$110 -> 0 | S113: 0 | T113: 0 | U113: 1
E114: ="Post " & ACTIVE_CASE & " period flag" -> Post RP6 period flag | I114: flag | K114: =SUM(M114:U114) -> 1 | M114: =L114 + M113 -> 0 | N114: =M114 + N113 -> 0 | O114: =N114 + O113 -> 0 | P114: =O114 + P113 -> 0 | Q114: =P114 + Q113 -> 0 | R114: =Q114 + R113 -> 0 | S114: 0 | T114: 0 | U114: 1
E115: ="Post " & ACTIVE_CASE & " period total" -> Post RP6 period total | H115: =SUM(M114:U114) -> 1 | I115: columns
B117: =$E$119 -> First full RP6 start period flag
E118: =E$62 -> Pre - RP6 end period flag | F118: 0 | G118: 0 | H118: 0 | I118: flag | J118: 0 | K118: 1 | L118: 0 | M118: 0 | N118: 1 | O118: 0 | P118: 0 | Q118: 0 | R118: 0 | S118: 0 | T118: 0 | U118: 0
E119: ="First full " & ACTIVE_CASE & " start period flag" -> First full RP6 start period flag | I119: flag | K119: =SUM(M119:U119) -> 1 | M119: =L118 -> 0 | N119: =M118 -> 0 | O119: =N118 -> 1 | P119: =O118 -> 0 | Q119: =P118 -> 0 | R119: =Q118 -> 0 | S119: =R118 -> 0 | T119: =S118 -> 0 | U119: =T118 -> 0
B121: =$E$123 -> First full post RP6 start period flag
E122: =E$76 -> RP6 end period flag | F122: 0 | G122: 0 | H122: 0 | I122: flag | J122: 0 | K122: 1 | L122: 0 | M122: 0 | N122: 0 | O122: 0 | P122: 0 | Q122: 0 | R122: 0 | S122: 0 | T122: 1 | U122: 0
E123: ="First full post " & ACTIVE_CASE & " start period flag" -> First full post RP6 start period flag | I123: flag | K123: =SUM(M123:U123) -> 1 | M123: =L122 -> 0 | N123: =M122 -> 0 | O123: =N122 -> 0 | P123: =O122 -> 0 | Q123: =P122 -> 0 | R123: =Q122 -> 0 | S123: 0 | T123: 0 | U123: 1
B125: Model period check
E126: =E$52 -> RP5 period flag | F126: =F$52 -> 0 | G126: 0 | H126: 0 | I126: flag | J126: 0 | K126: 2 | L126: 0 | M126: 1 | N126: 1 | O126: 0 | P126: 0 | Q126: 0 | R126: 0 | S126: 0 | T126: 0 | U126: 0
E127: =E$92 -> RP6 period flag | F127: =F$92 -> 0 | G127: 0 | H127: 0 | I127: flag | J127: 0 | K127: 7 | L127: 0 | M127: 0 | N127: 1 | O127: 1 | P127: 1 | Q127: 1 | R127: =R$92 -> 1 | S127: 1 | T127: 1 | U127: 0
E128: =E$114 -> Post RP6 period flag | F128: =F$114 -> 0 | G128: 0 | H128: 0 | I128: flag | J128: 0 | K128: 1 | L128: 0 | M128: 0 | N128: 0 | O128: 0 | P128: 0 | Q128: 0 | R128: =R$114 -> 0 | S128: 0 | T128: 0 | U128: 1
E129: Start of regulatory part period | I129: flag | K129: =SUM(M129:U129) -> 1 | M129: =SUM(M126:M128) - 1 -> 0 | N129: 1 | O129: 0 | P129: 0 | Q129: 0 | R129: =SUM(R126:R128) - 1 -> 0 | S129: 0 | T129: 0 | U129: 0
E130: Overlapping flags - total | H130: =SUM(M129:U129) -> 1 | I130: #
E132: =E$11 -> Model column total | F132: =F$11 -> 0 | G132: 0 | H132: 9 | I132: =I$11 -> columns
E133: =E$53 -> RP5 period flag total | F133: =F$53 -> 0 | G133: 0 | H133: 2 | I133: columns
E134: =E$93 -> RP6 period total | F134: =F$93 -> 0 | G134: 0 | H134: 7 | I134: =I$93 -> columns
E135: =E$115 -> Post RP6 period total | F135: =F$115 -> 0 | G135: 0 | H135: 1 | I135: =I$115 -> columns
E136: =E$130 -> Overlapping flags - total | F136: =F$130 -> 0 | G136: =G$130 -> 0 | H136: =H$130 -> 1 | I136: =I$130 -> #
E137: Modelling period check | H137: =IF(H132 - (SUM(H133:H135) - H136) <> 0, 1, 0) -> 0 | I137: check
B139: Timeline label counter
E140: =E$14 -> 1st Model column flag | F140: 0 | G140: 0 | H140: 0 | I140: flag | J140: 0 | K140: 1 | L140: =L$14 -> 0 | M140: 1 | N140: 0 | O140: 0 | P140: 0 | Q140: 0 | R140: 0 | S140: 0 | T140: 0 | U140: 0
E141: =E$71 -> RP6 start period flag | F141: =F$71 -> 0 | G141: 0 | H141: 0 | I141: flag | J141: 0 | K141: 1 | L141: =L$71 -> 0 | M141: 0 | N141: 1 | O141: 0 | P141: 0 | Q141: 0 | R141: 0 | S141: 0 | T141: 0 | U141: 0
E142: =E$119 -> First full RP6 start period flag | F142: 0 | G142: 0 | H142: 0 | I142: flag | J142: 0 | K142: 1 | L142: =L$119 -> 0 | M142: 0 | N142: 0 | O142: 1 | P142: 0 | Q142: 0 | R142: 0 | S142: 0 | T142: 0 | U142: 0
E143: =E$110 -> Post RP6 start period flag | F143: 0 | G143: 0 | H143: 0 | I143: flag | J143: 0 | K143: 1 | L143: =L$110 -> 0 | M143: 0 | N143: 0 | O143: 0 | P143: 0 | Q143: 0 | R143: 0 | S143: 0 | T143: 0 | U143: 1
E144: =E$123 -> First full post RP6 start period flag | F144: 0 | G144: 0 | H144: 0 | I144: flag | J144: 0 | K144: 1 | L144: =L$123 -> 0 | M144: 0 | N144: 0 | O144: 0 | P144: 0 | Q144: 0 | R144: 0 | S144: 0 | T144: 0 | U144: 1
E145: Timeline label counter | I145: counter | M145: =L145 + SUM(M140:M144) -> 1 | N145: 2 | O145: 3 | P145: 3 | Q145: 3 | R145: 3 | S145: 3 | T145: 3 | U145: 5
C147: Timeline label
E148: ='Set Up'!E$19 -> Pre RP6 period | F148: ='Set Up'!F$19 -> 0 | G148: ='Set Up'!G$19 -> 0 | H148: ='Set Up'!H$19 -> RP5 | I148: ='Set Up'!I$19 -> label
E149: ='Set Up'!E$20 -> RP5 / RP6 period label | F149: ='Set Up'!F$20 -> 0 | G149: ='Set Up'!G$20 -> 0 | H149: ='Set Up'!H$20 -> RP5 / RP6 | I149: ='Set Up'!I$20 -> label
E150: ='Set Up'!E$21 -> RP6 period label | F150: ='Set Up'!F$21 -> 0 | G150: ='Set Up'!G$21 -> 0 | H150: ='Set Up'!H$21 -> RP6 | I150: ='Set Up'!I$21 -> label
E151: ='Set Up'!E$22 -> RP6 / Post RP6 period label | F151: ='Set Up'!F$22 -> 0 | G151: ='Set Up'!G$22 -> 0 | H151: ='Set Up'!H$22 -> RP6 / Post RP6 | I151: ='Set Up'!I$22 -> label
E152: ='Set Up'!E$23 -> Post RP6 period | F152: ='Set Up'!F$23 -> 0 | G152: ='Set Up'!G$23 -> 0 | H152: ='Set Up'!H$23 -> Post RP6 | I152: ='Set Up'!I$23 -> label
E153: =E$145 -> Timeline label counter | F153: 0 | G153: 0 | H153: 0 | I153: counter | J153: 0 | K153: 0 | L153: 0 | M153: 1 | N153: 2 | O153: 3 | P153: 3 | Q153: 3 | R153: =R$145 -> 3 | S153: 3 | T153: 3 | U153: 5
E154: Timeline label | I154: label | M154: =INDEX($H148:$H152, M153) -> RP5 | N154: RP5 / RP6 | O154: RP6 | P154: RP6 | Q154: RP6 | R154: =INDEX($H148:$H152, R153) -> RP6 | S154: RP6 | T154: =INDEX($H148:$H152, T153) -> RP6 | U154: =INDEX($H148:$H152, U153) -> Post RP6
N200: ='DL - C3'!N38 -> 113.4168963 | O200: ='DL - C3'!O38 -> 179.9975669 | P200: ='DL - C3'!P38 -> 180.9157837 | Q200: ='DL - C3'!Q38 -> 181.196841 | R200: ='DL - C3'!R38 -> 182.4081234 | S200: ='DL - C3'!S38 -> 179.2070114 | T200: ='DL - C3'!T38 -> 178.5886773
N201: ='DL - C3'!N38 -> 113.4168963 | O201: ='DL - C3'!O38 -> 179.9975669 | P201: ='DL - C3'!P38 -> 180.9157837 | Q201: ='DL - C3'!Q38 -> 181.196841 | R201: ='DL - C3'!R38 -> 182.4081234 | S201: ='DL - C3'!S38 -> 179.2070114 | T201: ='DL - C3'!T38 -> 178.5886773

Sheet Index
A1: =RIGHT(CELL("filename", $A$1), LEN(CELL("filename", $A$1)) - SEARCH("]", CELL("filename", $A$1))) -> Index | H1: =IF('Actuals Inp'!H9=0,"15/16","Nominal") -> 15/16
E2: =Time!E$23 -> Model period ending | H2: =Check!$H$9 -> 0 | I2: Error chks | M2: =Time!M$23 -> 2017-03-31 | N2: =Time!N$23 -> 2018-03-31 | O2: =Time!O$23 -> 2019-03-31 | P2: =Time!P$23 -> 2020-03-31 | Q2: =Time!Q$23 -> 2021-03-31 | R2: =Time!R$23 -> 2022-03-31 | S2: =Time!S$23 -> 2023-03-31 | T2: =Time!T$23 -> 2024-03-31 | U2: =Time!U$23 -> 2025-03-31
E3: =Time!E$154 -> Timeline label | H3: =Track!$M$2 -> 0 | I3: Track chgs | M3: =Time!M$154 -> RP5 | N3: =Time!N$154 -> RP5 / RP6 | O3: =Time!O$154 -> RP6 | P3: =Time!P$154 -> RP6 | Q3: =Time!Q$154 -> RP6 | R3: =Time!R$154 -> RP6 | S3: =Time!S$154 -> RP6 | T3: =Time!T$154 -> RP6 | U3: =Time!U$154 -> Post RP6
E4: =Time!E$36 -> Financial year ending | H4: =Check!$H$37 -> 0 | I4: Alerts | M4: =Time!M$36 -> 2017 | N4: =Time!N$36 -> 2018 | O4: =Time!O$36 -> 2019 | P4: =Time!P$36 -> 2020 | Q4: =Time!Q$36 -> 2021 | R4: =Time!R$36 -> 2022 | S4: =Time!S$36 -> 2023 | T4: =Time!T$36 -> 2024 | U4: =Time!U$36 -> 2025
E5: =Time!E$10 -> Model column counter | F5: Para references | G5: Defined Term | H5: Constant | I5: Unit | K5: Total | M5: =Time!M$10 -> 1 | N5: =Time!N$10 -> 2 | O5: =Time!O$10 -> 3 | P5: =Time!P$10 -> 4 | Q5: =Time!Q$10 -> 5 | R5: =Time!R$10 -> 6 | S5: =Time!S$10 -> 7 | T5: =Time!T$10 -> 8 | U5: =Time!U$10 -> 9
A7: INDEXATION FACTOR
B9: Indexation factor
E11: ='Actuals Inp'!E$9 -> RPI switch | F11: ='Actuals Inp'!F$9 -> 0 | G11: ='Actuals Inp'!G$9 -> 0 | H11: ='Actuals Inp'!H$9 -> 0 | I11: ='Actuals Inp'!I$9 -> 0 = off, 1 = on
E12: ='Actuals Inp'!E$12 -> RPI as on 2015/16 - (Base year 1993/94) | F12: ='Actuals Inp'!F$12 -> 0 | G12: ='Actuals Inp'!G$12 -> RPI2016 | H12: ='Actuals Inp'!H$12 -> 259.5 | I12: ='Actuals Inp'!I$12 -> index
E13: ='Actuals Inp'!E$21 -> RPI - as on March each year (Base year 1993/94) | F13: ='Actuals Inp'!F$21 -> * Not linked | G13: ='Actuals Inp'!G$21 -> 0 | H13: ='Actuals Inp'!H$21 -> 0 | I13: ='Actuals Inp'!I$21 -> index | J13: ='Actuals Inp'!J$21 -> As per client file received on 16 Jan 2017 | K13: ='Actuals Inp'!K$21 -> 0 | L13: ='Actuals Inp'!L$21 -> 0 | M13: ='Actuals Inp'!M$21 -> 264.8 | N13: ='Actuals Inp'!N$21 -> 273.538 | O13: ='Actuals Inp'!O$21 -> 0 | P13: ='Actuals Inp'!P$21 -> 0 | Q13: ='Actuals Inp'!Q$21 -> 0 | R13: ='Actuals Inp'!R$21 -> 0 | S13: ='Actuals Inp'!S$21 -> 0 | T13: ='Actuals Inp'!T$21 -> 0 | U13: ='Actuals Inp'!U$21 -> 0
E14: ='Actuals Inp'!E$22 -> Indexation rate - Installation | F14: ='Actuals Inp'!F$22 -> 0 | G14: ='Actuals Inp'!G$22 -> 0 | H14: ='Actuals Inp'!H$22 -> 0 | I14: ='Actuals Inp'!I$22 -> % | J14: ='Actuals Inp'!J$22 -> As per client file received on 16 Jan 2017 | K14: ='Actuals Inp'!K$22 -> 0 | L14: ='Actuals Inp'!L$22 -> 0 | M14: ='Actuals Inp'!M$22 -> 0 | N14: ='Actuals Inp'!N$22 -> 0 | O14: ='Actuals Inp'!O$22 -> 0.033 | P14: ='Actuals Inp'!P$22 -> 0.033 | Q14: ='Actuals Inp'!Q$22 -> 0.033 | R14: ='Actuals Inp'!R$22 -> 0.033 | S14: ='Actuals Inp'!S$22 -> 0.033 | T14: ='Actuals Inp'!T$22 -> 0.033 | U14: ='Actuals Inp'!U$22 -> 0.033
E15: =Time!E$47 -> Pre - RP6 period flag | F15: =Time!F$47 -> 0 | G15: =Time!G$47 -> 0 | H15: =Time!H$47 -> 0 | I15: =Time!I$47 -> flag | J15: =Time!J$47 -> 0 | K15: =Time!K$47 -> 1 | L15: =Time!L$47 -> 0 | M15: =Time!M$47 -> 1 | N15: =Time!N$47 -> 0 | O15: =Time!O$47 -> 0 | P15: =Time!P$47 -> 0 | Q15: =Time!Q$47 -> 0 | R15: =Time!R$47 -> 0 | S15: =Time!S$47 -> 0 | T15: =Time!T$47 -> 0 | U15: =Time!U$47 -> 0
E16: RPI index (Base year 1993/94) | G16: RPIt | I16: index | M16: =IF($H11 = 1, IF(M15 = 1, M13, IF(M13 <> 0, M13, L16 * (1 + M14))), $H12) -> 259.5 | N16: 259.5 | O16: 259.5 | P16: 259.5 | Q16: 259.5 | R16: =IF($H11 = 1, IF(R15 = 1, R13, IF(R13 <> 0, R13, Q16 * (1 + R14))), $H12) -> 259.5 | S16: 259.5 | T16: 259.5 | U16: 259.5
B19: RPI index - without switch
E21: ='Actuals Inp'!E$12 -> RPI as on 2015/16 - (Base year 1993/94) | F21: ='Actuals Inp'!F$12 -> 0 | G21: ='Actuals Inp'!G$12 -> RPI2016 | H21: ='Actuals Inp'!H$12 -> 259.5 | I21: ='Actuals Inp'!I$12 -> index
E22: ='Actuals Inp'!E$21 -> RPI - as on March each year (Base year 1993/94) | F22: ='Actuals Inp'!F$21 -> * Not linked | G22: ='Actuals Inp'!G$21 -> 0 | H22: ='Actuals Inp'!H$21 -> 0 | I22: ='Actuals Inp'!I$21 -> index | J22: ='Actuals Inp'!J$21 -> As per client file received on 16 Jan 2017 | K22: ='Actuals Inp'!K$21 -> 0 | L22: ='Actuals Inp'!L$21 -> 0 | M22: ='Actuals Inp'!M$21 -> 264.8 | N22: ='Actuals Inp'!N$21 -> 273.538 | O22: ='Actuals Inp'!O$21 -> 0 | P22: ='Actuals Inp'!P$21 -> 0 | Q22: ='Actuals Inp'!Q$21 -> 0 | R22: ='Actuals Inp'!R$21 -> 0 | S22: ='Actuals Inp'!S$21 -> 0 | T22: ='Actuals Inp'!T$21 -> 0 | U22: ='Actuals Inp'!U$21 -> 0
E23: ='Actuals Inp'!E$22 -> Indexation rate - Installation | F23: ='Actuals Inp'!F$22 -> 0 | G23: ='Actuals Inp'!G$22 -> 0 | H23: ='Actuals Inp'!H$22 -> 0 | I23: ='Actuals Inp'!I$22 -> % | J23: ='Actuals Inp'!J$22 -> As per client file received on 16 Jan 2017 | K23: ='Actuals Inp'!K$22 -> 0 | L23: ='Actuals Inp'!L$22 -> 0 | M23: ='Actuals Inp'!M$22 -> 0 | N23: ='Actuals Inp'!N$22 -> 0 | O23: ='Actuals Inp'!O$22 -> 0.033 | P23: ='Actuals Inp'!P$22 -> 0.033 | Q23: ='Actuals Inp'!Q$22 -> 0.033 | R23: ='Actuals Inp'!R$22 -> 0.033 | S23: ='Actuals Inp'!S$22 -> 0.033 | T23: ='Actuals Inp'!T$22 -> 0.033 | U23: ='Actuals Inp'!U$22 -> 0.033
E24: =Time!E$47 -> Pre - RP6 period flag | F24: =Time!F$47 -> 0 | G24: =Time!G$47 -> 0 | H24: =Time!H$47 -> 0 | I24: =Time!I$47 -> flag | J24: =Time!J$47 -> 0 | K24: =Time!K$47 -> 1 | L24: =Time!L$47 -> 0 | M24: =Time!M$47 -> 1 | N24: =Time!N$47 -> 0 | O24: =Time!O$47 -> 0 | P24: =Time!P$47 -> 0 | Q24: =Time!Q$47 -> 0 | R24: =Time!R$47 -> 0 | S24: =Time!S$47 -> 0 | T24: =Time!T$47 -> 0 | U24: =Time!U$47 -> 0
E25: RPI index (Base year 1993/94) - nominal | G25: RPIt | I25: index | M25: =IF(M24 = 1, M22, IF(M22 <> 0, M22, L25 * (1 + M23))) -> 264.8 | N25: 273.538 | O25: 282.564754 | P25: 291.8893909 | Q25: 301.5217408 | R25: 311.4719582 | S25: 321.7505328 | T25: 332.3683004 | U25: 343.3364543
C28: RPI index (Base year 1993/94) - t-5
E30: ='Actuals Inp'!E$100 -> Asset disposal lookback periods | F30: ='Actuals Inp'!F$100 -> 0 | G30: ='Actuals Inp'!G$100 -> 0 | H30: ='Actuals Inp'!H$100 -> 5 | I30: ='Actuals Inp'!I$100 -> years
E32: ='Actuals Inp'!E$16 -> Historic timeline | F32: ='Actuals Inp'!F$16 -> 0 | G32: ='Actuals Inp'!G$16 -> 0 | H32: ='Actuals Inp'!H$16 -> 0 | I32: ='Actuals Inp'!I$16 -> date | J32: ='Actuals Inp'!J$16 -> 0 | K32: ='Actuals Inp'!K$16 -> 0 | L32: ='Actuals Inp'!L$16 -> 0 | M32: ='Actuals Inp'!M$16 -> 2012 | N32: ='Actuals Inp'!N$16 -> 2013 | O32: ='Actuals Inp'!O$16 -> 2014 | P32: ='Actuals Inp'!P$16 -> 2015 | Q32: ='Actuals Inp'!Q$16 -> 2016 | R32: ='Actuals Inp'!R$16 -> 0 | S32: ='Actuals Inp'!S$16 -> 0 | T32: ='Actuals Inp'!T$16 -> 0 | U32: ='Actuals Inp'!U$16 -> 0
E33: =Time!E$36 -> Financial year ending | F33: =Time!F$36 -> 0 | G33: =Time!G$36 -> 0 | H33: =Time!H$36 -> 0 | I33: =Time!I$36 -> year # | J33: =Time!J$36 -> 0 | K33: =Time!K$36 -> 0 | L33: =Time!L$36 -> 0 | M33: =Time!M$36 -> 2017 | N33: =Time!N$36 -> 2018 | O33: =Time!O$36 -> 2019 | P33: =Time!P$36 -> 2020 | Q33: =Time!Q$36 -> 2021 | R33: =Time!R$36 -> 2022 | S33: =Time!S$36 -> 2023 | T33: =Time!T$36 -> 2024 | U33: =Time!U$36 -> 2025
E35: ='Actuals Inp'!E$17 -> Historic RPI - as on March each year (Base year 1993/94) | F35: ='Actuals Inp'!F$17 -> 0 | G35: ='Actuals Inp'!G$17 -> 0 | H35: ='Actuals Inp'!H$17 -> 0 | I35: ='Actuals Inp'!I$17 -> index | J35: ='Actuals Inp'!J$17 -> [Entitlement Model 28.11.16.xlsx]Inflation'!$B$12 | K35: ='Actuals Inp'!K$17 -> 0 | L35: ='Actuals Inp'!L$17 -> 0 | M35: ='Actuals Inp'!M$17 -> 238 | N35: ='Actuals Inp'!N$17 -> 245.6 | O35: ='Actuals Inp'!O$17 -> 251.9 | P35: ='Actuals Inp'!P$17 -> 257.7 | Q35: ='Actuals Inp'!Q$17 -> 259.5 | R35: ='Actuals Inp'!R$17 -> 0 | S35: ='Actuals Inp'!S$17 -> 0 | T35: ='Actuals Inp'!T$17 -> 0 | U35: ='Actuals Inp'!U$17 -> 0
E36: =E$16 -> RPI index (Base year 1993/94) | F36: 0 | G36: RPIt | H36: 0 | I36: index | J36: 0 | K36: 0 | L36: 0 | M36: 259.5 | N36: 259.5 | O36: 259.5 | P36: 259.5 | Q36: 259.5 | R36: =R$16 -> 259.5 | S36: 259.5 | T36: 259.5 | U36: 259.5
E38: RPI index (Base year 1993/94) - t-5 | G38: RPIt-5 | I38: index | M38: =SUMPRODUCT(($M32:$U33 = M33 - $H30) * $M35:$U36) -> 238 | N38: 245.6 | O38: 251.9 | P38: 257.7 | Q38: 259.5 | R38: =SUMPRODUCT(($M32:$U33 = R33 - $H30) * $M35:$U36) -> 259.5 | S38: 259.5 | T38: 259.5 | U38: 259.5
N200: ='DL - C3'!N38 -> 113.4168963 | O200: ='DL - C3'!O38 -> 179.9975669 | P200: ='DL - C3'!P38 -> 180.9157837 | Q200: ='DL - C3'!Q38 -> 181.196841 | R200: ='DL - C3'!R38 -> 182.4081234 | S200: ='DL - C3'!S38 -> 179.2070114 | T200: ='DL - C3'!T38 -> 178.5886773
N201: =IF(H9=0,'DL - C3'!N38,'DL - C3'!N38/Index!N168) -> 113.4168963 | O201: ='DL - C3'!O38 -> 179.9975669 | P201: ='DL - C3'!P38 -> 180.9157837 | Q201: ='DL - C3'!Q38 -> 181.196841 | R201: ='DL - C3'!R38 -> 182.4081234 | S201: ='DL - C3'!S38 -> 179.2070114 | T201: ='DL - C3'!T38 -> 178.5886773

Sheet DL - C3
A1: =RIGHT(CELL("filename", $A$1), LEN(CELL("filename", $A$1)) - SEARCH("]", CELL("filename", $A$1))) -> DL - C3 | H1: =IF('Actuals Inp'!H9=0,"15/16","Nominal") -> 15/16
E2: =Time!E$23 -> Model period ending | H2: =Check!$H$9 -> 0 | I2: Error chks | M2: =Time!M$23 -> 2017-03-31 | N2: =Time!N$23 -> 2018-03-31 | O2: =Time!O$23 -> 2019-03-31 | P2: =Time!P$23 -> 2020-03-31 | Q2: =Time!Q$23 -> 2021-03-31 | R2: =Time!R$23 -> 2022-03-31 | S2: =Time!S$23 -> 2023-03-31 | T2: =Time!T$23 -> 2024-03-31 | U2: =Time!U$23 -> 2025-03-31
E3: =Time!E$154 -> Timeline label | H3: =Track!$M$2 -> 0 | I3: Track chgs | M3: =Time!M$154 -> RP5 | N3: =Time!N$154 -> RP5 / RP6 | O3: =Time!O$154 -> RP6 | P3: =Time!P$154 -> RP6 | Q3: =Time!Q$154 -> RP6 | R3: =Time!R$154 -> RP6 | S3: =Time!S$154 -> RP6 | T3: =Time!T$154 -> RP6 | U3: =Time!U$154 -> Post RP6
E4: =Time!E$36 -> Financial year ending | H4: =Check!$H$37 -> 0 | I4: Alerts | M4: =Time!M$36 -> 2017 | N4: =Time!N$36 -> 2018 | O4: =Time!O$36 -> 2019 | P4: =Time!P$36 -> 2020 | Q4: =Time!Q$36 -> 2021 | R4: =Time!R$36 -> 2022 | S4: =Time!S$36 -> 2023 | T4: =Time!T$36 -> 2024 | U4: =Time!U$36 -> 2025
E5: =Time!E$10 -> Model column counter | F5: Para references | G5: Defined Term | H5: Constant | I5: Unit | K5: Total | M5: =Time!M$10 -> 1 | N5: =Time!N$10 -> 2 | O5: =Time!O$10 -> 3 | P5: =Time!P$10 -> 4 | Q5: =Time!Q$10 -> 5 | R5: =Time!R$10 -> 6 | S5: =Time!S$10 -> 7 | T5: =Time!T$10 -> 8 | U5: =Time!U$10 -> 9
A7: 3. THE MAXIMUM REGULATED DISTRIBUTION REVENUE- RP6Tt
C9: 3.1 Regulated transmission revenue
C12: 3.2 Maximum regulated distribution revenue for the regulatory tariff year - RP6Tt
C15: 3.3 RP6Tt | F15: RP6Tt = (RP6Rt + RP6Rt+1) * 0.5
E17: ='Licence Inp'!E$11 -> Max regulated Distribution revenue factor - DL | F17: ='Licence Inp'!F$11 -> 3.3: | G17: ='Licence Inp'!G$11 -> 0 | H17: ='Licence Inp'!H$11 -> 0.5 | I17: ='Licence Inp'!I$11 -> factor
E18: =E$38 -> Maximum regulated distribution revenue - DL | F18: =F$38 -> 3.5: | G18: RP6Rt | H18: 0 | I18: GBP m | J18: 0 | K18: 1195.7309 | L18: 0 | M18: 0 | N18: =N$38 -> 113.4168963 | O18: 179.9975669 | P18: 180.9157837 | Q18: 181.196841 | R18: =R$38 -> 182.4081234 | S18: 179.2070114 | T18: 178.5886773 | U18: 0
E19: =Time!E$92 -> RP6 period flag | F19: =Time!F$92 -> 0 | G19: =Time!G$92 -> 0 | H19: =Time!H$92 -> 0 | I19: =Time!I$92 -> flag | J19: =Time!J$92 -> 0 | K19: =Time!K$92 -> 7 | L19: =Time!L$92 -> 0 | M19: =Time!M$92 -> 0 | N19: =Time!N$92 -> 1 | O19: =Time!O$92 -> 1 | P19: =Time!P$92 -> 1 | Q19: =Time!Q$92 -> 1 | R19: =Time!R$92 -> 1 | S19: =Time!S$92 -> 1 | T19: =Time!T$92 -> 1 | U19: =Time!U$92 -> 0
E20: Max regulated distribution revenue - DL | F20: 3.3: | G20: RP6Tt | I20: GBP m | K20: =SUM(M20:U20) -> 1139.022452 | M20: =(M18 + N18) * $H17 * M19 -> 0 | N20: =(N18 + O18) * $H17 * N19 -> 146.7072316 | O20: 180.4566753 | P20: 181.0563123 | Q20: 181.8024822 | R20: =(R18 + S18) * $H17 * R19 -> 180.8075674 | S20: 178.8978443 | T20: 89.29433864 | U20: 0
C23: 3.4 Maximum regulated distribution revenue for the regulatory reporting year - RP6Rt
C26: 3.5 RP6Rt | F26: RP6Rt = DEPt + RETt + BDt + Ot + Pt + COIt + TAXt - RPSIt + Kt
E28: ='DL - C4'!E$27 -> Depreciation amount - DL | F28: ='DL - C4'!F$27 -> 4.51: | G28: ='DL - C4'!G$27 -> DEPt | H28: ='DL - C4'!H$27 -> 0 | I28: ='DL - C4'!I$27 -> GBP m | J28: ='DL - C4'!J$27 -> 0 | K28: ='DL - C4'!K$27 -> 460.3092134 | L28: ='DL - C4'!L$27 -> 0 | M28: ='DL - C4'!M$27 -> 0 | N28: ='DL - C4'!N$27 -> 35.36713836 | O28: ='DL - C4'!O$27 -> 69.69766436 | P28: ='DL - C4'!P$27 -> 70.53680242 | Q28: ='DL - C4'!Q$27 -> 71.62977355 | R28: ='DL - C4'!R$27 -> 72.83561887 | S28: ='DL - C4'!S$27 -> 70.31202151 | T28: ='DL - C4'!T$27 -> 69.93019432 | U28: ='DL - C4'!U$27 -> 0
D29: plus | E29: ='DL - C5'!E$33 -> WACC return - DL | F29: ='DL - C5'!F$33 -> 5.1: | G29: ='DL - C5'!G$33 -> RETt | H29: ='DL - C5'!H$33 -> 0 | I29: ='DL - C5'!I$33 -> GBP m | J29: ='DL - C5'!J$33 -> 0 | K29: ='DL - C5'!K$33 -> 229.0342227 | L29: ='DL - C5'!L$33 -> 0 | M29: ='DL - C5'!M$33 -> 0 | N29: ='DL - C5'!N$33 -> 17.01705952 | O29: ='DL - C5'!O$33 -> 34.48259807 | P29: ='DL - C5'!P$33 -> 34.92594658 | Q29: ='DL - C5'!Q$33 -> 35.23264369 | R29: ='DL - C5'!R$33 -> 35.49021834 | S29: ='DL - C5'!S$33 -> 35.77658472 | T29: ='DL - C5'!T$33 -> 36.10917176 | U29: ='DL - C5'!U$33 -> 0
D30: plus | E30: ='Actuals Inp'!E$29 -> Allowed opex amount - uncollected revenue - DL | F30: ='Actuals Inp'!F$29 -> 3.4: | G30: ='Actuals Inp'!G$29 -> BDt | H30: ='Actuals Inp'!H$29 -> 0 | I30: ='Actuals Inp'!I$29 -> GBP m | J30: ='Actuals Inp'!J$29 -> 0 | K30: ='Actuals Inp'!K$29 -> 0 | L30: ='Actuals Inp'!L$29 -> 0 | M30: ='Actuals Inp'!M$29 -> 0 | N30: ='Actuals Inp'!N$29 -> 0 | O30: ='Actuals Inp'!O$29 -> 0 | P30: ='Actuals Inp'!P$29 -> 0 | Q30: ='Actuals Inp'!Q$29 -> 0 | R30: ='Actuals Inp'!R$29 -> 0 | S30: ='Actuals Inp'!S$29 -> 0 | T30: ='Actuals Inp'!T$29 -> 0 | U30: ='Actuals Inp'!U$29 -> 0
D31: plus | E31: ='DL - C6'!E$16 -> Opex amount - DL | F31: ='DL - C6'!F$16 -> 6.1: | G31: ='DL - C6'!G$16 -> Ot | H31: ='DL - C6'!H$16 -> 0 | I31: ='DL - C6'!I$16 -> GBP m | J31: ='DL - C6'!J$16 -> 0 | K31: ='DL - C6'!K$16 -> 377.7440572 | L31: ='DL - C6'!L$16 -> 0 | M31: ='DL - C6'!M$16 -> 0 | N31: ='DL - C6'!N$16 -> 29.95534754 | O31: ='DL - C6'!O$16 -> 59.22113131 | P31: ='DL - C6'!P$16 -> 58.68650783 | Q31: ='DL - C6'!Q$16 -> 58.19052074 | R31: ='DL - C6'!R$16 -> 57.69499953 | S31: ='DL - C6'!S$16 -> 57.23015554 | T31: ='DL - C6'!T$16 -> 56.76539468 | U31: ='DL - C6'!U$16 -> 0
D32: plus | E32: ='DL - C7'!E$21 -> Pension deficit amount - DL | F32: ='DL - C7'!F$21 -> 7.1: | G32: ='DL - C7'!G$21 -> Pt | H32: ='DL - C7'!H$21 -> 0 | I32: ='DL - C7'!I$21 -> GBP m | J32: ='DL - C7'!J$21 -> 0 | K32: ='DL - C7'!K$21 -> 64.32842777 | L32: ='DL - C7'!L$21 -> 0 | M32: ='DL - C7'!M$21 -> 0 | N32: ='DL - C7'!N$21 -> 4.966538091 | O32: ='DL - C7'!O$21 -> 9.872993482 | P32: ='DL - C7'!P$21 -> 9.879448107 | Q32: ='DL - C7'!Q$21 -> 9.870411632 | R32: ='DL - C7'!R$21 -> 9.880739032 | S32: ='DL - C7'!S$21 -> 9.894939205 | T32: ='DL - C7'!T$21 -> 9.963358224 | U32: ='DL - C7'!U$21 -> 0
D33: plus | E33: ='DL - C8'!E$14 -> Cost of investigation amount - DL | F33: ='DL - C8'!F$14 -> 8.1: | G33: ='DL - C8'!G$14 -> COIt | H33: ='DL - C8'!H$14 -> 0 | I33: ='DL - C8'!I$14 -> GBP m | J33: ='DL - C8'!J$14 -> 0 | K33: ='DL - C8'!K$14 -> 0 | L33: ='DL - C8'!L$14 -> 0 | M33: ='DL - C8'!M$14 -> 0 | N33: ='DL - C8'!N$14 -> 0 | O33: ='DL - C8'!O$14 -> 0 | P33: ='DL - C8'!P$14 -> 0 | Q33: ='DL - C8'!Q$14 -> 0 | R33: ='DL - C8'!R$14 -> 0 | S33: ='DL - C8'!S$14 -> 0 | T33: ='DL - C8'!T$14 -> 0 | U33: ='DL - C8'!U$14 -> 0
D34: plus | E34: ='DL - C9'!E$16 -> Tax - DL | F34: ='DL - C9'!F$16 -> 9.1: | G34: ='DL - C9'!G$16 -> TAXt | H34: ='DL - C9'!H$16 -> 0 | I34: ='DL - C9'!I$16 -> GBP m | J34: ='DL - C9'!J$16 -> 0 | K34: ='DL - C9'!K$16 -> 41.85774424 | L34: ='DL - C9'!L$16 -> 0 | M34: ='DL - C9'!M$16 -> 0 | N34: ='DL - C9'!N$16 -> 3.653578117 | O34: ='DL - C9'!O$16 -> 6.723179718 | P34: ='DL - C9'!P$16 -> 6.887078751 | Q34: ='DL - C9'!Q$16 -> 6.273491334 | R34: ='DL - C9'!R$16 -> 6.506547645 | S34: ='DL - C9'!S$16 -> 5.993310374 | T34: ='DL - C9'!T$16 -> 5.820558304 | U34: ='DL - C9'!U$16 -> 0
D35: less | E35: ='DL - C10'!E$13 -> Revenue protection services incentive - DL | F35: ='DL - C10'!F$13 -> 10.1: | G35: ='DL - C10'!G$13 -> RPSIt | H35: ='DL - C10'!H$13 -> 0 | I35: ='DL - C10'!I$13 -> GBP m | J35: ='DL - C10'!J$13 -> 0 | K35: ='DL - C10'!K$13 -> 0 | L35: ='DL - C10'!L$13 -> 0 | M35: ='DL - C10'!M$13 -> 0 | N35: ='DL - C10'!N$13 -> 0 | O35: ='DL - C10'!O$13 -> 0 | P35: ='DL - C10'!P$13 -> 0 | Q35: ='DL - C10'!Q$13 -> 0 | R35: ='DL - C10'!R$13 -> 0 | S35: ='DL - C10'!S$13 -> 0 | T35: ='DL - C10'!T$13 -> 0 | U35: ='DL - C10'!U$13 -> 0
D36: plus | E36: ='DL - C11'!E$13 -> Correction factor amount - DL | F36: ='DL - C11'!F$13 -> 11.1: | G36: ='DL - C11'!G$13 -> Kt | H36: ='DL - C11'!H$13 -> 0 | I36: ='DL - C11'!I$13 -> GBP m | J36: ='DL - C11'!J$13 -> 0 | K36: ='DL - C11'!K$13 -> 22.45723469 | L36: ='DL - C11'!L$13 -> 0 | M36: ='DL - C11'!M$13 -> 0 | N36: ='DL - C11'!N$13 -> 22.45723469 | O36: ='DL - C11'!O$13 -> 0 | P36: ='DL - C11'!P$13 -> 0 | Q36: ='DL - C11'!Q$13 -> 0 | R36: ='DL - C11'!R$13 -> 0 | S36: ='DL - C11'!S$13 -> 0 | T36: ='DL - C11'!T$13 -> 0 | U36: ='DL - C11'!U$13 -> 0
E37: =Time!E$92 -> RP6 period flag | F37: =Time!F$92 -> 0 | G37: =Time!G$92 -> 0 | H37: =Time!H$92 -> 0 | I37: =Time!I$92 -> flag | J37: =Time!J$92 -> 0 | K37: =Time!K$92 -> 7 | L37: =Time!L$92 -> 0 | M37: =Time!M$92 -> 0 | N37: =Time!N$92 -> 1 | O37: =Time!O$92 -> 1 | P37: =Time!P$92 -> 1 | Q37: =Time!Q$92 -> 1 | R37: =Time!R$92 -> 1 | S37: =Time!S$92 -> 1 | T37: =Time!T$92 -> 1 | U37: =Time!U$92 -> 0
E38: Maximum regulated distribution revenue - DL | F38: 3.5: | G38: RP6Rt | I38: GBP m | K38: =SUM(M38:U38) -> 1195.7309 | M38: =(M28 + M29 + M30 + M31 + M32 + M33 + M34 - M35 + M36) * M37 -> 0 | N38: 113.4168963 | O38: 179.9975669 | P38: 180.9157837 | Q38: 181.196841 | R38: 182.4081234 | S38: 179.2070114 | T38: 178.5886773 | U38: 0
N200: ='DL - C3'!N38 -> 113.4168963 | O200: ='DL - C3'!O38 -> 179.9975669 | P200: ='DL - C3'!P38 -> 180.9157837 | Q200: ='DL - C3'!Q38 -> 181.196841 | R200: ='DL - C3'!R38 -> 182.4081234 | S200: ='DL - C3'!S38 -> 179.2070114 | T200: ='DL - C3'!T38 -> 178.5886773
N201: ='DL - C3'!N38 -> 113.4168963 | O201: ='DL - C3'!O38 -> 179.9975669 | P201: ='DL - C3'!P38 -> 180.9157837 | Q201: ='DL - C3'!Q38 -> 181.196841 | R201: ='DL - C3'!R38 -> 182.4081234 | S201: ='DL - C3'!S38 -> 179.2070114 | T201: ='DL - C3'!T38 -> 178.5886773

Sheet DL - C4
A1: =RIGHT(CELL("filename", $A$1), LEN(CELL("filename", $A$1)) - SEARCH("]", CELL("filename", $A$1))) -> DL - C4 | H1: =IF('Actuals Inp'!H9=0,"15/16","Nominal") -> 15/16
E2: =Time!E$23 -> Model period ending | H2: =Check!$H$9 -> 0 | I2: Error chks | M2: =Time!M$23 -> 2017-03-31 | N2: =Time!N$23 -> 2018-03-31 | O2: =Time!O$23 -> 2019-03-31 | P2: =Time!P$23 -> 2020-03-31 | Q2: =Time!Q$23 -> 2021-03-31 | R2: =Time!R$23 -> 2022-03-31 | S2: =Time!S$23 -> 2023-03-31 | T2: =Time!T$23 -> 2024-03-31 | U2: =Time!U$23 -> 2025-03-31
E3: =Time!E$154 -> Timeline label | H3: =Track!$M$2 -> 0 | I3: Track chgs | M3: =Time!M$154 -> RP5 | N3: =Time!N$154 -> RP5 / RP6 | O3: =Time!O$154 -> RP6 | P3: =Time!P$154 -> RP6 | Q3: =Time!Q$154 -> RP6 | R3: =Time!R$154 -> RP6 | S3: =Time!S$154 -> RP6 | T3: =Time!T$154 -> RP6 | U3: =Time!U$154 -> Post RP6
E4: =Time!E$36 -> Financial year ending | H4: =Check!$H$37 -> 0 | I4: Alerts | M4: =Time!M$36 -> 2017 | N4: =Time!N$36 -> 2018 | O4: =Time!O$36 -> 2019 | P4: =Time!P$36 -> 2020 | Q4: =Time!Q$36 -> 2021 | R4: =Time!R$36 -> 2022 | S4: =Time!S$36 -> 2023 | T4: =Time!T$36 -> 2024 | U4: =Time!U$36 -> 2025
E5: =Time!E$10 -> Model column counter | F5: Para references | G5: Defined Term | H5: Constant | I5: Unit | K5: Total | M5: =Time!M$10 -> 1 | N5: =Time!N$10 -> 2 | O5: =Time!O$10 -> 3 | P5: =Time!P$10 -> 4 | Q5: =Time!Q$10 -> 5 | R5: =Time!R$10 -> 6 | S5: =Time!S$10 -> 7 | T5: =Time!T$10 -> 8 | U5: =Time!U$10 -> 9
A7: 4.51. THE DEPRECIATION AMOUNT - DEPt
C9: 4.52 DEPt | F9: DEPt = ∑ (DEPADD_Xt + FDEP_Xt)
E11: =E$186 -> Depreciation amount for additional asset - t - DN | F11: 4.26: | G11: DEPADD_DNt | H11: 0 | I11: GBP m | J11: 0 | K11: 42.00509523 | L11: 0 | M11: 0 | N11: 0.4977526276 | O11: 1.983053674 | P11: 3.949026091 | Q11: 5.898301119 | R11: =R$186 -> 7.881642426 | S11: 9.898026941 | T11: 11.89729235 | U11: 0
E12: =E$85 -> Fixed depreciation amount - existing RAB - DN | F12: 4.11: | G12: FDEP_DNt | H12: 0 | I12: GBP m | J12: 0 | K12: 303.1905318 | L12: 0 | M12: 0 | N12: 25.36744048 | O12: 49.3670344 | P12: 48.02285028 | Q12: 46.5364771 | R12: =R$85 -> 45.52618475 | S12: 44.68227481 | T12: 43.68826999 | U12: 0
E13: =E$439 -> Depreciation amount for additional asset - t - ES | F13: 4.26: | G13: DEPADD_ESt | H13: 0 | I13: GBP m | J13: 0 | K13: 0 | L13: 0 | M13: 0 | N13: 0 | O13: 0 | P13: 0 | Q13: 0 | R13: =R$439 -> 0 | S13: 0 | T13: 0 | U13: 0
E14: =E$338 -> Fixed depreciation amount - existing RAB - ES | F14: 4.11: | G14: FDEP_ESt | H14: 0 | I14: GBP m | J14: 0 | K14: 15.02014703 | L14: 0 | M14: 0 | N14: 1.62943869 | O14: 3.25887738 | P14: 3.25887738 | Q14: 3.25887738 | R14: =R$338 -> 3.25887738 | S14: 0.3551988163 | T14: 0 | U14: 0
E15: =E$690 -> Depreciation amount for additional asset - t - MTRN | F15: 4.26: | G15: DEPADD_MTRNt | H15: 0 | I15: GBP m | J15: 0 | K15: 12.33097552 | L15: 0 | M15: 0 | N15: 0.1906590557 | O15: 0.696501747 | P15: 1.276774296 | Q15: 1.80084383 | R15: =R$690 -> 2.305659028 | S15: 2.792089753 | T15: 3.26844781 | U15: 0
E16: =E$589 -> Fixed depreciation amount - existing RAB - MTRN | F16: 4.11: | G16: FDEP_MTRNt | H16: 0 | I16: GBP m | J16: 0 | K16: 24.14904621 | L16: 0 | M16: 0 | N16: 2.372082174 | O16: 4.310132275 | P16: 3.528195463 | Q16: 3.528195463 | R16: =R$589 -> 3.585249814 | S16: 3.520382956 | T16: 3.304808061 | U16: 0
E17: =E$1017 -> Depreciation amount for additional asset - t - RT | F17: 4.26: | G17: DEPADD_RTt | H17: 0 | I17: GBP m | J17: 0 | K17: 0 | L17: 0 | M17: 0 | N17: 0 | O17: 0 | P17: 0 | Q17: 0 | R17: =R$1017 -> 0 | S17: 0 | T17: 0 | U17: 0
E18: =E$917 -> Fixed depreciation amount - existing RAB - RT | F18: 4.11: | G18: FDEP_RTt | H18: 0 | I18: GBP m | J18: 0 | K18: 1.073138086 | L18: 0 | M18: 0 | N18: 0.08254908356 | O18: 0.1650981671 | P18: 0.1650981671 | Q18: 0.1650981671 | R18: =R$917 -> 0.1650981671 | S18: 0.1650981671 | T18: 0.1650981671 | U18: 0
E19: ='DL - C4'!E$1269 -> Depreciation amount for additional asset - t - FE | F19: ='DL - C4'!F$1269 -> 4.26: | G19: ='DL - C4'!G$1269 -> DEPADD_FEt | H19: ='DL - C4'!H$1269 -> 0 | I19: ='DL - C4'!I$1269 -> GBP m | J19: ='DL - C4'!J$1269 -> 0 | K19: ='DL - C4'!K$1269 -> 0 | L19: ='DL - C4'!L$1269 -> 0 | M19: ='DL - C4'!M$1269 -> 0 | N19: ='DL - C4'!N$1269 -> 0 | O19: ='DL - C4'!O$1269 -> 0 | P19: ='DL - C4'!P$1269 -> 0 | Q19: ='DL - C4'!Q$1269 -> 0 | R19: ='DL - C4'!R$1269 -> 0 | S19: ='DL - C4'!S$1269 -> 0 | T19: ='DL - C4'!T$1269 -> 0 | U19: ='DL - C4'!U$1269 -> 0
E20: ='DL - C4'!E$1168 -> Fixed depreciation amount - existing RAB - FE | F20: ='DL - C4'!F$1168 -> 4.11: | G20: ='DL - C4'!G$1168 -> FDEP_FEt | H20: ='DL - C4'!H$1168 -> 0 | I20: ='DL - C4'!I$1168 -> GBP m | J20: ='DL - C4'!J$1168 -> 0 | K20: ='DL - C4'!K$1168 -> 1.110223025e-15 | L20: ='DL - C4'!L$1168 -> 0 | M20: ='DL - C4'!M$1168 -> 0 | N20: ='DL - C4'!N$1168 -> 1.110223025e-15 | O20: ='DL - C4'!O$1168 -> 0 | P20: ='DL - C4'!P$1168 -> 0 | Q20: ='DL - C4'!Q$1168 -> 0 | R20: ='DL - C4'!R$1168 -> 0 | S20: ='DL - C4'!S$1168 -> 0 | T20: ='DL - C4'!T$1168 -> 0 | U20: ='DL - C4'!U$1168 -> 0
E21: ='DL - C4'!E$1520 -> Depreciation amount for additional asset - t - NI | F21: ='DL - C4'!F$1520 -> 4.26: | G21: ='DL - C4'!G$1520 -> DEPADD_NIt | H21: ='DL - C4'!H$1520 -> 0 | I21: ='DL - C4'!I$1520 -> GBP m | J21: ='DL - C4'!J$1520 -> 0 | K21: ='DL - C4'!K$1520 -> 0 | L21: ='DL - C4'!L$1520 -> 0 | M21: ='DL - C4'!M$1520 -> 0 | N21: ='DL - C4'!N$1520 -> 0 | O21: ='DL - C4'!O$1520 -> 0 | P21: ='DL - C4'!P$1520 -> 0 | Q21: ='DL - C4'!Q$1520 -> 0 | R21: ='DL - C4'!R$1520 -> 0 | S21: ='DL - C4'!S$1520 -> 0 | T21: ='DL - C4'!T$1520 -> 0 | U21: ='DL - C4'!U$1520 -> 0
E22: ='DL - C4'!E$1419 -> Fixed depreciation amount - existing RAB - NI | F22: ='DL - C4'!F$1419 -> 4.11: | G22: ='DL - C4'!G$1419 -> FDEP_NIt | H22: ='DL - C4'!H$1419 -> 0 | I22: ='DL - C4'!I$1419 -> GBP m | J22: ='DL - C4'!J$1419 -> 0 | K22: ='DL - C4'!K$1419 -> 0 | L22: ='DL - C4'!L$1419 -> 0 | M22: ='DL - C4'!M$1419 -> 0 | N22: ='DL - C4'!N$1419 -> 0 | O22: ='DL - C4'!O$1419 -> 0 | P22: ='DL - C4'!P$1419 -> 0 | Q22: ='DL - C4'!Q$1419 -> 0 | R22: ='DL - C4'!R$1419 -> 0 | S22: ='DL - C4'!S$1419 -> 0 | T22: ='DL - C4'!T$1419 -> 0 | U22: ='DL - C4'!U$1419 -> 0
E23: ='DL - C4'!E$1771 -> Depreciation amount for additional asset - t - D5Y | F23: ='DL - C4'!F$1771 -> 4.26: | G23: ='DL - C4'!G$1771 -> DEPADD_D5Yt | H23: ='DL - C4'!H$1771 -> 0 | I23: ='DL - C4'!I$1771 -> GBP m | J23: ='DL - C4'!J$1771 -> 0 | K23: ='DL - C4'!K$1771 -> 38.40518763 | L23: ='DL - C4'!L$1771 -> 0 | M23: ='DL - C4'!M$1771 -> 0 | N23: ='DL - C4'!N$1771 -> 0.8451385787 | O23: ='DL - C4'!O$1771 -> 2.797204325 | P23: ='DL - C4'!P$1771 -> 4.805694752 | Q23: ='DL - C4'!Q$1771 -> 6.414319997 | R23: ='DL - C4'!R$1771 -> 7.769661265 | S23: ='DL - C4'!S$1771 -> 8.166890773 | T23: ='DL - C4'!T$1771 -> 7.606277941 | U23: ='DL - C4'!U$1771 -> 0
E24: ='DL - C4'!E$1670 -> Fixed depreciation amount - existing RAB - D5Y | F24: ='DL - C4'!F$1670 -> 4.11: | G24: ='DL - C4'!G$1670 -> FDEP_D5Yt | H24: ='DL - C4'!H$1670 -> 0 | I24: ='DL - C4'!I$1670 -> GBP m | J24: ='DL - C4'!J$1670 -> 0 | K24: ='DL - C4'!K$1670 -> 24.13509188 | L24: ='DL - C4'!L$1670 -> 0 | M24: ='DL - C4'!M$1670 -> 0 | N24: ='DL - C4'!N$1670 -> 4.382077664 | O24: ='DL - C4'!O$1670 -> 7.119762387 | P24: ='DL - C4'!P$1670 -> 5.530285983 | Q24: ='DL - C4'!Q$1670 -> 4.027660494 | R24: ='DL - C4'!R$1670 -> 2.343246046 | S24: ='DL - C4'!S$1670 -> 0.7320593033 | T24: ='DL - C4'!T$1670 -> 0 | U24: ='DL - C4'!U$1670 -> 0
E25: ='DL - C4'!E$2022 -> Depreciation amount for additional asset - t - MO5Y | F25: ='DL - C4'!F$2022 -> 4.26: | G25: ='DL - C4'!G$2022 -> DEPADD_MO5Yt | H25: ='DL - C4'!H$2022 -> 0 | I25: ='DL - C4'!I$2022 -> GBP m | J25: ='DL - C4'!J$2022 -> 0 | K25: ='DL - C4'!K$2022 -> 0 | L25: ='DL - C4'!L$2022 -> 0 | M25: ='DL - C4'!M$2022 -> 0 | N25: ='DL - C4'!N$2022 -> 0 | O25: ='DL - C4'!O$2022 -> 0 | P25: ='DL - C4'!P$2022 -> 0 | Q25: ='DL - C4'!Q$2022 -> 0 | R25: ='DL - C4'!R$2022 -> 0 | S25: ='DL - C4'!S$2022 -> 0 | T25: ='DL - C4'!T$2022 -> 0 | U25: ='DL - C4'!U$2022 -> 0
E26: ='DL - C4'!E$1921 -> Fixed depreciation amount - existing RAB - MO5Y | F26: ='DL - C4'!F$1921 -> 4.11: | G26: ='DL - C4'!G$1921 -> FDEP_MO5Yt | H26: ='DL - C4'!H$1921 -> 0 | I26: ='DL - C4'!I$1921 -> GBP m | J26: ='DL - C4'!J$1921 -> 0 | K26: ='DL - C4'!K$1921 -> 0 | L26: ='DL - C4'!L$1921 -> 0 | M26: ='DL - C4'!M$1921 -> 0 | N26: ='DL - C4'!N$1921 -> 0 | O26: ='DL - C4'!O$1921 -> 0 | P26: ='DL - C4'!P$1921 -> 0 | Q26: ='DL - C4'!Q$1921 -> 0 | R26: ='DL - C4'!R$1921 -> 0 | S26: ='DL - C4'!S$1921 -> 0 | T26: ='DL - C4'!T$1921 -> 0 | U26: ='DL - C4'!U$1921 -> 0
E27: Depreciation amount - DL | F27: 4.51: | G27: DEPt | I27: GBP m | K27: =SUM(M27:U27) -> 460.3092134 | M27: =SUM(M11:M26) -> 0 | N27: 35.36713836 | O27: 69.69766436 | P27: 70.53680242 | Q27: 71.62977355 | R27: =SUM(R11:R26) -> 72.83561887 | S27: 70.31202151 | T27: 69.93019432 | U27: 0
A30: 4. REGULATORY ASSET BASES - DISTRIBUTION - RAB_DN
C32: 4.3 The opening regulatory asset base - ORAB_DNt
C35: 4.4 ORAB_DNt | F35: ORAB_DNt = OE_DNt + OADD_DNt
E37: =E$46 -> Existing RAB - BEG bal. - DN | F37: 4.5: | G37: OE_DNt | H37: 0 | I37: GBP m | J37: 0 | K37: 0 | L37: 0 | M37: 0 | N37: 995.7786177 | O37: 970.4111772 | P37: 921.0441428 | Q37: 873.0212926 | R37: =R$46 -> 826.4848155 | S37: 780.9586307 | T37: 736.2763559 | U37: 0
E38: =E$95 -> Additional RAB - BEG bal. - DN | F38: 4.13: | G38: OADD_DNt | H38: 0 | I38: GBP m | J38: 0 | K38: 0 | L38: 0 | M38: 0 | N38: 0 | O38: 32.68575588 | P38: 96.53926345 | Q38: 157.8185039 | R38: =R$95 -> 216.6436048 | S38: 276.2613142 | T38: 333.2895697 | U38: 0
E39: Distribution RAB - BEG bal. - DN | F39: 4.4: | G39: ORAB_DNt | I39: GBP m | M39: =SUM(M37:M38) -> 0 | N39: 995.7786177 | O39: 1003.096933 | P39: 1017.583406 | Q39: 1030.839796 | R39: =SUM(R37:R38) -> 1043.12842 | S39: 1057.219945 | T39: 1069.565926 | U39: 0
C42: 4.5 Opening value of existing assets - OE_DNt
E44: =E$55 -> Existing RAB - BEG bal. - 2013 - DN | F44: 4.6: | G44: OE_DN2013 | H44: 0 | I44: GBP m | J44: 0 | K44: 0 | L44: 0 | M44: 0 | N44: 995.7786177 | O44: 0 | P44: 0 | Q44: 0 | R44: =R$55 -> 0 | S44: 0 | T44: 0 | U44: 0
E45: =E$64 -> Existing RAB - BEG bal. - (Except 2013) - DN | F45: 4.7: | G45: OE_DNt | H45: 0 | I45: GBP m | J45: 0 | K45: 0 | L45: 0 | M45: 0 | N45: 0 | O45: 970.4111772 | P45: 921.0441428 | Q45: 873.0212926 | R45: =R$64 -> 826.4848155 | S45: 780.9586307 | T45: 736.2763559 | U45: 0
E46: Existing RAB - BEG bal. - DN | F46: 4.5: | G46: OE_DNt | I46: GBP m | M46: =SUM(M44:M45) -> 0 | N46: 995.7786177 | O46: 970.4111772 | P46: 921.0441428 | Q46: 873.0212926 | R46: =SUM(R44:R45) -> 826.4848155 | S46: 780.9586307 | T46: 736.2763559 | U46: 0
C49: 4.6 Opening balance of existing assets - 2013 | F49: OE_DN2018 = OE_2016_DN2018 * RPI2018 / RPI2016
E51: ='Licence Inp'!E$33 -> RAB_DN - base year 2016 | F51: ='Licence Inp'!F$33 -> Table 2 | G51: ='Licence Inp'!G$33 -> OE_2016_DN2018 | H51: ='Licence Inp'!H$33 -> 995.7786177 | I51: ='Licence Inp'!I$33 -> GBP m
E52: ='Actuals Inp'!E$12 -> RPI as on 2015/16 - (Base year 1993/94) | F52: ='Actuals Inp'!F$12 -> 0 | G52: ='Actuals Inp'!G$12 -> RPI2016 | H52: ='Actuals Inp'!H$12 -> 259.5 | I52: ='Actuals Inp'!I$12 -> index
E53: =Index!E$16 -> RPI index (Base year 1993/94) | F53: =Index!F$16 -> 0 | G53: =Index!G$16 -> RPIt | H53: =Index!H$16 -> 0 | I53: =Index!I$16 -> index | J53: =Index!J$16 -> 0 | K53: =Index!K$16 -> 0 | L53: =Index!L$16 -> 0 | M53: =Index!M$16 -> 259.5 | N53: =Index!N$16 -> 259.5 | O53: =Index!O$16 -> 259.5 | P53: =Index!P$16 -> 259.5 | Q53: =Index!Q$16 -> 259.5 | R53: =Index!R$16 -> 259.5 | S53: =Index!S$16 -> 259.5 | T53: =Index!T$16 -> 259.5 | U53: =Index!U$16 -> 259.5
E54: =Time!E$71 -> RP6 start period flag | F54: =Time!F$71 -> 0 | G54: =Time!G$71 -> 0 | H54: =Time!H$71 -> 0 | I54: =Time!I$71 -> flag | J54: =Time!J$71 -> 0 | K54: =Time!K$71 -> 1 | L54: =Time!L$71 -> 0 | M54: =Time!M$71 -> 0 | N54: =Time!N$71 -> 1 | O54: =Time!O$71 -> 0 | P54: =Time!P$71 -> 0 | Q54: =Time!Q$71 -> 0 | R54: =Time!R$71 -> 0 | S54: =Time!S$71 -> 0 | T54: =Time!T$71 -> 0 | U54: =Time!U$71 -> 0
E55: Existing RAB - BEG bal. - 2013 - DN | F55: 4.6: | G55: OE_DN2013 | I55: GBP m | M55: =$H51 * M53 / $H52 * M54 -> 0 | N55: =$H51 * N53 / $H52 * N54 -> 995.7786177 | O55: 0 | P55: =$H51 * P53 / $H52 * P54 -> 0 | Q55: 0 | R55: =$H51 * R53 / $H52 * R54 -> 0 | S55: 0 | T55: 0 | U55: 0
C58: 4.7 Opening balance of existing assets - t | F58: OE_DNt = (CE_DNt-1) * RPIt / RPIt-1
E60: =E$74 -> Closing balance of existing RAB - DN | F60: 4.9: | G60: CE_DNt | H60: 0 | I60: GBP m | J60: 0 | K60: 0 | L60: 0 | M60: 0 | N60: 970.4111772 | O60: 921.0441428 | P60: 873.0212926 | Q60: 826.4848155 | R60: =R$74 -> 780.9586307 | S60: 736.2763559 | T60: 692.5880859 | U60: 0
E61: =Index!E$16 -> RPI index (Base year 1993/94) | F61: =Index!F$16 -> 0 | G61: =Index!G$16 -> RPIt | H61: =Index!H$16 -> 0 | I61: =Index!I$16 -> index | J61: =Index!J$16 -> 0 | K61: =Index!K$16 -> 0 | L61: =Index!L$16 -> 0 | M61: =Index!M$16 -> 259.5 | N61: =Index!N$16 -> 259.5 | O61: =Index!O$16 -> 259.5 | P61: =Index!P$16 -> 259.5 | Q61: =Index!Q$16 -> 259.5 | R61: =Index!R$16 -> 259.5 | S61: =Index!S$16 -> 259.5 | T61: =Index!T$16 -> 259.5 | U61: =Index!U$16 -> 259.5
E62: =Time!E$92 -> RP6 period flag | F62: =Time!F$92 -> 0 | G62: =Time!G$92 -> 0 | H62: =Time!H$92 -> 0 | I62: =Time!I$92 -> flag | J62: =Time!J$92 -> 0 | K62: =Time!K$92 -> 7 | L62: =Time!L$92 -> 0 | M62: =Time!M$92 -> 0 | N62: =Time!N$92 -> 1 | O62: =Time!O$92 -> 1 | P62: =Time!P$92 -> 1 | Q62: =Time!Q$92 -> 1 | R62: =Time!R$92 -> 1 | S62: =Time!S$92 -> 1 | T62: =Time!T$92 -> 1 | U62: =Time!U$92 -> 0
E63: =Time!E$71 -> RP6 start period flag | F63: =Time!F$71 -> 0 | G63: =Time!G$71 -> 0 | H63: =Time!H$71 -> 0 | I63: =Time!I$71 -> flag | J63: =Time!J$71 -> 0 | K63: =Time!K$71 -> 1 | L63: =Time!L$71 -> 0 | M63: =Time!M$71 -> 0 | N63: =Time!N$71 -> 1 | O63: =Time!O$71 -> 0 | P63: =Time!P$71 -> 0 | Q63: =Time!Q$71 -> 0 | R63: =Time!R$71 -> 0 | S63: =Time!S$71 -> 0 | T63: =Time!T$71 -> 0 | U63: =Time!U$71 -> 0
E64: Existing RAB - BEG bal. - (Except 2013) - DN | F64: 4.7: | G64: OE_DNt | I64: GBP m | M64: =IF( OR(M63 = 1, L61 = 0), 0, L60 * M61 / L61) * M62 -> 0 | N64: =IF( OR(N63 = 1, M61 = 0), 0, M60 * N61 / M61) * N62 -> 0 | O64: 970.4111772 | P64: 921.0441428 | Q64: 873.0212926 | R64: =IF( OR(R63 = 1, Q61 = 0), 0, Q60 * R61 / Q61) * R62 -> 826.4848155 | S64: 780.9586307 | T64: 736.2763559 | U64: 0
C67: 4.8 Closing balance of existing RAB - CE_DNt
C70: 4.9 CE_DNt | F70: CE_DNt = OE_DNt - FDEP_DNt
E72: =E$46 -> Existing RAB - BEG bal. - DN | F72: 4.5: | G72: OE_DNt | H72: 0 | I72: GBP m | J72: 0 | K72: 0 | L72: 0 | M72: 0 | N72: 995.7786177 | O72: 970.4111772 | P72: 921.0441428 | Q72: 873.0212926 | R72: =R$46 -> 826.4848155 | S72: 780.9586307 | T72: 736.2763559 | U72: 0
D73: less | E73: =E$85 -> Fixed depreciation amount - existing RAB - DN | F73: 4.11: | G73: FDEP_DNt | H73: 0 | I73: GBP m | J73: 0 | K73: 303.1905318 | L73: 0 | M73: 0 | N73: 25.36744048 | O73: 49.3670344 | P73: 48.02285028 | Q73: 46.5364771 | R73: =R$85 -> 45.52618475 | S73: 44.68227481 | T73: 43.68826999 | U73: 0
E74: Closing balance of existing RAB - DN | F74: 4.9: | G74: CE_DNt | I74: GBP m | M74: =M72 - M73 -> 0 | N74: 970.4111772 | O74: 921.0441428 | P74: 873.0212926 | Q74: 826.4848155 | R74: =R72 - R73 -> 780.9586307 | S74: 736.2763559 | T74: 692.5880859 | U74: 0
C77: 4.10 Fixed depreciation amount - FDEP_DNt
C80: 4.11 FDEP_DNt | F80: FDEP_DNt = FDEP_2016_DNt * RPIt / RPI2016
E82: ='Actuals Inp'!E$12 -> RPI as on 2015/16 - (Base year 1993/94) | F82: ='Actuals Inp'!F$12 -> 0 | G82: ='Actuals Inp'!G$12 -> RPI2016 | H82: ='Actuals Inp'!H$12 -> 259.5 | I82: ='Actuals Inp'!I$12 -> index
E83: ='Licence Inp'!E$62 -> Fixed depreciation - base year 2016 - RAB_DN | F83: ='Licence Inp'!F$62 -> Table 3 | G83: ='Licence Inp'!G$62 -> FDEP_2016_DNt | H83: ='Licence Inp'!H$62 -> 0 | I83: ='Licence Inp'!I$62 -> GBP m | J83: ='Licence Inp'!J$62 -> 0 | K83: ='Licence Inp'!K$62 -> 303.1905318 | L83: ='Licence Inp'!L$62 -> 0 | M83: ='Licence Inp'!M$62 -> 0 | N83: ='Licence Inp'!N$62 -> 25.36744048 | O83: ='Licence Inp'!O$62 -> 49.3670344 | P83: ='Licence Inp'!P$62 -> 48.02285028 | Q83: ='Licence Inp'!Q$62 -> 46.5364771 | R83: ='Licence Inp'!R$62 -> 45.52618475 | S83: ='Licence Inp'!S$62 -> 44.68227481 | T83: ='Licence Inp'!T$62 -> 43.68826999 | U83: ='Licence Inp'!U$62 -> 0
E84: =Index!E$16 -> RPI index (Base year 1993/94) | F84: =Index!F$16 -> 0 | G84: =Index!G$16 -> RPIt | H84: =Index!H$16 -> 0 | I84: =Index!I$16 -> index | J84: =Index!J$16 -> 0 | K84: =Index!K$16 -> 0 | L84: =Index!L$16 -> 0 | M84: =Index!M$16 -> 259.5 | N84: =Index!N$16 -> 259.5 | O84: =Index!O$16 -> 259.5 | P84: =Index!P$16 -> 259.5 | Q84: =Index!Q$16 -> 259.5 | R84: =Index!R$16 -> 259.5 | S84: =Index!S$16 -> 259.5 | T84: =Index!T$16 -> 259.5 | U84: =Index!U$16 -> 259.5
E85: Fixed depreciation amount - existing RAB - DN | F85: 4.11: | G85: FDEP_DNt | I85: GBP m | K85: =SUM(M85:U85) -> 303.1905318 | M85: =M83 * M84 / $H82 -> 0 | N85: =N83 * N84 / $H82 -> 25.36744048 | O85: 49.3670344 | P85: 48.02285028 | Q85: 46.5364771 | R85: =R83 * R84 / $H82 -> 45.52618475 | S85: 44.68227481 | T85: 43.68826999 | U85: 0
C88: 4.12 Opening balance of additional assets
C91: 4.13 OADD_DNt
E93: =E$100 -> Additional RAB - BEG bal. - 2013 - DN | F93: =F$100 -> 4.13a: | G93: OADD_DN2013 | H93: 0 | I93: GBP m | J93: 0 | K93: 0 | L93: 0 | M93: 0 | N93: 0 | O93: 0 | P93: 0 | Q93: 0 | R93: =R$100 -> 0 | S93: 0 | T93: 0 | U93: 0
E94: =E$107 -> Additional RAB - BEG bal. - except 2013 - DN | F94: =F$107 -> 4.13b: | G94: OADD_DNt | H94: 0 | I94: GBP m | J94: 0 | K94: 0 | L94: 0 | M94: 0 | N94: 0 | O94: 32.68575588 | P94: 96.53926345 | Q94: 157.8185039 | R94: =R$107 -> 216.6436048 | S94: 276.2613142 | T94: 333.2895697 | U94: 0
E95: Additional RAB - BEG bal. - DN | F95: 4.13: | G95: OADD_DNt | I95: GBP m | M95: =SUM(M93:M94) -> 0 | N95: =SUM(N93:N94) -> 0 | O95: 32.68575588 | P95: 96.53926345 | Q95: 157.8185039 | R95: =SUM(R93:R94) -> 216.6436048 | S95: 276.2613142 | T95: 333.2895697 | U95: 0
D97: 4.13a OADD_DN2013
E98: ='Licence Inp'!E$75 -> Opening additional assets - RAB_DN | F98: ='Licence Inp'!F$75 -> 4.13a: | G98: ='Licence Inp'!G$75 -> OADD_DN2018 | H98: ='Licence Inp'!H$75 -> 0 | I98: ='Licence Inp'!I$75 -> GBP m
E99: =Time!E$71 -> RP6 start period flag | F99: =Time!F$71 -> 0 | G99: =Time!G$71 -> 0 | H99: =Time!H$71 -> 0 | I99: =Time!I$71 -> flag | J99: =Time!J$71 -> 0 | K99: =Time!K$71 -> 1 | L99: =Time!L$71 -> 0 | M99: =Time!M$71 -> 0 | N99: =Time!N$71 -> 1 | O99: =Time!O$71 -> 0 | P99: =Time!P$71 -> 0 | Q99: =Time!Q$71 -> 0 | R99: =Time!R$71 -> 0 | S99: =Time!S$71 -> 0 | T99: =Time!T$71 -> 0 | U99: =Time!U$71 -> 0
E100: Additional RAB - BEG bal. - 2013 - DN | F100: 4.13a: | G100: OADD_DN2013 | I100: GBP m | M100: =M99 * $H98 -> 0 | N100: =N99 * $H98 -> 0 | O100: 0 | P100: 0 | Q100: 0 | R100: =R99 * $H98 -> 0 | S100: 0 | T100: 0 | U100: 0
D102: 4.13b OADD_DNt | F102: OADD_DNt = (CADD_DNt-1) * RPIt / RPIt-1
E103: =E$123 -> Closing balance of additional RAB - DN | F103: 4.15: | G103: CADD_DNt | H103: 0 | I103: GBP m | J103: 0 | K103: 0 | L103: 0 | M103: 0 | N103: 32.68575588 | O103: 96.53926345 | P103: 157.8185039 | Q103: 216.6436048 | R103: =R$123 -> 276.2613142 | S103: 333.2895697 | T103: 387.7503556 | U103: 0
E104: =Index!E$16 -> RPI index (Base year 1993/94) | F104: =Index!F$16 -> 0 | G104: =Index!G$16 -> RPIt | H104: =Index!H$16 -> 0 | I104: =Index!I$16 -> index | J104: =Index!J$16 -> 0 | K104: =Index!K$16 -> 0 | L104: =Index!L$16 -> 0 | M104: =Index!M$16 -> 259.5 | N104: =Index!N$16 -> 259.5 | O104: =Index!O$16 -> 259.5 | P104: =Index!P$16 -> 259.5 | Q104: =Index!Q$16 -> 259.5 | R104: =Index!R$16 -> 259.5 | S104: =Index!S$16 -> 259.5 | T104: =Index!T$16 -> 259.5 | U104: =Index!U$16 -> 259.5
E105: =Time!E$92 -> RP6 period flag | F105: =Time!F$92 -> 0 | G105: =Time!G$92 -> 0 | H105: =Time!H$92 -> 0 | I105: =Time!I$92 -> flag | J105: =Time!J$92 -> 0 | K105: =Time!K$92 -> 7 | L105: =Time!L$92 -> 0 | M105: =Time!M$92 -> 0 | N105: =Time!N$92 -> 1 | O105: =Time!O$92 -> 1 | P105: =Time!P$92 -> 1 | Q105: =Time!Q$92 -> 1 | R105: =Time!R$92 -> 1 | S105: =Time!S$92 -> 1 | T105: =Time!T$92 -> 1 | U105: =Time!U$92 -> 0
E106: =Time!E$71 -> RP6 start period flag | F106: =Time!F$71 -> 0 | G106: =Time!G$71 -> 0 | H106: =Time!H$71 -> 0 | I106: =Time!I$71 -> flag | J106: =Time!J$71 -> 0 | K106: =Time!K$71 -> 1 | L106: =Time!L$71 -> 0 | M106: =Time!M$71 -> 0 | N106: =Time!N$71 -> 1 | O106: =Time!O$71 -> 0 | P106: =Time!P$71 -> 0 | Q106: =Time!Q$71 -> 0 | R106: =Time!R$71 -> 0 | S106: =Time!S$71 -> 0 | T106: =Time!T$71 -> 0 | U106: =Time!U$71 -> 0
E107: Additional RAB - BEG bal. - except 2013 - DN | F107: 4.13b: | G107: OADD_DNt | I107: GBP m | M107: =IF(OR(M106 =1, L104 = 0), 0, L103 * M104 / L104) * M105 -> 0 | N107: =IF(OR(N106 =1, M104 = 0), 0, M103 * N104 / M104) * N105 -> 0 | O107: 32.68575588 | P107: 96.53926345 | Q107: 157.8185039 | R107: =IF(OR(R106 =1, Q104 = 0), 0, Q103 * R104 / Q104) * R105 -> 216.6436048 | S107: 276.2613142 | T107: 333.2895697 | U107: 0
C110: 4.14 The closing value of additional assets - CADD_DNt
C113: 4.15 Closing balance of additional RAB | F113: CADD_DNt = OADD_DNt + QCE_DNt - DIQCE_DNt + PTCE_DNt - DIPTCE_DNt - DEPADD_DNt - CD_DNt + CI_DNt
E115: =E$95 -> Additional RAB - BEG bal. - DN | F115: 4.13: | G115: OADD_DNt | H115: 0 | I115: GBP m | J115: 0 | K115: 0 | L115: 0 | M115: 0 | N115: 0 | O115: 32.68575588 | P115: 96.53926345 | Q115: 157.8185039 | R115: =R$95 -> 216.6436048 | S115: 276.2613142 | T115: 333.2895697 | U115: 0
D116: plus | E116: =E$132 -> Qualifying capex amount - DN | F116: 4.17: | G116: QCE_DNt | H116: 0 | I116: GBP m | J116: 0 | K116: 429.8214345 | L116: 0 | M116: =M$132 -> 0 | N116: 33.20014989 | O116: 65.83656124 | P116: 65.27760884 | Q116: 64.72340194 | R116: =R$132 -> 67.4993519 | S116: 66.9262824 | T116: 66.35807826 | U116: 0
D117: less | E117: =E$141 -> Demonstrably inefficient qualifying capex exp. - DN | F117: 4.19: | G117: DIQCE_DNt | H117: 0 | I117: GBP m | J117: 0 | K117: 0 | L117: 0 | M117: =M$141 -> 0 | N117: 0 | O117: 0 | P117: 0 | Q117: 0 | R117: =R$141 -> 0 | S117: 0 | T117: 0 | U117: 0
D118: plus | E118: =E$151 -> Pass through capex expenditure - DN | F118: 4.21: | G118: PTCE_DNt | H118: 0 | I118: GBP m | J118: 0 | K118: 0 | L118: 0 | M118: =M$151 -> 0 | N118: 0 | O118: 0 | P118: 0 | Q118: 0 | R118: =R$151 -> 0 | S118: 0 | T118: 0 | U118: 0
D119: less | E119: =E$170 -> Demonstrably inefficient pass through capex exp. - DN | F119: 4.25: | G119: DIPTCE_DNt | H119: 0 | I119: GBP m | J119: 0 | K119: 0 | L119: 0 | M119: =M$170 -> 0 | N119: 0 | O119: 0 | P119: 0 | Q119: 0 | R119: =R$170 -> 0 | S119: 0 | T119: 0 | U119: 0
D120: less | E120: =E$186 -> Depreciation amount for additional asset - t - DN | F120: 4.26: | G120: DEPADD_DNt | H120: 0 | I120: GBP m | J120: 0 | K120: 42.00509523 | L120: 0 | M120: =M$186 -> 0 | N120: 0.4977526276 | O120: 1.983053674 | P120: 3.949026091 | Q120: 5.898301119 | R120: =R$186 -> 7.881642426 | S120: 9.898026941 | T120: 11.89729235 | U120: 0
D121: less | E121: =E$218 -> Capex disposals - DN | F121: 4.30: | G121: CD_DNt | H121: 0 | I121: GBP m | J121: 0 | K121: 0.06598364688 | L121: 0 | M121: =M$218 -> 0 | N121: 0.01664138844 | O121: 0 | P121: 0.04934225844 | Q121: 0 | R121: =R$218 -> 0 | S121: 0 | T121: 0 | U121: 0
D122: plus | E122: =E$246 -> Capex incentive amount - DN | F122: 4.32: | G122: CI_DNt | H122: 0 | I122: GBP m | J122: 0 | K122: 0 | L122: 0 | M122: =M$246 -> 0 | N122: 0 | O122: 0 | P122: 0 | Q122: 0 | R122: =R$246 -> 0 | S122: 0 | T122: 0 | U122: 0
E123: Closing balance of additional RAB - DN | F123: 4.15: | G123: CADD_DNt | I123: GBP m | M123: =M115 + M116 - M117 + M118 - M119 - M120 - M121 + M122 -> 0 | N123: 32.68575588 | O123: 96.53926345 | P123: 157.8185039 | Q123: 216.6436048 | R123: =R115 + R116 - R117 + R118 - R119 - R120 - R121 + R122 -> 276.2613142 | S123: 333.2895697 | T123: 387.7503556 | U123: 0
C126: 4.16 Qualifying capex expenditure - QCE_DNt
C129: 4.17 Capex incurred by the licensee - allocated to TN
E131: ='Actuals Inp'!E$34 -> Qualifying capex amount - DN | F131: ='Actuals Inp'!F$34 -> 4.17: | G131: ='Actuals Inp'!G$34 -> QCE_DNt | H131: ='Actuals Inp'!H$34 -> 0 | I131: ='Actuals Inp'!I$34 -> GBP m | J131: ='Actuals Inp'!J$34 -> 0 | K131: ='Actuals Inp'!K$34 -> 429.8214345 | L131: ='Actuals Inp'!L$34 -> 0 | M131: ='Actuals Inp'!M$34 -> 0 | N131: ='Actuals Inp'!N$34 -> 33.20014989 | O131: ='Actuals Inp'!O$34 -> 65.83656124 | P131: ='Actuals Inp'!P$34 -> 65.27760884 | Q131: ='Actuals Inp'!Q$34 -> 64.72340194 | R131: ='Actuals Inp'!R$34 -> 67.4993519 | S131: ='Actuals Inp'!S$34 -> 66.9262824 | T131: ='Actuals Inp'!T$34 -> 66.35807826 | U131: ='Actuals Inp'!U$34 -> 0
E132: Qualifying capex amount - DN | F132: 4.17: | G132: QCE_DNt | I132: GBP m | K132: =SUM(M132:U132) -> 429.8214345 | M132: =M131 -> 0 | N132: 33.20014989 | O132: 65.83656124 | P132: 65.27760884 | Q132: 64.72340194 | R132: =R131 -> 67.4993519 | S132: 66.9262824 | T132: 66.35807826 | U132: 0
C135: 4.18 Demonstrably inefficient qualifying capex expenditure - DIQCE_DNt
C138: 4.19 DIQCE_DNt
E140: ='Actuals Inp'!E$46 -> Demonstrably inefficient qualifying capex - DN | F140: ='Actuals Inp'!F$46 -> 4.19: | G140: ='Actuals Inp'!G$46 -> DIQCE_DNt | H140: ='Actuals Inp'!H$46 -> 0 | I140: ='Actuals Inp'!I$46 -> GBP m | J140: ='Actuals Inp'!J$46 -> [Entitlement Model 28.11.16.xlsx]RP6 Distribution Inputs'!$A$42 | K140: ='Actuals Inp'!K$46 -> 0 | L140: ='Actuals Inp'!L$46 -> 0 | M140: ='Actuals Inp'!M$46 -> 0 | N140: ='Actuals Inp'!N$46 -> 0 | O140: ='Actuals Inp'!O$46 -> 0 | P140: ='Actuals Inp'!P$46 -> 0 | Q140: ='Actuals Inp'!Q$46 -> 0 | R140: ='Actuals Inp'!R$46 -> 0 | S140: ='Actuals Inp'!S$46 -> 0 | T140: ='Actuals Inp'!T$46 -> 0 | U140: ='Actuals Inp'!U$46 -> 0
E141: Demonstrably inefficient qualifying capex exp. - DN | F141: 4.19: | G141: DIQCE_DNt | I141: GBP m | K141: =SUM(M141:U141) -> 0 | M141: =M140 -> 0 | N141: 0 | O141: 0 | P141: 0 | Q141: 0 | R141: =R140 -> 0 | S141: 0 | T141: 0 | U141: 0
C144: 4.20 Pass through capex expenditure amount - PTCE_DNt
C147: 4.21 PTCE_DNt | F147: PTCE_DNt = CLD_DNt + CC_DNt
E149: =E$161 -> Capex legacy Dt amount - DN | F149: 4.23: | G149: CLD_DNt | H149: 0 | I149: GBP m | J149: 0 | K149: 0 | L149: 0 | M149: 0 | N149: 0 | O149: 0 | P149: 0 | Q149: 0 | R149: =R$161 -> 0 | S149: 0 | T149: 0 | U149: 0
E150: ='Actuals Inp'!E$58 -> Capex connection amount - DN | F150: ='Actuals Inp'!F$58 -> 4.21: | G150: ='Actuals Inp'!G$58 -> CC_DNt | H150: ='Actuals Inp'!H$58 -> 0 | I150: ='Actuals Inp'!I$58 -> GBP m | J150: ='Actuals Inp'!J$58 -> [Entitlement Model 28.11.16.xlsx]RP6 Distribution Inputs'!$A$51 | K150: ='Actuals Inp'!K$58 -> 0 | L150: ='Actuals Inp'!L$58 -> 0 | M150: ='Actuals Inp'!M$58 -> 0 | N150: ='Actuals Inp'!N$58 -> 0 | O150: ='Actuals Inp'!O$58 -> 0 | P150: ='Actuals Inp'!P$58 -> 0 | Q150: ='Actuals Inp'!Q$58 -> 0 | R150: ='Actuals Inp'!R$58 -> 0 | S150: ='Actuals Inp'!S$58 -> 0 | T150: ='Actuals Inp'!T$58 -> 0 | U150: ='Actuals Inp'!U$58 -> 0
E151: Pass through capex expenditure - DN | F151: 4.21: | G151: PTCE_DNt | I151: GBP m | K151: =SUM(M151:U151) -> 0 | M151: =SUM(M149:M150) -> 0 | N151: 0 | O151: 0 | P151: 0 | Q151: 0 | R151: =SUM(R149:R150) -> 0 | S151: 0 | T151: 0 | U151: 0
C154: 4.22 Capex legacy Dt amount - CLD_DNt
C157: 4.23 CLD_DNt
E159: ='Actuals Inp'!E$70 -> Distribution split for legacy Dt capex - DN | F159: ='Actuals Inp'!F$70 -> 4.23: | G159: ='Actuals Inp'!G$70 -> CLD_DNt | H159: ='Actuals Inp'!H$70 -> 0 | I159: ='Actuals Inp'!I$70 -> GBP m | J159: ='Actuals Inp'!J$70 -> [Entitlement Model 28.11.16.xlsx]RP6 Distribution Inputs'!$A$50 | K159: ='Actuals Inp'!K$70 -> 0 | L159: ='Actuals Inp'!L$70 -> 0 | M159: ='Actuals Inp'!M$70 -> 0 | N159: ='Actuals Inp'!N$70 -> 0 | O159: ='Actuals Inp'!O$70 -> 0 | P159: ='Actuals Inp'!P$70 -> 0 | Q159: ='Actuals Inp'!Q$70 -> 0 | R159: ='Actuals Inp'!R$70 -> 0 | S159: ='Actuals Inp'!S$70 -> 0 | T159: ='Actuals Inp'!T$70 -> 0 | U159: ='Actuals Inp'!U$70 -> 0
E160: =Time!E$92 -> RP6 period flag | F160: =Time!F$92 -> 0 | G160: =Time!G$92 -> 0 | H160: =Time!H$92 -> 0 | I160: =Time!I$92 -> flag | J160: =Time!J$92 -> 0 | K160: =Time!K$92 -> 7 | L160: =Time!L$92 -> 0 | M160: =Time!M$92 -> 0 | N160: =Time!N$92 -> 1 | O160: =Time!O$92 -> 1 | P160: =Time!P$92 -> 1 | Q160: =Time!Q$92 -> 1 | R160: =Time!R$92 -> 1 | S160: =Time!S$92 -> 1 | T160: =Time!T$92 -> 1 | U160: =Time!U$92 -> 0
E161: Capex legacy Dt amount - DN | F161: 4.23: | G161: CLD_DNt | I161: GBP m | K161: =SUM(M161:U161) -> 0 | M161: =M159 * M160 -> 0 | N161: 0 | O161: 0 | P161: 0 | Q161: 0 | R161: =R159 * R160 -> 0 | S161: 0 | T161: 0 | U161: 0
C164: 4.24 Demonstrably inefficient pass through capex expenditure - DIPTCE_DNt
C167: 4.25 DIPTCE_DNt - part of PTCE_DNt
E169: ='Actuals Inp'!E$88 -> Demonstrably inefficient pass through capex exp. - DN | F169: ='Actuals Inp'!F$88 -> 4.25: | G169: ='Actuals Inp'!G$88 -> DIPTCE_DNt | H169: ='Actuals Inp'!H$88 -> 0 | I169: ='Actuals Inp'!I$88 -> GBP m | J169: ='Actuals Inp'!J$88 -> [Entitlement Model 28.11.16.xlsx]RP6 Distribution Inputs'!$A$52 | K169: ='Actuals Inp'!K$88 -> 0 | L169: ='Actuals Inp'!L$88 -> 0 | M169: ='Actuals Inp'!M$88 -> 0 | N169: ='Actuals Inp'!N$88 -> 0 | O169: ='Actuals Inp'!O$88 -> 0 | P169: ='Actuals Inp'!P$88 -> 0 | Q169: ='Actuals Inp'!Q$88 -> 0 | R169: ='Actuals Inp'!R$88 -> 0 | S169: ='Actuals Inp'!S$88 -> 0 | T169: ='Actuals Inp'!T$88 -> 0 | U169: ='Actuals Inp'!U$88 -> 0
E170: Demonstrably inefficient pass through capex exp. - DN | F170: 4.25: | G170: DIPTCE_DNt | I170: GBP m | K170: =SUM(M170:U170) -> 0 | M170: =M169 -> 0 | N170: 0 | O170: 0 | P170: 0 | Q170: 0 | R170: =R169 -> 0 | S170: 0 | T170: 0 | U170: 0
C173: 4.26 Depreciation amount of additional assets - DEPADD_DNt
C176: 4.27 DEPADD_DNt
C179: 4.27b In reporting year except 2013 | F179: DEPADD_DNt = 0.5 * DEPN_DNt + (DEPADD_DNt-1 + 0.5 * DEPN_DNt-1 ) * RPIt / RPIt-1
E181: ='Licence Inp'!E$95 -> Additional depreciation factor - DL | F181: ='Licence Inp'!F$95 -> 4.27a: | G181: ='Licence Inp'!G$95 -> 0 | H181: ='Licence Inp'!H$95 -> 0.5 | I181: ='Licence Inp'!I$95 -> factor
E182: =E$207 -> Full period depreciation - DN | F182: 4.28: | G182: DEPN_DNt | H182: 0 | I182: GBP m | J182: 0 | K182: 12.89266352 | L182: 0 | M182: =M$207 -> 0 | N182: 0.9955052552 | O182: 1.975096837 | P182: 1.956847997 | Q182: 1.941702058 | R182: =R$207 -> 2.024980557 | S182: 2.007788472 | T182: 1.990742348 | U182: 0
E183: =Index!E$16 -> RPI index (Base year 1993/94) | F183: =Index!F$16 -> 0 | G183: =Index!G$16 -> RPIt | H183: =Index!H$16 -> 0 | I183: =Index!I$16 -> index | J183: =Index!J$16 -> 0 | K183: =Index!K$16 -> 0 | L183: =Index!L$16 -> 0 | M183: =Index!M$16 -> 259.5 | N183: =Index!N$16 -> 259.5 | O183: =Index!O$16 -> 259.5 | P183: =Index!P$16 -> 259.5 | Q183: =Index!Q$16 -> 259.5 | R183: =Index!R$16 -> 259.5 | S183: =Index!S$16 -> 259.5 | T183: =Index!T$16 -> 259.5 | U183: =Index!U$16 -> 259.5
E184: =Time!E$98 -> RP6 PPF- actual / actual | F184: =Time!F$98 -> 0 | G184: =Time!G$98 -> 0 | H184: =Time!H$98 -> 0 | I184: =Time!I$98 -> factor | J184: =Time!J$98 -> 0 | K184: =Time!K$98 -> 6.5 | L184: =Time!L$98 -> 0 | M184: =Time!M$98 -> 0 | N184: =Time!N$98 -> 0.5 | O184: =Time!O$98 -> 1 | P184: =Time!P$98 -> 1 | Q184: =Time!Q$98 -> 1 | R184: =Time!R$98 -> 1 | S184: =Time!S$98 -> 1 | T184: =Time!T$98 -> 1 | U184: =Time!U$98 -> 0
E185: =E$194 -> Depreciation amount for additional asset adj. - DN | F185: 0 | G185: 0 | H185: n PD LK BCK | I185: GBP m | J185: 0 | K185: 0 | L185: 0 | M185: 0 | N185: 0 | O185: 0 | P185: 0 | Q185: 0 | R185: 0 | S185: 0 | T185: 0 | U185: 0
E186: Depreciation amount for additional asset - t - DN | F186: 4.26: | G186: DEPADD_DNt | I186: GBP m | K186: =SUM(M186:U186) -> 42.00509523 | M186: =$H181 * M182 + IF(L183 = 0, 0, (L186 + $H181 * L182) * M184 * M183 / L183) - M185 -> 0 | N186: 0.4977526276 | O186: 1.983053674 | P186: 3.949026091 | Q186: 5.898301119 | R186: 7.881642426 | S186: 9.898026941 | T186: 11.89729235 | U186: 0
E189: ='Licence Inp'!E$101 -> Depreciation rate - RAB_DN | F189: ='Licence Inp'!F$101 -> Table 5 | G189: ='Licence Inp'!G$101 -> DEPR_DN | H189: ='Licence Inp'!H$101 -> 0.03 | I189: ='Licence Inp'!I$101 -> %
E190: =Index!E$16 -> RPI index (Base year 1993/94) | F190: =Index!F$16 -> 0 | G190: =Index!G$16 -> RPIt | H190: =Index!H$16 -> 0 | I190: =Index!I$16 -> index | J190: =Index!J$16 -> 0 | K190: =Index!K$16 -> 0 | L190: =Index!L$16 -> 0 | M190: =Index!M$16 -> 259.5 | N190: =Index!N$16 -> 259.5 | O190: =Index!O$16 -> 259.5 | P190: =Index!P$16 -> 259.5 | Q190: =Index!Q$16 -> 259.5 | R190: =Index!R$16 -> 259.5 | S190: =Index!S$16 -> 259.5 | T190: =Index!T$16 -> 259.5 | U190: =Index!U$16 -> 259.5
E191: =Time!E$98 -> RP6 PPF- actual / actual | F191: =Time!F$98 -> 0 | G191: =Time!G$98 -> 0 | H191: =Time!H$98 -> 0 | I191: =Time!I$98 -> factor | J191: =Time!J$98 -> 0 | K191: =Time!K$98 -> 6.5 | L191: =Time!L$98 -> 0 | M191: =Time!M$98 -> 0 | N191: =Time!N$98 -> 0.5 | O191: =Time!O$98 -> 1 | P191: =Time!P$98 -> 1 | Q191: =Time!Q$98 -> 1 | R191: =Time!R$98 -> 1 | S191: =Time!S$98 -> 1 | T191: =Time!T$98 -> 1 | U191: =Time!U$98 -> 0
E192: =Time!E$10 -> Model column counter | F192: =Time!F$10 -> 0 | G192: =Time!G$10 -> 0 | H192: =Time!H$10 -> 0 | I192: =Time!I$10 -> counter | J192: =Time!J$10 -> 0 | K192: =Time!K$10 -> 0 | L192: =Time!L$10 -> 0 | M192: =Time!M$10 -> 1 | N192: =Time!N$10 -> 2 | O192: =Time!O$10 -> 3 | P192: =Time!P$10 -> 4 | Q192: =Time!Q$10 -> 5 | R192: =Time!R$10 -> 6 | S192: =Time!S$10 -> 7 | T192: =Time!T$10 -> 8 | U192: =Time!U$10 -> 9
E193: =E$186 -> Depreciation amount for additional asset - t - DN | F193: 4.26: | G193: DEPADD_DNt | H193: 0 | I193: GBP m | J193: 0 | K193: 42.00509523 | L193: 0 | M193: 0 | N193: 0.4977526276 | O193: 1.983053674 | P193: 3.949026091 | Q193: 5.898301119 | R193: 7.881642426 | S193: 9.898026941 | T193: 11.89729235 | U193: 0
E194: Depreciation amount for additional asset adj. - DN | H194: n PD LK BCK | I194: GBP m | K194: =SUM(M194:U194) -> 0 | M194: =IF(OR($H189 = 0, L190 = 0, M191 = 0), 0, SUMPRODUCT(L193:$M193, (1 / L190:$M190), 1 * (L192:$M192 = (M192 - ROUNDDOWN(1 / $H189, 0))) * M190 * M191) - (L194 * M190 / L190)) -> 0 | N194: =IF(OR($H189 = 0, M190 = 0, N191 = 0), 0, SUMPRODUCT(M193:$M193, (1 / M190:$M190), 1 * (M192:$M192 = (N192 - ROUNDDOWN(1 / $H189, 0))) * N190 * N191) - (M194 * N190 / M190)) -> 0 | O194: =IF(OR($H189 = 0, N190 = 0, O191 = 0), 0, SUMPRODUCT($M193:N193, (1 / $M190:N190), 1 * ($M192:N192 = (O192 - ROUNDDOWN(1 / $H189, 0))) * O190 * O191) - (N194 * O190 / N190)) -> 0 | P194: =IF(OR($H189 = 0, O190 = 0, P191 = 0), 0, SUMPRODUCT($M193:O193, (1 / $M190:O190), 1 * ($M192:O192 = (P192 - ROUNDDOWN(1 / $H189, 0))) * P190 * P191) - (O194 * P190 / O190)) -> 0 | Q194: =IF(OR($H189 = 0, P190 = 0, Q191 = 0), 0, SUMPRODUCT($M193:P193, (1 / $M190:P190), 1 * ($M192:P192 = (Q192 - ROUNDDOWN(1 / $H189, 0))) * Q190 * Q191) - (P194 * Q190 / P190)) -> 0 | R194: =IF(OR($H189 = 0, Q190 = 0, R191 = 0), 0, SUMPRODUCT($M193:Q193, (1 / $M190:Q190), 1 * ($M192:Q192 = (R192 - ROUNDDOWN(1 / $H189, 0))) * R190 * R191) - (Q194 * R190 / Q190)) -> 0 | S194: =IF(OR($H189 = 0, R190 = 0, S191 = 0), 0, SUMPRODUCT($M193:R193, (1 / $M190:R190), 1 * ($M192:R192 = (S192 - ROUNDDOWN(1 / $H189, 0))) * S190 * S191) - (R194 * S190 / R190)) -> 0 | T194: =IF(OR($H189 = 0, S190 = 0, T191 = 0), 0, SUMPRODUCT($M193:S193, (1 / $M190:S190), 1 * ($M192:S192 = (T192 - ROUNDDOWN(1 / $H189, 0))) * T190 * T191) - (S194 * T190 / S190)) -> 0 | U194: =IF(OR($H189 = 0, T190 = 0, U191 = 0), 0, SUMPRODUCT($M193:T193, (1 / $M190:T190), 1 * ($M192:T192 = (U192 - ROUNDDOWN(1 / $H189, 0))) * U190 * U191) - (T194 * U190 / T190)) -> 0
C197: 4.28 DEPN_DNt | F197: DEPN_DNt = (QCE_DNt - DIQCE_DNt + PTCE_DNt - DIPTCE_DNt - CD_DNt + CI_DNt) * DEPR_DN
E199: ='Licence Inp'!E$101 -> Depreciation rate - RAB_DN | F199: ='Licence Inp'!F$101 -> Table 5 | G199: ='Licence Inp'!G$101 -> DEPR_DN | H199: ='Licence Inp'!H$101 -> 0.03 | I199: ='Licence Inp'!I$101 -> %
E200: =E$132 -> Qualifying capex amount - DN | F200: 4.17: | G200: QCE_DNt | H200: 0 | I200: GBP m | J200: 0 | K200: 429.8214345 | L200: 0 | M200: 0 | N200: 33.20014989 | O200: 65.83656124 | P200: 65.27760884 | Q200: 64.72340194 | R200: =R$132 -> 67.4993519 | S200: 66.9262824 | T200: 66.35807826 | U200: 0
E201: =E$141 -> Demonstrably inefficient qualifying capex exp. - DN | F201: 4.19: | G201: DIQCE_DNt | H201: 0 | I201: GBP m | J201: 0 | K201: 0 | L201: 0 | M201: 0 | N201: 0 | O201: 0 | P201: 0 | Q201: 0 | R201: =R$141 -> 0 | S201: 0 | T201: 0 | U201: 0
E202: =E$151 -> Pass through capex expenditure - DN | F202: 4.21: | G202: PTCE_DNt | H202: 0 | I202: GBP m | J202: 0 | K202: 0 | L202: 0 | M202: 0 | N202: 0 | O202: 0 | P202: 0 | Q202: 0 | R202: =R$151 -> 0 | S202: 0 | T202: 0 | U202: 0
E203: =E$170 -> Demonstrably inefficient pass through capex exp. - DN | F203: 4.25: | G203: DIPTCE_DNt | H203: 0 | I203: GBP m | J203: 0 | K203: 0 | L203: 0 | M203: 0 | N203: 0 | O203: 0 | P203: 0 | Q203: 0 | R203: =R$170 -> 0 | S203: 0 | T203: 0 | U203: 0
E204: =E$218 -> Capex disposals - DN | F204: 4.30: | G204: CD_DNt | H204: 0 | I204: GBP m | J204: 0 | K204: 0.06598364688 | L204: 0 | M204: 0 | N204: 0.01664138844 | O204: 0 | P204: 0.04934225844 | Q204: 0 | R204: =R$218 -> 0 | S204: 0 | T204: 0 | U204: 0
E205: =E$246 -> Capex incentive amount - DN | F205: 4.32: | G205: CI_DNt | H205: 0 | I205: GBP m | J205: 0 | K205: 0 | L205: 0 | M205: 0 | N205: 0 | O205: 0 | P205: 0 | Q205: 0 | R205: =R$246 -> 0 | S205: 0 | T205: 0 | U205: 0
E206: =Time!E$47 -> Pre - RP6 period flag | F206: =Time!F$47 -> 0 | G206: =Time!G$47 -> 0 | H206: =Time!H$47 -> 0 | I206: =Time!I$47 -> flag | J206: =Time!J$47 -> 0 | K206: =Time!K$47 -> 1 | L206: =Time!L$47 -> 0 | M206: =Time!M$47 -> 1 | N206: =Time!N$47 -> 0 | O206: =Time!O$47 -> 0 | P206: =Time!P$47 -> 0 | Q206: =Time!Q$47 -> 0 | R206: =Time!R$47 -> 0 | S206: =Time!S$47 -> 0 | T206: =Time!T$47 -> 0 | U206: =Time!U$47 -> 0
E207: Full period depreciation - DN | F207: 4.28: | G207: DEPN_DNt | I207: GBP m | K207: =SUM(M207:U207) -> 12.89266352 | M207: =(M200 - M201 + M202 - M203 - M204 + M205) * $H199 * (1 - M206) -> 0 | N207: =(N200 - N201 + N202 - N203 - N204 + N205) * $H199 * (1 - N206) -> 0.9955052552 | O207: 1.975096837 | P207: 1.956847997 | Q207: 1.941702058 | R207: 2.024980557 | S207: 2.007788472 | T207: 1.990742348 | U207: 0
C210: 4.29 Capex disposal amount - CD_DNt | F210: CD_DNt = (OCD_DNt-5) * RPIt / RPIt-5
C213: 4.30 CD_DNt
E215: =E231 -> Asset disposals - t-5 - DN | F215: 0 | G215: OCD_DNt-5 | H215: 0 | I215: GBP m | J215: 0 | K215: 0.06475 | L215: 0 | M215: 0 | N215: 0.01575 | O215: 0 | P215: 0.049 | Q215: 0 | R215: =R231 -> 0 | S215: 0 | T215: 0 | U215: 0
E216: =Index!E$38 -> RPI index (Base year 1993/94) - t-5 | F216: =Index!F$38 -> 0 | G216: =Index!G$38 -> RPIt-5 | H216: =Index!H$38 -> 0 | I216: =Index!I$38 -> index | J216: =Index!J$38 -> 0 | K216: =Index!K$38 -> 0 | L216: =Index!L$38 -> 0 | M216: =Index!M$38 -> 238 | N216: =Index!N$38 -> 245.6 | O216: =Index!O$38 -> 251.9 | P216: =Index!P$38 -> 257.7 | Q216: =Index!Q$38 -> 259.5 | R216: =Index!R$38 -> 259.5 | S216: =Index!S$38 -> 259.5 | T216: =Index!T$38 -> 259.5 | U216: =Index!U$38 -> 259.5
E217: =Index!E$16 -> RPI index (Base year 1993/94) | F217: =Index!F$16 -> 0 | G217: =Index!G$16 -> RPIt | H217: =Index!H$16 -> 0 | I217: =Index!I$16 -> index | J217: =Index!J$16 -> 0 | K217: =Index!K$16 -> 0 | L217: =Index!L$16 -> 0 | M217: =Index!M$16 -> 259.5 | N217: =Index!N$16 -> 259.5 | O217: =Index!O$16 -> 259.5 | P217: =Index!P$16 -> 259.5 | Q217: =Index!Q$16 -> 259.5 | R217: =Index!R$16 -> 259.5 | S217: =Index!S$16 -> 259.5 | T217: =Index!T$16 -> 259.5 | U217: =Index!U$16 -> 259.5
E218: Capex disposals - DN | F218: 4.30: | G218: CD_DNt | I218: GBP m | K218: =SUM(M218:U218) -> 0.06598364688 | M218: =M215 * M217 / M216 -> 0 | N218: 0.01664138844 | O218: 0 | P218: 0.04934225844 | Q218: 0 | R218: =R215 * R217 / R216 -> 0 | S218: 0 | T218: 0 | U218: 0
D220: Asset disposals - t-5
E221: ='Actuals Inp'!E$100 -> Asset disposal lookback periods | F221: ='Actuals Inp'!F$100 -> 0 | G221: ='Actuals Inp'!G$100 -> 0 | H221: ='Actuals Inp'!H$100 -> 5 | I221: ='Actuals Inp'!I$100 -> years
E223: ='Actuals Inp'!E$102 -> Historic timeline | F223: ='Actuals Inp'!F$102 -> 0 | G223: ='Actuals Inp'!G$102 -> 0 | H223: ='Actuals Inp'!H$102 -> 0 | I223: ='Actuals Inp'!I$102 -> date | J223: ='Actuals Inp'!J$102 -> 0 | K223: ='Actuals Inp'!K$102 -> 0 | L223: ='Actuals Inp'!L$102 -> 0 | M223: ='Actuals Inp'!M$102 -> 2008 | N223: ='Actuals Inp'!N$102 -> 2009 | O223: ='Actuals Inp'!O$102 -> 2010 | P223: ='Actuals Inp'!P$102 -> 2011 | Q223: ='Actuals Inp'!Q$102 -> 2012 | R223: ='Actuals Inp'!R$102 -> 2013 | S223: ='Actuals Inp'!S$102 -> 2014 | T223: ='Actuals Inp'!T$102 -> 2015 | U223: ='Actuals Inp'!U$102 -> 2016
E224: =Time!E$36 -> Financial year ending | F224: =Time!F$36 -> 0 | G224: =Time!G$36 -> 0 | H224: =Time!H$36 -> 0 | I224: =Time!I$36 -> year # | J224: =Time!J$36 -> 0 | K224: =Time!K$36 -> 0 | L224: =Time!L$36 -> 0 | M224: =Time!M$36 -> 2017 | N224: =Time!N$36 -> 2018 | O224: =Time!O$36 -> 2019 | P224: =Time!P$36 -> 2020 | Q224: =Time!Q$36 -> 2021 | R224: =Time!R$36 -> 2022 | S224: =Time!S$36 -> 2023 | T224: =Time!T$36 -> 2024 | U224: =Time!U$36 -> 2025
E226: ='Actuals Inp'!E$103 -> Historic - asset disposals - DN | F226: ='Actuals Inp'!F$103 -> 4.30: | G226: ='Actuals Inp'!G$103 -> OCD_DNt | H226: ='Actuals Inp'!H$103 -> 0 | I226: ='Actuals Inp'!I$103 -> GBP m | J226: ='Actuals Inp'!J$103 -> 0 | K226: ='Actuals Inp'!K$103 -> 0.0805 | L226: ='Actuals Inp'!L$103 -> 0 | M226: ='Actuals Inp'!M$103 -> 0 | N226: ='Actuals Inp'!N$103 -> 0 | O226: ='Actuals Inp'!O$103 -> 0 | P226: ='Actuals Inp'!P$103 -> 0 | Q226: ='Actuals Inp'!Q$103 -> 0 | R226: ='Actuals Inp'!R$103 -> 0.0315 | S226: ='Actuals Inp'!S$103 -> 0 | T226: ='Actuals Inp'!T$103 -> 0.049 | U226: ='Actuals Inp'!U$103 -> 0
E227: ='Actuals Inp'!E$113 -> Asset disposals - DN | F227: ='Actuals Inp'!F$113 -> 4.30: | G227: ='Actuals Inp'!G$113 -> OCD_DNt | H227: ='Actuals Inp'!H$113 -> 0 | I227: ='Actuals Inp'!I$113 -> GBP m | J227: ='Actuals Inp'!J$113 -> [Entitlement Model 28.11.16.xlsx]RP6 Distribution Inputs'!$A$55 | K227: ='Actuals Inp'!K$113 -> 0 | L227: ='Actuals Inp'!L$113 -> 0 | M227: ='Actuals Inp'!M$113 -> 0 | N227: ='Actuals Inp'!N$113 -> 0 | O227: ='Actuals Inp'!O$113 -> 0 | P227: ='Actuals Inp'!P$113 -> 0 | Q227: ='Actuals Inp'!Q$113 -> 0 | R227: ='Actuals Inp'!R$113 -> 0 | S227: ='Actuals Inp'!S$113 -> 0 | T227: ='Actuals Inp'!T$113 -> 0 | U227: ='Actuals Inp'!U$113 -> 0
E229: =Time!E$98 -> RP6 PPF- actual / actual | F229: =Time!F$98 -> 0 | G229: =Time!G$98 -> 0 | H229: =Time!H$98 -> 0 | I229: =Time!I$98 -> factor | J229: =Time!J$98 -> 0 | K229: =Time!K$98 -> 6.5 | L229: =Time!L$98 -> 0 | M229: =Time!M$98 -> 0 | N229: =Time!N$98 -> 0.5 | O229: =Time!O$98 -> 1 | P229: =Time!P$98 -> 1 | Q229: =Time!Q$98 -> 1 | R229: =Time!R$98 -> 1 | S229: =Time!S$98 -> 1 | T229: =Time!T$98 -> 1 | U229: =Time!U$98 -> 0
E231: Asset disposals - t-5 - DN | G231: OCD_DNt-5 | I231: GBP m | K231: =SUM(M231:U231) -> 0.06475 | M231: =SUMPRODUCT(($M223:$U224 = M224 - $H221) * $M226:$U227) * M229 -> 0 | N231: =SUMPRODUCT(($M223:$U224 = N224 - $H221) * $M226:$U227) * N229 -> 0.01575 | O231: =SUMPRODUCT(($M223:$U224 = O224 - $H221) * $M226:$U227) * O229 -> 0 | P231: =SUMPRODUCT(($M223:$U224 = P224 - $H221) * $M226:$U227) * P229 -> 0.049 | Q231: =SUMPRODUCT(($M223:$U224 = Q224 - $H221) * $M226:$U227) * Q229 -> 0 | R231: =SUMPRODUCT(($M223:$U224 = R224 - $H221) * $M226:$U227) * R229 -> 0 | S231: 0 | T231: 0 | U231: 0
C234: 4.31 Capex incentive amount - CI_DNt
C237: 4.32 CI_DNt | F237: CI_DNt = ( AC_DNt + ACIA_DNt + ACES_DNt + ACCOL_DNt – ( QCE_DNt – DIQCE_DNt ) ) * 50%
E239: ='Licence Inp'!E$113 -> Capex incentive licensee share % - DL | F239: ='Licence Inp'!F$113 -> 4.32: | G239: ='Licence Inp'!G$113 -> 0 | H239: ='Licence Inp'!H$113 -> 0.5 | I239: ='Licence Inp'!I$113 -> %
E240: =E$273 -> Allowed capex - DN | F240: 4.34: | G240: AC_DNt | H240: 0 | I240: GBP m | J240: 0 | K240: 429.8214345 | L240: 0 | M240: 0 | N240: 33.20014989 | O240: 65.83656124 | P240: 65.27760884 | Q240: 64.72340194 | R240: 67.4993519 | S240: 66.9262824 | T240: 66.35807826 | U240: 0
D241: plus | E241: =E$254 -> Allowed capex for injurious affection claims - DN | F241: 4.32: | G241: ACIA_DNt | H241: 0 | I241: GBP m | J241: 0 | K241: 0 | L241: 0 | M241: 0 | N241: 0 | O241: 0 | P241: 0 | Q241: 0 | R241: 0 | S241: 0 | T241: 0 | U241: 0
D242: plus | E242: =E$262 -> Allowed capex for enduring solution system - DN | F242: 4.32: | G242: ACES_DNt | H242: 0 | I242: GBP m | J242: 0 | K242: 0 | L242: 0 | M242: 0 | N242: 0 | O242: 0 | P242: 0 | Q242: 0 | R242: 0 | S242: 0 | T242: 0 | U242: 0
D243: plus | E243: =E$281 -> Allowed capex for changes of law - DN | F243: 4.45: | G243: ACCOL_DNt | H243: 0 | I243: GBP m | J243: 0 | K243: 0 | L243: 0 | M243: 0 | N243: 0 | O243: 0 | P243: 0 | Q243: 0 | R243: 0 | S243: 0 | T243: 0 | U243: 0
D244: less | E244: =E$132 -> Qualifying capex amount - DN | F244: 4.17: | G244: QCE_DNt | H244: 0 | I244: GBP m | J244: 0 | K244: 429.8214345 | L244: 0 | M244: 0 | N244: 33.20014989 | O244: 65.83656124 | P244: 65.27760884 | Q244: 64.72340194 | R244: =R$132 -> 67.4993519 | S244: 66.9262824 | T244: 66.35807826 | U244: 0
D245: plus | E245: =E$141 -> Demonstrably inefficient qualifying capex exp. - DN | F245: 4.19: | G245: DIQCE_DNt | H245: 0 | I245: GBP m | J245: 0 | K245: 0 | L245: 0 | M245: 0 | N245: 0 | O245: 0 | P245: 0 | Q245: 0 | R245: =R$141 -> 0 | S245: 0 | T245: 0 | U245: 0
E246: Capex incentive amount - DN | F246: 4.32: | G246: CI_DNt | I246: GBP m | K246: =SUM(M246:U246) -> 0 | M246: =(M240 + M241 + M242 + M243 - (M244 - M245)) * $H239 -> 0 | N246: =(N240 + N241 + N242 + N243 - (N244 - N245)) * $H239 -> 0 | O246: 0 | P246: 0 | Q246: 0 | R246: =(R240 + R241 + R242 + R243 - (R244 - R245)) * $H239 -> 0 | S246: 0 | T246: 0 | U246: 0
C249: 4.32 ACIA_DNt
E251: ='Actuals Inp'!E$12 -> RPI as on 2015/16 - (Base year 1993/94) | F251: ='Actuals Inp'!F$12 -> 0 | G251: ='Actuals Inp'!G$12 -> RPI2016 | H251: ='Actuals Inp'!H$12 -> 259.5 | I251: ='Actuals Inp'!I$12 -> index
E252: ='Licence Inp'!E$129 -> Allowed capex for injurious affection claims - DN | F252: ='Licence Inp'!F$129 -> 4.32: | G252: ='Licence Inp'!G$129 -> ACIA_2016_DNt | H252: ='Licence Inp'!H$129 -> 0 | I252: ='Licence Inp'!I$129 -> GBP m | J252: ='Licence Inp'!J$129 -> [Entitlement Model 28.11.16.xlsx]RP6 Distribution Inputs'!$A$45 | K252: ='Licence Inp'!K$129 -> 0 | L252: ='Licence Inp'!L$129 -> 0 | M252: ='Licence Inp'!M$129 -> 0 | N252: ='Licence Inp'!N$129 -> 0 | O252: ='Licence Inp'!O$129 -> 0 | P252: ='Licence Inp'!P$129 -> 0 | Q252: ='Licence Inp'!Q$129 -> 0 | R252: ='Licence Inp'!R$129 -> 0 | S252: ='Licence Inp'!S$129 -> 0 | T252: ='Licence Inp'!T$129 -> 0 | U252: ='Licence Inp'!U$129 -> 0
E253: =Index!E$16 -> RPI index (Base year 1993/94) | F253: =Index!F$16 -> 0 | G253: =Index!G$16 -> RPIt | H253: =Index!H$16 -> 0 | I253: =Index!I$16 -> index | J253: =Index!J$16 -> 0 | K253: =Index!K$16 -> 0 | L253: =Index!L$16 -> 0 | M253: =Index!M$16 -> 259.5 | N253: =Index!N$16 -> 259.5 | O253: =Index!O$16 -> 259.5 | P253: =Index!P$16 -> 259.5 | Q253: =Index!Q$16 -> 259.5 | R253: =Index!R$16 -> 259.5 | S253: =Index!S$16 -> 259.5 | T253: =Index!T$16 -> 259.5 | U253: =Index!U$16 -> 259.5
E254: Allowed capex for injurious affection claims - DN | F254: 4.32: | G254: ACIA_DNt | I254: GBP m | K254: =SUM(M254:U254) -> 0 | M254: =M252 * M253 / $H251 -> 0 | N254: =N252 * N253 / $H251 -> 0 | O254: 0 | P254: 0 | Q254: 0 | R254: 0 | S254: 0 | T254: 0 | U254: 0
C257: 4.32 ACES_DNt
E259: ='Actuals Inp'!E$12 -> RPI as on 2015/16 - (Base year 1993/94) | F259: ='Actuals Inp'!F$12 -> 0 | G259: ='Actuals Inp'!G$12 -> RPI2016 | H259: ='Actuals Inp'!H$12 -> 259.5 | I259: ='Actuals Inp'!I$12 -> index
E260: ='Licence Inp'!E$141 -> Allowed capex for enduring solution system - DN | F260: ='Licence Inp'!F$141 -> 0 | G260: ='Licence Inp'!G$141 -> ACES_2016_DNt | H260: ='Licence Inp'!H$141 -> 0 | I260: ='Licence Inp'!I$141 -> GBP m | J260: ='Licence Inp'!J$141 -> [Entitlement Model 28.11.16.xlsx]RP6 Distribution Inputs'!$A$47 | K260: ='Licence Inp'!K$141 -> 0 | L260: ='Licence Inp'!L$141 -> 0 | M260: ='Licence Inp'!M$141 -> 0 | N260: ='Licence Inp'!N$141 -> 0 | O260: ='Licence Inp'!O$141 -> 0 | P260: ='Licence Inp'!P$141 -> 0 | Q260: ='Licence Inp'!Q$141 -> 0 | R260: ='Licence Inp'!R$141 -> 0 | S260: ='Licence Inp'!S$141 -> 0 | T260: ='Licence Inp'!T$141 -> 0 | U260: ='Licence Inp'!U$141 -> 0
E261: =Index!E$16 -> RPI index (Base year 1993/94) | F261: =Index!F$16 -> 0 | G261: =Index!G$16 -> RPIt | H261: =Index!H$16 -> 0 | I261: =Index!I$16 -> index | J261: =Index!J$16 -> 0 | K261: =Index!K$16 -> 0 | L261: =Index!L$16 -> 0 | M261: =Index!M$16 -> 259.5 | N261: =Index!N$16 -> 259.5 | O261: =Index!O$16 -> 259.5 | P261: =Index!P$16 -> 259.5 | Q261: =Index!Q$16 -> 259.5 | R261: =Index!R$16 -> 259.5 | S261: =Index!S$16 -> 259.5 | T261: =Index!T$16 -> 259.5 | U261: =Index!U$16 -> 259.5
E262: Allowed capex for enduring solution system - DN | F262: 4.32: | G262: ACES_DNt | I262: GBP m | K262: =SUM(M262:U262) -> 0 | M262: =M260 * M261 / $H259 -> 0 | N262: 0 | O262: 0 | P262: 0 | Q262: 0 | R262: 0 | S262: 0 | T262: 0 | U262: 0
C265: 4.33 Allowed capex - AC_DNt
C268: 4.34 AC_DNt | F268: AC_DNt = AC_2016_DNt * RPIt / RPI2016
E270: ='Actuals Inp'!E$12 -> RPI as on 2015/16 - (Base year 1993/94) | F270: ='Actuals Inp'!F$12 -> 0 | G270: ='Actuals Inp'!G$12 -> RPI2016 | H270: ='Actuals Inp'!H$12 -> 259.5 | I270: ='Actuals Inp'!I$12 -> index
